Workbook

Sheet AER only (hidden)
B1: Data in these columns used for data validation and database purposes.
B2: Date last modified:
B3: 14 April 2015 | C3: merged cell C46/47
B4: 17 April 2015 | C4: adjusted dms_RYE to automate based on dms_Model (NB: EB & CA refer to CRCP_y5)
B5: 14 May 2015 | C5: adapted this cover for use in CA & EB RINs
B6: October 2015 | C6: added full Trading Name for worksheet headings
C7: added new formulas for distinguishing RYE for RFM vs PTRM and Reset (set by ref to CRCP or FRCP) and EB & CA (set by ref to CRY)
B11: dms_TradingName_List | C11: dms_TradingNameFull_List | D11: dms_ABN_List | E11: dms_JurisdictionList | F11: dms_Sector_List | G11: dms_Segment_List | H11: dms_FormControl_List | I11: dms_RPT_List | J11: dms_RPTMonth_List | K11: dms_CRCPlength_List | L11: dms_FRCPlength_List | M11: dms_663_List | N11: dms_DeterminationRef_List | R11: dms_Addr1_List | S11: dms_Addr2_List | T11: dms_Suburb_List | U11: dms_State_List | V11: dms_PostCode_List | W11: dms_PAddr1_List | X11: dms_PAddr2_List | Y11: dms_PSuburb_List | Z11: dms_PState_List | AA11: dms_PPostCode_List | AB11: dms_ContactName1_List | AC11: dms_ContactPh1_List | AD11: dms_ContactEmail_List
B12: ActewAGL Distribution | C12: ActewAGL Distribution | D12: 76670568688 | E12: ACT | F12: Electricity | G12: Distribution | H12: Revenue cap | I12: Calendar | J12: December | K12: 5 | L12: 5 | M12: 5 | N12: 2014-19 Distribution Determination | R12: 40 Bunda Street | T12: CANBERRA | U12: ACT | V12: 2601 | W12: GPO BOX 366 | Y12: CANBERRA | Z12: ACT | AA12: 2601 | AB12: Robert Walker | AC12: 02 6248 3847 | AD12: robert.walker@actewagle.com.au
B13: ActewAGL Distribution (Tx Assets) | C13: ActewAGL Distribution (Tx Assets) | D13: 76670568688 | E13: ACT | F13: Electricity | G13: Distribution | H13: Revenue cap | I13: Calendar | J13: December | K13: 5 | L13: 5 | M13: 5 | N13: distribution determination | U13: ACT
B14: AGN | C14: AGN | D14: 78551685 | E14: SA | F14: Gas | G14: Distribution | H14: Revenue cap | I14: Financial | J14: June | K14: 5 | L14: 5 | M14: 5 | N14: distribution determination | U14: SA
B15: Ausgrid | C15: Ausgrid | D15: 67505337385 | E15: NSW | F15: Electricity | G15: Distribution | H15: Revenue cap | I15: Financial | J15: June | K15: 5 | L15: 5 | M15: 5 | N15: 2014-19 Distribution Determination | R15: 570 George St | T15: SYDNEY | U15: NSW | V15: 2000 | AB15: John Thomson | AC15: (02) 9269 2312 | AD15: john.thomson@ausgrid.com.au
B16: Ausgrid (Tx Assets) | C16: Ausgrid (Tx Assets) | D16: 67505337385 | E16: NSW | F16: Electricity | G16: Distribution | H16: Revenue cap | I16: Financial | J16: June | K16: 5 | L16: 5 | M16: 5 | N16: distribution determination | U16: NSW
B17: AusNet (D) | C17: AusNet Services (D) | D17: 91064651118 | E17: Vic | F17: Electricity | G17: Distribution | H17: Revenue cap | I17: Calendar | J17: December | K17: 5 | L17: 5 | M17: 2 | N17: 2016-20 Distribution Determination | R17: Level 32 | S17: 2 Southbank Boulevard | T17: SOUTHBANK | U17: Vic | V17: 3006 | W17: Locked Bag 14051 | Y17: MELBOURNE CITY MAIL CENTRE | Z17: VIC | AB17: Tom Hallam | AC17: 03 9695 6617 | AD17: Thomas.hallam@SP-Ausnet.com.au
B18: AusNet (T) | C18: AusNet (T) | D18: 48116124362 | E18: Vic | F18: Electricity | G18: Transmission | H18: Revenue cap | I18: Financial | J18: March | K18: 5 | L18: 5 | M18: 2 | N18: transmission determination | R18: Level 32 | S18: 2 Southbank Boulevard | T18: SOUTHBANK | U18: Vic | V18: 3006 | AB18: Tom Hallam | AC18: 03 9695 6617 | AD18: Thomas.hallam@SP-Ausnet.com.au
B19: Australian Distribution Co. | C19: Australian Distribution Co. | D19: 11222333444 | E19: - | F19: Electricity | G19: Distribution | H19: Revenue cap | I19: Financial | J19: June | K19: 5 | L19: 5 | M19: 2 | N19: distribution determination | U19: -
B20: Australian Transmission Co. | C20: Australian Transmission Co. | D20: 11222333444 | E20: - | F20: Electricity | G20: Transmission | H20: Revenue cap | I20: Financial | J20: June | K20: 5 | L20: 5 | M20: 5 | N20: transmission determination | U20: -
B21: CitiPower | C21: CitiPower | D21: 76064651056 | E21: Vic | F21: Electricity | G21: Distribution | H21: Revenue cap | I21: Calendar | J21: December | K21: 5 | L21: 5 | M21: 2 | N21: 2016-20 Distribution Determination | R21: 40 Market Street | T21: MELBOURNE | U21: Vic | V21: 3000 | W21: Locked Bag 14090 | Y21: MELBOURNE | Z21: VIC | AB21: Hannah Williams | AC21: 03 9683 4088 | AD21: hwilliams@powercor.com.au
B22: Directlink | C22: Directlink | D22: 16779340889 | E22: Qld | F22: Electricity | G22: Transmission | H22: Revenue cap | I22: Financial | J22: June | K22: 10 | L22: 5 | M22: 5 | N22: transmission determination | U22: NSW
B23: ElectraNet | C23: ElectraNet | D23: 41094482416 | E23: SA | F23: Electricity | G23: Transmission | H23: Revenue cap | I23: Financial | J23: June | K23: 5 | L23: 5 | M23: 5 | N23: transmission determination | R23: 52-55 East Terrace | S23: Rymill Park | T23: ADELAIDE | U23: SA | V23: 5000 | W23: PO Box 7096 | X23: Hutt Street Post Office | Y23: ADELAIDE | Z23: SA | AB23: Bill Jackson | AC23: 08 8404 7969 | AD23: jackson.bill@electranet.com.au
B24: Endeavour Energy | C24: Endeavour Energy | D24: 59253130878 | E24: NSW | F24: Electricity | G24: Distribution | H24: Revenue cap | I24: Financial | J24: June | K24: 5 | L24: 5 | M24: 5 | N24: 2014-19 Distribution Determination | R24: 51 Huntingwood Drive | T24: HUNTINGWOOD | U24: NSW | V24: 2148 | W24: PO Box 811 | Y24: SEVEN HILLS | Z24: NSW | AB24: Jon Hocking | AC24: 02 9853 4386 / 0407 348 156 | AD24: Jon.Hocking@Endeavourenergy.com.au
B25: Energex | C25: Energex | D25: 40078849055 | E25: Qld | F25: Electricity | G25: Distribution | H25: Revenue cap | I25: Financial | J25: June | K25: 5 | L25: 5 | M25: 5 | N25: 2015-20 Distribution Determination | R25: 26 Reddacliff Street | T25: NEWSTEAD | U25: Qld | V25: 4006 | W25: 26 Reddacliff Street | Y25: NEWSTEAD | Z25: QLD | AA25: 4006 | AB25: Nicola Roscoe | AC25: 07 3664 5891 | AD25: nicolaroscoe@energex.com.au
B26: Ergon Energy | C26: Ergon Energy | D26: 50087646062 | E26: Qld | F26: Electricity | G26: Distribution | H26: Revenue cap | I26: Financial | J26: June | K26: 5 | L26: 5 | M26: 5 | N26: 2015-20 Distribution Determination | R26: 22 Walker Street | T26: TOWNSVILLE | U26: Qld | V26: 4810 | AB26: Jenny Doyle, Group Manager Regulatory Affairs | AC26: (07) 3851 6416 | AD26: jenny.doyle@ergon.com.au
B27: Essential Energy | C27: Essential Energy | D27: 37428185226 | E27: NSW | F27: Electricity | G27: Distribution | H27: Revenue cap | I27: Financial | J27: June | K27: 5 | L27: 5 | M27: 5 | N27: 2014-19 Distribution Determination | R27: 8 Buller Street | T27: PORT MACQUARIE | U27: NSW | V27: 2444 | W27: PO Box 5730 | Y27: Port MacQuarie | Z27: NSW | AB27: Catherine Waddell | AC27: 02 6338 3553 | AD27: Catherine.waddell@essentialenergy.com.au
B28: Jemena Electricity | C28: Jemena Electricity | D28: 82064651083 | E28: Vic | F28: Electricity | G28: Distribution | H28: Revenue cap | I28: Calendar | J28: December | K28: 5 | L28: 5 | M28: 2 | N28: 2016-20 Distribution Determination | R28: 321 Ferntree Gully Road | T28: MT WAVERLEY | U28: Vic | V28: 3149 | W28: 321 Ferntree Gully Road | Y28: MT WAVERLEY | Z28: VIC | AA28: 3149 | AB28: Anton Murashev | AC28: 03 8544 9036 | AD28: anton.murashev@jemena.com.au
B29: Murraylink | C29: Murraylink | D29: 79181207909 | E29: SA | F29: Electricity | G29: Transmission | H29: Revenue cap | I29: Financial | J29: June | K29: 5 | L29: 5 | M29: 5 | N29: transmission determination | U29: NSW
B30: Powercor Australia | C30: Powercor Australia | D30: 89064651109 | E30: Vic | F30: Electricity | G30: Distribution | H30: Revenue cap | I30: Calendar | J30: December | K30: 5 | L30: 5 | M30: 2 | N30: 2016-20 Distribution Determination | R30: 40 Market Street | T30: MELBOURNE | U30: Vic | V30: 3000 | W30: Locked bag 14090 | Y30: MELBOURNE | Z30: VIC | AA30: 3001 | AB30: Hannah Williams | AC30: 03 9683 4088 | AD30: hwilliams@powercor.com.au
B31: Powerlink | C31: Queensland Electricity Transmission Corporation Limited trading as Powerlink Queensland | D31: 82078849233 | E31: Qld | F31: Electricity | G31: Transmission | H31: Revenue cap | I31: Financial | J31: June | K31: 5 | L31: 5 | M31: 5 | N31: transmission determination | R31: 33 Harold St | T31: VIRGINIA | U31: Qld | V31: 4014 | W31: PO Box 1193 | Y31: VIRGINIA | Z31: QLD | AA31: 4014 | AB31: Jennifer Harris | AC31: 07 3860 2667 | AD31: jharris@powerlink.com.au
B32: Qld,SA &ACT Gas Reset | C32: Qld,SA &ACT Gas Reset | D32: 22222222222 | E32: - | F32: Gas | G32: Distribution | H32: ? | K32: 5 | L32: 5 | M32: x | N32: n/a | U32: -
B33: Roma to Brisbane Pipeline | C33: APT Petroleum Pipelines Limited t/a Roma to Brisbane Pipeline | D33: 009 737 393 | E33: Qld | F33: Gas | G33: Distribution | H33: ? | I33: Financial | J33: June | K33: 5 | L33: 5 | M33: x | N33: n/a
B34: SA Power Networks | C34: SA Power Networks | D34: 13332330749 | E34: SA | F34: Electricity | G34: Distribution | H34: Revenue cap | I34: Financial | J34: June | K34: 5 | L34: 5 | M34: 5 | N34: 2015-20 Distribution Determination | R34: 1 Anzac Highway | T34: KESWICK | U34: SA | V34: 5035 | W34: GPO Box 77 | Y34: ADELAIDE | Z34: SA | AB34: Damien O'Connor | AC34: 08 8404 5066 | AD34: damien.oconnor@sapowernetworks.com.au
B35: TasNetworks (D) | C35: TasNetworks (D) | D35: 24167357299 | E35: Tas | F35: Electricity | G35: Distribution | H35: Revenue cap | I35: Financial | J35: June | K35: 5 | L35: 5 | M35: 5 | N35: distribution determination | R35: 21 Kirksway Place | T35: HOBART | U35: Tas | V35: 7000 | W35: GPO Box 191 | Y35: HOBART | Z35: Tas | AB35: Leigh Mayne | AC35: 03 6270 3691 | AD35: rrp2012@auroraenergy.com.au
B36: TasNetworks (T) | C36: TasNetworks (T) | D36: 24167357299 | E36: Tas | F36: Electricity | G36: Transmission | H36: Revenue cap | I36: Financial | J36: March | K36: 5 | L36: 5 | M36: 5 | N36: transmission determination | R36: 1-7 Maria Street | T36: LENAH VALLEY | U36: Tas | V36: 7008 | W36: PO Box 606 | Y36: MOONAH | Z36: Tas | AB36: Heath Dillon | AC36: 03 6274 3664 | AD36: heath.dillon@transend.com.au
B37: TransGrid | C37: TransGrid | D37: 19622755774 | E37: NSW | F37: Electricity | G37: Transmission | H37: Revenue cap | I37: Financial | J37: June | K37: 5 | L37: 5 | M37: 5 | N37: transmission determination | R37: 180 Thomas Street | T37: HAYMARKET | U37: NSW | V37: 2000 | W37: PO Box A1000 | Y37: SYDNEY SOUTH | Z37: NSW | AB37: Andrew Kingsmill | AC37: 02 9284 3149 | AD37: andrew.kingsmill@transgrid.com.au
B38: United Energy | C38: United Energy | D38: 70064651029 | E38: Vic | F38: Electricity | G38: Distribution | H38: Revenue cap | I38: Calendar | J38: December | K38: 5 | L38: 5 | M38: 2 | N38: 2016-20 Distribution Determination | R38: 6 Nexus Court | T38: MULGRAVE | U38: Vic | V38: 3170 | W38: PO Box 449 | Y38: MOUNT WAVERLEY | Z38: VIC | AB38: Mathew Abraham | AC38: 03 8846 9758 | AD38: mathew.abraham@ue.com.au
B39: Victorian DNSP Backcasting | C39: Victorian DNSP Backcasting | D39: 33333333666 | E39: Vic | F39: Electricity | G39: Distribution | H39: ? | I39: Calendar | K39: 5 | L39: 5 | M39: x | N39: distribution determination | U39: Vic
B40: Victorian DNSP Reset | C40: Victorian DNSP Reset | D40: 33333333333 | E40: Vic | F40: Electricity | G40: Distribution | H40: ? | I40: Calendar | K40: 5 | L40: 5 | M40: x | N40: distribution determination | U40: Vic
B41: Western Power (D) | C41: Western Power (D) | D41: 18540492861 | E41: WA | F41: Electricity | G41: Distribution | H41: Revenue cap | I41: Financial | J41: June | K41: 5 | L41: 4 | M41: x | N41: distribution determination | U41: WA | AB41: Judy Hunter | AC41: 08 9326 6239
B42: Western Power (T) | C42: Western Power (T) | D42: 18540492861 | E42: WA | F42: Electricity | G42: Transmission | H42: Revenue cap | I42: Financial | J42: June | K42: 5 | L42: 4 | M42: x | N42: transmission determination | U42: WA | AB42: Judy Hunter | AC42: 08 9326 6239
B47: dms_Model_List | C47: DELETE NR 'CRY' IF NOT AN ANNUAL RIN (EB, CA , ARR) | E47: dms_RYE_Formula_Result | N47: dms_0203_ProjectType | R47: dms_020303_01_UOM | S47: dms_020501_01_UOM | T47: dms_020501_02_UOM | U47: dms_020501_03_UOM | V47: dms_020501_04_UOM | W47: dms_020603_01_UOM | X47: dms_040102_01_UOM | Y47: dms_040102_04_UOM
B48: ARR | C48: ANNUAL REPORTING STATEMENT | E48: =LEFT(dms_SingleYear_FinalYear_Result,2)&RIGHT(dms_SingleYear_FinalYear_Result,2) -> 2016 | F48: =LEFT(dms_SingleYear_FinalYear_Result,2)&RIGHT(dms_SingleYear_FinalYear_Result,2) | H48: Formula errors are OK | N48: New line on new route - single circuit | R48: Circuit line length in km | S48: 0's | T48: 0's | U48: 0's | V48: 0's | W48: 0's | X48: 0's | Y48: days
B49: CA | C49: CATEGORY ANALYSIS | E49: =LEFT(dms_SingleYear_FinalYear_Result,2)&RIGHT(dms_SingleYear_FinalYear_Result,2) -> 2016 | F49: =LEFT(dms_SingleYear_FinalYear_Result,2)&RIGHT(dms_SingleYear_FinalYear_Result,2) | H49: Formula errors are OK | N49: New line on new route - dual circuit | R49: Circuit line length in km | S49: 0's | T49: 0's | U49: 0's | V49: 0's | W49: 0's | X49: 0's | Y49: 0's
B50: CPI | C50: CPI | N50: New line on new route - other | R50: Circuit line length in km | S50: MVA added | T50: MVA added | U50: MVA added | V50: MVA added | W50: 0's | X50: 0's | Y50: $0s
B51: EB | C51: ECONOMIC BENCHMARKING | E51: =LEFT(dms_SingleYear_FinalYear_Result,2)&RIGHT(dms_SingleYear_FinalYear_Result,2) -> 2016 | F51: =LEFT(dms_SingleYear_FinalYear_Result,2)&RIGHT(dms_SingleYear_FinalYear_Result,2) | H51: Formula errors are OK | N51: Line rebuild over existing route - single circuit | R51: Circuit line length in km | S51: 0's | T51: 0's | U51: 0's | V51: 0's | W51: 0's | X51: $0s | Y51: 0's
B52: PTRM | C52: POST TAX REVENUE MODEL | E52: =LEFT(dms_MultiYear_FinalYear_Result,2)&RIGHT(dms_MultiYear_FinalYear_Result,2) -> 2019 | F52: =LEFT(dms_MultiYear_FinalYear_Result,2)&RIGHT(dms_MultiYear_FinalYear_Result,2) | N52: Line rebuild over existing route - dual circuit | R52: Number | S52: total spend $0s | T52: total spend $0s | U52: total spend $0s | V52: total spend $0s | W52: (per cent)
B53: Reset | C53: REGULATORY REPORTING STATEMENT | E53: =LEFT(dms_MultiYear_FinalYear_Result,2)&RIGHT(dms_MultiYear_FinalYear_Result,2) -> 2019 | F53: =LEFT(dms_MultiYear_FinalYear_Result,2)&RIGHT(dms_MultiYear_FinalYear_Result,2) | H53: Formula errors are OK | N53: Reconductor - Single circuit | R53: Number | S53: net circuit km added | T53: net circuit km added | U53: net circuit km added | V53: net circuit km added
B54: RFM | C54: ROLL FORWARD MODEL | E54: =LEFT(dms_CRCP_FinalYear_Result,2)&RIGHT(dms_CRCP_FinalYear_Result,2) -> 2016 | F54: =LEFT(dms_CRCP_FinalYear_Result,2)&RIGHT(dms_CRCP_FinalYear_Result,2) | N54: Reconductor - Dual circuit | R54: Number | S54: total spend $0s | T54: total spend $0s | U54: total spend $0s | V54: total spend $0s
B55: WACC | C55: WEIGHTED AVERAGE COST OF CAPITAL | E55: =LEFT(dms_MultiYear_FinalYear_Result,2)&RIGHT(dms_MultiYear_FinalYear_Result,2) -> 2019 | F55: =LEFT(dms_MultiYear_FinalYear_Result,2)&RIGHT(dms_MultiYear_FinalYear_Result,2) | N55: Other | S55: net circuit km added | T55: net circuit km added | U55: net circuit km added | V55: net circuit km added
S56: total spend $0s | T56: total spend $0s | U56: total spend $0s | V56: total spend $0s
S57: 0's | U57: $0s
S58: 0's
S59: 0's
S60: $0s
B65: dms_SourceList | C65: dms_FormControl_Choices | E65: dms_FRCPlength_Num_List | F65: dms_FinalYear_List | G65: dms_CRCPlength_Num_List | H65: dms_CFinalYear_List | I65: dms_RCP_fyear_list | J65: dms_CRY_ListF | K65: dms_CRY_ListC | L65: dms_RCP_cyear_list
B66: After appeal | C66: Revenue cap | E66: 1 | F66: FRCP_y1 | G66: 1 | H66: CRCP_y1 | I66: dms_fy1 | J66: 2005-06 | K66: 2006 | L66: dms_cy1
B67: Draft decision | C67: Revenue yield | E67: 2 | F67: FRCP_y2 | G67: 2 | H67: CRCP_y2 | I67: dms_fy2 | J67: 2006-07 | K67: 2007 | L67: dms_cy2
B68: Final decision | C68: Weighted average price cap | E68: 3 | F68: FRCP_y3 | G68: 3 | H68: CRCP_y3 | I68: dms_fy3 | J68: 2007-08 | K68: 2008 | L68: dms_cy3
B69: Pass through decision | E69: 4 | F69: FRCP_y4 | G69: 4 | H69: CRCP_y4 | I69: dms_fy4 | J69: 2008-09 | K69: 2009 | L69: dms_cy4
B70: PTRM annual update | E70: 5 | F70: FRCP_y5 | G70: 5 | H70: CRCP_y5 | I70: dms_fy5 | J70: 2009-10 | K70: 2010 | L70: dms_cy5
B71: PTRM interim update 1 | E71: 6 | F71: FRCP_y6 | G71: 6 | H71: CRCP_y6 | I71: dms_fy6 | J71: 2010-11 | K71: 2011 | L71: dms_cy6
B72: PTRM interim update 2 | E72: 7 | F72: FRCP_y7 | G72: 7 | H72: CRCP_y7 | I72: dms_fy7 | J72: 2011-12 | K72: 2012 | L72: dms_cy7
B73: PTRM interim update 3 | E73: 8 | F73: FRCP_y8 | G73: 8 | H73: CRCP_y8 | I73: dms_fy8 | J73: 2012-13 | K73: 2013 | L73: dms_cy8
B74: PTRM interim update 4 | E74: 9 | F74: FRCP_y9 | G74: 9 | H74: CRCP_y9 | I74: dms_fy9 | J74: 2013-14 | K74: 2014 | L74: dms_cy9
B75: Regulatory proposal | E75: 10 | F75: FRCP_y10 | G75: 10 | H75: CRCP_y10 | I75: dms_fy10 | J75: 2014-15 | K75: 2015 | L75: dms_cy10
B76: Reporting | I76: dms_fy11 | J76: 2015-16 | K76: 2016 | L76: dms_cy11
B77: Revised regulatory proposal | I77: dms_fy12 | J77: 2016-17 | K77: 2017 | L77: dms_cy12
B78: RFM annual update | D78: dms_FRCP_years | F78: dms_CRCP_years | H78: dms_CRCP_index | I78: dms_fy13 | J78: 2017-18 | K78: 2018 | L78: dms_cy13
B79: WACC annual update | D79: =FRCP_y1 -> 2015-16 | E79: dms_FRCP_y1 | F79: =IF(dms_RPT="financial",VALUE(LEFT(dms_FRCP_y1,4)-1)&"-"&TEXT(VALUE(RIGHT(dms_FRCP_y1,2)-1),"0#"),VALUE(LEFT(dms_FRCP_y1,4)-1)) -> 2014 | G79: dms_CRCP_yZ | H79: 1 | I79: dms_fy14 | J79: 2018-19 | K79: 2019 | L79: dms_cy14
D80: =IF(dms_RPT="financial",VALUE(LEFT(dms_FRCP_y1,4)+1)&"-"&VALUE(MID(dms_FRCP_y1,3,2)+2),VALUE(LEFT(dms_FRCP_y1,4)+1)) -> 2016 | E80: dms_FRCP_y2 | F80: =IF(dms_RPT="financial",VALUE(LEFT(dms_CRCP_yZ,4)-1)&"-"&TEXT(VALUE(RIGHT(dms_CRCP_yZ,2)-1),"0#"),VALUE(LEFT(dms_CRCP_yZ,4)-1)) -> 2013 | G80: dms_CRCP_yY | H80: 2 | I80: dms_fy15 | J80: 2019-20 | K80: 2020 | L80: dms_cy15
D81: =IF(dms_RPT="financial",VALUE(LEFT(dms_FRCP_y2,4)+1)&"-"&VALUE(MID(dms_FRCP_y2,3,2)+2),VALUE(LEFT(dms_FRCP_y2,4)+1)) -> 2017 | E81: dms_FRCP_y3 | F81: =IF(dms_RPT="financial",VALUE(LEFT(dms_CRCP_yY,4)-1)&"-"&TEXT(VALUE(RIGHT(dms_CRCP_yY,2)-1),"0#"),VALUE(LEFT(dms_CRCP_yY,4)-1)) -> 2012 | G81: dms_CRCP_yX | H81: 3
D82: =IF(dms_RPT="financial",VALUE(LEFT(dms_FRCP_y3,4)+1)&"-"&VALUE(MID(dms_FRCP_y3,3,2)+2),VALUE(LEFT(dms_FRCP_y3,4)+1)) -> 2018 | E82: dms_FRCP_y4 | F82: =IF(dms_RPT="financial",VALUE(LEFT(dms_CRCP_yX,4)-1)&"-"&TEXT(VALUE(RIGHT(dms_CRCP_yX,2)-1),"0#"),VALUE(LEFT(dms_CRCP_yX,4)-1)) -> 2011 | G82: dms_CRCP_yW | H82: 4
D83: =IF(dms_RPT="financial",VALUE(LEFT(dms_FRCP_y4,4)+1)&"-"&VALUE(MID(dms_FRCP_y4,3,2)+2),VALUE(LEFT(dms_FRCP_y4,4)+1)) -> 2019 | E83: dms_FRCP_y5 | F83: =IF(dms_RPT="financial",VALUE(LEFT(dms_CRCP_yW,4)-1)&"-"&TEXT(VALUE(RIGHT(dms_CRCP_yW,2)-1),"0#"),VALUE(LEFT(dms_CRCP_yW,4)-1)) -> 2010 | G83: dms_CRCP_yV | H83: 5
D84: =IF(dms_RPT="financial",VALUE(LEFT(dms_FRCP_y5,4)+1)&"-"&VALUE(MID(dms_FRCP_y5,3,2)+2),VALUE(LEFT(dms_FRCP_y5,4)+1)) -> 2020 | E84: dms_FRCP_y6 | F84: =IF(dms_RPT="financial",VALUE(LEFT(dms_CRCP_yV,4)-1)&"-"&TEXT(VALUE(RIGHT(dms_CRCP_yV,2)-1),"0#"),VALUE(LEFT(dms_CRCP_yV,4)-1)) -> 2009 | G84: dms_CRCP_yU | H84: 6
D85: =IF(dms_RPT="financial",VALUE(LEFT(dms_FRCP_y6,4)+1)&"-"&VALUE(MID(dms_FRCP_y6,3,2)+2),VALUE(LEFT(dms_FRCP_y6,4)+1)) -> 2021 | E85: dms_FRCP_y7 | F85: =IF(dms_RPT="financial",VALUE(LEFT(dms_CRCP_yU,4)-1)&"-"&TEXT(VALUE(RIGHT(dms_CRCP_yU,2)-1),"0#"),VALUE(LEFT(dms_CRCP_yU,4)-1)) -> 2008 | G85: dms_CRCP_yT | H85: 7
D86: =IF(dms_RPT="financial",VALUE(LEFT(dms_FRCP_y7,4)+1)&"-"&VALUE(MID(dms_FRCP_y7,3,2)+2),VALUE(LEFT(dms_FRCP_y7,4)+1)) -> 2022 | E86: dms_FRCP_y8 | F86: =IF(dms_RPT="financial",VALUE(LEFT(dms_CRCP_yT,4)-1)&"-"&TEXT(VALUE(RIGHT(dms_CRCP_yT,2)-1),"0#"),VALUE(LEFT(dms_CRCP_yT,4)-1)) -> 2007 | G86: dms_CRCP_yS | H86: 8
D87: =IF(dms_RPT="financial",VALUE(LEFT(dms_FRCP_y8,4)+1)&"-"&VALUE(MID(dms_FRCP_y8,3,2)+2),VALUE(LEFT(dms_FRCP_y8,4)+1)) -> 2023 | E87: dms_FRCP_y9 | F87: =IF(dms_RPT="financial",VALUE(LEFT(dms_CRCP_yS,4)-1)&"-"&TEXT(VALUE(RIGHT(dms_CRCP_yS,2)-1),"0#"),VALUE(LEFT(dms_CRCP_yS,4)-1)) -> 2006 | G87: dms_CRCP_yR | H87: 9
D88: =IF(dms_RPT="financial",VALUE(LEFT(dms_FRCP_y9,4)+1)&"-"&VALUE(MID(dms_FRCP_y9,3,2)+2),VALUE(LEFT(dms_FRCP_y9,4)+1)) -> 2024 | E88: dms_FRCP_y10 | F88: =IF(dms_RPT="financial",VALUE(LEFT(dms_CRCP_yR,4)-1)&"-"&TEXT(VALUE(RIGHT(dms_CRCP_yR,2)-1),"0#"),VALUE(LEFT(dms_CRCP_yR,4)-1)) -> 2005 | G88: dms_CRCP_yQ | H88: 10
B100: Reason for interruption | C100: Detailed reason for interruption | D100: dms_Reason_Interruption
B101: Animal | C101: Animal impact | D101: Animal
C102: Animal nesting/burrowing, etc and other | D102: Asset failure
C103: Other | D103: Other
B104: Asset failure | C104: LV | D104: Overloads
C105: Distribution substation | D105: Planned
C106: HV | D106: Network business
C107: Zone substation | D107: Third party
C108: Subtransmission | D108: Unknown
B109: Other | C109: insert description of 'other' | D109: Vegetation
B110: Overloads | C110: - | D110: Weather
B111: Planned | C111: - | D111: 2 - STPIS Exclusion (3.3)(a)
B112: Network business | C112: Network error | D112: 3 - STPIS Exclusion (3.3)(a)
C113: Switching and protection error | D113: 4 - STPIS Exclusion (3.3)(a)
B114: Third party | C114: Fire | D114: 5 - STPIS Exclusion (3.3)(a)
C115: Other | D115: 6 - STPIS Exclusion (3.3)(a)
C116: Dig-in | D116: 7 - STPIS Exclusion (3.3)(a)
C117: Unauthorised access
C118: Vehicle impact
B119: Unknown | C119: Unknown
B120: Vegetation | C120: Blow-in/Fall-in - NSP responsibility
C121: Grow-in - NSP responsibility
C122: Blow-in/Fall-in - Other responsible party
C123: Grow-in - Other responsible party
B124: Weather | C124: -
B125: 2 - STPIS Exclusion (3.3)(a) | C125: -
B126: 3 - STPIS Exclusion (3.3)(a) | C126: -
B127: 4 - STPIS Exclusion (3.3)(a) | C127: -
B128: 5 - STPIS Exclusion (3.3)(a) | C128: -
B129: 6 - STPIS Exclusion (3.3)(a) | C129: -
B130: 7 - STPIS Exclusion (3.3)(a) | C130: -

Sheet Instructions
B2: =CONCATENATE(dms_Segment," Network Service Provider") -> Distribution Network Service Provider
B3: Annual Reporting RIN Template
C4: =CONCATENATE("This template is to be used by ",dms_TradingName," to fulfil its reporting obligations to the AER.") -> This template is to be used by ActewAGL Distribution to fulfil its reporting obligations to the AER.
C5: INSTRUCTIONS
C6: Complete the Business & other details worksheet before entering data or values in any other worksheets. The Business & other details worksheet is linked to other worksheets within the workbook and automatically generates certain column headings and conditional formatting.
C8: Identifying CONFIDENTIAL INFORMATION: Please use the macro at the top of each worksheet to identify confidential information.
C9: -Do this by selecting the cell or cells that contain confidential information and then run the Mark selected cells as CONFIDENTIAL macro. This will format the cells a specific colour that is identified by the AER's database which in turn marks that information as confidential. -To reverse this, select the cell or cells and run the Return cells to NON-CONFIDENTIAL macro
C11: UNITS OF MEASURE All amounts are to be unrounded and reported in nominal terms on a one for one basis: that is 1000 is to be entered as '1000'.
C13: COLOUR CODING OF INPUT / NON-INPUT CELLS:
D14: Yellow = Input cell (mandatory)
D15: Darker yellow = input cell (mandatory)
D16: Orange = input cell (if data available)
D17: Grey = Not applicable/No inputs required
D18: Leave coloured cells blank if no information exists. PLEASE DO NOT ENTER TEXT into cells that are to contain numeric data.
C21: WORKSHEET NAVIGATION Many tables in the worksheets have been "grouped" to allow for easy navigation. To ungroup or group data use the outline symbols in the left margin of excel (for Row groupings) or above the columns (for column groupings).
C23: RETURNING COMPLETED RESPONSES Please return four (4) files to the AER: 1. A confidential version which must contain a complete set of all responses with confidential information marked using the Mark selected cells CONFIDENTIAL macro and which has been completed using the locked template file provided by the AER. 2. An actual and an estimate version with confidential information marked using the Mark selected cells CONFIDENTIAL macro and which has been completed using the locked template file provided by the AER. 3. A public version with confidential information either removed completely or aggregated in some form together with writtten consent to disclose the public version of the response. Use the drop down box on the Business and other details worksheet to identify the file as either confidential ('consolidated') or public.
C25: SUBMITTING AMENDED DATA TO THE AER If an NSP wishes to correct data previously submitted to the AER it should resubmit that data using the original completed submission as the starting point. Please make any necessary changes to the data. Data that is not being amended should be left unchanged. NSPs must identify the reason for the amendments in the Amendment Reason box on the Business and other details worksheet. NSPs may provide further details regarding any amendments in the Amendments worksheet. .
C26: NSP may use Amended Data macro to highlight cells that contain amended data.
C27: Please resubmit two (2) files - a confidential version and a public version of the amended submission to the AER

Sheet Contents
B1: REGULATORY REPORTING STATEMENT
B2: =INDEX(dms_TradingNameFull_List,MATCH(dms_TradingName,dms_TradingName_List)) -> ActewAGL Distribution
B3: =CONCATENATE((LOOKUP(dms_Model,dms_Model_List,dms_Worksheet_List))&" "&CRY) -> CATEGORY ANALYSIS 2015-16
B4: CONTENTS
E7: 1. Business details | L7: 2. Expenditure
E27: 4. Alternative control services | L27: 5. Network information | S27: 6. Service & quality

Sheet Business & other details
B1: REGULATORY REPORTING STATEMENT
B2: =INDEX(dms_TradingNameFull_List,MATCH(dms_TradingName,dms_TradingName_List)) -> ActewAGL Distribution
B3: =CONCATENATE((LOOKUP(dms_Model,dms_Model_List,dms_Worksheet_List))&" "&CRY) -> CATEGORY ANALYSIS 2015-16
B4: BUSINESS & OTHER DETAILS
B7: Instructions
B8: Complete the following business details regulatory template before entering data or values in any other regulatory template. This regulatory template is linked to other cells within the spreadsheet and automatically generates column headings.
B10: SUBMISSION PARTICULARS INPUT SHEETS
B12: ENTITY DETAILS
B14: Short name | C14: ActewAGL Distribution
B15: ACN / ABN | C15: =INDEX(dms_ABN_List,MATCH(dms_TradingName,dms_TradingName_List)) -> 76670568688
B18: Business address | C18: Address 1 | E18: =INDEX(dms_Addr1_List,MATCH(dms_TradingName,dms_TradingName_List)) -> 40 Bunda Street
D19: Address 2 | E19: =IF(ISBLANK(INDEX(dms_Addr2_List,MATCH(dms_TradingName,dms_TradingName_List))),"",INDEX(dms_Addr2_List,MATCH(dms_TradingName,dms_TradingName_List))) -> 
C20: Suburb | E20: =INDEX(dms_Suburb_List,MATCH(dms_TradingName,dms_TradingName_List)) -> CANBERRA
D21: State | E21: =INDEX(dms_State_List,MATCH(dms_TradingName,dms_TradingName_List)) -> ACT | F21: p/code | G21: =INDEX(dms_PostCode_List,MATCH(dms_TradingName,dms_TradingName_List)) -> 2601
B23: Postal address | C23: Address 1 | E23: =INDEX(dms_PAddr1_List,MATCH(dms_TradingName,dms_TradingName_List)) -> GPO BOX 366
D24: Address 2 | E24: =IF(ISBLANK(INDEX(dms_PAddr2_List,MATCH(dms_TradingName,dms_TradingName_List))),"",INDEX(dms_PAddr2_List,MATCH(dms_TradingName,dms_TradingName_List))) -> 
C25: Suburb | E25: =INDEX(dms_PSuburb_List,MATCH(dms_TradingName,dms_TradingName_List)) -> CANBERRA
D26: State | E26: =INDEX(dms_PState_List,MATCH(dms_TradingName,dms_TradingName_List)) -> ACT | F26: p/code | G26: =INDEX(dms_PPostCode_List,MATCH(dms_TradingName,dms_TradingName_List)) -> 2601
B29: Contact name/s | C29: =INDEX(dms_ContactName1_List,MATCH(dms_TradingName,dms_TradingName_List)) -> Robert Walker | F29: Peter Cunningham
B30: Contact phone/s | C30: =INDEX(dms_ContactPh1_List,MATCH(dms_TradingName,dms_TradingName_List)) -> 02 6248 3847 | F30: 02 6293 5108 | AA30: Tom Hallam
B31: Contact email address/s | C31: robert.walker@actewagl.com.au | F31: peter.cunningham@actewagl.com.au | AA31: Tom Hallam
B33: REGULATORY CONTROL PERIODS
B35: Forthcoming regulatory control period | C35: 2015-16 | D35: =dms_FRCP_y2 -> 2016 | E35: =dms_FRCP_y3 -> 2017 | F35: =dms_FRCP_y4 -> 2018 | G35: =dms_FRCP_y5 -> 2019 | H35: =dms_FRCP_y6 -> 2020 | I35: =IF(dms_RPT="financial",VALUE(LEFT(FRCP_y6,4)+1)&"-"&VALUE(MID(FRCP_y6,3,2)+2),VALUE(LEFT(FRCP_y6,4)+1)) -> 2021
B38: Current regulatory control period | C38: =dms_CRCP_FirstYear_Result -> 2010 | D38: =IF(dms_RPT="financial",VALUE(LEFT(CRCP_y1,4)+1)&"-"&TEXT(VALUE(RIGHT(CRCP_y1,2)+1),"0#"),VALUE(LEFT(CRCP_y1,4)+1)) -> 2011 | E38: =IF(dms_RPT="financial",VALUE(LEFT(CRCP_y2,4)+1)&"-"&TEXT(VALUE(RIGHT(CRCP_y2,2)+1),"0#"),VALUE(LEFT(CRCP_y2,4)+1)) -> 2012 | F38: =IF(dms_RPT="financial",VALUE(LEFT(CRCP_y3,4)+1)&"-"&TEXT(VALUE(RIGHT(CRCP_y3,2)+1),"0#"),VALUE(LEFT(CRCP_y3,4)+1)) -> 2013 | G38: =IF(dms_RPT="financial",VALUE(LEFT(CRCP_y4,4)+1)&"-"&TEXT(VALUE(RIGHT(CRCP_y4,2)+1),"0#"),VALUE(LEFT(CRCP_y4,4)+1)) -> 2014 | H38: =IF(dms_RPT="financial",VALUE(LEFT(CRCP_y5,4)+1)&"-"&TEXT(VALUE(RIGHT(CRCP_y5,2)+1),"0#"),VALUE(LEFT(CRCP_y5,4)+1)) -> 2015
B41: Previous regulatory control period | C41: =IF(dms_RPT="financial",VALUE(LEFT(PRCP_y2,4)-1)&"-"&TEXT(VALUE(MID(PRCP_y2,3,2)),"0#"),VALUE(LEFT(PRCP_y2,4)-1)) -> 2005 | D41: =IF(dms_RPT="financial",VALUE(LEFT(PRCP_y3,4)-1)&"-"&TEXT(VALUE(MID(PRCP_y3,3,2)),"0#"),VALUE(LEFT(PRCP_y3,4)-1)) -> 2006 | E41: =IF(dms_RPT="financial",VALUE(LEFT(PRCP_y4,4)-1)&"-"&TEXT(VALUE(MID(PRCP_y4,3,2)),"0#"),VALUE(LEFT(PRCP_y4,4)-1)) -> 2007 | F41: =IF(dms_RPT="financial",VALUE(LEFT(PRCP_y5,4)-1)&"-"&TEXT(VALUE(RIGHT(PRCP_y5,2)-1),"0#"),VALUE(LEFT(PRCP_y5,4)-1)) -> 2008 | G41: =IF(dms_RPT="financial",VALUE(LEFT(CRCP_y1,4)-1)&"-"&TEXT(VALUE(RIGHT(CRCP_y1,2)-1),"0#"),VALUE(LEFT(CRCP_y1,4)-1)) -> 2009
B44: Current regulatory year | C44: 2015-16 | D44: CRY
C47: DELETE NR 'CRY' IF NOT AN ANNUAL RIN (EB, CA , ARR)
C48: APPLY NR 'CRY' IF AN ANNUAL RIN (EB, CA , ARR)
B50: Source | C50: Reporting | E50: Please select the correct submission type from the dropdown list.
B51: Data quality (actual, estimate, public, consolidated) | C51: Consolidated
B52: Amended RIN submission - amendment reason | C52: Updated 2.1, 2.8, 2.9 and 6.3 tabs.
B53: Submission Date | C53: dd/mm/yyyy | D53: dms_SubmissionDate | E53: Please enter date this file submitted to AER (dd/mm/yyyy)
B54: EBSS - First application of scheme in forthcoming period? | C54: No
A55: HIDE THESE ROWS | B55: Sector | C55: =INDEX(dms_Sector_List,MATCH(dms_TradingName,dms_TradingName_List)) -> Electricity | D55: dms_Sector | E55: =INDEX(dms_Sector_List,MATCH(dms_TradingName,dms_TradingName_List))
B56: Segment | C56: =INDEX(dms_Segment_List,MATCH(dms_TradingName,dms_TradingName_List)) -> Distribution | D56: dms_Segment | E56: =INDEX(dms_Segment_List,MATCH(dms_TradingName,dms_TradingName_List))
B57: Regulatory Year Ending | C57: =IF(dms_MultiYear_Flag=1,LEFT(dms_Specified_FinalYear,2)&RIGHT(dms_Specified_FinalYear,2),INDEX(dms_RYE_Formula_Result,MATCH(dms_Model,dms_Model_List))) -> 2016 | D57: dms_RYE | E57: =IF(dms_MultiYear_Flag=1,LEFT(dms_Specified_FinalYear,2)&RIGHT(dms_Specified_FinalYear,2),INDEX(dms_RYE_Formula_Result,MATCH(dms_Model,dms_Model_List)))
B58: Reporting Period Type | C58: =INDEX(dms_RPT_List,MATCH(dms_TradingName,dms_TradingName_List)) -> Calendar | D58: dms_RPT | E58: =INDEX(dms_RPT_List,MATCH(dms_TradingName,dms_TradingName_List))
B59: Model or RIN Type | C59: CA | D59: dms_Model | E59: Drop down selection
B60: Security Classification | C60: Public | D60: dms_Classification | E60: Always Public
B61: Template - version no. | C61: 5 | D61: dms_TemplateNumber
B62: Dollar $ real month | C62: =INDEX(dms_RPTMonth_List,MATCH(dms_TradingName,dms_TradingName_List)) -> December | D62: dms_RPTMonth | E62: =INDEX(dms_RPTMonth_List,MATCH(dms_TradingName,dms_TradingName_List))
B63: Dollar $ real (the last month before the FRCP_y1) | C63: =IF(SUM(dms_SingleYear_Model)>0,CONCATENATE(dms_RPTMonth)&" "&VALUE((LEFT(CRY,2))&RIGHT(CRY,2)),CONCATENATE(dms_RPTMonth)&" "&VALUE((LEFT(dms_CRCP_FinalYear_Result,2))&RIGHT(dms_CRCP_FinalYear_Result,2))) -> December 2016 | D63: dms_DollarReal | E63: =IF(SUM(dms_SingleYear_Model)>0,CONCATENATE(dms_RPTMonth)&" "&VALUE((LEFT(CRY,2))&RIGHT(CRY,2)),CONCATENATE(dms_RPTMonth)&" "&VALUE((LEFT(dms_CRCP_FinalYear_Result,2))&RIGHT(dms_CRCP_FinalYear_Result,2)))
B64: Form of control | C64: =INDEX(dms_FormControl_List,MATCH(dms_TradingName,dms_TradingName_List)) -> Revenue cap | D64: dms_FormControl | E64: =INDEX(dms_FormControl_List,MATCH(dms_TradingName,dms_TradingName_List))
B65: RIN response - version no. | C65: 1 | D65: dms_RINversion
B66: Jurisdiction | C66: =INDEX(dms_JurisdictionList,MATCH(dms_TradingName,dms_TradingName_List)) -> ACT | D66: dms_Jurisdiction | E66: =INDEX(dms_JurisdictionList,MATCH(dms_TradingName,dms_TradingName_List))
B67: Backcast Multiyear EB, CA or ARR? | C67: 0 | D67: dms_MultiYear_Flag | E67: 1=y, 0-n
C68: 2013 | D68: dms_Specified_FinalYear | E68: The result here is returned to dms_CRCP_FinalYear_Result if dms_MultiYear_Flag is set to 1
B69: Single Year Model T/F | C69: =IF(dms_Model="EB",1,0) -> 0 | D69: dms_EB
C70: =IF(dms_Model="CA",1,0) -> 1 | D70: dms_CA | E70: =dms_SingleYear_Model
C71: =IF(dms_Model="ARR",1,0) -> 0 | D71: dms_ARR
B72: Single Year Final Year Reference | C72: CRY | D72: dms_SingleYear_FinalYear_Ref | E72: This is the reference for EB, CA & ARR RINs
B73: Single Year Final Year Result | C73: =INDIRECT(dms_SingleYear_FinalYear_Ref) -> 2015-16 | D73: dms_SingleYear_FinalYear_Result | E73: =INDIRECT(dms_SingleYear_FinalYear_Ref) | I73: Formula errors OK
B74: FRCP length in years | C74: =INDEX(dms_FRCPlength_List,MATCH(dms_TradingName,dms_TradingName_List)) -> 5 | D74: dms_FRCPlength_Num | E74: =INDEX(dms_FRCPlength_List,MATCH(dms_TradingName,dms_TradingName_List))
B75: Multi Year Final Year Reference | C75: =INDEX(dms_FinalYear_List,MATCH(dms_FRCPlength_Num,dms_FRCPlength_Num_List)) -> FRCP_y5 | D75: dms_MultiYear_FinalYear_Ref | E75: =INDEX(dms_FinalYear_List,MATCH(dms_FRCPlength_Num,dms_FRCPlength_Num_List))
B76: Multi Year Final Year Result | C76: =IF(dms_MultiYear_Flag=0,INDIRECT(dms_MultiYear_FinalYear_Ref),dms_Specified_FinalYear) -> 2019 | D76: dms_MultiYear_FinalYear_Result | E76: =IF(dms_MultiYear_Flag=0,INDIRECT(dms_MultiYear_FinalYear_Ref),dms_Specified_FinalYear) | I76: Formula errors OK
B77: CRCP length in years | C77: =INDEX(dms_CRCPlength_List,MATCH(dms_TradingName,dms_TradingName_List)) -> 5 | D77: dms_CRCPlength_Num | E77: =INDEX(dms_CRCPlength_List,MATCH(dms_TradingName,dms_TradingName_List))
B78: CRCP Final Year Reference | C78: =INDEX(dms_CFinalYear_List,MATCH(dms_CRCPlength_Num,dms_CRCPlength_Num_List)) -> CRCP_y5 | D78: dms_CRCP_FinalYear_Ref | E78: =INDEX(dms_CFinalYear_List,MATCH(dms_CRCPlength_Num,dms_CRCPlength_Num_List))
B79: CRCP First Year Result | C79: =INDEX(dms_CRCP_years,MATCH(dms_CRCPlength_Num,dms_CRCP_index)) -> 2010 | D79: dms_CRCP_FirstYear_Result | E79: =INDEX(dms_CRCP_years,MATCH(dms_CRCPlength_Num,dms_CRCP_index))
B80: CRCP Final Year Result | C80: =IF(dms_MultiYear_Flag=0,(IF(SUM(dms_SingleYear_Model)>0,CRY,dms_CRCP_yZ)),dms_Specified_FinalYear) -> 2015-16 | D80: dms_CRCP_FinalYear_Result | E80: =IF(dms_MultiYear_Flag=0,(IF(SUM(dms_SingleYear_Model)>0,CRY,dms_CRCP_yZ)),dms_Specified_FinalYear)
B81: Table 6.6.3 - Public lighting repair - no. business days | C81: =INDEX(dms_663_List,MATCH(dms_TradingName,dms_TradingName_List)) -> 5 | D81: dms_663
B82: Distribution Determination Reference | C82: =INDEX(dms_DeterminationRef_List,MATCH(dms_TradingName,dms_TradingName_List)) -> 2014-19 Distribution Determination
B83: Backcast templates only - unit of measure | C83: $0s | D83: dms_Backcast_UOM | E83: If the cover sheet is for Backcast data ensure to apply dms_Backcast_UOM named range to this field. Otherwise, do not apply this named range.
B84: EB/CA Unit of Measure for Monetary Values | C84: $0s | D84: dms_dollar_nom_UOM | E84: If the cover sheet is attached to an EB files make sure this field is set
B86: discard this record? | C86: NO | D86: dms_DISCARD | E86: If record is to be discarded from DB set this flag to YES
B88: USES NAMED RANGES FLAG | C88: yes | D88: dms_Defined_Names_Used

Sheet 2.1 Expenditure summary
B1: REGULATORY REPORTING STATEMENT
B2: =INDEX(dms_TradingNameFull_List,MATCH(dms_TradingName,dms_TradingName_List)) -> ActewAGL Distribution
B3: =CONCATENATE((LOOKUP(dms_Model,dms_Model_List,dms_Worksheet_List))&" "&CRY) -> CATEGORY ANALYSIS 2015-16
B4: 2.1 EXPENDITURE SUMMARY & RECONCILIATION
B6: There are SIX tables on this worksheet. Each has been grouped for ease of navigation. See the Instructions sheet on how to group or ungroup tables.
B8: 2.1.1 - STANDARD CONTROL SERVICES CAPEX
C9: EXPENDITURE ($0's)
C10: =CRY -> 2015-16
B11: Replacement expenditure | C11: 15013385.06
B12: Connections | C12: 18256855.5
B13: Augmentation Expenditure | C13: 895409.1727
B14: Non-network | C14: 14691535.63
B15: capitalised network overheads | C15: 0
B16: capitalised corporate overheads | C16: 11935542.66
B17: Metering | C17: 0
B18: Public Lighting | C18: 0
B26: balancing item
B27: capcons (included in the above) | C27: 7807962.433
B28: TOTAL GROSS CAPEX (including capcons) | C28: =+SUM(C11:C26) -> 60792728.02
B30: 2.1.2 - STANDARD CONTROL SERVICES OPEX
C31: EXPENDITURE ($0's)
C32: =CRY -> 2015-16
B33: Vegetation management | C33: 2177089.61
B34: Maintenance | C34: 6937137.83
B35: Emergency response | C35: 1891453.89
B36: Non-network | C36: 4498549.92
B37: network overheads | C37: 15326207.83
B38: corporate overheads | C38: 4167859.844
B39: Metering | C39: 0
B40: Public Lighting | C40: 0
B48: balancing item
B49: TOTAL OPEX | C49: =+SUM(C33:C48) -> 34998298.92
B51: 2.1.3 - ALTERNATIVE CONTROL SERVICES CAPEX
C52: EXPENDITURE ($0's)
C53: =CRY -> 2015-16
B54: Connections | C54: 0
B55: capitalised network overheads | C55: 0
B56: capitalised corporate overheads | C56: 1153997.42
B57: Metering | C57: 2089942.18
B58: Public lighting | C58: 0
B59: Fee and quoted | C59: 2303413.55
B67: balancing item
B68: TOTAL CAPEX | C68: =+SUM(C54:C67) -> 5547353.15
B70: 2.1.4 - ALTERNATIVE CONTROL SERVICES OPEX
C71: EXPENDITURE ($0's)
C72: =CRY -> 2015-16
B73: Connections | C73: 0
B74: network overheads | C74: 0
B75: corporate overheads | C75: 1289650.35
B76: Metering | C76: 2907275.34
B77: Public lighting | C77: 0
B78: Fee and quoted | C78: 3508611.51
B86: balancing item
B87: TOTAL OPEX | C87: =+SUM(C73:C86) -> 7705537.2
B89: 2.1.5 - DUAL FUNCTION ASSETS CAPEX
C90: EXPENDITURE ($0's)
C91: =CRY -> 2015-16
B92: Replacement expenditure | C92: 2044874.801
B93: Connections | C93: 24836.21507
B94: Augmentation Expenditure | C94: 3046305.437
B95: Non-network | C95: 697454.4054
B96: Capitalised network overheads | C96: 0
B97: Capitalised corporate overheads | C97: 1365309.711
B105: balancing item
B106: capcons (included in the above) | C106: 367900.1631
B107: TOTAL GROSS CAPEX (including capcons) | C107: =SUM(C92:C105) -> 7178780.569
B109: 2.1.6 - DUAL FUNCTION ASSETS OPEX
C110: EXPENDITURE ($0's)
C111: =CRY -> 2015-16
B112: Vegetation management | C112: 0
B113: Maintenance | C113: 1800076.28
B114: Emergency response | C114: 695.33
B115: Non-network | C115: 705577.4299
B116: Network overheads | C116: 2403847.133
B117: Corporate overheads | C117: 653710.1708
B125: balancing item
B126: TOTAL OPEX | C126: =SUM(C112:C125) -> 5563906.344

Sheet 2.2 Repex
B1: REGULATORY REPORTING STATEMENT
B2: =INDEX(dms_TradingNameFull_List,MATCH(dms_TradingName,dms_TradingName_List)) -> ActewAGL Distribution
B3: =CONCATENATE((LOOKUP(dms_Model,dms_Model_List,dms_Worksheet_List))&" "&CRY) -> CATEGORY ANALYSIS 2015-16
B4: 2.2 REPEX
B6: There are TWO tables on this worksheet. Each has been grouped for ease of navigation. See the Instructions sheet on how to group or ungroup tables.
B8: 2.2.1 - REPLACEMENT EXPENDITURE, VOLUMES AND ASSET FAILURES BY ASSET CATEGORY
E9: EXPENDITURE ($0's) | F9: ASSET REPLACEMENTS (0's) | G9: ASSET FAILURES (0's)
B10: ASSET GROUP | C10: ASSET CATEGORY | E10: =CRY -> 2015-16 | F10: =CRY -> 2015-16 | G10: =CRY -> 2015-16
B11: POLES BY: HIGHEST OPERATING VOLTAGE ; MATERIAL TYPE; STAKING (IF WOOD) | C11: Staking of a wooden pole | E11: 666021.68 | F11: 599 | G11: 0
C12: ˂ = 1 kV; Wood | E12: 0 | F12: 0 | G12: 0
C13: > 1 kV & < = 11 kV; Wood | E13: 0 | F13: 1 | G13: 0
C14: ˃ 11 kV & < = 22 kV; Wood | E14: 0 | F14: 0 | G14: 0
C15: > 22 kV & < = 66 kV; Wood | E15: 0 | F15: 0 | G15: 0
C16: > 66 kV & < = 132 kV; Wood | E16: 0 | F16: 0 | G16: 0
C17: > 132 kV; Wood | E17: 0 | F17: 0 | G17: 0
C18: ˂ = 1 kV; Concrete | E18: 660156.5536 | F18: 79 | G18: 0
C19: > 1 kV & < = 11 kV; Concrete | E19: 911565.8577 | F19: 74 | G19: 0
C20: ˃ 11 kV & < = 22 kV; Concrete | E20: 0 | F20: 0 | G20: 0
C21: > 22 kV & < = 66 kV; Concrete | E21: 0 | F21: 0 | G21: 0
C22: > 66 kV & < = 132 kV; Concrete | E22: 193006.22 | F22: 0 | G22: 0
C23: > 132 kV; Concrete | E23: 0 | F23: 0 | G23: 0
C24: ˂ = 1 kV; Steel | E24: 0 | F24: 1 | G24: 0
C25: > 1 kV & < = 11 kV; Steel | E25: 0 | F25: 0 | G25: 0
C26: ˃ 11 kV & < = 22 kV; Steel | E26: 0 | F26: 0 | G26: 0
C27: > 22 kV & < = 66 kV; Steel | E27: 0 | F27: 0 | G27: 0
C28: > 66 kV & < = 132 kV; Steel | E28: 0 | F28: 0 | G28: 0
C29: > 132 kV; Steel | E29: 0 | F29: 0 | G29: 0
C30: Other | E30: 4977732.949 | F30: 352 | G30: 0
B31: POLE TOP STRUCTURES BY: HIGHEST OPERATING VOLTAGE | C31: ˂ = 1 kV | E31: 1288048.81 | F31: 182 | G31: 21
C32: > 1 kV & < = 11 kV | E32: 389293.22 | F32: 66 | G32: 7
C33: ˃ 11 kV & < = 22 kV | E33: 0 | F33: 0 | G33: 0
C34: > 22 kV & < = 66 kV | E34: 0 | F34: 0 | G34: 0
C35: > 66 kV & < = 132 kV | E35: 0 | F35: 0 | G35: 0
C36: > 132 kV | E36: 0 | F36: 0 | G36: 0
C37: Other | E37: 182.67 | F37: 0 | G37: 0
B38: OVERHEAD CONDUCTORS BY: HIGHEST OPERATING VOLTAGE; NUMBER OF PHASES (AT HV) | C38: ˂ = 1 kV | E38: 126711.2 | F38: 5.559 | G38: 34
C39: > 1 kV & < = 11 kV | E39: 0 | F39: 0.564 | G39: 20
C40: ˃ 11 kV & < = 22 kV ; SWER | E40: 0 | F40: 0 | G40: 0
C41: ˃ 11 kV & < = 22 kV ; Single-Phase | E41: 0 | F41: 0 | G41: 0
C42: ˃ 11 kV & < = 22 kV ; Multiple-Phase | E42: 0 | F42: 0 | G42: 0
C43: > 22 kV & < = 66 kV | E43: 0 | F43: 0 | G43: 0
C44: > 66 kV & < = 132 kV | E44: 0 | F44: 0 | G44: 0
C45: > 132 kV | E45: 0 | F45: 0 | G45: 0
C46: Other | E46: 0 | F46: 0 | G46: 0
B47: UNDERGROUND CABLES BY: HIGHEST OPERATING VOLTAGE | C47: ˂ = 1 kV | E47: 1514886.63 | F47: 2.062 | G47: 27
C48: > 1 kV & < = 11 kV | E48: 328152.56 | F48: 1.788 | G48: 37
C49: > 11 kV & < = 22 kV | E49: 19545.52 | F49: 0.063 | G49: 0
C50: > 22 kV & < = 33 kV | E50: 0 | F50: 0 | G50: 0
C51: > 33 kV & < = 66 kV | E51: 0 | F51: 0 | G51: 0
C52: > 66 kV & < = 132 kV | E52: 0 | F52: 0 | G52: 0
C53: > 132 kV | E53: 0 | F53: 0 | G53: 0
C54: Other | E54: 0 | F54: 0 | G54: 0
B55: SERVICE LINES BY: CONNECTION VOLTAGE; CUSTOMER TYPE; CONNECTION COMPLEXITY | C55: ˂ = 11 kV ; Residential ; Simple Type | E55: 394006.99 | F55: 1461 | G55: 298
C56: ˂ = 11 kV ; Commercial & Industrial ; Simple Type | E56: 0 | F56: 0 | G56: 0
C57: ˂ = 11 kV ; Residential ; Complex Type | E57: 0 | F57: 0 | G57: 0
C58: ˂ = 11 kV ; Commercial & Industrial ; Complex Type | E58: 0 | F58: 0 | G58: 0
C59: ˂ = 11 kV ; Subdivision ; Complex Type | E59: 0 | F59: 0 | G59: 0
C60: > 11 kV & < = 22 kV ; Commercial & Industrial | E60: 0 | F60: 0 | G60: 0
C61: > 11 kV & < = 22 kV ; Subdivision | E61: 0 | F61: 0 | G61: 0
C62: > 22 kV & < = 33 kV ; Commercial & Industrial | E62: 0 | F62: 0 | G62: 0
C63: > 22 kV & < = 33 kV ; Subdivision | E63: 0 | F63: 0 | G63: 0
C64: > 33 kV & < = 66 kV ; Commercial & Industrial | E64: 0 | F64: 0 | G64: 0
C65: > 33 kV & < = 66 kV ; Subdivision | E65: 0 | F65: 0 | G65: 0
C66: > 66 kV & < = 132 kV ; Commercial & Industrial | E66: 0 | F66: 0 | G66: 0
C67: > 66 kV & < = 132 kV ; Subdivision | E67: 0 | F67: 0 | G67: 0
C68: > 132 kV ; Commercial & Industrial | E68: 0 | F68: 0 | G68: 0
C69: > 132 kV ; Subdivision | E69: 0 | F69: 0 | G69: 0
C70: Other | E70: 0 | F70: 0 | G70: 0
B71: TRANSFORMERS BY: MOUNTING TYPE; HIGHEST OPERATING VOLTAGE ; AMPERE RATING; NUMBER OF PHASES (AT LV) | C71: Pole Mounted ; < = 22kV ; < = 60 kVA ; Single Phase | E71: 925.67 | F71: 0 | G71: 0
C72: Pole Mounted ; < = 22kV ; > 60 kVA and < = 600 kVA ; Single Phase | E72: 0 | F72: 0 | G72: 0
C73: Pole Mounted ; < = 22kV ; > 600 kVA ; Single Phase | E73: 0 | F73: 0 | G73: 0
C74: Pole Mounted ; < = 22kV ; < = 60 kVA ; Multiple Phase | E74: 0 | F74: 0 | G74: 1
C75: Pole Mounted ; < = 22kV ; > 60 kVA and < = 600 kVA ; Multiple Phase | E75: 302825.5 | F75: 7 | G75: 6
C76: Pole Mounted ; < = 22kV ; > 600 kVA ; Multiple Phase | E76: 0 | F76: 0 | G76: 0
C77: Kiosk Mounted ; < = 22kV ; < = 60 kVA ; Single Phase | E77: 0 | F77: 0 | G77: 0
C78: Kiosk Mounted ; < = 22kV ; > 60 kVA and < = 600 kVA ; Single Phase | E78: 0 | F78: 0 | G78: 0
C79: Kiosk Mounted ; < = 22kV ; > 600 kVA ; Single Phase | E79: 0 | F79: 0 | G79: 0
C80: Kiosk Mounted ; < = 22kV ; < = 60 kVA ; Multiple Phase | E80: 0 | F80: 0 | G80: 0
C81: Kiosk Mounted ; < = 22kV ; > 60 kVA and < = 600 kVA ; Multiple Phase | E81: 635451.72 | F81: 5 | G81: 5
C82: Kiosk Mounted ; < = 22kV ; > 600 kVA ; Multiple Phase | E82: 0 | F82: 0 | G82: 0
C83: Ground Outdoor / Indoor Chamber Mounted; ˂ 22 kV ; < = 60 kVA ; Single Phase | E83: 0 | F83: 0 | G83: 0
C84: Ground Outdoor / Indoor Chamber Mounted; ˂ 22 kV ; > 60 kVA and < = 600 kVA ; Single Phase | E84: 0 | F84: 0 | G84: 0
C85: Ground Outdoor / Indoor Chamber Mounted; ˂ 22 kV ; > 600 kVA ; Single Phase | E85: 0 | F85: 0 | G85: 0
C86: Ground Outdoor / Indoor Chamber Mounted; ˂ 22 kV ; < = 60 kVA ; Multiple Phase | E86: 0 | F86: 0 | G86: 0
C87: Ground Outdoor / Indoor Chamber Mounted; ˂ 22 kV ; > 60 kVA and < = 600 kVA ; Multiple Phase | E87: 0 | F87: 1 | G87: 0
C88: Ground Outdoor / Indoor Chamber Mounted; ˂ 22 kV ; > 600 kVA ; Multiple Phase | E88: 0 | F88: 0 | G88: 0
C89: Ground Outdoor / Indoor Chamber Mounted; > = 22 kV & < = 33 kV ; < = 15 MVA | E89: 0 | F89: 0 | G89: 0
C90: Ground Outdoor / Indoor Chamber Mounted; > = 22 kV & < = 33 kV ; > 15 MVA and < = 40 MVA | E90: 0 | F90: 0 | G90: 0
C91: Ground Outdoor / Indoor Chamber Mounted; > = 22 kV & < = 33 kV ; > 40 MVA | E91: 0 | F91: 0 | G91: 0
C92: Ground Outdoor / Indoor Chamber Mounted; > 33 kV & < = 66 kV ; < = 15 MVA | E92: 0 | F92: 0 | G92: 0
C93: Ground Outdoor / Indoor Chamber Mounted; > 33 kV & < = 66 kV ; > 15 MVA and < = 40 MVA | E93: 0 | F93: 0 | G93: 0
C94: Ground Outdoor / Indoor Chamber Mounted; > 33 kV & < = 66 kV ; > 40 MVA | E94: 0 | F94: 0 | G94: 0
C95: Ground Outdoor / Indoor Chamber Mounted; > 66 kV & < = 132 kV ; < = 100 MVA | E95: 0 | F95: 0 | G95: 0
C96: Ground Outdoor / Indoor Chamber Mounted; > 66 kV & < = 132 kV ; > 100 MVA | E96: 0 | F96: 0 | G96: 0
C97: Ground Outdoor / Indoor Chamber Mounted; > 132 kV ; < = 100 MVA | E97: 0 | F97: 0 | G97: 0
C98: Ground Outdoor / Indoor Chamber Mounted; > 132 kV ; > 100 MVA | E98: 0 | F98: 0 | G98: 0
C99: Other | E99: 0 | F99: 0 | G99: 0
B100: SWITCHGEAR BY: HIGHEST OPERATING VOLTAGE ; SWITCH FUNCTION | C100: ˂ = 11 kV ; FUSE | E100: 0 | F100: 1159 | G100: 148
C101: ˂ = 11 kV ; Switch | E101: 385964.41 | F101: 371 | G101: 51
C102: ˂ = 11 kV ; Circuit Breaker | E102: 72588.49 | F102: 3 | G102: 17
C103: > 11 kV & < = 22 kV ; Switch | E103: 0 | F103: 3 | G103: 0
C104: > 11 kV & < = 22 kV ; Circuit Breaker | E104: 0 | F104: 0 | G104: 0
C105: > 22 kV & < = 33 kV ; Switch | E105: 0 | F105: 0 | G105: 0
C106: > 22 kV & < = 33 kV ; Circuit Breaker | E106: 0 | F106: 0 | G106: 0
C107: > 33 kV & < = 66 kV ; Switch | E107: 0 | F107: 0 | G107: 0
C108: > 33 kV & < = 66 kV ; Circuit Breaker | E108: 0 | F108: 0 | G108: 0
C109: > 66 kV & < = 132 kV ; Switch | E109: 0 | F109: 0 | G109: 0
C110: > 66 kV & < = 132 kV ; Circuit Breaker | E110: 1565676.64 | F110: 4 | G110: 0
C111: > 132 kV ; Switch | E111: 0 | F111: 0 | G111: 0
C112: > 132 kV ; Circuit Breaker | E112: 0 | F112: 0 | G112: 0
C113: Other | E113: 0 | F113: 0 | G113: 0
B114: PUBLIC LIGHTING BY: ASSET TYPE ; LIGHTING OBLIGATION | C114: Luminaires ; Major Road | E114: 0 | F114: 0 | G114: 0
C115: Luminaires ; Minor Road | E115: 0 | F115: 0 | G115: 0
C116: Brackets ; Major Road | E116: 0 | F116: 0 | G116: 0
C117: Brackets ; Minor Road | E117: 0 | F117: 0 | G117: 0
C118: Lamps ; Major Road | E118: 0 | F118: 0 | G118: 0
C119: Lamps ; Minor Road | E119: 0 | F119: 0 | G119: 0
C120: Poles / Columns ; Major Road | E120: 0 | F120: 0 | G120: 0
C121: Poles / Columns ; Minor Road | E121: 0 | F121: 0 | G121: 0
C122: Other | E122: 0 | F122: 0 | G122: 0
B123: SCADA, NETWORK CONTROL AND PROTECTION SYSTEMS BY: FUNCTION | C123: Field Devices | E123: 1094599.44 | F123: 23
C124: Local Network Wiring Assets | E124: 466960.94
C125: Communications Network Assets | E125: 101020.89
C126: Master Station Assets | E126: 0
C127: Communications Site Infrastructure | E127: 0
C128: Communications Linear Assets | E128: 0
C129: AFLC | E129: 0
C130: Other | E130: 54610.39
B131: OTHER BY: DNSP DEFINED | C131: 17523356- Belconnen Dist B1284 Sub 1953 Replace Capstan Link Board 17523357- Parkes B15 S28 Sub 2227 –Capstan Link replacement 17523369- City B12 S65 Sub 4460 – Capstan Link replacement | E131: 378151.16 | F131: 3
C132: Other | E132: =908324.91-E131 -> 530173.75 | F132: 0
B149: 2.2.2 - SELECTED ASSET CHARACTERISTICS
E150: ASSET VOLUMES CURRENTLY IN COMMISSION | F150: ASSET REPLACEMENTS (0's)
B151: ASSET GROUP | C151: METRIC | D151: UNITS | E151: =CRY -> 2015-16 | F151: =CRY -> 2015-16
B152: TOTAL POLES BY: FEEDER TYPE | C152: Total CBD poles | D152: Number | E152: 0 | F152: 0
C153: Total urban poles | D153: Number | E153: 40754 | F153: 421.8
C154: Total rural long poles | D154: Number | E154: - | F154: -
C155: Total rural short poles | D155: Number | E155: 8232 | F155: 85.2
B156: OVERHEAD CONDUCTORS BY: CONDUCTOR LENGTH BY FEEDER TYPE | C156: Conductors CBD | D156: KM | E156: 0 | F156: 0
C157: Conductors urban | D157: KM | E157: 1595 | F157: 4.51
C158: Conductors rural long | D158: KM | E158: - | F158: -
C159: Conductors rural short | D159: KM | E159: 573 | F159: 1.62
B160: OVERHEAD CONDUCTORS BY: CONDUCTOR LENGTH MATERIAL TYPE | C160: OH conductor LV ABC | D160: KM | E160: 75.03319341 | F160: 1.4
C161: OH conductor steel | D161: KM | E161: 232.8400904 | F161: 0.16
C162: OH conductor ACSR | D162: KM | E162: 216.0954701 | F162: 0
C163: OH conductor AAAC | D163: KM | E163: 0 | F163: 0
C164: OH conductor AAC | D164: KM | E164: 1271.427046 | F164: 1.277
C165: OH conductor HDBC | D165: KM | E165: 567.7005221 | F165: 3.286
C166: Other | D166: KM | E166: 0 | F166: 0
B167: UNDERGROUND CABLES BY: CABLE LENGTH BY FEEDER TYPE | C167: Cable CBD | D167: KM | E167: 0 | F167: 0
C168: Cable urban | D168: KM | E168: 2514 | F168: 3.36
C169: Cable rural long | D169: KM | E169: - | F169: -
C170: Cable rural short | D170: KM | E170: 416.96 | F170: 0.56
B171: TRANSFORMERS BY: TOTAL MVA | C171: Total MVA replaced | D171: MVA | E171: 2140.717 | F171: 4.5
C172: Total MVA disposed of | D172: MVA | E172: 7.38 | F172: 0

Sheet 2.3(a) Augex
B1: REGULATORY REPORTING STATEMENT
B2: =INDEX(dms_TradingNameFull_List,MATCH(dms_TradingName,dms_TradingName_List)) -> ActewAGL Distribution
B3: =CONCATENATE((LOOKUP(dms_Model,dms_Model_List,dms_Worksheet_List))&" "&CRY) -> CATEGORY ANALYSIS 2015-16
B4: 2.3 AUGEX PROJECT DATA
B7: There are TWO tables on this worksheet - each has been 'grouped' for easy navigation. Both ROWS and COLUMNS have been grouped. See the Instructions sheet on how to group or ungroup tables.
B9: 2.3.1 - AUGEX ASSET DATA - SUBTRANSMISSION SUBSTATIONS, SWITCHING STATIONS AND ZONE SUBSTATIONS
B10: NOTE: DNSP MUST PROVIDE EXPENDITURE INFORMATION ON A PROJECT CLOSE BASIS.
B11: PROJECT DESCRIPTION AND CHANGES | L11: PLANT AND EQUIPMENT EXPENDITURE AND VOLUME | X11: OTHER EXPENDITURE | Z11: TOTAL DIRECT EXPENDITURE ($0's) | AA11: YEARS INCURRED | AB11: ALL RELATED PARTY CONTRACTS | AD11: ALL NON RELATED PARTYCONTRACTS | AE11: LAND AND EASEMENTS
B12: SUBSTATION ID | C12: SUBSTATION TYPE (drop down) | D12: PROJECT ID | E12: PROJECT TYPE (drop down) | F12: PROJECT TRIGGER (drop down) | G12: VOLTAGE (KV) | H12: SUBSTATION RATING NORMAL CYCLIC (MVA) | J12: SUBSTATION RATING N-1 EMERGENCY (MVA) | L12: TRANSFORMERS | O12: SWITCHGEAR | Q12: CAPACITORS | U12: OTHER PLANT ITEM | V12: INSTALLATION (LABOUR) | X12: CIVIL WORKS | Y12: OTHER DIRECT | AB12: RELATED PARTY MARGINS | AC12: TOTAL | AE12: LAND PURCHASE | AF12: EASEMENTS
H13: PRE | I13: POST | J13: PRE | K13: POST | L13: UNITS ADDED | M13: MVA ADDED | N13: EXPENDITURE ($0's) | O13: UNITS ADDED | P13: EXPENDITURE ($0's) | Q13: MVAR ADDED | R13: EXPENDITURE ($0's) | U13: EXPENDITURE ($0's) | V13: VOLUME | W13: EXPENDITURE ($0's) | X13: EXPENDITURE ($0's) | AB13: EXPENDITURE ($0's) | AE13: EXPENDITURE ($0's)
Z14: =SUM(N14,P14,R14,U14,W14,X14,Y14) -> 0
Z15: 0
Z16: 0
Z17: 0
Z18: 0
Z19: 0
Z20: 0
Z21: 0
Z22: 0
Z23: 0
Z24: 0
Z25: 0
Z26: 0
Z27: 0
Z28: 0
Z29: 0
Z30: 0
Z31: 0
Z32: 0
Z33: 0
Z34: 0
Z35: 0
Z36: 0
Z37: 0
Z38: 0
Z39: 0
Z40: 0
Z41: 0
Z42: 0
Z43: 0
Z44: 0
Z45: 0
Z46: =SUM(N46,P46,R46,U46,W46,X46,Y46) -> 0
Z47: 0
Z48: 0
Z49: 0
Z50: 0
Z51: 0
Z52: 0
Z53: 0
Z54: 0
Z55: 0
Z56: 0
Z57: 0
Z58: 0
Z59: 0
Z60: 0
Z61: 0
Z62: 0
Z63: 0
Z64: 0
Z65: 0
D66: Non material projects - [actual]
D67: Non material projects - [forecast]
B70: AUG232_1 | C70: AUG232_2 | D70: AUG232_3 | E70: AUG232_4 | F70: AUG232_5 | G70: AUG232_6 | H70: ED_AUG232_00001 | I70: ED_AUG232_00002 | J70: ED_AUG232_00003 | K70: ED_AUG232_00004 | L70: ED_AUG232_00005 | M70: ED_AUG232_00006 | N70: ED_AUG232_00007 | O70: ED_AUG232_00008 | P70: ED_AUG232_00009 | Q70: ED_AUG232_00010 | R70: ED_AUG232_00011 | S70: ED_AUG232_00012 | T70: ED_AUG232_00013 | U70: ED_AUG232_00014 | V70: ED_AUG232_00015 | W70: ED_AUG232_00016 | X70: ED_AUG232_00017 | Y70: ED_AUG232_00018 | Z70: ED_AUG232_00019 | AA70: ED_AUG232_00020 | AB70: ED_AUG232_00021
B71: 2.3.2 - AUGEX ASSET DATA - SUBTRANSMISSION LINES
B72: NOTE: DNSP MUST PROVIDE EXPENDITURE INFORMATION ON A PROJECT CLOSE BASIS.
B73: PROJECT DESCRIPTION AND CHANGES | L73: PLANT AND EQUIPMENT EXPENDITURE AND VOLUME | X73: OTHER EXPENDITURE | Z73: TOTAL DIRECT EXPENDITURE ($0's) | AA73: YEARS INCURRED | AB73: ALL RELATED PARTY CONTRACTS | AD73: ALL NON RELATED PARTYCONTRACTS | AE73: LAND AND EASEMENTS
B74: LINE ID | C74: PROJECT ID | D74: PROJECT TYPE | E74: PROJECT TRIGGER | G74: VOLTAGE (KV) | H74: ROUTE LINE LENGTH ADDED | L74: POLES/TOWERS (INCLUDING STRUCTURES, AND CIVIL WORKS) | O74: OVERHEAD LINES | R74: UNDERGROUND CABLES | U74: OTHER PLANT ITEM | V74: INSTALLATION (LABOUR) | X74: CIVIL WORKS | Y74: OTHER DIRECT | AB74: RELATED PARTY MARGINS | AC74: TOTAL | AE74: LAND PURCHASE | AF74: EASEMENTS
H75: KM ADDED | L75: POLES/TOWERS ADDED | M75: POLES/TOWERS UPGRADED | N75: EXPENDITURE ($0's) | O75: CIRCUIT KM ADDED | P75: CIRCUIT KM UPGRADED | Q75: EXPENDITURE ($0's) | R75: CIRCUIT KM ADDED | S75: CIRCUIT KM UPGRADED | T75: EXPENDITURE ($0's) | U75: EXPENDITURE ($0's) | V75: VOLUME | W75: EXPENDITURE ($0's) | X75: EXPENDITURE ($0's) | AB75: EXPENDITURE ($0's) | AE75: EXPENDITURE ($0's)
Z76: =SUM(N76,Q76,T76,U76,W76,X76,Y76) -> 0 | AH76: New line on new route - single circuit
Z77: 0 | AH77: New line on new route - dual circuit
Z78: 0 | AH78: New line on new route - other
Z79: 0 | AH79: Line rebuild over existing route - single circuit
Z80: 0 | AH80: Line rebuild over existing route - dual circuit
Z81: 0 | AH81: Reconductor - Single circuit
Z82: 0 | AH82: Reconductor - Dual circuit
Z83: 0 | AH83: Reconductor - Other
Z84: 0 | AH84: Line upgrade - raising/retensoring
Z85: 0 | AH85: Line upgrade - voltage upgrade
Z86: 0 | AH86: Line upgrade - capacity
Z87: 0 | AH87: String spare circuit
Z88: 0 | AH88: Other
Z89: 0
Z90: 0
Z91: 0
Z92: 0
Z93: 0
Z94: 0
Z95: 0
Z96: 0
Z97: 0
Z98: 0
Z99: 0
Z100: 0
Z101: 0
Z102: 0
Z103: 0
Z104: 0
Z105: 0
Z106: 0
Z107: 0
Z108: =SUM(N108,Q108,T108,U108,W108,X108,Y108) -> 0
Z109: 0
Z110: 0
Z111: 0
Z112: 0
Z113: 0
Z114: 0
Z115: 0
Z116: 0
Z117: 0
Z118: 0
Z119: 0
Z120: 0
Z121: 0
Z122: 0
Z123: 0
Z124: 0
Z125: 0
Z126: 0
Z127: 0
Z128: 0
Z129: 0
C130: Non material projects - [actual]
C131: Non material projects - [actual]

Sheet 2.3(b) Augex
B1: REGULATORY REPORTING STATEMENT
B2: =INDEX(dms_TradingNameFull_List,MATCH(dms_TradingName,dms_TradingName_List)) -> ActewAGL Distribution
B3: =CONCATENATE((LOOKUP(dms_Model,dms_Model_List,dms_Worksheet_List))&" "&CRY) -> CATEGORY ANALYSIS 2015-16
B4: 2.3 AUGEX DATA
B6: There are TWO tables on this worksheet. Each has been grouped for ease of navigation. See the Instructions sheet on how to group or ungroup tables.
B8: 2.3.3 - AUGEX DATA - HV/LV FEEDERS AND DISTRIBUTION SUBSTATIONS
B9: NOTE: DNSP MUST PROVIDE EXPENDITURE INFORMATION ON AN AS INCURRED BASIS.
B10: DESCRIPTOR METRICS
B11: PROJECT TYPE | D11: UNITS ADDED (0's) | E11: UNITS UPGRADED (0's)
C12: UNITS | D12: =CRY -> 2015-16 | E12: =CRY -> 2015-16
B13: HV Feeder Augmentations - Overhead Lines | C13: Circuit line length in km | D13: 0.335
B14: HV Feeder Augmentations - Underground Cables | C14: Circuit line length in km | D14: 19.774
B15: LV Feeder Augmentations - Overhead Lines | C15: Circuit line length in km | D15: 1.779
B16: LV Feeder Augmentations - Underground Cables | C16: Circuit line length in km | D16: 71.882
B17: Distribution Substation Augmentations - Pole Mounted | C17: Number | D17: 13
B18: Distribution Substation Augmentations - Ground Mounted | C18: Number | D18: 51
B19: Distribution Substation Augmentations - Indoor | C19: Number | D19: 2
B21: COST METRICS
B22: TOTAL DIRECT EXPENDITURE - Project Type | D22: EXPENDITURE ($0's)
D23: =CRY -> 2015-16
B24: HV Feeder Augmentations - Overhead Lines
B25: HV Feeder Augmentations - Underground Cables | D25: 356131.09
B26: HV Feeder Non-Material Projects
B27: LV Feeder Augmentations - Overhead Lines
B28: LV Feeder Augmentations - Underground Cables
B29: LV Feeder Non-Material Projects
B30: Distribution Substation Augmentations - Pole Mounted
B31: Distribution Substation Augmentations - Ground Mounted
B32: Distribution Substation Augmentations - Indoor
B35: 2.3.4 - AUGEX DATA - TOTAL EXPENDITURE
B36: AUGMENTATION CAPEX (As incurred) | D36: EXPENDITURE ($0's)
D37: =CRY -> 2015-16
B38: Subtransmission Substations, Switching Stations, Zone Substations | D38: 359389.91
B39: Subtransmission Lines | D39: 3160434.75
B40: HV Feeders | D40: 356131.09
B41: HV Feeders - Land Purchases and Easements | D41: 0
B42: Distribution Substations | D42: 0
B43: Distribution Substations - Land Purchases And Easements | D43: 0
B44: LV Feeders | D44: 0
B45: LV Feeders - Land Purchases And Easements | D45: 0
B46: Other Assets | D46: 65758.86

Sheet 2.5 Connections
B1: REGULATORY REPORTING STATEMENT
B2: =INDEX(dms_TradingNameFull_List,MATCH(dms_TradingName,dms_TradingName_List)) -> ActewAGL Distribution
B3: =CONCATENATE((LOOKUP(dms_Model,dms_Model_List,dms_Worksheet_List))&" "&CRY) -> CATEGORY ANALYSIS 2015-16
B4: 2.5 CONNECTIONS
B6: There are TWO tables on this worksheet. Each has been grouped for ease of navigation. See the Instructions sheet on how to group or ungroup tables.
B8: 2.5.1 - DESCRIPTOR METRICS
B9: <<<GROUP-ROW>>>
E11: VOLUMES AND EXPENDITURE
B12: CONNECTION SUBCATEGORY | C12: DESCRIPTOR METRIC | D12: UNITS | E12: =CRY -> 2015-16
B13: RESIDENTIAL | C13: Underground connections | D13: 0's | E13: 4217
C14: Overhead connections | D14: 0's | E14: 0
C15: Distribution substation installed | D15: MVA added | E15: 10.615
C16: Distribution substations installed | D16: 0's | E16: 19
C17: Distribution substation installed | D17: total spend $0s | E17: 1288482.76
C18: Augmentation HV | D18: net circuit km added | E18: 3.3
C19: Augmentation HV | D19: total spend $0s | E19: 260971.6908
C20: Augmentation LV | D20: net circuit km added | E20: 7.033
C21: Augmentation LV | D21: total spend $0s | E21: 4426734.404
C22: Mean days to connect residential customer with LV single phase connection | D22: 0's | E22: 13.124
C23: Volume of GSL breaches for residential customers | D23: 0's | E23: 146
C24: Volume of customer complaints relating to connection services | D24: 0's | E24: 12
C25: GSL payments | D25: $0s | E25: 0
B26: COMMERCIAL/INDUSTRIAL | C26: Underground connections | D26: 0's | E26: 164
C27: Overhead connections | D27: 0's | E27: 0
C28: Distribution substation installed | D28: MVA added | E28: 26.335
C29: Distribution substations installed | D29: 0's | E29: 25
C30: Distribution substation installed | D30: total spend $0s | E30: 3273795.344
C31: Augmentation HV | D31: net circuit km added | E31: 2.765
C32: Augmentation HV | D32: total spend $0s | E32: 714091.5726
C33: Augmentation LV | D33: net circuit km added | E33: 5.54
C34: Augmentation LV | D34: total spend $0s | E34: 1597871.409
B35: SUBDIVISION | C35: Underground connections | D35: 0's | E35: 13
C36: Overhead connections | D36: 0's | E36: 0
C37: Distribution substation installed | D37: MVA added | E37: 8.465
C38: Distribution substations installed | D38: 0's | E38: 20
C39: Distribution substation installed | D39: total spend $0s | E39: 1198141.091
C40: Augmentation HV | D40: net circuit km added | E40: 12.737
C41: Augmentation HV | D41: total spend $0s | E41: 1472299.859
C42: Augmentation LV | D42: net circuit km added | E42: 41.724
C43: Augmentation LV | D43: total spend $0s | E43: 3690879.94
C44: Cost per lot ($) | D44: $0s | E44: 3730.793714
B45: EMBEDDED GENERATION | C45: Underground connections | D45: 0's | E45: 26
C46: Overhead connections | D46: 0's | E46: 0
C47: Distribution substation installed | D47: MVA added | E47: 0
C48: Distribution substations installed | D48: 0's | E48: 0
C49: Distribution substation installed | D49: total spend $0s | E49: 250709.1149
C50: Augmentation HV | D50: net circuit km added | E50: 0
C51: Augmentation HV | D51: total spend $0s | E51: 106707.5578
C52: Augmentation LV | D52: net circuit km added | E52: 0
C53: Augmentation LV | D53: total spend $0s | E53: 1006.977298
B57: 2.5.2 - COST METRICS BY CONNECTION CLASSIFICATION
D58: EXPENDITURE ($0's) | E58: VOLUMES (0's)
B59: CONNECTION SUBCATEGORY | C59: CONNECTION CLASSIFICATION | D59: =CRY -> 2015-16 | E59: =CRY -> 2015-16
B60: RESIDENTIAL | C60: Simple connection LV | D60: 1804315 | E60: 4112
C61: Complex connection LV | D61: 4171874 | E61: 105
C62: Complex connection HV | D62: - | E62: -
B63: COMMERCIAL/INDUSTRIAL | C63: Simple connection LV | D63: 3764707 | E63: 139
C64: Complex connection HV (customer connected at LV, minor HV works) | D64: 1646684 | E64: 24
C65: Complex connection HV (customer connected at LV, upstream asset works) | D65: -
C66: Complex connection HV (customer connected at HV) | D66: 174367 | E66: 1
C67: Complex connection sub-transmission | D67: -
B68: SUBDIVISION | C68: Complex connection LV | D68: - | E68: -
C69: Complex connection HV (no upstream asset works) | D69: 6091305 | E69: 12
C70: Complex connection HV (with upstream asset works) | D70: 270016 | E70: 1
B71: EMBEDDED GENERATION | C71: Simple connection LV | D71: - | E71: 26
C72: Complex connection HV (small capacity) | D72: - | E72: -
C73: Complex connection HV (large capacity) | D73: 358423.65 | E73: -

Sheet 2.6 Non-network
B1: REGULATORY REPORTING STATEMENT
B2: =INDEX(dms_TradingNameFull_List,MATCH(dms_TradingName,dms_TradingName_List)) -> ActewAGL Distribution
B3: =CONCATENATE((LOOKUP(dms_Model,dms_Model_List,dms_Worksheet_List))&" "&CRY) -> CATEGORY ANALYSIS 2015-16
B4: 2.6 NON NETWORK EXPENDITURE
B6: There are THREE tables on this worksheet. Each has been grouped (and sub-grouped) for ease of navigation. See the Instructions sheet on how to group or ungroup tables.
B8: 2.6.1 - NON-NETWORK EXPENDITURE
F9: EXPENDITURE ($0's)
B10: SERVICE SUBCATEGORY | C10: ASSET CATEGORY | F10: =CRY -> 2015-16
B11: OPEX
B12: IT & COMMUNICATIONS | C12: Client device expenditure | F12: 0
C13: Recurrent expenditure | F13: 3331210.97
C14: Non-recurrent expenditure | F14: 1872916.38
B15: MOTOR VEHICLES | C15: Car | F15: 11052.85779
C16: Light commercial vehicle | F16: 703757.2936
C17: Elevated work platform (LCV) | F17: 19887.64447
C18: Elevated work platform (HCV) | F18: 479848.4244
C19: Heavy commercial vehicle | F19: 901593.2952
B20: BUILDINGS AND PROPERTY | C20: Total buildings and property expenditure | F20: 1140238.64
B21: OTHER | C21: Other expenditure
B22: OTHER - DNSP nominated | C22: Trailer | F22: 162252.0545
C23: Non-System Assets (Corporate) | F23: ='[2]2.6 Non-network'!$F23+'[3]2.6 Non-network'!$F23 -> 0
C24: IT & Communication Systems (Corporate) | F24: ='[2]2.6 Non-network'!$F24+'[3]2.6 Non-network'!$F24 -> 0
C25: IT & Communication Systems (Corporate) | F25: ='[2]2.6 Non-network'!$F25+'[3]2.6 Non-network'!$F25 -> 0
F26: ='[2]2.6 Non-network'!$F26+'[3]2.6 Non-network'!$F26 -> 0
F27: ='[2]2.6 Non-network'!$F27+'[3]2.6 Non-network'!$F27 -> 0
F28: ='[2]2.6 Non-network'!$F28+'[3]2.6 Non-network'!$F28 -> 0
F29: ='[2]2.6 Non-network'!$F29+'[3]2.6 Non-network'!$F29 -> 0
F30: ='[2]2.6 Non-network'!$F30+'[3]2.6 Non-network'!$F30 -> 0
F31: ='[2]2.6 Non-network'!$F31+'[3]2.6 Non-network'!$F31 -> 0
F32: ='[2]2.6 Non-network'!$F32+'[3]2.6 Non-network'!$F32 -> 0
B33: CAPEX
B34: IT & COMMUNICATIONS | C34: Client device expenditure | F34: 67079.54
C35: Recurrent expenditure | F35: 0
C36: Non-recurrent expenditure | F36: 11618966.22
B37: MOTOR VEHICLES | C37: Car | F37: 0
C38: Light commercial vehicle | F38: 236935.51
C39: Elevated work platform (LCV) | F39: 0
C40: Elevated work platform (HCV) | F40: 0
C41: Heavy commercial vehicle | F41: 386845.27
B42: BUILDINGS AND PROPERTY | C42: Total buildings and property expenditure | F42: 1175176.99
B43: OTHER | C43: Other expenditure | F43: 497227.95
B44: OTHER - DNSP nominated | C44: =IF(ISBLANK(C22),"",C22) -> Trailer | F44: 7785
C45: =IF(ISBLANK(C23),"",C23) -> Non-System Assets (Corporate) | F45: 289940.7778
C46: IT & Communication Systems (Corporate) | F46: 1109032.775
C47: IT & Communication Systems (Corporate) | F47: 0
F48: ='[2]2.6 Non-network'!$F48+'[3]2.6 Non-network'!$F48 -> 0
F49: ='[2]2.6 Non-network'!$F49+'[3]2.6 Non-network'!$F49 -> 0
F50: ='[2]2.6 Non-network'!$F50+'[3]2.6 Non-network'!$F50 -> 0
F51: ='[2]2.6 Non-network'!$F51+'[3]2.6 Non-network'!$F51 -> 0
F52: ='[2]2.6 Non-network'!$F52+'[3]2.6 Non-network'!$F52 -> 0
F53: ='[2]2.6 Non-network'!$F53+'[3]2.6 Non-network'!$F53 -> 0
F54: ='[2]2.6 Non-network'!$F54+'[3]2.6 Non-network'!$F54 -> 0
B58: 2.6.2 - ANNUAL DESCRIPTOR METRICS - IT & COMMUNICATIONS EXPENDITURE
F59: VOLUMES (0's)
B61: NON-NETWORK CATEGORY | C61: DESCRIPTOR METRIC | F61: =CRY -> 2015-16
B62: IT & COMMUNICATIONS | C62: Employee numbers | F62: 394.5
C63: User numbers | F63: ='[2]2.6 Non-network'!$F63+'[3]2.6 Non-network'!$F63 -> 336
C64: Number of devices | F64: ='[2]2.6 Non-network'!$F64+'[3]2.6 Non-network'!$F64 -> 1953
B67: 2.6.3 - ANNUAL DESCRIPTOR METRICS - MOTOR VEHICLES
F68: VOLUMES / %
B69: NON-NETWORK CATEGORY | C69: ASSET CATEGORY | D69: DESCRIPTOR METRIC | E69: UNITS | F69: =CRY -> 2015-16
B70: MOTOR VEHICLES | C70: CAR | D70: Average kilometres travelled | E70: 0's | F70: 9107
D71: Number purchased | E71: 0's | F71: 0
D72: Number leased | E72: 0's | F72: 13
D73: Number in fleet | E73: 0's | F73: 13
D74: Proportion of total fleet expenditure allocated as regulatory expenditure | E74: (per cent) | F74: 1
C75: LIGHT COMMERCIAL VEHICLE | D75: Average kilometres travelled | E75: 0's | F75: 9968
D76: Number purchased | E76: 0's | F76: 12
D77: Number leased | E77: 0's | F77: 80
D78: Number in fleet | E78: 0's | F78: 92
D79: Proportion of total fleet expenditure allocated as regulatory expenditure | E79: (per cent) | F79: 0.93
C80: ELEVATED WORK PLATFORM (LCV) | D80: Average kilometres travelled | E80: 0's | F80: 22495
D81: Number purchased | E81: 0's | F81: 0
D82: Number leased | E82: 0's | F82: 7
D83: Number in fleet | E83: 0's | F83: 7
D84: Proportion of total fleet expenditure allocated as regulatory expenditure | E84: (per cent) | F84: 1
C85: ELEVATED WORK PLATFORM (HCV) | D85: Average kilometres travelled | E85: 0's | F85: 11450
D86: Number purchased | E86: 0's | F86: 0
D87: Number leased | E87: 0's | F87: 4
D88: Number in fleet | E88: 0's | F88: 4
D89: Proportion of total fleet expenditure allocated as regulatory expenditure | E89: (per cent) | F89: 0.81
C90: HEAVY COMMERCIAL VEHICLE | D90: Average kilometres travelled | E90: 0's | F90: 9457
D91: Number purchased | E91: 0's | F91: 0
D92: Number leased | E92: 0's | F92: 33
D93: Number in fleet | E93: 0's | F93: 33
D94: Proportion of total fleet expenditure allocated as regulatory expenditure | E94: (per cent) | F94: 1

Sheet 2.7 Vegetation management
B1: REGULATORY REPORTING STATEMENT
B2: =INDEX(dms_TradingNameFull_List,MATCH(dms_TradingName,dms_TradingName_List)) -> ActewAGL Distribution
B3: =CONCATENATE((LOOKUP(dms_Model,dms_Model_List,dms_Worksheet_List))&" "&CRY) -> CATEGORY ANALYSIS 2015-16
B4: 2.7 VEGETATION MANAGEMENT
B6: There are THREE tables on this worksheet. Each has been grouped (and sub-grouped) for ease of navigation. See the Instructions sheet on how to group or ungroup tables.
B8: Please enter a description for each Zone in table 2.7.1 - Urban and CBD. The zone description will then autopopulate in tables 2.7.1 - Rural and 2.7.2.
A11: ` | B11: 2.7.1 - DESCRIPTOR METRICS BY ZONE
B12: URBAN AND CBD
E13: =CRY -> 2015-16
B14: ZONES | C14: ASSET | D14: UNITS
B15: ZONE 1 | C15: Route line length within zone | D15: km | E15: ='[3]2.7 Vegetation management'!$E15+'[2]2.7 Vegetation management'!$E15 -> 1361.4
C16: Number of maintenance spans | D16: 0's | E16: ='[3]2.7 Vegetation management'!$E16+'[2]2.7 Vegetation management'!$E16 -> 4660
C17: Total length of maintenance spans | D17: km | E17: ='[3]2.7 Vegetation management'!$E17+'[2]2.7 Vegetation management'!$E17 -> 157.7944037
C18: Length of vegetation corridors | D18: km | E18: ='[3]2.7 Vegetation management'!$E18+'[2]2.7 Vegetation management'!$E18 -> 1089.12
C19: Average number of trees per maintenance span | D19: 0's | E19: ='[3]2.7 Vegetation management'!$E19+'[2]2.7 Vegetation management'!$E19 -> 1.38
C20: Average frequency of cutting cycle | D20: years | E20: ='[3]2.7 Vegetation management'!$E20+'[2]2.7 Vegetation management'!$E20 -> 3
B21: ZONE 2 | C21: Route line length within zone | D21: km
C22: Number of maintenance spans | D22: 0's
C23: Total length of maintenance spans | D23: km
C24: Length of vegetation corridors | D24: km
C25: Average number of trees per maintenance span | D25: 0's
C26: Average frequency of cutting cycle | D26: years
B27: ZONE 3 | C27: Route line length within zone | D27: km
C28: Number of maintenance spans | D28: 0's
C29: Total length of maintenance spans | D29: km
C30: Length of vegetation corridors | D30: km
C31: Average number of trees per maintenance span | D31: 0's
C32: Average frequency of cutting cycle | D32: years
B33: ZONE 4 | C33: Route line length within zone | D33: km
C34: Number of maintenance spans | D34: 0's
C35: Total length of maintenance spans | D35: km
C36: Length of vegetation corridors | D36: km
C37: Average number of trees per maintenance span | D37: 0's
C38: Average frequency of cutting cycle | D38: years
B39: ZONE 5 | C39: Route line length within zone | D39: km
C40: Number of maintenance spans | D40: 0's
C41: Total length of maintenance spans | D41: km
C42: Length of vegetation corridors | D42: km
C43: Average number of trees per maintenance span | D43: 0's
C44: Average frequency of cutting cycle | D44: years
B45: ZONE 6 | C45: Route line length within zone | D45: km
C46: Number of maintenance spans | D46: 0's
C47: Total length of maintenance spans | D47: km
C48: Length of vegetation corridors | D48: km
C49: Average number of trees per maintenance span | D49: 0's
C50: Average frequency of cutting cycle | D50: years
B51: ZONE 7 | C51: Route line length within zone | D51: km
C52: Number of maintenance spans | D52: 0's
C53: Total length of maintenance spans | D53: km
C54: Length of vegetation corridors | D54: km
C55: Average number of trees per maintenance span | D55: 0's
C56: Average frequency of cutting cycle | D56: years
B57: ZONE 8 | C57: Route line length within zone | D57: km
C58: Number of maintenance spans | D58: 0's
C59: Total length of maintenance spans | D59: km
C60: Length of vegetation corridors | D60: km
C61: Average number of trees per maintenance span | D61: 0's
C62: Average frequency of cutting cycle | D62: years
B63: ZONE 9 | C63: Route line length within zone | D63: km
C64: Number of maintenance spans | D64: 0's
C65: Total length of maintenance spans | D65: km
C66: Length of vegetation corridors | D66: km
C67: Average number of trees per maintenance span | D67: 0's
C68: Average frequency of cutting cycle | D68: years
B69: ZONE 10 | C69: Route line length within zone | D69: km
C70: Number of maintenance spans | D70: 0's
C71: Total length of maintenance spans | D71: km
C72: Length of vegetation corridors | D72: km
C73: Average number of trees per maintenance span | D73: 0's
C74: Average frequency of cutting cycle | D74: years
B75: ZONE 11 | C75: Route line length within zone | D75: km
C76: Number of maintenance spans | D76: 0's
C77: Total length of maintenance spans | D77: km
C78: Length of vegetation corridors | D78: km
C79: Average number of trees per maintenance span | D79: 0's
C80: Average frequency of cutting cycle | D80: years
B81: ZONE 12 | C81: Route line length within zone | D81: km
C82: Number of maintenance spans | D82: 0's
C83: Total length of maintenance spans | D83: km
C84: Length of vegetation corridors | D84: km
C85: Average number of trees per maintenance span | D85: 0's
C86: Average frequency of cutting cycle | D86: years
B87: ZONE 13 | C87: Route line length within zone | D87: km
C88: Number of maintenance spans | D88: 0's
C89: Total length of maintenance spans | D89: km
C90: Length of vegetation corridors | D90: km
C91: Average number of trees per maintenance span | D91: 0's
C92: Average frequency of cutting cycle | D92: years
B93: ZONE 14 | C93: Route line length within zone | D93: km
C94: Number of maintenance spans | D94: 0's
C95: Total length of maintenance spans | D95: km
C96: Length of vegetation corridors | D96: km
C97: Average number of trees per maintenance span | D97: 0's
C98: Average frequency of cutting cycle | D98: years
B99: ZONE 15 | C99: Route line length within zone | D99: km
C100: Number of maintenance spans | D100: 0's
C101: Total length of maintenance spans | D101: km
C102: Length of vegetation corridors | D102: km
C103: Average number of trees per maintenance span | D103: 0's
C104: Average frequency of cutting cycle | D104: years
B105: ZONE 16 | C105: Route line length within zone | D105: km
C106: Number of maintenance spans | D106: 0's
C107: Total length of maintenance spans | D107: km
C108: Length of vegetation corridors | D108: km
C109: Average number of trees per maintenance span | D109: 0's
C110: Average frequency of cutting cycle | D110: years
B111: ZONE 17 | C111: Route line length within zone | D111: km
C112: Number of maintenance spans | D112: 0's
C113: Total length of maintenance spans | D113: km
C114: Length of vegetation corridors | D114: km
C115: Average number of trees per maintenance span | D115: 0's
C116: Average frequency of cutting cycle | D116: years
B117: ZONE 18 | C117: Route line length within zone | D117: km
C118: Number of maintenance spans | D118: 0's
C119: Total length of maintenance spans | D119: km
C120: Length of vegetation corridors | D120: km
C121: Average number of trees per maintenance span | D121: 0's
C122: Average frequency of cutting cycle | D122: years
B124: RURAL
E125: =CRY -> 2015-16
B126: ZONES | C126: ASSET | D126: UNITS
B127: =B15 -> ZONE 1 | C127: Route line length within zone | D127: km
C128: Number of maintenance spans | D128: 0's
C129: Total length of maintenance spans | D129: km
C130: Length of vegetation corridors | D130: km
C131: Average number of trees per maintenance span | D131: 0's
C132: Average frequency of cutting cycle | D132: years
B133: =B21 -> ZONE 2 | C133: Route line length within zone | D133: km | E133: 845.6
C134: Number of maintenance spans | D134: 0's | E134: 1111
C135: Total length of maintenance spans | D135: km | E135: 114.7047526
C136: Length of vegetation corridors | D136: km | E136: 507.36
C137: Average number of trees per maintenance span | D137: 0's | E137: 1.96489649
C138: Average frequency of cutting cycle | D138: years | E138: 1
B139: =B27 -> ZONE 3 | C139: Route line length within zone | D139: km
C140: Number of maintenance spans | D140: 0's
C141: Total length of maintenance spans | D141: km
C142: Length of vegetation corridors | D142: km
C143: Average number of trees per maintenance span | D143: 0's
C144: Average frequency of cutting cycle | D144: years
B145: =B33 -> ZONE 4 | C145: Route line length within zone | D145: km
C146: Number of maintenance spans | D146: 0's
C147: Total length of maintenance spans | D147: km
C148: Length of vegetation corridors | D148: km
C149: Average number of trees per maintenance span | D149: 0's
C150: Average frequency of cutting cycle | D150: years
B151: =B39 -> ZONE 5 | C151: Route line length within zone | D151: km
C152: Number of maintenance spans | D152: 0's
C153: Total length of maintenance spans | D153: km
C154: Length of vegetation corridors | D154: km
C155: Average number of trees per maintenance span | D155: 0's
C156: Average frequency of cutting cycle | D156: years
B157: =B45 -> ZONE 6 | C157: Route line length within zone | D157: km
C158: Number of maintenance spans | D158: 0's
C159: Total length of maintenance spans | D159: km
C160: Length of vegetation corridors | D160: km
C161: Average number of trees per maintenance span | D161: 0's
C162: Average frequency of cutting cycle | D162: years
B163: =B51 -> ZONE 7 | C163: Route line length within zone | D163: km
C164: Number of maintenance spans | D164: 0's
C165: Total length of maintenance spans | D165: km
C166: Length of vegetation corridors | D166: km
C167: Average number of trees per maintenance span | D167: 0's
C168: Average frequency of cutting cycle | D168: years
B169: =B57 -> ZONE 8 | C169: Route line length within zone | D169: km
C170: Number of maintenance spans | D170: 0's
C171: Total length of maintenance spans | D171: km
C172: Length of vegetation corridors | D172: km
C173: Average number of trees per maintenance span | D173: 0's
C174: Average frequency of cutting cycle | D174: years
B175: =B63 -> ZONE 9 | C175: Route line length within zone | D175: km
C176: Number of maintenance spans | D176: 0's
C177: Total length of maintenance spans | D177: km
C178: Length of vegetation corridors | D178: km
C179: Average number of trees per maintenance span | D179: 0's
C180: Average frequency of cutting cycle | D180: years
B181: =B69 -> ZONE 10 | C181: Route line length within zone | D181: km
C182: Number of maintenance spans | D182: 0's
C183: Total length of maintenance spans | D183: km
C184: Length of vegetation corridors | D184: km
C185: Average number of trees per maintenance span | D185: 0's
C186: Average frequency of cutting cycle | D186: years
B187: =B75 -> ZONE 11 | C187: Route line length within zone | D187: km
C188: Number of maintenance spans | D188: 0's
C189: Total length of maintenance spans | D189: km
C190: Length of vegetation corridors | D190: km
C191: Average number of trees per maintenance span | D191: 0's
C192: Average frequency of cutting cycle | D192: years
B193: =B81 -> ZONE 12 | C193: Route line length within zone | D193: km
C194: Number of maintenance spans | D194: 0's
C195: Total length of maintenance spans | D195: km
C196: Length of vegetation corridors | D196: km
C197: Average number of trees per maintenance span | D197: 0's
C198: Average frequency of cutting cycle | D198: years
B199: =B87 -> ZONE 13 | C199: Route line length within zone | D199: km
C200: Number of maintenance spans | D200: 0's
C201: Total length of maintenance spans | D201: km
C202: Length of vegetation corridors | D202: km
C203: Average number of trees per maintenance span | D203: 0's
C204: Average frequency of cutting cycle | D204: years
B205: =B93 -> ZONE 14 | C205: Route line length within zone | D205: km
... 201 more rows

Sheet 2.8 Maintenance
B1: REGULATORY REPORTING STATEMENT
B2: =INDEX(dms_TradingNameFull_List,MATCH(dms_TradingName,dms_TradingName_List)) -> ActewAGL Distribution
B3: =CONCATENATE((LOOKUP(dms_Model,dms_Model_List,dms_Worksheet_List))&" "&CRY) -> CATEGORY ANALYSIS 2015-16
B4: 2.8 MAINTENANCE
B6: There are TWO tables on this worksheet. Each has been grouped for ease of navigation. See the Instructions sheet on how to group or ungroup tables.
B8: 2.8.1 - DESCRIPTOR METRICS FOR ROUTINE AND NON-ROUTINE MAINTENANCE
F9: ASSET QUANTITY (0's) | H9: AVERAGE AGE OF ASSET GROUP | I9: INSPECTION CYCLE (YEARS) | J9: MAINTENANCE CYCLE (YEARS)
F10: AT YEAR END | G10: INSPECTED / MAINTAINED
B11: MAINTENANCE ACTIVITY | C11: MAINTENANCE ASSET CATEGORY | D11: ASSET QUANTITY | E11: Units | F11: =CRY -> 2015-16 | G11: =CRY -> 2015-16 | H11: =CRY -> 2015-16
B12: Pole top, overhead line & service line maintenance | C12: Pole tops and overhead lines | D12: Number of poles | E12: Number | F12: 50685 | G12: 25244 | H12: 32.4823659 | I12: 2
C13: Service lines | D13: Number of customers | E13: Number | F13: 184962 | G13: 12578 | H13: 34.2109089 | I13: 5
B14: Pole inspection and treatment | C14: All poles | D14: Number of poles | E14: Number | F14: 50685 | G14: 13535 | H14: 32.4823659 | I14: 5
B15: Overhead asset inspection | C15: All overhead assets | D15: Line patrolled (route KM) | E15: KM | F15: 2365 | G15: 3815.48954 | H15: 44.3281988
B16: Network underground cable maintenance: by voltage | C16: LV - 11 to 22 KV | D16: Length (KM) | E16: KM | F16: 2939.91 | G16: 0.97 | H16: 31.58770286
C17: 33 KV and above | D17: Length (KM) | E17: KM | F17: 6 | G17: 0 | H17: 8.022814821
B18: Network underground cable maintenance: by location | C18: Cbd | D18: Length (KM) | E18: KM | F18: 0 | G18: 0 | H18: 0
C19: Non-CBD | D19: Length (KM) | E19: KM | F19: 2946 | G19: 0.97 | H19: 31.58770286
B20: Distribution substation equipment & property maintenance | C20: Distribution substation transformers | D20: Number of installed transformers | E20: Number | F20: 5107 | G20: 1752 | H20: 25 | I20: 5
C21: Distribution substation switchgear (within-substations and stand-alone switchgear) | D21: Number of switches | E21: Number | F21: 111988 | G21: 1577 | H21: 28 | I21: 5 | J21: 5
C22: Distribution substation - other equipment | D22: Earth mat | E22: Number | F22: 477 | G22: 26 | H22: 24 | I22: 7
C23: Distribution substation - property | D23: Number of distribution substation properties maintained | E23: Number | F23: 4626 | G23: 1310 | H23: 25 | I23: 5
B24: Zone substation equipment maintenance | C24: Transformers - zone substation | D24: Number | E24: Number | F24: 31 | G24: 31 | H24: 31 | I24: 0.083 | J24: 0.083
C25: Transformers - distribution | D25: Number of distribution transformers within zone substation | E25: Number | F25: 0 | G25: 0
C26: Transformers - HV | D26: Number of HV transformers | E26: Number | F26: 0 | G26: 0
C27: Zone substation - other equipment | D27: earthing transformers | E27: Number | F27: 29 | G27: 29 | H27: 33 | I27: 0.083
B28: Zone substation property maintenance | C28: All zone substation properties | D28: Number of zone substation properties maintained | E28: Number | F28: 15 | G28: 15 | I28: 0.083 | J28: 1
B29: Public lighting maintenance | C29: Minor roads | D29: Number of public lights maintained | E29: Number
C30: Major roads | D30: Number of public lights maintained | E30: Number
B31: SCADA & network control maintenance | C31: SCADA & network control | D31: Number of systems | E31: Number | F31: 285 | G31: 0 | H31: 11
B32: Protection systems maintenance | C32: Protection systems | D32: Number of systems | E32: Number | F32: 3299 | G32: 221 | H32: 15 | I32: 0.08 | J32: 3
B33: Subtransmission asset maintenance | C33: Subtransmission asset maintenance - for DNSPs with dual function assets | D33: Number of zone substation properties maintained | E33: Number | F33: 12 | G33: 12 | I33: 0.083 | J33: 1
B34: Various assets | C34: includes rates, electricity, communications equip, metering | D34: Various | E34: Number | F34: 0 | G34: 0
B35: Ground clearance - access tracks | C35: Access tracks | D35: Number | E35: Number | F35: 0 | G35: 0
B36: Other | C36: < DNSP to nominate > | D36: < DNSP to nominate >
C37: < DNSP to nominate > | D37: < DNSP to nominate >
C38: < DNSP to nominate > | D38: < DNSP to nominate >
C39: < DNSP to nominate > | D39: < DNSP to nominate >
C40: < DNSP to nominate > | D40: < DNSP to nominate >
C41: < DNSP to nominate > | D41: < DNSP to nominate >
C42: < DNSP to nominate > | D42: < DNSP to nominate >
C43: < DNSP to nominate > | D43: < DNSP to nominate >
C44: < DNSP to nominate > | D44: < DNSP to nominate >
C45: < DNSP to nominate > | D45: < DNSP to nominate >
B48: 2.8.2 - COST METRICS FOR ROUTINE AND NON-ROUTINE MAINTENANCE
F49: EXPENDITURE ($0'S)
F50: ROUTINE MAINTENANCE | G50: NON-ROUTINE MAINTENANCE
B51: MAINTENANCE ACTIVITY | C51: MAINTENANCE ASSET CATEGORY | D51: ASSET QUANTITY | E51: Units | F51: =CRY -> 2015-16 | G51: =CRY -> 2015-16
B52: Pole top, overhead line & service line maintenance | C52: Pole tops and overhead lines | D52: Number of poles | E52: Number | F52: 70769.39 | G52: 950432.52
C53: Service lines | D53: Number of customers | E53: Number | F53: 0 | G53: 85263.43
B54: Pole inspection and treatment | C54: All poles | D54: Number of poles | E54: Number | F54: 1943990.42 | G54: 0
B55: Overhead asset inspection | C55: All overhead assets | D55: Line patrolled (route KM) | E55: KM | F55: 312798.55 | G55: 0
B56: Network underground cable maintenance: by voltage | C56: LV - 11 to 22 KV | D56: Length (KM) | E56: KM | F56: 27502.71 | G56: 1472480.68
C57: 33 KV and above | D57: Length (KM) | E57: KM | F57: 0 | G57: 0
B58: Network underground cable maintenance: by location | C58: Cbd | D58: Length (KM) | E58: KM | F58: 0 | G58: 0
C59: Non-CBD | D59: Length (KM) | E59: KM | F59: 0 | G59: 0
B60: Distribution substation equipment & property maintenance | C60: Distribution substation transformers | D60: Number of installed transformers | E60: Number | F60: 94819.4 | G60: 214938.18
C61: Distribution substation switchgear (within-substations and stand-alone switchgear) | D61: Number of switches | E61: Number | F61: 31697.64 | G61: 66203.55
C62: Distribution substation - other equipment | D62: Earth mat | E62: Number | F62: 600756.85 | G62: 24338.78
C63: Distribution substation - property | D63: Number of distribution substation properties maintained | E63: Number | F63: 250681.77 | G63: 19434
B64: Zone substation equipment maintenance | C64: Transformers - zone substation | D64: Number | E64: Number | F64: 327009.13 | G64: 35999.57
C65: Transformers - distribution | D65: Number of distribution transformers within zone substation | E65: Number | F65: 0 | G65: 0
C66: Transformers - HV | D66: Number of HV transformers | E66: Number | F66: 0 | G66: 0
C67: Zone substation - other equipment | D67: =IF(ISBLANK(D27),"",D27) -> earthing transformers | E67: =IF(ISBLANK(E27),"",E27) -> Number | F67: 647753.62 | G67: 140487.66
B68: Zone substation property maintenance | C68: All zone substation properties | D68: Number of zone substation properties maintained | E68: Number | F68: 574080.42 | G68: 0
B69: Public lighting maintenance | C69: Minor roads | D69: Number of public lights maintained | E69: Number | F69: 0 | G69: 0
C70: Major roads | D70: Number of public lights maintained | E70: Number | F70: 0 | G70: 0
B71: SCADA & network control maintenance | C71: SCADA & network control | D71: Number of systems | E71: Number | F71: 66347.43 | G71: 26102.93
B72: Protection systems maintenance | C72: Protection systems | D72: Number of systems | E72: Number | F72: 646383.84 | G72: 32195.76
B73: Subtransmission asset maintenance | C73: Subtransmission asset maintenance - for DNSPs with dual function assets | D73: =IF(ISBLANK(D33),"",D33) -> Number of zone substation properties maintained | E73: =IF(ISBLANK(E33),"",E33) -> Number | F73: 65809.54 | G73: 8936.34
B74: Various assets | C74: includes rates, electricity, communications equip, metering | D74: Various | E74: Number | F74: 0 | G74: 0
B75: Ground clearance - access tracks | C75: Access tracks | D75: Number | E75: Number | F75: 0 | G75: 0
B76: Other | C76: =IF(ISBLANK(C36),"",C36) -> < DNSP to nominate > | D76: < DNSP to nominate >
C77: < DNSP to nominate > | D77: < DNSP to nominate >
C78: < DNSP to nominate > | D78: < DNSP to nominate >
C79: < DNSP to nominate > | D79: < DNSP to nominate >
C80: < DNSP to nominate > | D80: < DNSP to nominate >
C81: < DNSP to nominate > | D81: < DNSP to nominate >
C82: < DNSP to nominate > | D82: < DNSP to nominate >
C83: < DNSP to nominate > | D83: < DNSP to nominate >
C84: < DNSP to nominate > | D84: < DNSP to nominate >
C85: < DNSP to nominate > | D85: < DNSP to nominate >

Sheet 2.9 Emergency Response
B1: REGULATORY REPORTING STATEMENT
B2: =INDEX(dms_TradingNameFull_List,MATCH(dms_TradingName,dms_TradingName_List)) -> ActewAGL Distribution
B3: =CONCATENATE((LOOKUP(dms_Model,dms_Model_List,dms_Worksheet_List))&" "&CRY) -> CATEGORY ANALYSIS 2015-16
B4: 2.9 EMERGENCY RESPONSE
B7: There is ONE table on this worksheet. It has been sub-grouped for ease of navigation. See the Instructions sheet on how to group or ungroup tables.
B9: 2.9.1 - EMERGENCY RESPONSE EXPENDITURE (OPEX)
D10: EXPENDITURE ($0's)
D11: =CRY -> 2015-16
B12: (A) TOTAL EMERGENCY RESPONSE EXPENDITURE | C12: Total Expenditure | D12: 1892149.22
B13: (B) MAJOR EVENTS O&M EXPENDITURE | D13: ='[3]2.9 Emergency Response'!$D13 -> 0
D14: ='[3]2.9 Emergency Response'!$D14 -> 0
D15: ='[3]2.9 Emergency Response'!$D15 -> 0
D16: ='[3]2.9 Emergency Response'!$D16 -> 0
D17: ='[3]2.9 Emergency Response'!$D17 -> 0
D18: ='[3]2.9 Emergency Response'!$D18 -> 0
D19: ='[3]2.9 Emergency Response'!$D19 -> 0
D20: ='[3]2.9 Emergency Response'!$D20 -> 
D21: ='[3]2.9 Emergency Response'!$D21 -> 0
D22: ='[3]2.9 Emergency Response'!$D22 -> 0
D23: ='[3]2.9 Emergency Response'!$D23 -> 0
D24: ='[3]2.9 Emergency Response'!$D24 -> 0
D25: ='[3]2.9 Emergency Response'!$D25 -> 0
D26: ='[3]2.9 Emergency Response'!$D26 -> 0
D27: ='[3]2.9 Emergency Response'!$D27 -> 0
D28: ='[3]2.9 Emergency Response'!$D28 -> 
D29: ='[3]2.9 Emergency Response'!$D29 -> 
D30: ='[3]2.9 Emergency Response'!$D30 -> 
D31: ='[3]2.9 Emergency Response'!$D31 -> 
D32: ='[3]2.9 Emergency Response'!$D32 -> 0
D33: ='[3]2.9 Emergency Response'!$D33 -> 0
D34: ='[3]2.9 Emergency Response'!$D34 -> 0
D35: ='[3]2.9 Emergency Response'!$D35 -> 0
D36: ='[3]2.9 Emergency Response'!$D36 -> 0
D37: ='[3]2.9 Emergency Response'!$D37 -> 0
D38: ='[3]2.9 Emergency Response'!$D38 -> 0
D39: ='[3]2.9 Emergency Response'!$D39 -> 0
D40: ='[3]2.9 Emergency Response'!$D40 -> 0
D41: ='[3]2.9 Emergency Response'!$D41 -> 0
D42: ='[3]2.9 Emergency Response'!$D42 -> 0
D43: ='[3]2.9 Emergency Response'!$D43 -> 0
D44: ='[3]2.9 Emergency Response'!$D44 -> 
D45: ='[3]2.9 Emergency Response'!$D45 -> 
D46: ='[3]2.9 Emergency Response'!$D46 -> 
D47: ='[3]2.9 Emergency Response'!$D47 -> 
D48: ='[3]2.9 Emergency Response'!$D48 -> 
D49: ='[3]2.9 Emergency Response'!$D49 -> 
D50: ='[3]2.9 Emergency Response'!$D50 -> 
D51: ='[3]2.9 Emergency Response'!$D51 -> 
D52: ='[3]2.9 Emergency Response'!$D52 -> 
D53: ='[3]2.9 Emergency Response'!$D53 -> 
D54: ='[3]2.9 Emergency Response'!$D54 -> 
D55: ='[3]2.9 Emergency Response'!$D55 -> 
B56: (C) MAJOR EVENT DAYS O&M EXPENDITURE | C56: 2015-12-31 | D56: ='[3]2.9 Emergency Response'!$D56 -> 2555
C57: 2016-01-21 | D57: ='[3]2.9 Emergency Response'!$D57 -> 10183
D58: ='[3]2.9 Emergency Response'!$D58 -> 
D59: ='[3]2.9 Emergency Response'!$D59 -> 
D60: ='[3]2.9 Emergency Response'!$D60 -> 
D61: ='[3]2.9 Emergency Response'!$D61 -> 
D62: ='[3]2.9 Emergency Response'!$D62 -> 
D63: ='[3]2.9 Emergency Response'!$D63 -> 
D64: ='[3]2.9 Emergency Response'!$D64 -> 
D65: ='[3]2.9 Emergency Response'!$D65 -> 
D66: ='[3]2.9 Emergency Response'!$D66 -> 
D67: ='[3]2.9 Emergency Response'!$D67 -> 
D68: ='[3]2.9 Emergency Response'!$D68 -> 
D69: ='[3]2.9 Emergency Response'!$D69 -> 
D70: ='[3]2.9 Emergency Response'!$D70 -> 
D71: ='[3]2.9 Emergency Response'!$D71 -> 
D72: ='[3]2.9 Emergency Response'!$D72 -> 
D73: ='[3]2.9 Emergency Response'!$D73 -> 
D74: ='[3]2.9 Emergency Response'!$D74 -> 
D75: ='[3]2.9 Emergency Response'!$D75 -> 
D76: ='[3]2.9 Emergency Response'!$D76 -> 
D77: ='[3]2.9 Emergency Response'!$D77 -> 
D78: ='[3]2.9 Emergency Response'!$D78 -> 
D79: ='[3]2.9 Emergency Response'!$D79 -> 
D80: ='[3]2.9 Emergency Response'!$D80 -> 
D81: ='[3]2.9 Emergency Response'!$D81 -> 
D82: ='[3]2.9 Emergency Response'!$D82 -> 
D83: ='[3]2.9 Emergency Response'!$D83 -> 
D84: ='[3]2.9 Emergency Response'!$D84 -> 
D85: ='[3]2.9 Emergency Response'!$D85 -> 
D86: ='[3]2.9 Emergency Response'!$D86 -> 
D87: ='[3]2.9 Emergency Response'!$D87 -> 
D88: ='[3]2.9 Emergency Response'!$D88 -> 
D89: ='[3]2.9 Emergency Response'!$D89 -> 
D90: ='[3]2.9 Emergency Response'!$D90 -> 
D91: ='[3]2.9 Emergency Response'!$D91 -> 
D92: ='[3]2.9 Emergency Response'!$D92 -> 
D93: ='[3]2.9 Emergency Response'!$D93 -> 
D94: ='[3]2.9 Emergency Response'!$D94 -> 
D95: ='[3]2.9 Emergency Response'!$D95 -> 
D96: ='[3]2.9 Emergency Response'!$D96 -> 
D97: ='[3]2.9 Emergency Response'!$D97 -> 
D98: ='[3]2.9 Emergency Response'!$D98 -> 
D99: ='[3]2.9 Emergency Response'!$D99 -> 
D100: ='[3]2.9 Emergency Response'!$D100 -> 
D101: ='[3]2.9 Emergency Response'!$D101 -> 
D102: ='[3]2.9 Emergency Response'!$D102 -> 
D103: ='[3]2.9 Emergency Response'!$D103 -> 
D104: ='[3]2.9 Emergency Response'!$D104 -> 
D105: ='[3]2.9 Emergency Response'!$D105 -> 
D106: ='[3]2.9 Emergency Response'!$D106 -> 
D107: ='[3]2.9 Emergency Response'!$D107 -> 
D108: ='[3]2.9 Emergency Response'!$D108 -> 
D109: ='[3]2.9 Emergency Response'!$D109 -> 
D110: ='[3]2.9 Emergency Response'!$D110 -> 
D111: ='[3]2.9 Emergency Response'!$D111 -> 
D112: ='[3]2.9 Emergency Response'!$D112 -> 
D113: ='[3]2.9 Emergency Response'!$D113 -> 
D114: ='[3]2.9 Emergency Response'!$D114 -> 
D115: ='[3]2.9 Emergency Response'!$D115 -> 
D116: ='[3]2.9 Emergency Response'!$D116 -> 
D117: ='[3]2.9 Emergency Response'!$D117 -> 
D118: ='[3]2.9 Emergency Response'!$D118 -> 
D119: ='[3]2.9 Emergency Response'!$D119 -> 
D120: ='[3]2.9 Emergency Response'!$D120 -> 
D121: ='[3]2.9 Emergency Response'!$D121 -> 
D122: ='[3]2.9 Emergency Response'!$D122 -> 
D123: ='[3]2.9 Emergency Response'!$D123 -> 
D124: ='[3]2.9 Emergency Response'!$D124 -> 
D125: ='[3]2.9 Emergency Response'!$D125 -> 
D126: ='[3]2.9 Emergency Response'!$D126 -> 
D127: ='[3]2.9 Emergency Response'!$D127 -> 
D128: ='[3]2.9 Emergency Response'!$D128 -> 
D129: ='[3]2.9 Emergency Response'!$D129 -> 
D130: ='[3]2.9 Emergency Response'!$D130 -> 
D131: ='[3]2.9 Emergency Response'!$D131 -> 
D132: ='[3]2.9 Emergency Response'!$D132 -> 
D133: ='[3]2.9 Emergency Response'!$D133 -> 
D134: ='[3]2.9 Emergency Response'!$D134 -> 
D135: ='[3]2.9 Emergency Response'!$D135 -> 
D136: ='[3]2.9 Emergency Response'!$D136 -> 
D137: ='[3]2.9 Emergency Response'!$D137 -> 
D138: ='[3]2.9 Emergency Response'!$D138 -> 
D139: ='[3]2.9 Emergency Response'!$D139 -> 
D140: ='[3]2.9 Emergency Response'!$D140 -> 
D141: ='[3]2.9 Emergency Response'!$D141 -> 
D142: ='[3]2.9 Emergency Response'!$D142 -> 
D143: ='[3]2.9 Emergency Response'!$D143 -> 
D144: ='[3]2.9 Emergency Response'!$D144 -> 
D145: ='[3]2.9 Emergency Response'!$D145 -> 
D146: ='[3]2.9 Emergency Response'!$D146 -> 
D147: ='[3]2.9 Emergency Response'!$D147 -> 
D148: ='[3]2.9 Emergency Response'!$D148 -> 
D149: ='[3]2.9 Emergency Response'!$D149 -> 
D150: ='[3]2.9 Emergency Response'!$D150 -> 
D151: ='[3]2.9 Emergency Response'!$D151 -> 
D152: ='[3]2.9 Emergency Response'!$D152 -> 
D153: ='[3]2.9 Emergency Response'!$D153 -> 
D154: ='[3]2.9 Emergency Response'!$D154 -> 
D155: ='[3]2.9 Emergency Response'!$D155 -> 
D156: ='[3]2.9 Emergency Response'!$D156 -> 
D157: ='[3]2.9 Emergency Response'!$D157 -> 
D158: ='[3]2.9 Emergency Response'!$D158 -> 
D159: ='[3]2.9 Emergency Response'!$D159 -> 
D160: ='[3]2.9 Emergency Response'!$D160 -> 
D161: ='[3]2.9 Emergency Response'!$D161 -> 
D162: ='[3]2.9 Emergency Response'!$D162 -> 
D163: ='[3]2.9 Emergency Response'!$D163 -> 
D164: ='[3]2.9 Emergency Response'!$D164 -> 
D165: ='[3]2.9 Emergency Response'!$D165 -> 
D166: ='[3]2.9 Emergency Response'!$D166 -> 
D167: ='[3]2.9 Emergency Response'!$D167 -> 
D168: ='[3]2.9 Emergency Response'!$D168 -> 
D169: ='[3]2.9 Emergency Response'!$D169 -> 
D170: ='[3]2.9 Emergency Response'!$D170 -> 
D171: ='[3]2.9 Emergency Response'!$D171 -> 
D172: ='[3]2.9 Emergency Response'!$D172 -> 
D173: ='[3]2.9 Emergency Response'!$D173 -> 
D174: ='[3]2.9 Emergency Response'!$D174 -> 
D175: ='[3]2.9 Emergency Response'!$D175 -> 
D176: ='[3]2.9 Emergency Response'!$D176 -> 
D177: ='[3]2.9 Emergency Response'!$D177 -> 
D178: ='[3]2.9 Emergency Response'!$D178 -> 
D179: ='[3]2.9 Emergency Response'!$D179 -> 
D180: ='[3]2.9 Emergency Response'!$D180 -> 
D181: ='[3]2.9 Emergency Response'!$D181 -> 
D182: ='[3]2.9 Emergency Response'!$D182 -> 
D183: ='[3]2.9 Emergency Response'!$D183 -> 
D184: ='[3]2.9 Emergency Response'!$D184 -> 
D185: ='[3]2.9 Emergency Response'!$D185 -> 
D186: ='[3]2.9 Emergency Response'!$D186 -> 
D187: ='[3]2.9 Emergency Response'!$D187 -> 
D188: ='[3]2.9 Emergency Response'!$D188 -> 
D189: ='[3]2.9 Emergency Response'!$D189 -> 
D190: ='[3]2.9 Emergency Response'!$D190 -> 
D191: ='[3]2.9 Emergency Response'!$D191 -> 
D192: ='[3]2.9 Emergency Response'!$D192 -> 
D193: ='[3]2.9 Emergency Response'!$D193 -> 
D194: ='[3]2.9 Emergency Response'!$D194 -> 
D195: ='[3]2.9 Emergency Response'!$D195 -> 
D196: ='[3]2.9 Emergency Response'!$D196 -> 
D197: ='[3]2.9 Emergency Response'!$D197 -> 
D198: ='[3]2.9 Emergency Response'!$D198 -> 
D199: ='[3]2.9 Emergency Response'!$D199 -> 
D200: ='[3]2.9 Emergency Response'!$D200 -> 
D201: ='[3]2.9 Emergency Response'!$D201 -> 
D202: ='[3]2.9 Emergency Response'!$D202 -> 
D203: ='[3]2.9 Emergency Response'!$D203 -> 
... 401 more rows

Sheet 2.10 Overheads
B1: REGULATORY REPORTING STATEMENT
B2: =INDEX(dms_TradingNameFull_List,MATCH(dms_TradingName,dms_TradingName_List)) -> ActewAGL Distribution
B3: =CONCATENATE((LOOKUP(dms_Model,dms_Model_List,dms_Worksheet_List))&" "&CRY) -> CATEGORY ANALYSIS 2015-16
B4: 2.10 OVERHEADS
B6: There are TWO tables on this worksheet. Each has been grouped (and sub-grouped) for ease of navigation. See the Instructions sheet on how to group or ungroup tables.
B8: 2.10.1 - NETWORK OVERHEADS EXPENDITURE
D9: EXPENDITURE ($0's)
D10: =CRY -> 2015-16
B11: NETWORK OVERHEADS
B12: Standard Control Services | C12: Network management | D12: 0
C13: Network planning | D13: 2134980.06
C14: Network control and operational switching | D14: 4435893.23
C15: Quality and standard functions | D15: 671319.45
C16: Project governance and related functions | D16: 0
D17: 0
C18: Regulatory Operations | D18: 4526500.77
C19: National Electricity Market Operations | D19: 1323332.12
C20: Training Apprenticeship & Engineers | D20: 39233.31
C21: Customer Service | D21: 3538366.45
C22: Advertising & marketing | D22: 985423.84
C23: Business Overhead | D23: 1631726.86
C24: Restructuring Expenditure | D24: 0
C25: Recoveries | D25: -1556721.13
D27: ='[3]2.10 Overheads'!$D27 -> 
D28: ='[3]2.10 Overheads'!$D28 -> 
D29: ='[3]2.10 Overheads'!$D29 -> 
D30: ='[3]2.10 Overheads'!$D30 -> 
D31: ='[3]2.10 Overheads'!$D31 -> 
D32: ='[3]2.10 Overheads'!$D32 -> 
D33: ='[3]2.10 Overheads'!$D33 -> 
D34: ='[3]2.10 Overheads'!$D34 -> 
D35: ='[3]2.10 Overheads'!$D35 -> 
D36: ='[3]2.10 Overheads'!$D36 -> 
D37: ='[3]2.10 Overheads'!$D37 -> 
D38: ='[3]2.10 Overheads'!$D38 -> 
D39: ='[3]2.10 Overheads'!$D39 -> 
B40: Alternative Control Services | C40: Network management | D40: ='[3]2.10 Overheads'!$D40 -> 
C41: Network planning | D41: ='[3]2.10 Overheads'!$D41 -> 
C42: Network control and operational switching | D42: ='[3]2.10 Overheads'!$D42 -> 0
C43: Quality and standard functions | D43: ='[3]2.10 Overheads'!$D43 -> 
C44: Project governance and related functions | D44: ='[3]2.10 Overheads'!$D44 -> 
D45: ='[3]2.10 Overheads'!$D45 -> 
D46: ='[3]2.10 Overheads'!$D46 -> 
D47: ='[3]2.10 Overheads'!$D47 -> 0
D48: ='[3]2.10 Overheads'!$D48 -> 
D49: ='[3]2.10 Overheads'!$D49 -> 
D50: ='[3]2.10 Overheads'!$D50 -> 
D51: ='[3]2.10 Overheads'!$D51 -> 
D52: ='[3]2.10 Overheads'!$D52 -> 
D53: ='[3]2.10 Overheads'!$D53 -> 
D54: ='[3]2.10 Overheads'!$D54 -> 
D55: ='[3]2.10 Overheads'!$D55 -> 
D56: ='[3]2.10 Overheads'!$D56 -> 
D57: ='[3]2.10 Overheads'!$D57 -> 
D58: ='[3]2.10 Overheads'!$D58 -> 
D59: ='[3]2.10 Overheads'!$D59 -> 
D60: ='[3]2.10 Overheads'!$D60 -> 
D61: ='[3]2.10 Overheads'!$D61 -> 
D62: ='[3]2.10 Overheads'!$D62 -> 
D63: ='[3]2.10 Overheads'!$D63 -> 
D64: ='[3]2.10 Overheads'!$D64 -> 
D65: ='[3]2.10 Overheads'!$D65 -> 
D66: ='[3]2.10 Overheads'!$D66 -> 
D67: ='[3]2.10 Overheads'!$D67 -> 
B68: Negotiated Services | C68: Total | D68: ='[3]2.10 Overheads'!$D68 -> 
B69: Unregulated Services | C69: Total | D69: ='[3]2.10 Overheads'!$D69 -> 
B71: CAPITALISED NETWORK OVERHEADS
B72: Standard Control Services | C72: Network management | D72: ='[3]2.10 Overheads'!$D72 -> 
C73: Network planning | D73: ='[3]2.10 Overheads'!$D73 -> 
C74: Network control and operational switching | D74: ='[3]2.10 Overheads'!$D74 -> 
C75: Quality and standard functions | D75: ='[3]2.10 Overheads'!$D75 -> 
C76: Project governance and related functions | D76: ='[3]2.10 Overheads'!$D76 -> 
D77: ='[3]2.10 Overheads'!$D77 -> 
D78: ='[3]2.10 Overheads'!$D78 -> 
D79: ='[3]2.10 Overheads'!$D79 -> 
D80: ='[3]2.10 Overheads'!$D80 -> 
D81: ='[3]2.10 Overheads'!$D81 -> 
D82: ='[3]2.10 Overheads'!$D82 -> 
D83: ='[3]2.10 Overheads'!$D83 -> 
D84: ='[3]2.10 Overheads'!$D84 -> 
D85: ='[3]2.10 Overheads'!$D85 -> 
D86: ='[3]2.10 Overheads'!$D86 -> 
D87: ='[3]2.10 Overheads'!$D87 -> 
D88: ='[3]2.10 Overheads'!$D88 -> 
D89: ='[3]2.10 Overheads'!$D89 -> 
D90: ='[3]2.10 Overheads'!$D90 -> 
D91: ='[3]2.10 Overheads'!$D91 -> 
D92: ='[3]2.10 Overheads'!$D92 -> 
D93: ='[3]2.10 Overheads'!$D93 -> 
D94: ='[3]2.10 Overheads'!$D94 -> 
D95: ='[3]2.10 Overheads'!$D95 -> 
D96: ='[3]2.10 Overheads'!$D96 -> 
D97: ='[3]2.10 Overheads'!$D97 -> 
D98: ='[3]2.10 Overheads'!$D98 -> 
D99: ='[3]2.10 Overheads'!$D99 -> 
B104: 2.10.2 - CORPORATE OVERHEADS EXPENDITURE
D105: EXPENDITURE ($0's)
D106: =CRY -> 2015-16
B107: CORPORATE OVERHEADS
B108: Standard Control Services | C108: Corporate Accounts
C109: Core Systems Replacement Program | D109: -285703.1497
C110: Property & Security | D110: 547088.7002
C111: Executive | D111: -24095.64284
C112: Regulatory Corporate | D112: 213544.0375
C113: Legal & Secretariat Division | D113: 297747.9865
C114: Business Systems Division | D114: 1486097.59
C115: People & Performance | D115: 326442.7291
C116: Corporate Finance | D116: 1021032.316
C117: Accounts Payable | D117: 45523.98157
C118: Environment, Health, Safety, & Quality (EHSQ) | D118: 451441.073
C119: Contracts & Procurement | D119: 228784.1546
C120: Storage and Warehouse | D120: 513666.2395
B129: Alternative Control Services | C129: Corporate Accounts
C130: Core Systems Replacement Program | D130: -144798.8648
C131: Property & Security | D131: 277273.1866
C132: Executive | D132: -12212.05203
C133: Regulatory Corporate | D133: 108227.488
C134: Legal & Secretariat Division | D134: 150903.3781
C135: Business Systems Division | D135: 753177.7097
C136: People & Performance | D136: 165446.3265
C137: Corporate Finance | D137: 517475.2901
C138: Accounts Payable | D138: 23072.27225
C139: Environment, Health, Safety, & Quality (EHSQ) | D139: 228797.4597
C140: Contracts & Procurement | D140: 115951.4199
C141: Storage and Warehouse | D141: 260334.1561
B150: Negotiated Services | C150: Total
B151: Unregulated Services | C151: Total | D151: 565845
B153: CAPITALISED CORPORATE OVERHEADS
B154: Standard Control Services | C154: Corporate Accounts
C155: Core Systems Replacement Program | D155: -788144.8168
C156: Property & Security | D156: 1509206.755
C157: Executive | D157: -66470.58681
C158: Regulatory Corporate | D158: 589085.6523
C159: Legal & Secretariat Division | D159: 821371.8766
C160: Business Systems Division | D160: 4099570.178
C161: People & Performance | D161: 900529.6062
C162: Corporate Finance | D162: 2816634.428
C163: Accounts Payable | D163: 125583.1101
C164: Environment, Health, Safety, & Quality (EHSQ) | D164: 1245351.835
C165: Contracts & Procurement | D165: 631127.2584
C166: Storage and Warehouse | D166: 1417007.074

Sheet 2.11 Labour
B1: REGULATORY REPORTING STATEMENT
B2: =INDEX(dms_TradingNameFull_List,MATCH(dms_TradingName,dms_TradingName_List)) -> ActewAGL Distribution
B3: =CONCATENATE((LOOKUP(dms_Model,dms_Model_List,dms_Worksheet_List))&" "&CRY) -> CATEGORY ANALYSIS 2015-16
B4: 2.11 LABOUR
B6: There are TWO tables on this worksheet. Each has been grouped for ease of navigation. See the Instructions sheet on how to group or ungroup tables.
B8: 2.11.1 - COST METRICS PER ANNUM
D9: ASL (0's) | E9: TOTAL LABOUR EXPENDITURE ($0's) | F9: AVERAGE PRODUCTIVE WORK HOURS PER ASL (0's) | G9: STAND-DOWN OCCURENCES PER ASL (0's)
D11: =CRY -> 2015-16 | E11: =CRY -> 2015-16 | F11: =CRY -> 2015-16 | G11: =CRY -> 2015-16
B12: INTERNAL LABOUR EXPENDITURE
B13: CORPORATE OVERHEADS | C13: Executive manager | D13: 3.81 | E13: 1781313 | F13: 1646.4 | G13: 0
C14: Senior manager | D14: 4.25 | E14: 1075595 | F14: 1646.4 | G14: 0
C15: Manager | D15: 13.25 | E15: 2395823 | F15: 1646.4 | G15: 0
C16: Professional | D16: 21.98 | E16: 3347519 | F16: 1646.4 | G16: 0
C17: Semi professional | D17: 23.24 | E17: 3025961 | F17: 1646.4 | G17: 0
C18: Support staff | D18: 5.25 | E18: 554006 | F18: 1646.4 | G18: 0
C19: Intern, junior staff, apprentice
B20: NETWORK OVERHEADS | C20: Executive manager | D20: 0.8954748465 | E20: 752322.2364 | F20: 1299 | G20: 0
C21: Senior manager | D21: 5.136089572 | E21: 1629216.241 | F21: 1299 | G21: 0
C22: Manager | D22: 31.22018119 | E22: 6423807.577 | F22: 1275.756532 | G22: 0
C23: Professional | D23: 33.51162746 | E23: 5260080.582 | F23: 1147.359443 | G23: 0
C24: Semi professional | D24: 13.34011852 | E24: 1862026.947 | F24: 1127.65464 | G24: 0
C25: Support staff | D25: 66.58100892 | E25: 7566749.385 | F25: 1292.001048 | G25: 0
C26: Intern, junior staff, apprentice | D26: 2.752665144 | E26: 217071.8348 | F26: 811.8891266 | G26: 0
B27: TOTAL DIRECT NETWORK LABOUR | C27: Skilled electrical worker | D27: 129.4173306 | E27: 19139914.97 | F27: 1178.373158 | G27: 11.86858046
C28: Skilled non electical worker | D28: 0 | E28: 0 | F28: 0 | G28: 0
C29: Apprentice | D29: 7.725617237 | E29: 718019.942 | F29: 1110.487869 | G29: 10.09628067
C30: Unskilled worker | D30: 43.20972497 | E30: 4566732.188 | F30: 1159.690028 | G30: 21.30886046
B33: 2.11.2 - DESCRIPTOR METRICS
D34: ORDINARY TIME (0's) | F34: OVERTIME (0's)
D35: PER ASL | E35: HOURLY RATE PER ASL | F35: PER ASL | G35: HOURLY RATE PER ASL
D36: =CRY -> 2015-16 | E36: =CRY -> 2015-16 | F36: =CRY -> 2015-16 | G36: =CRY -> 2015-16
B37: AVERAGE PRODUCTIVE WORK HOURS PER ASL
B38: CORPORATE OVERHEADS | C38: Executive manager | D38: 1646.4 | E38: 283.6665276 | F38: 0 | G38: 0
C39: Senior manager | D39: 1646.4 | E39: 153.626434
C40: Manager | D40: 1646.4 | E40: 109.8113389 | F40: 0 | G40: 0
C41: Professional | D41: 1646.4 | E41: 92.4860823 | F41: 0 | G41: 0
C42: Semi professional | D42: 1646.4 | E42: 79.09134536 | F42: 0 | G42: 0
C43: Support staff | D43: 1646.4 | E43: 64.06779327 | F43: 0 | G43: 0
C44: Intern, junior staff, apprentice
B45: NETWORK OVERHEADS | C45: Executive manager | D45: 1299 | E45: 646.7573251 | F45: 0 | G45: 0
C46: Senior manager | D46: 1299 | E46: 244.1951255 | F46: 0 | G46: 0
C47: Manager | D47: 1275.756532 | E47: 161.2832639 | F47: 20.25644874 | G47: 115.3316994
C48: Professional | D48: 1147.359443 | E48: 136.8035552 | F48: 30.92598237 | G48: 97.84325247
C49: Semi professional | D49: 1127.65464 | E49: 123.77991 | F49: 33.46521992 | G49: 101.6859306
C50: Support staff | D50: 1292.001048 | E50: 87.96220598 | F50: 71.60375123 | G50: 79.54136908
C51: Intern, junior staff, apprentice | D51: 811.8891266 | E51: 97.12999546 | F51: 142.5745521 | G51: 79.83791979
B52: TOTAL DIRECT NETWORK LABOUR | C52: Skilled electrical worker | D52: 1178.373158 | E52: 125.5060685 | F52: 263.956843 | G52: 96.68252071
C53: Skilled non electical worker | D53: 0 | E53: 0 | F53: 0 | G53: 0
C54: Apprentice | D54: 1110.487869 | E54: 83.69307027 | F54: 141.0502186 | G54: 68.51366431
C55: Unskilled worker | D55: 1159.690028 | E55: 91.13435384 | F55: 183.4790665 | G55: 74.26001125

Sheet 2.12 Input tables
B1: REGULATORY REPORTING STATEMENT
B2: =INDEX(dms_TradingNameFull_List,MATCH(dms_TradingName,dms_TradingName_List)) -> ActewAGL Distribution
B3: =CONCATENATE((LOOKUP(dms_Model,dms_Model_List,dms_Worksheet_List))&" "&CRY) -> CATEGORY ANALYSIS 2015-16
B4: 2.12 INPUT TABLES
B6: There is ONE table on this worksheet. It has been sub-grouped for ease of navigation. See the Instructions sheet on how to group or ungroup tables.
B8: 2.12.1 - INPUT TABLES
D9: DIRECT MATERIAL EXPENDITURE | E9: DIRECT LABOUR EXPENDITURE | F9: CONTRACT EXPENDITURE | G9: OTHER EXPENDITURE | H9: RELATED PARTY CONTRACT EXPENDITURE | I9: RELATED PARTY CONTRACT MARGIN EXPENDITURE
D10: EXPENDITURE ($0's)
D11: =CRY -> 2015-16 | E11: 2015-16 | F11: 2015-16 | G11: 2015-16 | H11: 2015-16 | I11: 2015-16
B12: VEGETATION MANAGEMENT | C12: ='2.7 Vegetation management'!B15 -> ZONE 1 | D12: 641.58 | E12: 830207.79 | F12: 125365.63 | G12: 339906.46
C13: ='2.7 Vegetation management'!B21 -> ZONE 2 | D13: 705.6 | E13: 39713.61 | F13: 828010.98 | G13: 12537.96
C14: ='2.7 Vegetation management'!B27 -> ZONE 3
C15: ='2.7 Vegetation management'!B33 -> ZONE 4
C16: ='2.7 Vegetation management'!B39 -> ZONE 5
C17: ='2.7 Vegetation management'!B45 -> ZONE 6
C18: ='2.7 Vegetation management'!B51 -> ZONE 7
C19: ='2.7 Vegetation management'!B57 -> ZONE 8
C20: ='2.7 Vegetation management'!B63 -> ZONE 9
C21: ='2.7 Vegetation management'!B69 -> ZONE 10
C22: ='2.7 Vegetation management'!B75 -> ZONE 11
C23: ='2.7 Vegetation management'!B81 -> ZONE 12
C24: ='2.7 Vegetation management'!B87 -> ZONE 13
C25: ='2.7 Vegetation management'!B93 -> ZONE 14
C26: ='2.7 Vegetation management'!B99 -> ZONE 15
C27: ='2.7 Vegetation management'!B105 -> ZONE 16
C28: ='2.7 Vegetation management'!B111 -> ZONE 17
C29: ='2.7 Vegetation management'!B117 -> ZONE 18
B30: ROUTINE MAINTENANCE | C30: Pole top, overhead line & service line maintenance | D30: 1118.08 | E30: 46076.8 | F30: 5746.86 | G30: 17827.65
C31: Pole inspection and treatment | D31: 61557.26 | E31: 1333663.78 | F31: 6956.42 | G31: 541812.96
C32: Overhead asset inspection | D32: 918.29 | E32: 170327.07 | F32: 77566.43 | G32: 63986.76
C33: Network underground cable maintenance | D33: 434.02 | E33: 19913.83 | F33: 1440 | G33: 5714.86
C34: Distribution substation equipment & property maintenance | D34: 46989.69 | E34: 517878.66 | F34: 197439.64 | G34: 215647.67
C35: Zone substation equipment maintenance | D35: 47473.63 | E35: 531412.96 | F35: 198162.72 | G35: 197713.44
C36: Zone substation property maintenance | D36: 827.07 | E36: 97166.51 | F36: 3919.94 | G36: 472166.9
C37: Public lighting maintenance | D37: 0 | E37: 0 | F37: 0 | G37: 0
C38: Scada & network control maintenance | D38: 177 | E38: 26655.25 | F38: 29666.33 | G38: 9848.85
C39: Protection systems maintenance | D39: 8411.35 | E39: 469047.79 | F39: 4541.84 | G39: 164382.86
C40: Subtransmission asset maintenance - for dnsps with dual function assets | D40: 7743.84 | E40: 25553.5 | F40: 22394.57 | G40: 10117.63
C41: Other | D41: 0 | E41: 0 | F41: 0 | G41: 0
B42: NON-ROUTINE MAINTENANCE | C42: Pole top, overhead line & service line maintenance | D42: 59536.18 | E42: 635574.45 | F42: 101602.54 | G42: 238982.78
C43: Pole inspection and treatment | D43: 0 | E43: 0 | F43: 0 | G43: 0
C44: Overhead asset inspection | D44: 0 | E44: 0 | F44: 0 | G44: 0
C45: Network underground cable maintenance | D45: 145031.38 | E45: 829489.76 | F45: 199427.92 | G45: 298531.62
C46: Distribution substation equipment & property maintenance | D46: 38403.75 | E46: 177970.09 | F46: 41616.25 | G46: 66924.42
C47: Zone substation equipment maintenance | D47: 32075.94 | E47: 78023.16 | F47: 25522.92 | G47: 40865.21
C48: Zone substation property maintenance | D48: 0 | E48: 0 | F48: 0 | G48: 0
C49: Public lighting maintenance | D49: 0 | E49: 0 | F49: 0 | G49: 0
C50: SCADA & network control maintenance | D50: 0 | E50: 18705.81 | F50: 413.75 | G50: 6983.37
C51: Protection systems maintenance | D51: 8980 | E51: 17412.97 | F51: 0 | G51: 5802.79
C52: Subtransmission asset maintenance - for DNSP with dual function assets | D52: 0 | E52: 6072.31 | F52: 517.5 | G52: 2346.53
C53: Other | D53: 0 | E53: 0 | F53: 0 | G53: 0
B54: OVERHEADS | C54: Network overheads | D54: 34901.93 | E54: 9253521.81 | F54: 1894082.3 | G54: 6547548.92
C55: Corporate overheads | D55: 27968.44467 | E55: 12843292.69 | F55: 2080488.383 | G55: 6180165.372
B56: AUGMENTATION | C56: Subtransmission substations, switching stations, zone substations | D56: 31220.86 | E56: 188703.88 | F56: 89062.12 | G56: 50403.05
C57: Subtransmission lines | D57: 93942.9 | E57: 381860.68 | F57: 2328867.77 | G57: 355763.4
C58: HV feeders | D58: 128715.84 | E58: 85399.77 | F58: 122008 | G58: 20007.48
C59: Distribution substations | D59: 0 | E59: 0 | F59: 0 | G59: 0
C60: LV feeders | D60: 0 | E60: 0 | F60: 0 | G60: 0
C61: Other assets | D61: 0 | E61: 7935.08 | F61: 55840 | G61: 1983.78
B62: CONNECTIONS | C62: Simple and complex customer connections | D62: 6367953.61 | E62: 5430632.81 | F62: 4581092.67 | G62: 1902012.63
B63: EMERGENCY RESPONSE | C63: Major storms | D63: 93519.19 | E63: 1219754.1 | F63: 129334.96 | G63: 449540.97
C64: Major event days
B65: PUBLIC LIGHTING | C65: All public lighting services | D65: 0 | E65: 0 | F65: 0 | G65: 0
B66: METERING | C66: All metering services | D66: 794968.3 | E66: 1774730.34 | F66: 1815117.6 | G66: 612401.28
B67: FEE-BASED SERVICES | C67: All fee-based services | D67: 183291.1 | E67: 1871484.71 | F67: 122100.09 | G67: 722921.45
B68: QUOTED SERVICES | C68: All quoted services | D68: 387103.59 | E68: 1081538.93 | F68: 1138024.9 | G68: 305560.29
B69: REPLACEMENT | C69: Poles | D69: 1653177.37 | E69: 2819861.17 | F69: 1793337.76 | G69: 1142106.96
C70: Pole top structures | D70: 232088.13 | E70: 951176.27 | F70: 108809.76 | G70: 385450.54
C71: Overhead conductors | D71: 16824.33 | E71: 70191.09 | F71: 10951.65 | G71: 28744.13
C72: Underground cables | D72: 209282.3 | E72: 499464.21 | F72: 968436.04 | G72: 185402.16
C73: Service lines | D73: 41540.98 | E73: 236373.89 | F73: 25524.85 | G73: 90567.27
C74: Transformers | D74: 433059.2 | E74: 245957.06 | F74: 191475.34 | G74: 68711.29
C75: Switchgear | D75: 755323.59 | E75: 739992.53 | F75: 265580.1 | G75: 263333.32
C76: Public lighting | D76: 0 | E76: 0 | F76: 0 | G76: 0
C77: SCADA network control and protection systems | D77: 397112.58 | E77: 620509.67 | F77: 475350.92 | G77: 224218.49
C78: Other | D78: 103281.49 | E78: 271895.54 | F78: 292137.84 | G78: 241010.04
B79: NON-NETWORK EXPENDITURE | C79: IT and communications | D79: 74021.77 | E79: 2364398.89 | F79: 14166411.27 | G79: 285341.18
C80: Motor vehicles | D80: 631565.78 | E80: 0 | F80: 0 | G80: 2278391.57
C81: Buildings and property | D81: 1251 | E81: 167201.96 | F81: 950400.15 | G81: 1196562.52
C82: Other | D82: 497227.95 | E82: 0 | F82: 0 | G82: 1398973.553

Sheet 4.1 Public lighting
B1: REGULATORY REPORTING STATEMENT
B2: =INDEX(dms_TradingNameFull_List,MATCH(dms_TradingName,dms_TradingName_List)) -> ActewAGL Distribution
B3: =CONCATENATE((LOOKUP(dms_Model,dms_Model_List,dms_Worksheet_List))&" "&CRY) -> CATEGORY ANALYSIS 2015-16
B4: 4.1 PUBLIC LIGHTING
B7: There are THREE tables on this worksheet. Each has been grouped for ease of navigation. See the Instructions sheet on how to group or ungroup tables.
B9: 4.1.1 - DESCRIPTOR METRICS OVER YEAR
C10: LIGHT TYPE | E10: VOLUME (0's)
E11: =CRY -> 2015-16
B12: POPULATION OF LIGHTS | C12: DNSP to enter description for type of light
B116: 4.1.2 - DESCRIPTOR METRICS ANNUALLY
E119: VOLUMES & EXPENDITURE
B120: SERVICE/SERVICE QUALITY | C120: DESCRIPTOR METRIC | D120: UNITS | E120: =CRY -> 2015-16
B121: LIGHT INSTALLATION | C121: Major road light installation | D121: 0's
C122: Minor road light installation | D122: 0's
C123: Number of poles installed | D123: 0's
C124: Total cost | D124: $0s
B125: LIGHT REPLACEMENT | C125: Major road light replacement | D125: 0's
C126: Minor road light replacement | D126: 0's
C127: Number of poles replaced | D127: 0's
C128: Total cost | D128: $0s
B129: LIGHT MAINTENANCE | C129: Major road light maintenance | D129: 0's
C130: Minor road light maintenance | D130: 0's
C131: Number of poles installed | D131: 0's
C132: Total cost | D132: $0s
B133: QUALITY OF SUPPLY | C133: Mean days to rectify/replace public lighting assets | D133: days
C134: GSO breaches | D134: 0's
C135: GSL payments | D135: $0s
C136: Customer complaints | D136: 0's
B139: 4.1.3 - COST METRICS
E140: AVERAGE UNIT COST ($)
B141: ACTIVITY TYPE | C141: LIGHT TYPE | E141: =CRY -> 2015-16
B142: LIGHT INSTALLATION | C142: DNSP to enter description for type of light
B172: LIGHT REPLACEMENT | C172: DNSP to enter description for type of light
B202: LIGHT MAINTENANCE | C202: DNSP to enter description for type of light

Sheet 4.2 Metering
B1: REGULATORY REPORTING STATEMENT
B2: =INDEX(dms_TradingNameFull_List,MATCH(dms_TradingName,dms_TradingName_List)) -> ActewAGL Distribution
B3: =CONCATENATE((LOOKUP(dms_Model,dms_Model_List,dms_Worksheet_List))&" "&CRY) -> CATEGORY ANALYSIS 2015-16
B4: 4.2 METERING
B6: There are TWO tables on this worksheet. Each has been grouped for ease of navigation. See the Instructions sheet on how to group or ungroup tables.
B8: 4.2.1 - METERING DESCRIPTOR METRIC
D9: VOLUMES (0's)
B10: ASSET CATEGORY | C10: ASSET SUBCATEGORY | D10: =CRY -> 2015-16
B11: Meter Type 4 | C11: Single phase meter population | D11: 0
C12: Multi phase meter population | D12: 0
C13: Current transformer connected meter population | D13: 0
C14: Direct connect meter population | D14: 0
B15: Meter Type 5 | C15: Single phase meter population | D15: 62425
C16: Multi phase meter population | D16: 21675
C17: Current transformer connected meter population | D17: 1714
C18: Direct connect meter population | D18: 82386
B19: Meter Type 6 | C19: Single phase meter population | D19: 86630
C20: Multi phase meter population | D20: 35322
C21: Current transformer connected meter population | D21: 0
C22: Direct connect meter population | D22: 121952
B25: 4.2.2 - COST METRICS
D26: VOLUMES (0's) | E26: EXPENDITURE ($0's)
B27: SERVICE SUBCATEGORY | C27: METER TYPE | D27: =CRY -> 2015-16 | E27: =CRY -> 2015-16
B28: Meter purchase | C28: Meter Type 4 | D28: 0 | E28: 0
C29: Meter Type 5 | D29: 1320 | E29: 232939.6996
C30: Meter Type 6 | D30: 0 | E30: 0
B31: Meter testing | C31: Meter Type 4 | D31: 0 | E31: 0
C32: Meter Type 5 | D32: 0 | E32: 0
C33: Meter Type 6 | D33: 894 | E33: 241470.7253
B34: Meter investigation | C34: Meter Type 4 | D34: 0 | E34: 0
C35: Meter Type 5 | D35: 0 | E35: 0
C36: Meter Type 6 | D36: 590 | E36: 159359.8747
B37: Scheduled meter reading | C37: Meter Type 4 | D37: 0
C38: Meter Type 5 | D38: 16479 | E38: 342598.41
C39: Meter Type 6 | D39: 782021 | E39: 648895.57
B40: Special meter reading | C40: Meter Type 4 | D40: 0 | E40: 0
C41: Meter Type 5 | D41: 344 | E41: 20051.76
C42: Meter Type 6 | D42: 83273 | E42: 527950.82
B43: New meter installation | C43: Meter Type 4 | D43: 0 | E43: 0
C44: Meter Type 5 | D44: 15 | E44: 14090.25
C45: Meter Type 6 | D45: 2196 | E45: 1532857.21
B46: Meter replacement | C46: Meter Type 4 | D46: 0
C47: Meter Type 5 | D47: 9 | E47: 8454.15
C48: Meter Type 6 | D48: 2232 | E48: 534540.57
B49: Meter maintenance | C49: Meter Type 4 | D49: 0 | E49: 0
C50: Meter Type 5 | D50: 0 | E50: 0
C51: Meter Type 6 | D51: 0 | E51: 0
B52: Remote meter reading | C52: Meter Type 4 | D52: 0
B53: Remote meter re-configuration | C53: Meter Type 4 | D53: 0
B54: Other metering | C54: Meter Type 4
C55: Meter Type 5
C56: Meter Type 6 | E56: 966948.18
C57: Meter Type 7
B58: IT infrastructure capex | C58: Meter Type 4
B59: IT infrastructure opex | C59: Meter Type 4
B60: Communications infrastructure capex | C60: Meter Type 4
B61: Communications infrastructure opex | C61: Meter Type 4

Sheet 4.3 Fee-based services
B1: REGULATORY REPORTING STATEMENT
B2: =INDEX(dms_TradingNameFull_List,MATCH(dms_TradingName,dms_TradingName_List)) -> ActewAGL Distribution
B3: =CONCATENATE((LOOKUP(dms_Model,dms_Model_List,dms_Worksheet_List))&" "&CRY) -> CATEGORY ANALYSIS 2015-16
B4: 4.3 ANCILLARY SERVICES - FEE BASED SERVICES
B6: 4.3.1 - COST METRICS FOR FEE-BASED SERVICES
D7: EXPENDITURE ($0's) | F7: VOLUMES (0's)
B8: SERVICE | C8: SERVICE SUBCATEGORY | D8: =CRY -> 2015-16 | F8: =CRY -> 2015-16
B9: Premise Re-energisation – Existing Network Connection | C9: Re-energise premise – Business Hours | D9: 817194.35 | E9: ED_FEE431_00001 | F9: 9801
B10: Premise Re-energisation – Existing Network Connection | C10: Re-energise premise – After Hours | D10: 0 | E10: ED_FEE431_00002 | F10: 466
B11: Premise Re-energisation – Existing Network Connection | C11: Re-energise premise – Non payment | D11: 0 | E11: ED_FEE431_00003 | F11: 0
B12: Premise De-energisation – Existing Network Connection | C12: De-energise premise – Business Hours | D12: 246123.23 | E12: ED_FEE431_00004 | F12: 4109
B13: Premise De-energisation – Existing Network Connection | C13: De-energise premise for debt non-payment | D13: 87018.25 | E13: ED_FEE431_00005 | F13: 621
B14: Temporary Network Connections | C14: Temporary Builders’ Supply – Overhead (Business Hours) | D14: 319138.51 | E14: ED_FEE431_00010 | F14: 183
B15: Temporary Network Connections | C15: Temporary Builders’ Supply – Underground (Business Hours) | D15: 0 | E15: ED_FEE431_00011 | F15: 34
B16: Temporary De-energisation | C16: Temporary de-energisation – LV (Business Hours) | D16: 64073.8 | E16: ED_FEE431_00013 | F16: 3
B17: Temporary De-energisation | C17: Temporary de-energisation – HV (Business Hours) | D17: 0 | E17: ED_FEE431_00014 | F17: 1
B18: Network Connection Alterations and Additions | C18: Overhead Service Relocation – Single Visit (Business Hours) | D18: 940236.74 | E18: ED_FEE431_00015 | F18: 279
B19: Network Connection Alterations and Additions | C19: Underground Service Relocation – Single Visit (Business Hours) | D19: 0 | E19: ED_FEE431_00016 | F19: 127
B20: Miscellaneous Customer Initiated Services | C20: Install & Remove Tiger Tails – Establishment (Business Hours) | D20: 62021.34 | E20: ED_FEE431_00017 | F20: 31
B21: Miscellaneous Customer Initiated Services | C21: Install & Remove Warning Flags – Installation (Business Hours) | D21: 0 | E21: ED_FEE431_00018 | F21: 0
B22: Embedded Generation - Operational & Maintenance Fees | C22: Embedded Generation - Operational & Maintenance Fees | D22: 0 | E22: ED_FEE431_00019 | F22: 0
B23: Connection Enquiry Processing - PV Installations* | C23: Connection Enquiry Processing - PV Installations* | D23: 290369.77 | E23: ED_FEE431_00020 | F23: 28
B24: Network Design & Investigation / Analysis Services - PV Installations | C24: Network Design & Investigation / Analysis Services - PV Installations | D24: 0 | E24: ED_FEE431_00021 | F24: 0
B25: Rescheduled Site Visits | C25: Rescheduled Site Visits | D25: 126.42 | E25: ED_FEE431_00022 | F25: 332
B26: Issue of copies of electrical drawings | C26: Issue of copies of electrical drawings | D26: 0 | E26: ED_FEE431_00023 | F26: 0
B27: Meter Investigations | C27: Meter Test (Whole Current) – Business Hours | D27: 73494.94 | E27: ED_FEE431_00024 | F27: 7
B28: Special Meter Reads | C28: Special Meter Reads | D28: 0 | E28: ED_FEE431_00024 | F28: 34443
E29: ED_FEE431_00021
E30: ED_FEE431_00022
E31: ED_FEE431_00023
E32: ED_FEE431_00024
E33: ED_FEE431_00025
E34: ED_FEE431_00026
E35: ED_FEE431_00027
E36: ED_FEE431_00028
E37: ED_FEE431_00029
E38: ED_FEE431_00030
E39: ED_FEE431_00031
E40: ED_FEE431_00032
E41: ED_FEE431_00033
E42: ED_FEE431_00034
E43: ED_FEE431_00035
E44: ED_FEE431_00036
E45: ED_FEE431_00037
E46: ED_FEE431_00038
E47: ED_FEE431_00039
E48: ED_FEE431_00040
E49: ED_FEE431_00041
E50: ED_FEE431_00042
E51: ED_FEE431_00043
E52: ED_FEE431_00044
E53: ED_FEE431_00045
E54: ED_FEE431_00046
E55: ED_FEE431_00047
E56: ED_FEE431_00048
E57: ED_FEE431_00049
E58: ED_FEE431_00050
E59: ED_FEE431_00051
E60: ED_FEE431_00052
E61: ED_FEE431_00053
E62: ED_FEE431_00054
E63: ED_FEE431_00055
E64: ED_FEE431_00056
E65: ED_FEE431_00057
E66: ED_FEE431_00058
E67: ED_FEE431_00059
E68: ED_FEE431_00060
E69: ED_FEE431_00061
E70: ED_FEE431_00062
E71: ED_FEE431_00063
E72: ED_FEE431_00064
E73: ED_FEE431_00065
E74: ED_FEE431_00066
E75: ED_FEE431_00067
E76: ED_FEE431_00068
E77: ED_FEE431_00069
E78: ED_FEE431_00070
E79: ED_FEE431_00071
E80: ED_FEE431_00072
E81: ED_FEE431_00073
E82: ED_FEE431_00074
E83: ED_FEE431_00075
E84: ED_FEE431_00076
E85: ED_FEE431_00077
E86: ED_FEE431_00078
E87: ED_FEE431_00079
E88: ED_FEE431_00080
E89: ED_FEE431_00081
E90: ED_FEE431_00082
E91: ED_FEE431_00083
E92: ED_FEE431_00084
E93: ED_FEE431_00085
E94: ED_FEE431_00086
E95: ED_FEE431_00087
E96: ED_FEE431_00088
E97: ED_FEE431_00089
E98: ED_FEE431_00090
E99: ED_FEE431_00091
E100: ED_FEE431_00092
E101: ED_FEE431_00093
E102: ED_FEE431_00094
E103: ED_FEE431_00095
E104: ED_FEE431_00096
E105: ED_FEE431_00097
E106: ED_FEE431_00098
E107: ED_FEE431_00099
E108: ED_FEE431_00100
E109: ED_FEE431_00101
E110: ED_FEE431_00102
E111: ED_FEE431_00103
E112: ED_FEE431_00104
E113: ED_FEE431_00105
E114: ED_FEE431_00106
E115: ED_FEE431_00107
E116: ED_FEE431_00108
E117: ED_FEE431_00109
E118: ED_FEE431_00110
E119: ED_FEE431_00111
E120: ED_FEE431_00112
E121: ED_FEE431_00113
E122: ED_FEE431_00114
E123: ED_FEE431_00115
E124: ED_FEE431_00116
E125: ED_FEE431_00117
E126: ED_FEE431_00118
E127: ED_FEE431_00119
E128: ED_FEE431_00120
E129: ED_FEE431_00121
E130: ED_FEE431_00122
E131: ED_FEE431_00123
E132: ED_FEE431_00124
E133: ED_FEE431_00125
E134: ED_FEE431_00126
E135: ED_FEE431_00127
E136: ED_FEE431_00128
E137: ED_FEE431_00129
E138: ED_FEE431_00130
E139: ED_FEE431_00131
E140: ED_FEE431_00132
E141: ED_FEE431_00133
E142: ED_FEE431_00134
E143: ED_FEE431_00135
E144: ED_FEE431_00136
E145: ED_FEE431_00137
E146: ED_FEE431_00138
E147: ED_FEE431_00139
E148: ED_FEE431_00140
E149: ED_FEE431_00141
E150: ED_FEE431_00142
E151: ED_FEE431_00143
E152: ED_FEE431_00144
E153: ED_FEE431_00145
E154: ED_FEE431_00146
E155: ED_FEE431_00147
E156: ED_FEE431_00148
E157: ED_FEE431_00149
E158: ED_FEE431_00150
E159: ED_FEE431_00151
E160: ED_FEE431_00152
E161: ED_FEE431_00153
E162: ED_FEE431_00154
E163: ED_FEE431_00155
E164: ED_FEE431_00156
E165: ED_FEE431_00157
E166: ED_FEE431_00158
E167: ED_FEE431_00159
E168: ED_FEE431_00160
E169: ED_FEE431_00161
E170: ED_FEE431_00162
E171: ED_FEE431_00163
E172: ED_FEE431_00164
E173: ED_FEE431_00165
E174: ED_FEE431_00166
E175: ED_FEE431_00167
E176: ED_FEE431_00168
E177: ED_FEE431_00169
E178: ED_FEE431_00170
E179: ED_FEE431_00171
E180: ED_FEE431_00172
E181: ED_FEE431_00173
E182: ED_FEE431_00174
E183: ED_FEE431_00175
E184: ED_FEE431_00176
E185: ED_FEE431_00177
E186: ED_FEE431_00178
E187: ED_FEE431_00179
E188: ED_FEE431_00180
E189: ED_FEE431_00181
E190: ED_FEE431_00182
E191: ED_FEE431_00183
E192: ED_FEE431_00184
E193: ED_FEE431_00185
E194: ED_FEE431_00186
E195: ED_FEE431_00187
E196: ED_FEE431_00188
E197: ED_FEE431_00189
E198: ED_FEE431_00190
E199: ED_FEE431_00191
E200: ED_FEE431_00192
E201: ED_FEE431_00193
... 278 more rows

Sheet 4.4 Quoted services
B1: REGULATORY REPORTING STATEMENT
B2: =INDEX(dms_TradingNameFull_List,MATCH(dms_TradingName,dms_TradingName_List)) -> ActewAGL Distribution
B3: =CONCATENATE((LOOKUP(dms_Model,dms_Model_List,dms_Worksheet_List))&" "&CRY) -> CATEGORY ANALYSIS 2015-16
B4: 4.4 ANCILLARY SERVICES - QUOTED SERVICES
B6: 4.4.1 - COST METRICS FOR QUOTED SERVICES
D7: EXPENDITURE ($0's) | F7: VOLUMES (0's)
B8: SERVICE | C8: SERVICE SUBCATEGORY | D8: =CRY -> 2015-16 | F8: =CRY -> 2015-16
B9: Quoted Services | C9: Customer Requested Shutdown | D9: 59168.71 | E9: 0 | F9: 102
C10: Protection Modification | D10: 0 | E10: ED_QUO441_00002 | F10: 0
C11: Temporary Supply | D11: 0 | E11: ED_QUO441_00003 | F11: 0
C12: Tri-gen Connection | D12: 0 | E12: ED_QUO441_00004 | F12: 0
C13: PV Installation Studies (Greater Than 200kW) | D13: 0 | E13: ED_QUO441_00005 | F13: 0
C14: PV Installation Studies (Less Than or Equal to 200kW) | D14: 0 | E14: ED_QUO441_00006 | F14: 0
C15: Miscellaneous | D15: 31735.04 | E15: ED_QUO441_00007 | F15: 42
C16: Third Party Damages | D16: 209591.56 | E16: ED_QUO441_00008 | F16: 58
C17: Termination of mains | D17: 103745.11 | E17: ED_QUO441_00009 | F17: 201
C18: Removal of Assets | D18: 155714.63 | E18: ED_QUO441_00010 | F18: 145
C19: Relocation of Assets | D19: 48859.11 | E19: ED_QUO441_00011 | F19: 4
C20: Customer Initiated Replacement | D20: 23878.51 | E20: 0 | F20: 8
C21: Relocation of Assets Capital | D21: 2279535.04 | E21: ED_QUO441_00014 | F21: 123
D139: ='[3]4.4 Quoted services'!$D139 ->  | E139: ED_QUO441_00131 | F139: ='[3]4.4 Quoted services'!$F139 -> 
D140: ='[3]4.4 Quoted services'!$D140 ->  | E140: ED_QUO441_00132 | F140: ='[3]4.4 Quoted services'!$F140 -> 
D141: ='[3]4.4 Quoted services'!$D141 ->  | E141: ED_QUO441_00133 | F141: ='[3]4.4 Quoted services'!$F141 -> 
D142: ='[3]4.4 Quoted services'!$D142 ->  | E142: ED_QUO441_00134 | F142: ='[3]4.4 Quoted services'!$F142 -> 
D143: ='[3]4.4 Quoted services'!$D143 ->  | E143: ED_QUO441_00135 | F143: ='[3]4.4 Quoted services'!$F143 -> 
D144: ='[3]4.4 Quoted services'!$D144 ->  | E144: ED_QUO441_00136 | F144: ='[3]4.4 Quoted services'!$F144 -> 
D145: ='[3]4.4 Quoted services'!$D145 ->  | E145: ED_QUO441_00137 | F145: ='[3]4.4 Quoted services'!$F145 -> 
D146: ='[3]4.4 Quoted services'!$D146 ->  | E146: ED_QUO441_00138 | F146: ='[3]4.4 Quoted services'!$F146 -> 
D147: ='[3]4.4 Quoted services'!$D147 ->  | E147: ED_QUO441_00139 | F147: ='[3]4.4 Quoted services'!$F147 -> 
D148: ='[3]4.4 Quoted services'!$D148 ->  | E148: ED_QUO441_00140 | F148: ='[3]4.4 Quoted services'!$F148 -> 
D149: ='[3]4.4 Quoted services'!$D149 ->  | E149: ED_QUO441_00141 | F149: ='[3]4.4 Quoted services'!$F149 -> 
D150: ='[3]4.4 Quoted services'!$D150 ->  | E150: ED_QUO441_00142 | F150: ='[3]4.4 Quoted services'!$F150 -> 
D151: ='[3]4.4 Quoted services'!$D151 ->  | E151: ED_QUO441_00143 | F151: ='[3]4.4 Quoted services'!$F151 -> 
D152: ='[3]4.4 Quoted services'!$D152 ->  | E152: ED_QUO441_00144 | F152: ='[3]4.4 Quoted services'!$F152 -> 
D153: ='[3]4.4 Quoted services'!$D153 ->  | E153: ED_QUO441_00145 | F153: ='[3]4.4 Quoted services'!$F153 -> 
D154: ='[3]4.4 Quoted services'!$D154 ->  | E154: ED_QUO441_00146 | F154: ='[3]4.4 Quoted services'!$F154 -> 
D155: ='[3]4.4 Quoted services'!$D155 ->  | E155: ED_QUO441_00147 | F155: ='[3]4.4 Quoted services'!$F155 -> 
D156: ='[3]4.4 Quoted services'!$D156 ->  | E156: ED_QUO441_00148 | F156: ='[3]4.4 Quoted services'!$F156 -> 
D157: ='[3]4.4 Quoted services'!$D157 ->  | E157: ED_QUO441_00149 | F157: ='[3]4.4 Quoted services'!$F157 -> 
D158: ='[3]4.4 Quoted services'!$D158 ->  | E158: ED_QUO441_00150 | F158: ='[3]4.4 Quoted services'!$F158 -> 
D159: ='[3]4.4 Quoted services'!$D159 ->  | E159: ED_QUO441_00151 | F159: ='[3]4.4 Quoted services'!$F159 -> 
D160: ='[3]4.4 Quoted services'!$D160 ->  | E160: ED_QUO441_00152 | F160: ='[3]4.4 Quoted services'!$F160 -> 
D161: ='[3]4.4 Quoted services'!$D161 ->  | E161: ED_QUO441_00153 | F161: ='[3]4.4 Quoted services'!$F161 -> 
D162: ='[3]4.4 Quoted services'!$D162 ->  | E162: ED_QUO441_00154 | F162: ='[3]4.4 Quoted services'!$F162 -> 
D163: ='[3]4.4 Quoted services'!$D163 ->  | E163: ED_QUO441_00155 | F163: ='[3]4.4 Quoted services'!$F163 -> 
D164: ='[3]4.4 Quoted services'!$D164 ->  | E164: ED_QUO441_00156 | F164: ='[3]4.4 Quoted services'!$F164 -> 
D165: ='[3]4.4 Quoted services'!$D165 ->  | E165: ED_QUO441_00157 | F165: ='[3]4.4 Quoted services'!$F165 -> 
D166: ='[3]4.4 Quoted services'!$D166 ->  | E166: ED_QUO441_00158 | F166: ='[3]4.4 Quoted services'!$F166 -> 
D167: ='[3]4.4 Quoted services'!$D167 ->  | E167: ED_QUO441_00159 | F167: ='[3]4.4 Quoted services'!$F167 -> 
D168: ='[3]4.4 Quoted services'!$D168 ->  | E168: ED_QUO441_00160 | F168: ='[3]4.4 Quoted services'!$F168 -> 
D169: ='[3]4.4 Quoted services'!$D169 ->  | E169: ED_QUO441_00161 | F169: ='[3]4.4 Quoted services'!$F169 -> 
D170: ='[3]4.4 Quoted services'!$D170 ->  | E170: ED_QUO441_00162 | F170: ='[3]4.4 Quoted services'!$F170 -> 
D171: ='[3]4.4 Quoted services'!$D171 ->  | E171: ED_QUO441_00163 | F171: ='[3]4.4 Quoted services'!$F171 -> 
D172: ='[3]4.4 Quoted services'!$D172 ->  | E172: ED_QUO441_00164 | F172: ='[3]4.4 Quoted services'!$F172 -> 
D173: ='[3]4.4 Quoted services'!$D173 ->  | E173: ED_QUO441_00165 | F173: ='[3]4.4 Quoted services'!$F173 -> 
D174: ='[3]4.4 Quoted services'!$D174 ->  | E174: ED_QUO441_00166 | F174: ='[3]4.4 Quoted services'!$F174 -> 
D175: ='[3]4.4 Quoted services'!$D175 ->  | E175: ED_QUO441_00167 | F175: ='[3]4.4 Quoted services'!$F175 -> 
D176: ='[3]4.4 Quoted services'!$D176 ->  | E176: ED_QUO441_00168 | F176: ='[3]4.4 Quoted services'!$F176 -> 
D177: ='[3]4.4 Quoted services'!$D177 ->  | E177: ED_QUO441_00169 | F177: ='[3]4.4 Quoted services'!$F177 -> 
D178: ='[3]4.4 Quoted services'!$D178 ->  | E178: ED_QUO441_00170 | F178: ='[3]4.4 Quoted services'!$F178 -> 
D179: ='[3]4.4 Quoted services'!$D179 ->  | E179: ED_QUO441_00171 | F179: ='[3]4.4 Quoted services'!$F179 -> 
D180: ='[3]4.4 Quoted services'!$D180 ->  | E180: ED_QUO441_00172 | F180: ='[3]4.4 Quoted services'!$F180 -> 
D181: ='[3]4.4 Quoted services'!$D181 ->  | E181: ED_QUO441_00173 | F181: ='[3]4.4 Quoted services'!$F181 -> 
D182: ='[3]4.4 Quoted services'!$D182 ->  | E182: ED_QUO441_00174 | F182: ='[3]4.4 Quoted services'!$F182 -> 
D183: ='[3]4.4 Quoted services'!$D183 ->  | E183: ED_QUO441_00175 | F183: ='[3]4.4 Quoted services'!$F183 -> 
D184: ='[3]4.4 Quoted services'!$D184 ->  | E184: ED_QUO441_00176 | F184: ='[3]4.4 Quoted services'!$F184 -> 
D185: ='[3]4.4 Quoted services'!$D185 ->  | E185: ED_QUO441_00177 | F185: ='[3]4.4 Quoted services'!$F185 -> 
D186: ='[3]4.4 Quoted services'!$D186 ->  | E186: ED_QUO441_00178 | F186: ='[3]4.4 Quoted services'!$F186 -> 
D187: ='[3]4.4 Quoted services'!$D187 ->  | E187: ED_QUO441_00179 | F187: ='[3]4.4 Quoted services'!$F187 -> 
D188: ='[3]4.4 Quoted services'!$D188 ->  | E188: ED_QUO441_00180 | F188: ='[3]4.4 Quoted services'!$F188 -> 
D189: ='[3]4.4 Quoted services'!$D189 ->  | E189: ED_QUO441_00181 | F189: ='[3]4.4 Quoted services'!$F189 -> 
D190: ='[3]4.4 Quoted services'!$D190 ->  | E190: ED_QUO441_00182 | F190: ='[3]4.4 Quoted services'!$F190 -> 
D191: ='[3]4.4 Quoted services'!$D191 ->  | E191: ED_QUO441_00183 | F191: ='[3]4.4 Quoted services'!$F191 -> 
D192: ='[3]4.4 Quoted services'!$D192 ->  | E192: ED_QUO441_00184 | F192: ='[3]4.4 Quoted services'!$F192 -> 
D193: ='[3]4.4 Quoted services'!$D193 ->  | E193: ED_QUO441_00185 | F193: ='[3]4.4 Quoted services'!$F193 -> 
D194: ='[3]4.4 Quoted services'!$D194 ->  | E194: ED_QUO441_00186 | F194: ='[3]4.4 Quoted services'!$F194 -> 
D195: ='[3]4.4 Quoted services'!$D195 ->  | E195: ED_QUO441_00187 | F195: ='[3]4.4 Quoted services'!$F195 -> 
D196: ='[3]4.4 Quoted services'!$D196 ->  | E196: ED_QUO441_00188 | F196: ='[3]4.4 Quoted services'!$F196 -> 
D197: ='[3]4.4 Quoted services'!$D197 ->  | E197: ED_QUO441_00189 | F197: ='[3]4.4 Quoted services'!$F197 -> 
D198: ='[3]4.4 Quoted services'!$D198 ->  | E198: ED_QUO441_00190 | F198: ='[3]4.4 Quoted services'!$F198 -> 
D199: ='[3]4.4 Quoted services'!$D199 ->  | E199: ED_QUO441_00191 | F199: ='[3]4.4 Quoted services'!$F199 -> 
D200: ='[3]4.4 Quoted services'!$D200 ->  | E200: ED_QUO441_00192 | F200: ='[3]4.4 Quoted services'!$F200 -> 
D201: ='[3]4.4 Quoted services'!$D201 ->  | E201: ED_QUO441_00193 | F201: ='[3]4.4 Quoted services'!$F201 -> 
D202: ='[3]4.4 Quoted services'!$D202 ->  | E202: ED_QUO441_00194 | F202: ='[3]4.4 Quoted services'!$F202 -> 
D203: ='[3]4.4 Quoted services'!$D203 ->  | E203: ED_QUO441_00195 | F203: ='[3]4.4 Quoted services'!$F203 -> 
D204: ='[3]4.4 Quoted services'!$D204 ->  | E204: ED_QUO441_00196 | F204: ='[3]4.4 Quoted services'!$F204 -> 
D205: ='[3]4.4 Quoted services'!$D205 ->  | E205: ED_QUO441_00197 | F205: ='[3]4.4 Quoted services'!$F205 -> 
D206: ='[3]4.4 Quoted services'!$D206 ->  | E206: ED_QUO441_00198 | F206: ='[3]4.4 Quoted services'!$F206 -> 
D207: ='[3]4.4 Quoted services'!$D207 ->  | E207: ED_QUO441_00199 | F207: ='[3]4.4 Quoted services'!$F207 -> 
D208: ='[3]4.4 Quoted services'!$D208 ->  | E208: ED_QUO441_00200 | F208: ='[3]4.4 Quoted services'!$F208 -> 
D209: ='[3]4.4 Quoted services'!$D209 ->  | E209: ED_QUO441_00201 | F209: ='[3]4.4 Quoted services'!$F209 -> 
D210: ='[3]4.4 Quoted services'!$D210 ->  | E210: ED_QUO441_00202 | F210: ='[3]4.4 Quoted services'!$F210 -> 
D211: ='[3]4.4 Quoted services'!$D211 ->  | E211: ED_QUO441_00203 | F211: ='[3]4.4 Quoted services'!$F211 -> 
D212: ='[3]4.4 Quoted services'!$D212 ->  | E212: ED_QUO441_00204 | F212: ='[3]4.4 Quoted services'!$F212 -> 
D213: ='[3]4.4 Quoted services'!$D213 ->  | E213: ED_QUO441_00205 | F213: ='[3]4.4 Quoted services'!$F213 -> 
D214: ='[3]4.4 Quoted services'!$D214 ->  | E214: ED_QUO441_00206 | F214: ='[3]4.4 Quoted services'!$F214 -> 
D215: ='[3]4.4 Quoted services'!$D215 ->  | E215: ED_QUO441_00207 | F215: ='[3]4.4 Quoted services'!$F215 -> 
D216: ='[3]4.4 Quoted services'!$D216 ->  | E216: ED_QUO441_00208 | F216: ='[3]4.4 Quoted services'!$F216 -> 
D217: ='[3]4.4 Quoted services'!$D217 ->  | E217: ED_QUO441_00209 | F217: ='[3]4.4 Quoted services'!$F217 -> 
D218: ='[3]4.4 Quoted services'!$D218 ->  | E218: ED_QUO441_00210 | F218: ='[3]4.4 Quoted services'!$F218 -> 
D219: ='[3]4.4 Quoted services'!$D219 ->  | E219: ED_QUO441_00211 | F219: ='[3]4.4 Quoted services'!$F219 -> 
D220: ='[3]4.4 Quoted services'!$D220 ->  | E220: ED_QUO441_00212 | F220: ='[3]4.4 Quoted services'!$F220 -> 
D221: ='[3]4.4 Quoted services'!$D221 ->  | E221: ED_QUO441_00213 | F221: ='[3]4.4 Quoted services'!$F221 -> 
D222: ='[3]4.4 Quoted services'!$D222 ->  | E222: ED_QUO441_00214 | F222: ='[3]4.4 Quoted services'!$F222 -> 
D223: ='[3]4.4 Quoted services'!$D223 ->  | E223: ED_QUO441_00215 | F223: ='[3]4.4 Quoted services'!$F223 -> 
D224: ='[3]4.4 Quoted services'!$D224 ->  | E224: ED_QUO441_00216 | F224: ='[3]4.4 Quoted services'!$F224 -> 
D225: ='[3]4.4 Quoted services'!$D225 ->  | E225: ED_QUO441_00217 | F225: ='[3]4.4 Quoted services'!$F225 -> 
D226: ='[3]4.4 Quoted services'!$D226 ->  | E226: ED_QUO441_00218 | F226: ='[3]4.4 Quoted services'!$F226 -> 
D227: ='[3]4.4 Quoted services'!$D227 ->  | E227: ED_QUO441_00219 | F227: ='[3]4.4 Quoted services'!$F227 -> 
D228: ='[3]4.4 Quoted services'!$D228 ->  | E228: ED_QUO441_00220 | F228: ='[3]4.4 Quoted services'!$F228 -> 
D229: ='[3]4.4 Quoted services'!$D229 ->  | E229: ED_QUO441_00221 | F229: ='[3]4.4 Quoted services'!$F229 -> 
D230: ='[3]4.4 Quoted services'!$D230 ->  | E230: ED_QUO441_00222 | F230: ='[3]4.4 Quoted services'!$F230 -> 
D231: ='[3]4.4 Quoted services'!$D231 ->  | E231: ED_QUO441_00223 | F231: ='[3]4.4 Quoted services'!$F231 -> 
D232: ='[3]4.4 Quoted services'!$D232 ->  | E232: ED_QUO441_00224 | F232: ='[3]4.4 Quoted services'!$F232 -> 
D233: ='[3]4.4 Quoted services'!$D233 ->  | E233: ED_QUO441_00225 | F233: ='[3]4.4 Quoted services'!$F233 -> 
D234: ='[3]4.4 Quoted services'!$D234 ->  | E234: ED_QUO441_00226 | F234: ='[3]4.4 Quoted services'!$F234 -> 
D235: ='[3]4.4 Quoted services'!$D235 ->  | E235: ED_QUO441_00227 | F235: ='[3]4.4 Quoted services'!$F235 -> 
D236: ='[3]4.4 Quoted services'!$D236 ->  | E236: ED_QUO441_00228 | F236: ='[3]4.4 Quoted services'!$F236 -> 
D237: ='[3]4.4 Quoted services'!$D237 ->  | E237: ED_QUO441_00229 | F237: ='[3]4.4 Quoted services'!$F237 -> 
D238: ='[3]4.4 Quoted services'!$D238 ->  | E238: ED_QUO441_00230 | F238: ='[3]4.4 Quoted services'!$F238 -> 
D239: ='[3]4.4 Quoted services'!$D239 ->  | E239: ED_QUO441_00231 | F239: ='[3]4.4 Quoted services'!$F239 -> 
D240: ='[3]4.4 Quoted services'!$D240 ->  | E240: ED_QUO441_00232 | F240: ='[3]4.4 Quoted services'!$F240 -> 
D241: ='[3]4.4 Quoted services'!$D241 ->  | E241: ED_QUO441_00233 | F241: ='[3]4.4 Quoted services'!$F241 -> 
D242: ='[3]4.4 Quoted services'!$D242 ->  | E242: ED_QUO441_00234 | F242: ='[3]4.4 Quoted services'!$F242 -> 
D243: ='[3]4.4 Quoted services'!$D243 ->  | E243: ED_QUO441_00235 | F243: ='[3]4.4 Quoted services'!$F243 -> 
D244: ='[3]4.4 Quoted services'!$D244 ->  | E244: ED_QUO441_00236 | F244: ='[3]4.4 Quoted services'!$F244 -> 
D245: ='[3]4.4 Quoted services'!$D245 ->  | E245: ED_QUO441_00237 | F245: ='[3]4.4 Quoted services'!$F245 -> 
D246: ='[3]4.4 Quoted services'!$D246 ->  | E246: ED_QUO441_00238 | F246: ='[3]4.4 Quoted services'!$F246 -> 
D247: ='[3]4.4 Quoted services'!$D247 ->  | E247: ED_QUO441_00239 | F247: ='[3]4.4 Quoted services'!$F247 -> 
D248: ='[3]4.4 Quoted services'!$D248 ->  | E248: ED_QUO441_00240 | F248: ='[3]4.4 Quoted services'!$F248 -> 
D249: ='[3]4.4 Quoted services'!$D249 ->  | E249: ED_QUO441_00241 | F249: ='[3]4.4 Quoted services'!$F249 -> 
D250: ='[3]4.4 Quoted services'!$D250 ->  | E250: ED_QUO441_00242 | F250: ='[3]4.4 Quoted services'!$F250 -> 
D251: ='[3]4.4 Quoted services'!$D251 ->  | E251: ED_QUO441_00243 | F251: ='[3]4.4 Quoted services'!$F251 -> 
D252: ='[3]4.4 Quoted services'!$D252 ->  | E252: ED_QUO441_00244 | F252: ='[3]4.4 Quoted services'!$F252 -> 
D253: ='[3]4.4 Quoted services'!$D253 ->  | E253: ED_QUO441_00245 | F253: ='[3]4.4 Quoted services'!$F253 -> 
D254: ='[3]4.4 Quoted services'!$D254 ->  | E254: ED_QUO441_00246 | F254: ='[3]4.4 Quoted services'!$F254 -> 
D255: ='[3]4.4 Quoted services'!$D255 ->  | E255: ED_QUO441_00247 | F255: ='[3]4.4 Quoted services'!$F255 -> 
D256: ='[3]4.4 Quoted services'!$D256 ->  | E256: ED_QUO441_00248 | F256: ='[3]4.4 Quoted services'!$F256 -> 
D257: ='[3]4.4 Quoted services'!$D257 ->  | E257: ED_QUO441_00249 | F257: ='[3]4.4 Quoted services'!$F257 -> 
D258: ='[3]4.4 Quoted services'!$D258 ->  | E258: ED_QUO441_00250 | F258: ='[3]4.4 Quoted services'!$F258 -> 
D259: ='[3]4.4 Quoted services'!$D259 ->  | E259: ED_QUO441_00251 | F259: ='[3]4.4 Quoted services'!$F259 -> 
D260: ='[3]4.4 Quoted services'!$D260 ->  | E260: ED_QUO441_00252 | F260: ='[3]4.4 Quoted services'!$F260 -> 
D261: ='[3]4.4 Quoted services'!$D261 ->  | E261: ED_QUO441_00253 | F261: ='[3]4.4 Quoted services'!$F261 -> 
D262: ='[3]4.4 Quoted services'!$D262 ->  | E262: ED_QUO441_00254 | F262: ='[3]4.4 Quoted services'!$F262 -> 
D263: ='[3]4.4 Quoted services'!$D263 ->  | E263: ED_QUO441_00255 | F263: ='[3]4.4 Quoted services'!$F263 -> 
D264: ='[3]4.4 Quoted services'!$D264 ->  | E264: ED_QUO441_00256 | F264: ='[3]4.4 Quoted services'!$F264 -> 
D265: ='[3]4.4 Quoted services'!$D265 ->  | E265: ED_QUO441_00257 | F265: ='[3]4.4 Quoted services'!$F265 -> 
D266: ='[3]4.4 Quoted services'!$D266 ->  | E266: ED_QUO441_00258 | F266: ='[3]4.4 Quoted services'!$F266 -> 
D267: ='[3]4.4 Quoted services'!$D267 ->  | E267: ED_QUO441_00259 | F267: ='[3]4.4 Quoted services'!$F267 -> 
D268: ='[3]4.4 Quoted services'!$D268 ->  | E268: ED_QUO441_00260 | F268: ='[3]4.4 Quoted services'!$F268 -> 
D269: ='[3]4.4 Quoted services'!$D269 ->  | E269: ED_QUO441_00261 | F269: ='[3]4.4 Quoted services'!$F269 -> 
D270: ='[3]4.4 Quoted services'!$D270 ->  | E270: ED_QUO441_00262 | F270: ='[3]4.4 Quoted services'!$F270 -> 
D271: ='[3]4.4 Quoted services'!$D271 ->  | E271: ED_QUO441_00263 | F271: ='[3]4.4 Quoted services'!$F271 -> 
D272: ='[3]4.4 Quoted services'!$D272 ->  | E272: ED_QUO441_00264 | F272: ='[3]4.4 Quoted services'!$F272 -> 
D273: ='[3]4.4 Quoted services'!$D273 ->  | E273: ED_QUO441_00265 | F273: ='[3]4.4 Quoted services'!$F273 -> 
D274: ='[3]4.4 Quoted services'!$D274 ->  | E274: ED_QUO441_00266 | F274: ='[3]4.4 Quoted services'!$F274 -> 
D275: ='[3]4.4 Quoted services'!$D275 ->  | E275: ED_QUO441_00267 | F275: ='[3]4.4 Quoted services'!$F275 -> 
D276: ='[3]4.4 Quoted services'!$D276 ->  | E276: ED_QUO441_00268 | F276: ='[3]4.4 Quoted services'!$F276 -> 
D277: ='[3]4.4 Quoted services'!$D277 ->  | E277: ED_QUO441_00269 | F277: ='[3]4.4 Quoted services'!$F277 -> 
D278: ='[3]4.4 Quoted services'!$D278 ->  | E278: ED_QUO441_00270 | F278: ='[3]4.4 Quoted services'!$F278 -> 
D279: ='[3]4.4 Quoted services'!$D279 ->  | E279: ED_QUO441_00271 | F279: ='[3]4.4 Quoted services'!$F279 -> 
D280: ='[3]4.4 Quoted services'!$D280 ->  | E280: ED_QUO441_00272 | F280: ='[3]4.4 Quoted services'!$F280 -> 
D281: ='[3]4.4 Quoted services'!$D281 ->  | E281: ED_QUO441_00273 | F281: ='[3]4.4 Quoted services'!$F281 -> 
D282: ='[3]4.4 Quoted services'!$D282 ->  | E282: ED_QUO441_00274 | F282: ='[3]4.4 Quoted services'!$F282 -> 
D283: ='[3]4.4 Quoted services'!$D283 ->  | E283: ED_QUO441_00275 | F283: ='[3]4.4 Quoted services'!$F283 -> 
D284: ='[3]4.4 Quoted services'!$D284 ->  | E284: ED_QUO441_00276 | F284: ='[3]4.4 Quoted services'!$F284 -> 
D285: ='[3]4.4 Quoted services'!$D285 ->  | E285: ED_QUO441_00277 | F285: ='[3]4.4 Quoted services'!$F285 -> 
D286: ='[3]4.4 Quoted services'!$D286 ->  | E286: ED_QUO441_00278 | F286: ='[3]4.4 Quoted services'!$F286 -> 
D287: ='[3]4.4 Quoted services'!$D287 ->  | E287: ED_QUO441_00279 | F287: ='[3]4.4 Quoted services'!$F287 -> 
D288: ='[3]4.4 Quoted services'!$D288 ->  | E288: ED_QUO441_00280 | F288: ='[3]4.4 Quoted services'!$F288 -> 
D289: ='[3]4.4 Quoted services'!$D289 ->  | E289: ED_QUO441_00281 | F289: ='[3]4.4 Quoted services'!$F289 -> 
D290: ='[3]4.4 Quoted services'!$D290 ->  | E290: ED_QUO441_00282 | F290: ='[3]4.4 Quoted services'!$F290 -> 
D291: ='[3]4.4 Quoted services'!$D291 ->  | E291: ED_QUO441_00283 | F291: ='[3]4.4 Quoted services'!$F291 -> 
D292: ='[3]4.4 Quoted services'!$D292 ->  | E292: ED_QUO441_00284 | F292: ='[3]4.4 Quoted services'!$F292 -> 
D293: ='[3]4.4 Quoted services'!$D293 ->  | E293: ED_QUO441_00285 | F293: ='[3]4.4 Quoted services'!$F293 -> 
D294: ='[3]4.4 Quoted services'!$D294 ->  | E294: ED_QUO441_00286 | F294: ='[3]4.4 Quoted services'!$F294 -> 
D295: ='[3]4.4 Quoted services'!$D295 ->  | E295: ED_QUO441_00287 | F295: ='[3]4.4 Quoted services'!$F295 -> 
D296: ='[3]4.4 Quoted services'!$D296 ->  | E296: ED_QUO441_00288 | F296: ='[3]4.4 Quoted services'!$F296 -> 
D297: ='[3]4.4 Quoted services'!$D297 ->  | E297: ED_QUO441_00289 | F297: ='[3]4.4 Quoted services'!$F297 -> 
D298: ='[3]4.4 Quoted services'!$D298 ->  | E298: ED_QUO441_00290 | F298: ='[3]4.4 Quoted services'!$F298 -> 
D299: ='[3]4.4 Quoted services'!$D299 ->  | E299: ED_QUO441_00291 | F299: ='[3]4.4 Quoted services'!$F299 -> 
D300: ='[3]4.4 Quoted services'!$D300 ->  | E300: ED_QUO441_00292 | F300: ='[3]4.4 Quoted services'!$F300 -> 
D301: ='[3]4.4 Quoted services'!$D301 ->  | E301: ED_QUO441_00293 | F301: ='[3]4.4 Quoted services'!$F301 -> 
D302: ='[3]4.4 Quoted services'!$D302 ->  | E302: ED_QUO441_00294 | F302: ='[3]4.4 Quoted services'!$F302 -> 
D303: ='[3]4.4 Quoted services'!$D303 ->  | E303: ED_QUO441_00295 | F303: ='[3]4.4 Quoted services'!$F303 -> 
D304: ='[3]4.4 Quoted services'!$D304 ->  | E304: ED_QUO441_00296 | F304: ='[3]4.4 Quoted services'!$F304 -> 
D305: ='[3]4.4 Quoted services'!$D305 ->  | E305: ED_QUO441_00297 | F305: ='[3]4.4 Quoted services'!$F305 -> 
D306: ='[3]4.4 Quoted services'!$D306 ->  | E306: ED_QUO441_00298 | F306: ='[3]4.4 Quoted services'!$F306 -> 
D307: ='[3]4.4 Quoted services'!$D307 ->  | E307: ED_QUO441_00299 | F307: ='[3]4.4 Quoted services'!$F307 -> 
D308: ='[3]4.4 Quoted services'!$D308 ->  | E308: ED_QUO441_00300 | F308: ='[3]4.4 Quoted services'!$F308 -> 
D309: ='[3]4.4 Quoted services'!$D309 ->  | E309: ED_QUO441_00301 | F309: ='[3]4.4 Quoted services'!$F309 -> 
D310: ='[3]4.4 Quoted services'!$D310 ->  | E310: ED_QUO441_00302 | F310: ='[3]4.4 Quoted services'!$F310 -> 
D311: ='[3]4.4 Quoted services'!$D311 ->  | E311: ED_QUO441_00303 | F311: ='[3]4.4 Quoted services'!$F311 -> 
D312: ='[3]4.4 Quoted services'!$D312 ->  | E312: ED_QUO441_00304 | F312: ='[3]4.4 Quoted services'!$F312 -> 
D313: ='[3]4.4 Quoted services'!$D313 ->  | E313: ED_QUO441_00305 | F313: ='[3]4.4 Quoted services'!$F313 -> 
D314: ='[3]4.4 Quoted services'!$D314 ->  | E314: ED_QUO441_00306 | F314: ='[3]4.4 Quoted services'!$F314 -> 
D315: ='[3]4.4 Quoted services'!$D315 ->  | E315: ED_QUO441_00307 | F315: ='[3]4.4 Quoted services'!$F315 -> 
D316: ='[3]4.4 Quoted services'!$D316 ->  | E316: ED_QUO441_00308 | F316: ='[3]4.4 Quoted services'!$F316 -> 
D317: ='[3]4.4 Quoted services'!$D317 ->  | E317: ED_QUO441_00309 | F317: ='[3]4.4 Quoted services'!$F317 -> 
D318: ='[3]4.4 Quoted services'!$D318 ->  | E318: ED_QUO441_00310 | F318: ='[3]4.4 Quoted services'!$F318 -> 
... 163 more rows

Sheet 5.2 Asset Age Profile
B1: REGULATORY REPORTING STATEMENT
B2: =INDEX(dms_TradingNameFull_List,MATCH(dms_TradingName,dms_TradingName_List)) -> ActewAGL Distribution
B3: =CONCATENATE((LOOKUP(dms_Model,dms_Model_List,dms_Worksheet_List))&" "&CRY) -> CATEGORY ANALYSIS 2015-16
B4: 5.2 ASSET AGE PROFILE
B6: There is ONE table on this worksheet. Both the ROWS and COLUMNS have been 'grouped' for easy navigation. See the Instructions sheet on how to group or ungroup data.
B8: 5.2.1 - ASSET AGE PROFILE
D9: ECONOMIC LIFE (YEARS) | F9: INSTALLED ASSETS -˃ QUANTITY CURRENTLY IN COMMISSION BY YEAR
B10: ASSET GROUP | C10: ASSET CATEGORY | D10: MEAN | E10: STANDARD DEVIATION | F10: =CRY -> 2015-16 | G10: =IF(dms_RPT="financial",(VALUE(LEFT(F10,4)-1)&"-"&MID(F10,3,2)),VALUE(LEFT(F10,4)-1)) -> 2014 | H10: =IF(dms_RPT="financial",(VALUE(LEFT(G10,4)-1)&"-"&MID(G10,3,2)),VALUE(LEFT(G10,4)-1)) -> 2013 | I10: 2012 | J10: 2011 | K10: 2010 | L10: 2009 | M10: 2008 | N10: 2007 | O10: 2006 | P10: 2005 | Q10: 2004 | R10: 2003 | S10: 2002 | T10: 2001 | U10: 2000 | V10: 1999 | W10: 1998 | X10: 1997 | Y10: 1996 | Z10: 1995 | AA10: 1994 | AB10: 1993 | AC10: 1992 | AD10: 1991 | AE10: 1990 | AF10: 1989 | AG10: 1988 | AH10: 1987 | AI10: 1986 | AJ10: 1985 | AK10: 1984 | AL10: 1983 | AM10: =IF(dms_RPT="financial",(VALUE(LEFT(AL10,4)-1)&"-"&MID(AL10,3,2)),VALUE(LEFT(AL10,4)-1)) -> 1982 | AN10: 1981 | AO10: 1980 | AP10: 1979 | AQ10: 1978 | AR10: 1977 | AS10: 1976 | AT10: 1975 | AU10: 1974 | AV10: 1973 | AW10: 1972 | AX10: 1971 | AY10: 1970 | AZ10: 1969 | BA10: 1968 | BB10: 1967 | BC10: 1966 | BD10: 1965 | BE10: 1964 | BF10: 1963 | BG10: 1962 | BH10: 1961 | BI10: 1960 | BJ10: 1959 | BK10: 1958 | BL10: 1957 | BM10: 1956 | BN10: 1955 | BO10: 1954 | BP10: 1953 | BQ10: 1952 | BR10: 1951 | BS10: =IF(dms_RPT="financial",(VALUE(LEFT(BR10,4)-1)&"-"&MID(BR10,3,2)),VALUE(LEFT(BR10,4)-1)) -> 1950 | BT10: 1949 | BU10: 1948 | BV10: 1947 | BW10: 1946 | BX10: 1945 | BY10: 1944 | BZ10: 1943 | CA10: 1942 | CB10: 1941 | CC10: 1940 | CD10: 1939 | CE10: 1938 | CF10: 1937 | CG10: 1936 | CH10: 1935 | CI10: 1934 | CJ10: 1933 | CK10: 1932 | CL10: 1931 | CM10: 1930 | CN10: 1929 | CO10: 1928 | CP10: 1927 | CQ10: 1926 | CR10: 1925 | CS10: 1924 | CT10: 1923 | CU10: 1922 | CV10: 1921 | CW10: 1920 | CX10: 1919 | CY10: =IF(dms_RPT="financial",(VALUE(LEFT(CX10,4)-1)&"-"&MID(CX10,3,2)),VALUE(LEFT(CX10,4)-1)) -> 1918 | CZ10: 1917 | DA10: 1916 | DB10: =IF(dms_RPT="financial",(VALUE(LEFT(DA10,4)-1)&"-"&MID(DA10,3,2)),VALUE(LEFT(DA10,4)-1)) -> 1915 | DC10: =IF(dms_RPT="financial",(VALUE(LEFT(DB10,4)-1)&"-"&MID(DB10,3,2)),VALUE(LEFT(DB10,4)-1)) -> 1914 | DD10: =IF(dms_RPT="financial",(VALUE(LEFT(DC10,4)-1)&"-"&MID(DC10,3,2)),VALUE(LEFT(DC10,4)-1)) -> 1913 | DE10: =IF(dms_RPT="financial",(VALUE(LEFT(DD10,4)-1)&"-"&MID(DD10,3,2)),VALUE(LEFT(DD10,4)-1)) -> 1912 | DF10: =IF(dms_RPT="financial",(VALUE(LEFT(DE10,4)-1)&"-"&MID(DE10,3,2)),VALUE(LEFT(DE10,4)-1)) -> 1911 | DG10: =IF(dms_RPT="financial",(VALUE(LEFT(DF10,4)-1)&"-"&MID(DF10,3,2)),VALUE(LEFT(DF10,4)-1)) -> 1910 | DH10: =IF(dms_RPT="financial",(VALUE(LEFT(DG10,4)-1)&"-"&MID(DG10,3,2)),VALUE(LEFT(DG10,4)-1)) -> 1909
B11: POLES BY: HIGHEST OPERATING VOLTAGE ; MATERIAL TYPE; STAKING (IF WOOD) | C11: Staking of a wooden pole | D11: 0 | E11: 0 | F11: 599 | G11: 672 | H11: 593 | I11: 679 | J11: 832 | K11: 871 | L11: 743 | M11: 898 | N11: 2630 | O11: 2780 | P11: 1381 | Q11: 578 | R11: 59 | S11: 12 | T11: 31 | U11: 1 | V11: 1 | W11: 0 | X11: 0 | Y11: 0 | Z11: 0 | AA11: 0 | AB11: 0 | AC11: 0 | AD11: 1 | AE11: 0 | AF11: 0 | AG11: 0 | AH11: 1 | AI11: 0 | AJ11: 0 | AK11: 0 | AL11: 0 | AM11: 0 | AN11: 0 | AO11: 0 | AP11: 0 | AQ11: 0 | AR11: 0 | AS11: 0 | AT11: 0 | AU11: 0 | AV11: 0 | AW11: 0 | AX11: 0 | AY11: 0 | AZ11: 0 | BA11: 0 | BB11: 0 | BC11: 0 | BD11: 0 | BE11: 0 | BF11: 0 | BG11: 0 | BH11: 0 | BI11: 0 | BJ11: 0 | BK11: 0 | BL11: 0 | BM11: 0 | BN11: 0 | BO11: 0 | BP11: 0 | BQ11: 0 | BR11: 0 | BS11: 0 | BT11: 0 | BU11: 0 | BV11: 0 | BW11: 0 | BX11: 0 | BY11: 0 | BZ11: 0 | CA11: 0 | CB11: 0 | CC11: 0 | CD11: 0 | CE11: 0 | CF11: 0 | CG11: 0 | CH11: 0 | CI11: 0 | CJ11: 0 | CK11: 0 | CL11: 0 | CM11: 0 | CN11: 0 | CO11: 0 | CP11: 0 | CQ11: 0 | CR11: 0 | CS11: 0 | CT11: 0 | CU11: 0 | CV11: 0 | CW11: 0 | CX11: 0 | CY11: 0 | CZ11: 0 | DA11: 0 | DB11: 0 | DC11: 0 | DD11: 0 | DE11: 0 | DF11: 0 | DG11: 0 | DH11: 0
C12: ˂ = 1 kV; Wood | D12: 42 | E12: 22 | F12: 0 | G12: 4 | H12: 3 | I12: 5 | J12: 8 | K12: 20 | L12: 8 | M12: 9 | N12: 16 | O12: 26 | P12: 27 | Q12: 70 | R12: 75 | S12: 91 | T12: 51 | U12: 80 | V12: 90 | W12: 11 | X12: 33 | Y12: 4 | Z12: 59 | AA12: 71 | AB12: 16 | AC12: 40 | AD12: 23 | AE12: 18 | AF12: 72 | AG12: 21 | AH12: 155 | AI12: 86 | AJ12: 285 | AK12: 382 | AL12: 1118 | AM12: 161 | AN12: 461 | AO12: 1184 | AP12: 112 | AQ12: 88 | AR12: 341 | AS12: 28 | AT12: 1104 | AU12: 1502 | AV12: 1925 | AW12: 934 | AX12: 1033 | AY12: 733 | AZ12: 1025 | BA12: 869 | BB12: 656 | BC12: 1200 | BD12: 369 | BE12: 160 | BF12: 326 | BG12: 479 | BH12: 18 | BI12: 454 | BJ12: 27 | BK12: 1 | BL12: 575 | BM12: 0 | BN12: 0 | BO12: 0 | BP12: 0 | BQ12: 0 | BR12: 0 | BS12: 0 | BT12: 34 | BU12: 0 | BV12: 280 | BW12: 299 | BX12: 167 | BY12: 0 | BZ12: 702 | CA12: 221 | CB12: 296 | CC12: 0 | CD12: 0 | CE12: 0 | CF12: 90 | CG12: 0 | CH12: 33 | CI12: 0 | CJ12: 0 | CK12: 0 | CL12: 0 | CM12: 0 | CN12: 0 | CO12: 0 | CP12: 0 | CQ12: 10 | CR12: 0 | CS12: 0 | CT12: 0 | CU12: 0 | CV12: 0 | CW12: 0 | CX12: 2 | CY12: 0 | CZ12: 0 | DA12: 0 | DB12: 0 | DC12: 0 | DD12: 0 | DE12: 0 | DF12: 0 | DG12: 0 | DH12: 0
C13: > 1 kV & < = 11 kV; Wood | D13: 42 | E13: 22 | F13: 0 | G13: 0 | H13: 2 | I13: 3 | J13: 7 | K13: 10 | L13: 12 | M13: 2 | N13: 13 | O13: 8 | P13: 18 | Q13: 97 | R13: 12 | S13: 88 | T13: 233 | U13: 44 | V13: 28 | W13: 16 | X13: 29 | Y13: 9 | Z13: 48 | AA13: 22 | AB13: 4 | AC13: 15 | AD13: 34 | AE13: 80 | AF13: 38 | AG13: 89 | AH13: 113 | AI13: 125 | AJ13: 230 | AK13: 151 | AL13: 251 | AM13: 198 | AN13: 273 | AO13: 218 | AP13: 220 | AQ13: 213 | AR13: 143 | AS13: 14 | AT13: 172 | AU13: 395 | AV13: 193 | AW13: 275 | AX13: 348 | AY13: 248 | AZ13: 212 | BA13: 258 | BB13: 981 | BC13: 427 | BD13: 114 | BE13: 74 | BF13: 105 | BG13: 142 | BH13: 59 | BI13: 75 | BJ13: 24 | BK13: 0 | BL13: 203 | BM13: 0 | BN13: 0 | BO13: 0 | BP13: 0 | BQ13: 0 | BR13: 0 | BS13: 0 | BT13: 16 | BU13: 0 | BV13: 65 | BW13: 74 | BX13: 61 | BY13: 0 | BZ13: 155 | CA13: 60 | CB13: 66 | CC13: 0 | CD13: 0 | CE13: 0 | CF13: 1 | CG13: 0 | CH13: 21 | CI13: 0 | CJ13: 0 | CK13: 0 | CL13: 0 | CM13: 0 | CN13: 0 | CO13: 0 | CP13: 0 | CQ13: 5 | CR13: 0 | CS13: 0 | CT13: 0 | CU13: 0 | CV13: 0 | CW13: 0 | CX13: 47 | CY13: 0 | CZ13: 0 | DA13: 0 | DB13: 0 | DC13: 0 | DD13: 0 | DE13: 0 | DF13: 0 | DG13: 0 | DH13: 0
C14: ˃ 11 kV & < = 22 kV; Wood | D14: 42 | E14: 22 | F14: 0 | G14: 0 | H14: 0 | I14: 2 | J14: 0 | K14: 0 | L14: 0 | M14: 0 | N14: 0 | O14: 0 | P14: 0 | Q14: 0 | R14: 0 | S14: 26 | T14: 27 | U14: 5 | V14: 2 | W14: 1 | X14: 0 | Y14: 0 | Z14: 1 | AA14: 0 | AB14: 0 | AC14: 0 | AD14: 1 | AE14: 0 | AF14: 0 | AG14: 0 | AH14: 1 | AI14: 1 | AJ14: 1 | AK14: 4 | AL14: 10 | AM14: 4 | AN14: 1 | AO14: 4 | AP14: 1 | AQ14: 1 | AR14: 1 | AS14: 0 | AT14: 0 | AU14: 0 | AV14: 1 | AW14: 0 | AX14: 0 | AY14: 24 | AZ14: 10 | BA14: 11 | BB14: 17 | BC14: 0 | BD14: 0 | BE14: 8 | BF14: 1 | BG14: 0 | BH14: 4 | BI14: 0 | BJ14: 0 | BK14: 0 | BL14: 0 | BM14: 0 | BN14: 0 | BO14: 0 | BP14: 0 | BQ14: 0 | BR14: 0 | BS14: 0 | BT14: 0 | BU14: 0 | BV14: 0 | BW14: 0 | BX14: 0 | BY14: 0 | BZ14: 0 | CA14: 0 | CB14: 0 | CC14: 0 | CD14: 0 | CE14: 0 | CF14: 0 | CG14: 0 | CH14: 0 | CI14: 0 | CJ14: 0 | CK14: 0 | CL14: 0 | CM14: 0 | CN14: 0 | CO14: 0 | CP14: 0 | CQ14: 0 | CR14: 0 | CS14: 0 | CT14: 0 | CU14: 0 | CV14: 0 | CW14: 0 | CX14: 0 | CY14: 0 | CZ14: 0 | DA14: 0 | DB14: 0 | DC14: 0 | DD14: 0 | DE14: 0 | DF14: 0 | DG14: 0 | DH14: 0
C15: > 22 kV & < = 66 kV; Wood | D15: 45 | E15: 22 | F15: 0 | G15: 0 | H15: 0 | I15: 0 | J15: 0 | K15: 0 | L15: 0 | M15: 0 | N15: 0 | O15: 0 | P15: 1 | Q15: 0 | R15: 0 | S15: 0 | T15: 0 | U15: 0 | V15: 0 | W15: 0 | X15: 0 | Y15: 0 | Z15: 0 | AA15: 0 | AB15: 0 | AC15: 0 | AD15: 0 | AE15: 0 | AF15: 0 | AG15: 0 | AH15: 0 | AI15: 0 | AJ15: 0 | AK15: 0 | AL15: 0 | AM15: 0 | AN15: 0 | AO15: 0 | AP15: 0 | AQ15: 0 | AR15: 0 | AS15: 0 | AT15: 0 | AU15: 0 | AV15: 0 | AW15: 0 | AX15: 0 | AY15: 0 | AZ15: 0 | BA15: 0 | BB15: 4 | BC15: 0 | BD15: 0 | BE15: 0 | BF15: 0 | BG15: 0 | BH15: 0 | BI15: 0 | BJ15: 46 | BK15: 0 | BL15: 0 | BM15: 0 | BN15: 0 | BO15: 0 | BP15: 0 | BQ15: 0 | BR15: 0 | BS15: 0 | BT15: 0 | BU15: 0 | BV15: 0 | BW15: 0 | BX15: 0 | BY15: 0 | BZ15: 0 | CA15: 0 | CB15: 0 | CC15: 0 | CD15: 0 | CE15: 0 | CF15: 0 | CG15: 0 | CH15: 0 | CI15: 0 | CJ15: 0 | CK15: 0 | CL15: 0 | CM15: 0 | CN15: 0 | CO15: 0 | CP15: 0 | CQ15: 0 | CR15: 0 | CS15: 0 | CT15: 0 | CU15: 0 | CV15: 0 | CW15: 0 | CX15: 0 | CY15: 0 | CZ15: 0 | DA15: 0 | DB15: 0 | DC15: 0 | DD15: 0 | DE15: 0 | DF15: 0 | DG15: 0 | DH15: 0
C16: > 66 kV & < = 132 kV; Wood | D16: 45 | E16: 22 | F16: 0 | G16: 0 | H16: 0 | I16: 0 | J16: 0 | K16: 0 | L16: 0 | M16: 4 | N16: 0 | O16: 0 | P16: 3 | Q16: 1 | R16: 1 | S16: 0 | T16: 1 | U16: 18 | V16: 7 | W16: 0 | X16: 0 | Y16: 0 | Z16: 0 | AA16: 0 | AB16: 0 | AC16: 0 | AD16: 0 | AE16: 0 | AF16: 0 | AG16: 0 | AH16: 17 | AI16: 0 | AJ16: 0 | AK16: 3 | AL16: 0 | AM16: 0 | AN16: 0 | AO16: 0 | AP16: 180 | AQ16: 0 | AR16: 3 | AS16: 0 | AT16: 99 | AU16: 0 | AV16: 3 | AW16: 3 | AX16: 5 | AY16: 0 | AZ16: 0 | BA16: 0 | BB16: 34 | BC16: 0 | BD16: 0 | BE16: 0 | BF16: 0 | BG16: 0 | BH16: 1 | BI16: 0 | BJ16: 0 | BK16: 0 | BL16: 0 | BM16: 0 | BN16: 0 | BO16: 0 | BP16: 0 | BQ16: 0 | BR16: 0 | BS16: 0 | BT16: 0 | BU16: 0 | BV16: 0 | BW16: 0 | BX16: 0 | BY16: 0 | BZ16: 0 | CA16: 0 | CB16: 0 | CC16: 0 | CD16: 0 | CE16: 0 | CF16: 0 | CG16: 0 | CH16: 0 | CI16: 0 | CJ16: 0 | CK16: 0 | CL16: 0 | CM16: 0 | CN16: 0 | CO16: 0 | CP16: 0 | CQ16: 0 | CR16: 0 | CS16: 0 | CT16: 0 | CU16: 0 | CV16: 0 | CW16: 0 | CX16: 0 | CY16: 0 | CZ16: 0 | DA16: 0 | DB16: 0 | DC16: 0 | DD16: 0 | DE16: 0 | DF16: 0 | DG16: 0 | DH16: 0
C17: > 132 kV; Wood | D17: 45 | E17: 22 | F17: 0 | G17: 0 | H17: 0 | I17: 0 | J17: 0 | K17: 0 | L17: 0 | M17: 0 | N17: 0 | O17: 0 | P17: 0 | Q17: 0 | R17: 0 | S17: 0 | T17: 0 | U17: 0 | V17: 0 | W17: 0 | X17: 0 | Y17: 0 | Z17: 0 | AA17: 0 | AB17: 0 | AC17: 0 | AD17: 0 | AE17: 0 | AF17: 0 | AG17: 0 | AH17: 0 | AI17: 0 | AJ17: 0 | AK17: 0 | AL17: 0 | AM17: 0 | AN17: 0 | AO17: 0 | AP17: 0 | AQ17: 0 | AR17: 0 | AS17: 0 | AT17: 0 | AU17: 0 | AV17: 0 | AW17: 0 | AX17: 0 | AY17: 0 | AZ17: 0 | BA17: 0 | BB17: 0 | BC17: 0 | BD17: 0 | BE17: 0 | BF17: 0 | BG17: 0 | BH17: 0 | BI17: 0 | BJ17: 0 | BK17: 0 | BL17: 0 | BM17: 0 | BN17: 0 | BO17: 0 | BP17: 0 | BQ17: 0 | BR17: 0 | BS17: 0 | BT17: 0 | BU17: 0 | BV17: 0 | BW17: 0 | BX17: 0 | BY17: 0 | BZ17: 0 | CA17: 0 | CB17: 0 | CC17: 0 | CD17: 0 | CE17: 0 | CF17: 0 | CG17: 0 | CH17: 0 | CI17: 0 | CJ17: 0 | CK17: 0 | CL17: 0 | CM17: 0 | CN17: 0 | CO17: 0 | CP17: 0 | CQ17: 0 | CR17: 0 | CS17: 0 | CT17: 0 | CU17: 0 | CV17: 0 | CW17: 0 | CX17: 0 | CY17: 0 | CZ17: 0 | DA17: 0 | DB17: 0 | DC17: 0 | DD17: 0 | DE17: 0 | DF17: 0 | DG17: 0 | DH17: 0
C18: ˂ = 1 kV; Concrete | D18: 60 | E18: 10 | F18: 68 | G18: 101 | H18: 94 | I18: 81 | J18: 99 | K18: 152 | L18: 168 | M18: 196 | N18: 194 | O18: 175 | P18: 161 | Q18: 160 | R18: 145 | S18: 48 | T18: 116 | U18: 140 | V18: 118 | W18: 10 | X18: 2 | Y18: 2 | Z18: 6 | AA18: 18 | AB18: 37 | AC18: 80 | AD18: 70 | AE18: 129 | AF18: 385 | AG18: 274 | AH18: 234 | AI18: 358 | AJ18: 464 | AK18: 527 | AL18: 33 | AM18: 4 | AN18: 62 | AO18: 3 | AP18: 2 | AQ18: 1 | AR18: 38 | AS18: 0 | AT18: 5 | AU18: 9 | AV18: 16 | AW18: 1 | AX18: 3 | AY18: 0 | AZ18: 2 | BA18: 0 | BB18: 1 | BC18: 14 | BD18: 2 | BE18: 0 | BF18: 1 | BG18: 2 | BH18: 0 | BI18: 2 | BJ18: 1 | BK18: 0 | BL18: 14 | BM18: 0 | BN18: 0 | BO18: 0 | BP18: 0 | BQ18: 0 | BR18: 0 | BS18: 0 | BT18: 0 | BU18: 0 | BV18: 1 | BW18: 3 | BX18: 1 | BY18: 0 | BZ18: 5 | CA18: 5 | CB18: 3 | CC18: 0 | CD18: 0 | CE18: 0 | CF18: 1 | CG18: 0 | CH18: 0 | CI18: 0 | CJ18: 0 | CK18: 0 | CL18: 0 | CM18: 0 | CN18: 0 | CO18: 0 | CP18: 0 | CQ18: 0 | CR18: 0 | CS18: 0 | CT18: 0 | CU18: 0 | CV18: 0 | CW18: 0 | CX18: 0 | CY18: 0 | CZ18: 0 | DA18: 0 | DB18: 0 | DC18: 0 | DD18: 0 | DE18: 0 | DF18: 0 | DG18: 0 | DH18: 0
C19: > 1 kV & < = 11 kV; Concrete | D19: 60 | E19: 10 | F19: 68 | G19: 159 | H19: 215 | I19: 208 | J19: 269 | K19: 238 | L19: 265 | M19: 299 | N19: 409 | O19: 324 | P19: 240 | Q19: 296 | R19: 178 | S19: 94 | T19: 90 | U19: 34 | V19: 99 | W19: 116 | X19: 91 | Y19: 32 | Z19: 63 | AA19: 63 | AB19: 67 | AC19: 256 | AD19: 102 | AE19: 276 | AF19: 103 | AG19: 127 | AH19: 358 | AI19: 140 | AJ19: 38 | AK19: 69 | AL19: 10 | AM19: 8 | AN19: 53 | AO19: 3 | AP19: 5 | AQ19: 4 | AR19: 1 | AS19: 1 | AT19: 2 | AU19: 18 | AV19: 3 | AW19: 4 | AX19: 9 | AY19: 4 | AZ19: 0 | BA19: 1 | BB19: 3 | BC19: 41 | BD19: 0 | BE19: 4 | BF19: 0 | BG19: 0 | BH19: 0 | BI19: 6 | BJ19: 2 | BK19: 0 | BL19: 7 | BM19: 0 | BN19: 0 | BO19: 0 | BP19: 0 | BQ19: 0 | BR19: 0 | BS19: 0 | BT19: 0 | BU19: 0 | BV19: 4 | BW19: 5 | BX19: 9 | BY19: 0 | BZ19: 2 | CA19: 2 | CB19: 1 | CC19: 0 | CD19: 0 | CE19: 0 | CF19: 0 | CG19: 0 | CH19: 0 | CI19: 0 | CJ19: 0 | CK19: 0 | CL19: 0 | CM19: 0 | CN19: 0 | CO19: 0 | CP19: 0 | CQ19: 0 | CR19: 0 | CS19: 0 | CT19: 0 | CU19: 0 | CV19: 0 | CW19: 0 | CX19: 2 | CY19: 0 | CZ19: 0 | DA19: 0 | DB19: 0 | DC19: 0 | DD19: 0 | DE19: 0 | DF19: 0 | DG19: 0 | DH19: 0
C20: ˃ 11 kV & < = 22 kV; Concrete | D20: 60 | E20: 10 | F20: 0 | G20: 3 | H20: 2 | I20: 12 | J20: 7 | K20: 1 | L20: 3 | M20: 5 | N20: 7 | O20: 6 | P20: 0 | Q20: 0 | R20: 4 | S20: 8 | T20: 2 | U20: 1 | V20: 2 | W20: 4 | X20: 0 | Y20: 1 | Z20: 0 | AA20: 0 | AB20: 0 | AC20: 0 | AD20: 0 | AE20: 1 | AF20: 0 | AG20: 1 | AH20: 1 | AI20: 3 | AJ20: 1 | AK20: 0 | AL20: 0 | AM20: 0 | AN20: 0 | AO20: 0 | AP20: 0 | AQ20: 0 | AR20: 0 | AS20: 0 | AT20: 0 | AU20: 0 | AV20: 0 | AW20: 0 | AX20: 0 | AY20: 0 | AZ20: 0 | BA20: 0 | BB20: 0 | BC20: 1 | BD20: 0 | BE20: 0 | BF20: 0 | BG20: 0 | BH20: 0 | BI20: 0 | BJ20: 0 | BK20: 0 | BL20: 0 | BM20: 0 | BN20: 0 | BO20: 0 | BP20: 0 | BQ20: 0 | BR20: 0 | BS20: 0 | BT20: 0 | BU20: 0 | BV20: 0 | BW20: 0 | BX20: 0 | BY20: 0 | BZ20: 0 | CA20: 0 | CB20: 0 | CC20: 0 | CD20: 0 | CE20: 0 | CF20: 0 | CG20: 0 | CH20: 0 | CI20: 0 | CJ20: 0 | CK20: 0 | CL20: 0 | CM20: 0 | CN20: 0 | CO20: 0 | CP20: 0 | CQ20: 0 | CR20: 0 | CS20: 0 | CT20: 0 | CU20: 0 | CV20: 0 | CW20: 0 | CX20: 0 | CY20: 0 | CZ20: 0 | DA20: 0 | DB20: 0 | DC20: 0 | DD20: 0 | DE20: 0 | DF20: 0 | DG20: 0 | DH20: 0
C21: > 22 kV & < = 66 kV; Concrete | D21: 60 | E21: 10 | F21: 0 | G21: 0 | H21: 0 | I21: 0 | J21: 0 | K21: 0 | L21: 0 | M21: 0 | N21: 0 | O21: 0 | P21: 0 | Q21: 0 | R21: 0 | S21: 0 | T21: 0 | U21: 0 | V21: 0 | W21: 0 | X21: 0 | Y21: 0 | Z21: 0 | AA21: 0 | AB21: 0 | AC21: 0 | AD21: 0 | AE21: 0 | AF21: 0 | AG21: 0 | AH21: 0 | AI21: 0 | AJ21: 0 | AK21: 0 | AL21: 0 | AM21: 0 | AN21: 0 | AO21: 0 | AP21: 0 | AQ21: 0 | AR21: 0 | AS21: 1 | AT21: 0 | AU21: 0 | AV21: 0 | AW21: 0 | AX21: 0 | AY21: 0 | AZ21: 0 | BA21: 0 | BB21: 0 | BC21: 0 | BD21: 0 | BE21: 0 | BF21: 0 | BG21: 0 | BH21: 0 | BI21: 0 | BJ21: 0 | BK21: 0 | BL21: 0 | BM21: 0 | BN21: 0 | BO21: 0 | BP21: 0 | BQ21: 0 | BR21: 0 | BS21: 0 | BT21: 0 | BU21: 0 | BV21: 0 | BW21: 0 | BX21: 0 | BY21: 0 | BZ21: 0 | CA21: 0 | CB21: 0 | CC21: 0 | CD21: 0 | CE21: 0 | CF21: 0 | CG21: 0 | CH21: 0 | CI21: 0 | CJ21: 0 | CK21: 0 | CL21: 0 | CM21: 0 | CN21: 0 | CO21: 0 | CP21: 0 | CQ21: 0 | CR21: 0 | CS21: 0 | CT21: 0 | CU21: 0 | CV21: 0 | CW21: 0 | CX21: 0 | CY21: 0 | CZ21: 0 | DA21: 0 | DB21: 0 | DC21: 0 | DD21: 0 | DE21: 0 | DF21: 0 | DG21: 0 | DH21: 0
C22: > 66 kV & < = 132 kV; Concrete | D22: 60 | E22: 10 | F22: 3 | G22: 8 | H22: 15 | I22: 0 | J22: 150 | K22: 0 | L22: 0 | M22: 3 | N22: 0 | O22: 7 | P22: 0 | Q22: 0 | R22: 0 | S22: 0 | T22: 0 | U22: 0 | V22: 0 | W22: 0 | X22: 21 | Y22: 1 | Z22: 1 | AA22: 0 | AB22: 81 | AC22: 2 | AD22: 0 | AE22: 97 | AF22: 96 | AG22: 38 | AH22: 160 | AI22: 0 | AJ22: 0 | AK22: 0 | AL22: 0 | AM22: 0 | AN22: 0 | AO22: 0 | AP22: 138 | AQ22: 0 | AR22: 0 | AS22: 0 | AT22: 5 | AU22: 0 | AV22: 0 | AW22: 0 | AX22: 0 | AY22: 0 | AZ22: 0 | BA22: 0 | BB22: 0 | BC22: 5 | BD22: 0 | BE22: 0 | BF22: 0 | BG22: 0 | BH22: 0 | BI22: 0 | BJ22: 0 | BK22: 0 | BL22: 0 | BM22: 0 | BN22: 0 | BO22: 0 | BP22: 0 | BQ22: 0 | BR22: 0 | BS22: 0 | BT22: 0 | BU22: 0 | BV22: 0 | BW22: 0 | BX22: 0 | BY22: 0 | BZ22: 0 | CA22: 0 | CB22: 0 | CC22: 0 | CD22: 0 | CE22: 0 | CF22: 0 | CG22: 0 | CH22: 0 | CI22: 0 | CJ22: 0 | CK22: 0 | CL22: 0 | CM22: 0 | CN22: 0 | CO22: 0 | CP22: 0 | CQ22: 0 | CR22: 0 | CS22: 0 | CT22: 0 | CU22: 0 | CV22: 0 | CW22: 0 | CX22: 0 | CY22: 0 | CZ22: 0 | DA22: 0 | DB22: 0 | DC22: 0 | DD22: 0 | DE22: 0 | DF22: 0 | DG22: 0 | DH22: 0
C23: > 132 kV; Concrete | D23: 60 | E23: 10 | F23: 2 | G23: 0 | H23: 0 | I23: 0 | J23: 0 | K23: 0 | L23: 0 | M23: 0 | N23: 0 | O23: 0 | P23: 0 | Q23: 0 | R23: 0 | S23: 0 | T23: 0 | U23: 0 | V23: 0 | W23: 0 | X23: 0 | Y23: 0 | Z23: 0 | AA23: 0 | AB23: 0 | AC23: 0 | AD23: 0 | AE23: 0 | AF23: 0 | AG23: 0 | AH23: 0 | AI23: 0 | AJ23: 0 | AK23: 0 | AL23: 0 | AM23: 0 | AN23: 0 | AO23: 0 | AP23: 0 | AQ23: 0 | AR23: 0 | AS23: 0 | AT23: 0 | AU23: 0 | AV23: 0 | AW23: 0 | AX23: 0 | AY23: 0 | AZ23: 0 | BA23: 0 | BB23: 0 | BC23: 1 | BD23: 0 | BE23: 0 | BF23: 0 | BG23: 0 | BH23: 0 | BI23: 0 | BJ23: 0 | BK23: 0 | BL23: 0 | BM23: 0 | BN23: 0 | BO23: 0 | BP23: 0 | BQ23: 0 | BR23: 0 | BS23: 0 | BT23: 0 | BU23: 0 | BV23: 0 | BW23: 0 | BX23: 0 | BY23: 0 | BZ23: 0 | CA23: 0 | CB23: 0 | CC23: 0 | CD23: 0 | CE23: 0 | CF23: 0 | CG23: 0 | CH23: 0 | CI23: 0 | CJ23: 0 | CK23: 0 | CL23: 0 | CM23: 0 | CN23: 0 | CO23: 0 | CP23: 0 | CQ23: 0 | CR23: 0 | CS23: 0 | CT23: 0 | CU23: 0 | CV23: 0 | CW23: 0 | CX23: 0 | CY23: 0 | CZ23: 0 | DA23: 0 | DB23: 0 | DC23: 0 | DD23: 0 | DE23: 0 | DF23: 0 | DG23: 0 | DH23: 0
C24: ˂ = 1 kV; Steel | D24: 60 | E24: 10 | F24: 0 | G24: 3 | H24: 1 | I24: 1 | J24: 17 | K24: 69 | L24: 235 | M24: 379 | N24: 669 | O24: 640 | P24: 563 | Q24: 607 | R24: 390 | S24: 79 | T24: 57 | U24: 428 | V24: 180 | W24: 53 | X24: 58 | Y24: 0 | Z24: 20 | AA24: 108 | AB24: 32 | AC24: 29 | AD24: 72 | AE24: 90 | AF24: 0 | AG24: 343 | AH24: 0 | AI24: 124 | AJ24: 0 | AK24: 483 | AL24: 0 | AM24: 1 | AN24: 0 | AO24: 0 | AP24: 0 | AQ24: 0 | AR24: 2 | AS24: 0 | AT24: 0 | AU24: 6 | AV24: 5 | AW24: 1 | AX24: 7 | AY24: 2 | AZ24: 1 | BA24: 0 | BB24: 0 | BC24: 5 | BD24: 0 | BE24: 0 | BF24: 3 | BG24: 2 | BH24: 0 | BI24: 1 | BJ24: 0 | BK24: 0 | BL24: 8 | BM24: 0 | BN24: 0 | BO24: 0 | BP24: 0 | BQ24: 0 | BR24: 0 | BS24: 0 | BT24: 0 | BU24: 0 | BV24: 12 | BW24: 4 | BX24: 10 | BY24: 0 | BZ24: 20 | CA24: 9 | CB24: 18 | CC24: 0 | CD24: 0 | CE24: 0 | CF24: 11 | CG24: 0 | CH24: 0 | CI24: 0 | CJ24: 0 | CK24: 0 | CL24: 0 | CM24: 0 | CN24: 0 | CO24: 0 | CP24: 0 | CQ24: 0 | CR24: 0 | CS24: 0 | CT24: 0 | CU24: 0 | CV24: 0 | CW24: 0 | CX24: 0 | CY24: 0 | CZ24: 0 | DA24: 0 | DB24: 0 | DC24: 0 | DD24: 0 | DE24: 0 | DF24: 0 | DG24: 0 | DH24: 0
C25: > 1 kV & < = 11 kV; Steel | D25: 60 | E25: 10 | F25: 0 | G25: 0 | H25: 1 | I25: 0 | J25: 0 | K25: 0 | L25: 0 | M25: 0 | N25: 0 | O25: 0 | P25: 0 | Q25: 24 | R25: 0 | S25: 3 | T25: 2 | U25: 0 | V25: 0 | W25: 7 | X25: 0 | Y25: 0 | Z25: 0 | AA25: 0 | AB25: 0 | AC25: 0 | AD25: 0 | AE25: 0 | AF25: 0 | AG25: 0 | AH25: 0 | AI25: 0 | AJ25: 0 | AK25: 4 | AL25: 0 | AM25: 0 | AN25: 0 | AO25: 0 | AP25: 0 | AQ25: 0 | AR25: 0 | AS25: 0 | AT25: 0 | AU25: 0 | AV25: 0 | AW25: 0 | AX25: 0 | AY25: 0 | AZ25: 0 | BA25: 0 | BB25: 0 | BC25: 0 | BD25: 0 | BE25: 0 | BF25: 0 | BG25: 0 | BH25: 0 | BI25: 0 | BJ25: 0 | BK25: 0 | BL25: 0 | BM25: 0 | BN25: 0 | BO25: 0 | BP25: 0 | BQ25: 0 | BR25: 0 | BS25: 0 | BT25: 0 | BU25: 0 | BV25: 0 | BW25: 0 | BX25: 0 | BY25: 0 | BZ25: 0 | CA25: 0 | CB25: 0 | CC25: 0 | CD25: 0 | CE25: 0 | CF25: 0 | CG25: 0 | CH25: 0 | CI25: 0 | CJ25: 0 | CK25: 0 | CL25: 0 | CM25: 0 | CN25: 0 | CO25: 0 | CP25: 0 | CQ25: 0 | CR25: 0 | CS25: 0 | CT25: 0 | CU25: 0 | CV25: 0 | CW25: 0 | CX25: 0 | CY25: 0 | CZ25: 0 | DA25: 0 | DB25: 0 | DC25: 0 | DD25: 0 | DE25: 0 | DF25: 0 | DG25: 0 | DH25: 0
C26: ˃ 11 kV & < = 22 kV; Steel | D26: 60 | E26: 10 | F26: 0 | G26: 0 | H26: 0 | I26: 0 | J26: 0 | K26: 0 | L26: 0 | M26: 0 | N26: 0 | O26: 0 | P26: 0 | Q26: 0 | R26: 0 | S26: 0 | T26: 0 | U26: 0 | V26: 0 | W26: 0 | X26: 0 | Y26: 0 | Z26: 0 | AA26: 0 | AB26: 0 | AC26: 0 | AD26: 0 | AE26: 0 | AF26: 0 | AG26: 0 | AH26: 0 | AI26: 0 | AJ26: 0 | AK26: 0 | AL26: 0 | AM26: 0 | AN26: 0 | AO26: 0 | AP26: 0 | AQ26: 0 | AR26: 0 | AS26: 0 | AT26: 0 | AU26: 0 | AV26: 0 | AW26: 0 | AX26: 0 | AY26: 0 | AZ26: 0 | BA26: 0 | BB26: 0 | BC26: 0 | BD26: 0 | BE26: 0 | BF26: 0 | BG26: 0 | BH26: 0 | BI26: 0 | BJ26: 0 | BK26: 0 | BL26: 0 | BM26: 0 | BN26: 0 | BO26: 0 | BP26: 0 | BQ26: 0 | BR26: 0 | BS26: 0 | BT26: 0 | BU26: 0 | BV26: 0 | BW26: 0 | BX26: 0 | BY26: 0 | BZ26: 0 | CA26: 0 | CB26: 0 | CC26: 0 | CD26: 0 | CE26: 0 | CF26: 0 | CG26: 0 | CH26: 0 | CI26: 0 | CJ26: 0 | CK26: 0 | CL26: 0 | CM26: 0 | CN26: 0 | CO26: 0 | CP26: 0 | CQ26: 0 | CR26: 0 | CS26: 0 | CT26: 0 | CU26: 0 | CV26: 0 | CW26: 0 | CX26: 0 | CY26: 0 | CZ26: 0 | DA26: 0 | DB26: 0 | DC26: 0 | DD26: 0 | DE26: 0 | DF26: 0 | DG26: 0 | DH26: 0
C27: > 22 kV & < = 66 kV; Steel | D27: 60 | E27: 10 | F27: 0 | G27: 0 | H27: 0 | I27: 0 | J27: 0 | K27: 0 | L27: 0 | M27: 0 | N27: 0 | O27: 0 | P27: 0 | Q27: 0 | R27: 0 | S27: 0 | T27: 0 | U27: 0 | V27: 0 | W27: 0 | X27: 0 | Y27: 0 | Z27: 0 | AA27: 0 | AB27: 0 | AC27: 0 | AD27: 0 | AE27: 0 | AF27: 0 | AG27: 0 | AH27: 0 | AI27: 0 | AJ27: 0 | AK27: 0 | AL27: 0 | AM27: 0 | AN27: 0 | AO27: 0 | AP27: 0 | AQ27: 0 | AR27: 0 | AS27: 0 | AT27: 0 | AU27: 0 | AV27: 0 | AW27: 0 | AX27: 0 | AY27: 0 | AZ27: 0 | BA27: 0 | BB27: 0 | BC27: 0 | BD27: 0 | BE27: 0 | BF27: 0 | BG27: 0 | BH27: 0 | BI27: 0 | BJ27: 0 | BK27: 0 | BL27: 0 | BM27: 0 | BN27: 0 | BO27: 0 | BP27: 0 | BQ27: 0 | BR27: 0 | BS27: 0 | BT27: 0 | BU27: 0 | BV27: 0 | BW27: 0 | BX27: 0 | BY27: 0 | BZ27: 0 | CA27: 0 | CB27: 0 | CC27: 0 | CD27: 0 | CE27: 0 | CF27: 0 | CG27: 0 | CH27: 0 | CI27: 0 | CJ27: 0 | CK27: 0 | CL27: 0 | CM27: 0 | CN27: 0 | CO27: 0 | CP27: 0 | CQ27: 0 | CR27: 0 | CS27: 0 | CT27: 0 | CU27: 0 | CV27: 0 | CW27: 0 | CX27: 0 | CY27: 0 | CZ27: 0 | DA27: 0 | DB27: 0 | DC27: 0 | DD27: 0 | DE27: 0 | DF27: 0 | DG27: 0 | DH27: 0
C28: > 66 kV & < = 132 kV; Steel | D28: 60 | E28: 10 | F28: 0 | G28: 0 | H28: 0 | I28: 0 | J28: 0 | K28: 0 | L28: 0 | M28: 0 | N28: 0 | O28: 0 | P28: 0 | Q28: 0 | R28: 0 | S28: 0 | T28: 0 | U28: 0 | V28: 0 | W28: 0 | X28: 1 | Y28: 0 | Z28: 0 | AA28: 0 | AB28: 56 | AC28: 0 | AD28: 0 | AE28: 0 | AF28: 0 | AG28: 0 | AH28: 0 | AI28: 0 | AJ28: 0 | AK28: 0 | AL28: 0 | AM28: 0 | AN28: 0 | AO28: 0 | AP28: 18 | AQ28: 0 | AR28: 0 | AS28: 0 | AT28: 0 | AU28: 0 | AV28: 0 | AW28: 0 | AX28: 0 | AY28: 0 | AZ28: 0 | BA28: 0 | BB28: 126 | BC28: 0 | BD28: 0 | BE28: 0 | BF28: 0 | BG28: 0 | BH28: 0 | BI28: 0 | BJ28: 0 | BK28: 0 | BL28: 0 | BM28: 0 | BN28: 0 | BO28: 0 | BP28: 0 | BQ28: 0 | BR28: 0 | BS28: 0 | BT28: 0 | BU28: 0 | BV28: 0 | BW28: 0 | BX28: 0 | BY28: 0 | BZ28: 0 | CA28: 0 | CB28: 0 | CC28: 0 | CD28: 0 | CE28: 0 | CF28: 0 | CG28: 0 | CH28: 0 | CI28: 0 | CJ28: 0 | CK28: 0 | CL28: 0 | CM28: 0 | CN28: 0 | CO28: 0 | CP28: 0 | CQ28: 0 | CR28: 0 | CS28: 0 | CT28: 0 | CU28: 0 | CV28: 0 | CW28: 0 | CX28: 0 | CY28: 0 | CZ28: 0 | DA28: 0 | DB28: 0 | DC28: 0 | DD28: 0 | DE28: 0 | DF28: 0 | DG28: 0 | DH28: 0
C29: > 132 kV; Steel | D29: 60 | E29: 10 | F29: 0 | G29: 0 | H29: 0 | I29: 0 | J29: 0 | K29: 0 | L29: 0 | M29: 0 | N29: 0 | O29: 0 | P29: 0 | Q29: 0 | R29: 0 | S29: 0 | T29: 0 | U29: 0 | V29: 0 | W29: 0 | X29: 0 | Y29: 0 | Z29: 0 | AA29: 0 | AB29: 0 | AC29: 0 | AD29: 0 | AE29: 0 | AF29: 0 | AG29: 0 | AH29: 0 | AI29: 0 | AJ29: 0 | AK29: 0 | AL29: 0 | AM29: 0 | AN29: 0 | AO29: 0 | AP29: 0 | AQ29: 0 | AR29: 0 | AS29: 0 | AT29: 0 | AU29: 0 | AV29: 0 | AW29: 0 | AX29: 0 | AY29: 0 | AZ29: 0 | BA29: 0 | BB29: 0 | BC29: 0 | BD29: 0 | BE29: 0 | BF29: 0 | BG29: 0 | BH29: 0 | BI29: 0 | BJ29: 0 | BK29: 0 | BL29: 0 | BM29: 0 | BN29: 0 | BO29: 0 | BP29: 0 | BQ29: 0 | BR29: 0 | BS29: 0 | BT29: 0 | BU29: 0 | BV29: 0 | BW29: 0 | BX29: 0 | BY29: 0 | BZ29: 0 | CA29: 0 | CB29: 0 | CC29: 0 | CD29: 0 | CE29: 0 | CF29: 0 | CG29: 0 | CH29: 0 | CI29: 0 | CJ29: 0 | CK29: 0 | CL29: 0 | CM29: 0 | CN29: 0 | CO29: 0 | CP29: 0 | CQ29: 0 | CR29: 0 | CS29: 0 | CT29: 0 | CU29: 0 | CV29: 0 | CW29: 0 | CX29: 0 | CY29: 0 | CZ29: 0 | DA29: 0 | DB29: 0 | DC29: 0 | DD29: 0 | DE29: 0 | DF29: 0 | DG29: 0 | DH29: 0
C30: Other | D30: 60 | E30: 10 | F30: 338 | G30: 609 | H30: 350 | I30: 460 | J30: 432 | K30: 517 | L30: 298 | M30: 144 | N30: 4 | O30: 19 | P30: 3 | Q30: 6 | R30: 0 | S30: 0 | T30: 0 | U30: 0 | V30: 0 | W30: 0 | X30: 0 | Y30: 0 | Z30: 0 | AA30: 0 | AB30: 0 | AC30: 0 | AD30: 0 | AE30: 0 | AF30: 0 | AG30: 0 | AH30: 0 | AI30: 0 | AJ30: 0 | AK30: 0 | AL30: 0 | AM30: 0 | AN30: 0 | AO30: 0 | AP30: 0 | AQ30: 0 | AR30: 0 | AS30: 0 | AT30: 0 | AU30: 0 | AV30: 1 | AW30: 1 | AX30: 2 | AY30: 4 | AZ30: 1 | BA30: 0 | BB30: 5 | BC30: 1 | BD30: 4 | BE30: 0 | BF30: 3 | BG30: 0 | BH30: 1 | BI30: 0 | BJ30: 1 | BK30: 0 | BL30: 0 | BM30: 0 | BN30: 0 | BO30: 0 | BP30: 0 | BQ30: 0 | BR30: 0 | BS30: 0 | BT30: 0 | BU30: 0 | BV30: 66 | BW30: 124 | BX30: 42 | BY30: 0 | BZ30: 0 | CA30: 111 | CB30: 10 | CC30: 0 | CD30: 0 | CE30: 0 | CF30: 0 | CG30: 0 | CH30: 0 | CI30: 0 | CJ30: 0 | CK30: 0 | CL30: 0 | CM30: 0 | CN30: 0 | CO30: 0 | CP30: 1 | CQ30: 0 | CR30: 0 | CS30: 0 | CT30: 0 | CU30: 0 | CV30: 0 | CW30: 0 | CX30: 0 | CY30: 0 | CZ30: 0 | DA30: 0 | DB30: 0 | DC30: 0 | DD30: 0 | DE30: 0 | DF30: 0 | DG30: 0 | DH30: 0
B31: OVERHEAD CONDUCTORS BY: HIGHEST OPERATING VOLTAGE; NUMBER OF PHASES (AT HV) | C31: ˂ = 1 kV | D31: 50 | E31: 7 | F31: 1.211413702 | G31: 1.869102809 | H31: 2.910693853 | I31: 3.516571374 | J31: 4.098678527 | K31: 5.548413651 | L31: 4.512404414 | M31: 4.793204052 | N31: 6.811863809 | O31: 8.091271461 | P31: 5.576516731 | Q31: 4.985173905 | R31: 4.396177623 | S31: 1.463470845 | T31: 0.0008249999986 | U31: 0.02122292118 | V31: 0.2595971216 | W31: 0 | X31: 0 | Y31: 0 | Z31: 0 | AA31: 0.2137006271 | AB31: 0 | AC31: 0 | AD31: 0.8728438813 | AE31: 0.3114583573 | AF31: 7.788475378 | AG31: 0.003575 | AH31: 0 | AI31: 25.79355835 | AJ31: 14.61317085 | AK31: 14.17995782 | AL31: 14.72098313 | AM31: 4.523932289 | AN31: 21.0749134 | AO31: 41.69250331 | AP31: 14.07218752 | AQ31: 5.181219695 | AR31: 22.20943051 | AS31: 0 | AT31: 57.22274339 | AU31: 87.35860958 | AV31: 93.14608911 | AW31: 32.9077994 | AX31: 60.22628913 | AY31: 45.4214763 | AZ31: 60.88138937 | BA31: 41.4564417 | BB31: 18.72774187 | BC31: 80.49808779 | BD31: 27.77494217 | BE31: 16.05777213 | BF31: 22.39886446 | BG31: 30.07020604 | BH31: 0 | BI31: 32.38807434 | BJ31: 6.307923081 | BK31: 0.1215271706 | BL31: 40.45756855 | BM31: 0 | BN31: 0 | BO31: 0 | BP31: 0 | BQ31: 0 | BR31: 0 | BS31: 0 | BT31: 3.655774157 | BU31: 0 | BV31: 22.56738121 | BW31: 23.48772826 | BX31: 13.26338649 | BY31: 0 | BZ31: 45.8805722 | CA31: 19.98244811 | CB31: 24.47046346 | CC31: 0 | CD31: 0 | CE31: 0 | CF31: 6.626832562 | CG31: 0 | CH31: 3.982958354 | CI31: 0 | CJ31: 0 | CK31: 0 | CL31: 0 | CM31: 0 | CN31: 0 | CO31: 0 | CP31: 7.499999996e-05 | CQ31: 1.039142746 | CR31: 0 | CS31: 0 | CT31: 0 | CU31: 0 | CV31: 0 | CW31: 0 | CX31: 1.000847417 | CY31: 0 | CZ31: 0 | DA31: 0 | DB31: 0 | DC31: 0 | DD31: 0 | DE31: 0 | DF31: 0 | DG31: 0 | DH31: 0
C32: > 1 kV & < = 11 kV | D32: 0 | E32: 0 | F32: 0.3348589704 | G32: 0.8634233622 | H32: 1.973991879 | I32: 3.832145906 | J32: 0.8728567942 | K32: 3.987196672 | L32: 2.350196661 | M32: 6.854702415 | N32: 8.413412327 | O32: 2.489454059 | P32: 2.924062017 | Q32: 6.142020205 | R32: 0.6385301021 | S32: 0.4660885619 | T32: 1.302498709 | U32: 0 | V32: 6.133622471 | W32: 42.89151252 | X32: 0 | Y32: 0.05354209717 | Z32: 0.5894131811 | AA32: 9.110028851 | AB32: 0.2035248349 | AC32: 0 | AD32: 5.663184277 | AE32: 0.2407625525 | AF32: 0.7644907744 | AG32: 5.019537271 | AH32: 0 | AI32: 6.813837914 | AJ32: 1.118305889 | AK32: 1.742187963 | AL32: 1.141457412 | AM32: 17.37314213 | AN32: 2.329921446 | AO32: 35.06327026 | AP32: 5.993859472 | AQ32: 35.71000892 | AR32: 100.9057837 | AS32: 0 | AT32: 16.49691506 | AU32: 54.15776913 | AV32: 80.43702063 | AW32: 6.890373659 | AX32: 27.20508102 | AY32: 47.46427035 | AZ32: 49.81082704 | BA32: 21.40923057 | BB32: 8.710315148 | BC32: 55.30062031 | BD32: 26.19441432 | BE32: 20.40882673 | BF32: 0.3017568437 | BG32: 33.97816277 | BH32: 0 | BI32: 15.16138437 | BJ32: 10.34660871 | BK32: 0 | BL32: 31.01920774 | BM32: 0 | BN32: 0 | BO32: 0 | BP32: 0 | BQ32: 0 | BR32: 0 | BS32: 0 | BT32: 14.97147356 | BU32: 0 | BV32: 8.326937748 | BW32: 11.61265082 | BX32: 9.493181611 | BY32: 0 | BZ32: 36.89373679 | CA32: 19.53148723 | CB32: 23.34181336 | CC32: 0 | CD32: 0 | CE32: 0 | CF32: 5.171349667 | CG32: 0 | CH32: 3.024678213 | CI32: 0 | CJ32: 0 | CK32: 0 | CL32: 0 | CM32: 0 | CN32: 0 | CO32: 0 | CP32: 0 | CQ32: 0.4381210587 | CR32: 0 | CS32: 0 | CT32: 0 | CU32: 0 | CV32: 0 | CW32: 0 | CX32: 6.85592398 | CY32: 0 | CZ32: 0 | DA32: 0 | DB32: 0 | DC32: 0 | DD32: 0 | DE32: 0 | DF32: 0 | DG32: 0 | DH32: 0
C33: ˃ 11 kV & < = 22 kV ; SWER | D33: 0 | E33: 0 | F33: 0 | G33: 0 | H33: 0 | I33: 0 | J33: 0 | K33: 0 | L33: 0 | M33: 0 | N33: 0 | O33: 0 | P33: 0 | Q33: 0 | R33: 0 | S33: 0 | T33: 0 | U33: 0 | V33: 0 | W33: 0 | X33: 0 | Y33: 0 | Z33: 0 | AA33: 0 | AB33: 0 | AC33: 0 | AD33: 0 | AE33: 0 | AF33: 0 | AG33: 0 | AH33: 0 | AI33: 0 | AJ33: 0 | AK33: 0 | AL33: 0 | AM33: 0 | AN33: 0 | AO33: 0 | AP33: 0 | AQ33: 0 | AR33: 0 | AS33: 0 | AT33: 0 | AU33: 0 | AV33: 0 | AW33: 0 | AX33: 0 | AY33: 0 | AZ33: 0 | BA33: 0 | BB33: 0 | BC33: 0 | BD33: 0 | BE33: 0 | BF33: 0 | BG33: 0 | BH33: 0 | BI33: 0 | BJ33: 0 | BK33: 0 | BL33: 0 | BM33: 0 | BN33: 0 | BO33: 0 | BP33: 0 | BQ33: 0 | BR33: 0 | BS33: 0 | BT33: 0 | BU33: 0 | BV33: 0 | BW33: 0 | BX33: 0 | BY33: 0 | BZ33: 0 | CA33: 0 | CB33: 0 | CC33: 0 | CD33: 0 | CE33: 0 | CF33: 0 | CG33: 0 | CH33: 0 | CI33: 0 | CJ33: 0 | CK33: 0 | CL33: 0 | CM33: 0 | CN33: 0 | CO33: 0 | CP33: 0 | CQ33: 0 | CR33: 0 | CS33: 0 | CT33: 0 | CU33: 0 | CV33: 0 | CW33: 0 | CX33: 0 | CY33: 0 | CZ33: 0 | DA33: 0 | DB33: 0 | DC33: 0 | DD33: 0 | DE33: 0 | DF33: 0 | DG33: 0 | DH33: 0
C34: ˃ 11 kV & < = 22 kV ; Single-Phase | D34: 50 | E34: 7 | F34: 0 | G34: 0 | H34: 0 | I34: 0 | J34: 0 | K34: 0 | L34: 0 | M34: 0 | N34: 0 | O34: 0 | P34: 0 | Q34: 0 | R34: 0 | S34: 0 | T34: 0 | U34: 0 | V34: 0 | W34: 0 | X34: 0 | Y34: 0 | Z34: 0 | AA34: 0 | AB34: 0 | AC34: 0 | AD34: 0 | AE34: 0 | AF34: 0 | AG34: 0 | AH34: 0 | AI34: 0 | AJ34: 0 | AK34: 0 | AL34: 0 | AM34: 0 | AN34: 0 | AO34: 0 | AP34: 0 | AQ34: 0 | AR34: 0 | AS34: 0 | AT34: 0 | AU34: 0 | AV34: 0 | AW34: 0 | AX34: 0 | AY34: 0 | AZ34: 0 | BA34: 0 | BB34: 0 | BC34: 0 | BD34: 0 | BE34: 0 | BF34: 0 | BG34: 0 | BH34: 0 | BI34: 0 | BJ34: 0 | BK34: 0 | BL34: 0 | BM34: 0 | BN34: 0 | BO34: 0 | BP34: 0 | BQ34: 0 | BR34: 0 | BS34: 0 | BT34: 0 | BU34: 0 | BV34: 0 | BW34: 0 | BX34: 0 | BY34: 0 | BZ34: 0 | CA34: 0 | CB34: 0 | CC34: 0 | CD34: 0 | CE34: 0 | CF34: 0 | CG34: 0 | CH34: 0 | CI34: 0 | CJ34: 0 | CK34: 0 | CL34: 0 | CM34: 0 | CN34: 0 | CO34: 0 | CP34: 0 | CQ34: 0 | CR34: 0 | CS34: 0 | CT34: 0 | CU34: 0 | CV34: 0 | CW34: 0 | CX34: 0 | CY34: 0 | CZ34: 0 | DA34: 0 | DB34: 0 | DC34: 0 | DD34: 0 | DE34: 0 | DF34: 0 | DG34: 0 | DH34: 0
C35: ˃ 11 kV & < = 22 kV ; Multiple-Phase | D35: 50 | E35: 7 | F35: 0 | G35: 0 | H35: 0 | I35: 0.5830117953 | J35: 0 | K35: 0 | L35: 0 | M35: 0 | N35: 0 | O35: 0.04372044725 | P35: 0 | Q35: 0 | R35: 0.5876606658 | S35: 0 | T35: 0 | U35: 0 | V35: 0 | W35: 0 | X35: 0 | Y35: 0 | Z35: 0 | AA35: 22.00358306 | AB35: 0 | AC35: 0 | AD35: 0 | AE35: 0 | AF35: 0 | AG35: 0 | AH35: 0 | AI35: 0 | AJ35: 0 | AK35: 0 | AL35: 0 | AM35: 0 | AN35: 0 | AO35: 0 | AP35: 0 | AQ35: 0 | AR35: 0 | AS35: 0 | AT35: 0 | AU35: 0 | AV35: 0 | AW35: 0 | AX35: 0 | AY35: 10.47897791 | AZ35: 0 | BA35: 0 | BB35: 0 | BC35: 0 | BD35: 0 | BE35: 0.1915036913 | BF35: 0 | BG35: 0 | BH35: 0 | BI35: 0 | BJ35: 0 | BK35: 0 | BL35: 0 | BM35: 0 | BN35: 0 | BO35: 0 | BP35: 0 | BQ35: 0 | BR35: 0 | BS35: 0 | BT35: 0 | BU35: 0 | BV35: 0 | BW35: 0 | BX35: 0 | BY35: 0 | BZ35: 0 | CA35: 0 | CB35: 0 | CC35: 0 | CD35: 0 | CE35: 0 | CF35: 0 | CG35: 0 | CH35: 0 | CI35: 0 | CJ35: 0 | CK35: 0 | CL35: 0 | CM35: 0 | CN35: 0 | CO35: 0 | CP35: 0 | CQ35: 0 | CR35: 0 | CS35: 0 | CT35: 0 | CU35: 0 | CV35: 0 | CW35: 0 | CX35: 0 | CY35: 0 | CZ35: 0 | DA35: 0 | DB35: 0 | DC35: 0 | DD35: 0 | DE35: 0 | DF35: 0 | DG35: 0 | DH35: 0
C36: > 22 kV & < = 66 kV | D36: 50 | E36: 7 | F36: 0 | G36: 0 | H36: 0 | I36: 0 | J36: 0 | K36: 0 | L36: 0 | M36: 0 | N36: 0 | O36: 0 | P36: 0 | Q36: 0 | R36: 0 | S36: 0 | T36: 0 | U36: 0 | V36: 0 | W36: 0 | X36: 0 | Y36: 0 | Z36: 0 | AA36: 0 | AB36: 0 | AC36: 0 | AD36: 0 | AE36: 0 | AF36: 0 | AG36: 0 | AH36: 0 | AI36: 0 | AJ36: 0 | AK36: 0 | AL36: 0 | AM36: 0 | AN36: 0 | AO36: 0 | AP36: 0 | AQ36: 0 | AR36: 0 | AS36: 0 | AT36: 0 | AU36: 0.1469937375 | AV36: 0 | AW36: 0 | AX36: 0 | AY36: 0 | AZ36: 0 | BA36: 0 | BB36: 0 | BC36: 0 | BD36: 0 | BE36: 0 | BF36: 0 | BG36: 0 | BH36: 0 | BI36: 0 | BJ36: 7.156729694 | BK36: 0 | BL36: 0 | BM36: 0 | BN36: 0 | BO36: 0 | BP36: 0 | BQ36: 0 | BR36: 0 | BS36: 0 | BT36: 0 | BU36: 0 | BV36: 0 | BW36: 0 | BX36: 0 | BY36: 0 | BZ36: 0 | CA36: 0 | CB36: 0 | CC36: 0 | CD36: 0 | CE36: 0 | CF36: 0 | CG36: 0 | CH36: 0 | CI36: 0 | CJ36: 0 | CK36: 0 | CL36: 0 | CM36: 0 | CN36: 0 | CO36: 0 | CP36: 0.03700000001 | CQ36: 0 | CR36: 0 | CS36: 0 | CT36: 0 | CU36: 0 | CV36: 0 | CW36: 0 | CX36: 0 | CY36: 0 | CZ36: 0 | DA36: 0 | DB36: 0 | DC36: 0 | DD36: 0 | DE36: 0 | DF36: 0 | DG36: 0 | DH36: 0
C37: > 66 kV & < = 132 kV | D37: 0 | E37: 0 | F37: 0 | G37: 0 | H37: 0.06405381115 | I37: 0 | J37: 30.44683957 | K37: 0 | L37: 0 | M37: 0 | N37: 0 | O37: 0 | P37: 0 | Q37: 0 | R37: 0 | S37: 0 | T37: 0 | U37: 0 | V37: 0 | W37: 0 | X37: 0 | Y37: 0 | Z37: 0 | AA37: 0 | AB37: 26.29454371 | AC37: 0 | AD37: 0 | AE37: 14.13405919 | AF37: 0 | AG37: 13.14203483 | AH37: 19.29626036 | AI37: 0 | AJ37: 0.06600002012 | AK37: 0 | AL37: 0 | AM37: 0 | AN37: 0 | AO37: 0 | AP37: 28.99755862 | AQ37: 0 | AR37: 0 | AS37: 0 | AT37: 14.9537495 | AU37: 0 | AV37: 0 | AW37: 0 | AX37: 0 | AY37: 0 | AZ37: 0 | BA37: 0 | BB37: 41.96868365 | BC37: 0 | BD37: 0.08500000023 | BE37: 0 | BF37: 0 | BG37: 0 | BH37: 0 | BI37: 0 | BJ37: 0 | BK37: 0 | BL37: 0 | BM37: 0 | BN37: 0 | BO37: 0 | BP37: 0 | BQ37: 0 | BR37: 0 | BS37: 0 | BT37: 0 | BU37: 0 | BV37: 0 | BW37: 0 | BX37: 0 | BY37: 0 | BZ37: 0 | CA37: 0 | CB37: 0 | CC37: 0 | CD37: 0 | CE37: 0 | CF37: 0 | CG37: 0 | CH37: 0 | CI37: 0 | CJ37: 0 | CK37: 0 | CL37: 0 | CM37: 0 | CN37: 0 | CO37: 0 | CP37: 0.3523809987 | CQ37: 0 | CR37: 0 | CS37: 0 | CT37: 0 | CU37: 0 | CV37: 0 | CW37: 0 | CX37: 0 | CY37: 0 | CZ37: 0 | DA37: 0 | DB37: 0 | DC37: 0 | DD37: 0 | DE37: 0 | DF37: 0 | DG37: 0 | DH37: 0
C38: > 132 kV | D38: 0 | E38: 0 | F38: 0 | G38: 0 | H38: 0 | I38: 0 | J38: 0 | K38: 0 | L38: 0 | M38: 0 | N38: 0 | O38: 0 | P38: 0 | Q38: 0 | R38: 0 | S38: 0 | T38: 0 | U38: 0 | V38: 0 | W38: 0 | X38: 0 | Y38: 0 | Z38: 0 | AA38: 0 | AB38: 0 | AC38: 0 | AD38: 0 | AE38: 0 | AF38: 0 | AG38: 0 | AH38: 0 | AI38: 0 | AJ38: 0 | AK38: 0 | AL38: 0 | AM38: 0 | AN38: 0 | AO38: 0 | AP38: 0 | AQ38: 0 | AR38: 0 | AS38: 0 | AT38: 0 | AU38: 0 | AV38: 0 | AW38: 0 | AX38: 0 | AY38: 0 | AZ38: 0 | BA38: 0 | BB38: 0 | BC38: 0 | BD38: 0 | BE38: 0 | BF38: 0 | BG38: 0 | BH38: 0 | BI38: 0 | BJ38: 0 | BK38: 0 | BL38: 0 | BM38: 0 | BN38: 0 | BO38: 0 | BP38: 0 | BQ38: 0 | BR38: 0 | BS38: 0 | BT38: 0 | BU38: 0 | BV38: 0 | BW38: 0 | BX38: 0 | BY38: 0 | BZ38: 0 | CA38: 0 | CB38: 0 | CC38: 0 | CD38: 0 | CE38: 0 | CF38: 0 | CG38: 0 | CH38: 0 | CI38: 0 | CJ38: 0 | CK38: 0 | CL38: 0 | CM38: 0 | CN38: 0 | CO38: 0 | CP38: 0 | CQ38: 0 | CR38: 0 | CS38: 0 | CT38: 0 | CU38: 0 | CV38: 0 | CW38: 0 | CX38: 0 | CY38: 0 | CZ38: 0 | DA38: 0 | DB38: 0 | DC38: 0 | DD38: 0 | DE38: 0 | DF38: 0 | DG38: 0 | DH38: 0
C39: Other | D39: 0 | E39: 0 | F39: 0 | G39: 0 | H39: 0 | I39: 0 | J39: 0 | K39: 0 | L39: 0 | M39: 0 | N39: 0 | O39: 0 | P39: 0 | Q39: 0 | R39: 0 | S39: 0 | T39: 0 | U39: 0 | V39: 0 | W39: 0 | X39: 0 | Y39: 0 | Z39: 0 | AA39: 0 | AB39: 0 | AC39: 0 | AD39: 0 | AE39: 0 | AF39: 0 | AG39: 0 | AH39: 0 | AI39: 0 | AJ39: 0 | AK39: 0 | AL39: 0 | AM39: 0 | AN39: 0 | AO39: 0 | AP39: 0 | AQ39: 0 | AR39: 0 | AS39: 0 | AT39: 0 | AU39: 0 | AV39: 0 | AW39: 0 | AX39: 0 | AY39: 0 | AZ39: 0 | BA39: 0 | BB39: 0 | BC39: 0 | BD39: 0 | BE39: 0 | BF39: 0 | BG39: 0 | BH39: 0 | BI39: 0 | BJ39: 0 | BK39: 0 | BL39: 0 | BM39: 0 | BN39: 0 | BO39: 0 | BP39: 0 | BQ39: 0 | BR39: 0 | BS39: 0 | BT39: 0 | BU39: 0 | BV39: 0 | BW39: 0 | BX39: 0 | BY39: 0 | BZ39: 0 | CA39: 0 | CB39: 0 | CC39: 0 | CD39: 0 | CE39: 0 | CF39: 0 | CG39: 0 | CH39: 0 | CI39: 0 | CJ39: 0 | CK39: 0 | CL39: 0 | CM39: 0 | CN39: 0 | CO39: 0 | CP39: 0 | CQ39: 0 | CR39: 0 | CS39: 0 | CT39: 0 | CU39: 0 | CV39: 0 | CW39: 0 | CX39: 0 | CY39: 0 | CZ39: 0 | DA39: 0 | DB39: 0 | DC39: 0 | DD39: 0 | DE39: 0 | DF39: 0 | DG39: 0 | DH39: 0
B40: UNDERGROUND CABLES BY: HIGHEST OPERATING VOLTAGE | C40: ˂ = 1 kV | D40: 40 | E40: 6 | F40: 48.55804642 | G40: 21.80430414 | H40: 38.5702088 | I40: 28.58001036 | J40: 66.1078504 | K40: 52.40555599 | L40: 39.87483569 | M40: 49.64255865 | N40: 34.0181661 | O40: 19.22755992 | P40: 16.16190208 | Q40: 30.06806951 | R40: 23.2307144 | S40: 37.43799685 | T40: 6.21291249 | U40: 0 | V40: 0 | W40: 5.151382301 | X40: 0 | Y40: 0.1577762498 | Z40: 0.6635919393 | AA40: 0.3621294702 | AB40: 19.16467564 | AC40: 0 | AD40: 73.13126928 | AE40: 72.07935969 | AF40: 61.11155816 | AG40: 10.03778354 | AH40: 0 | AI40: 82.43616373 | AJ40: 33.49548801 | AK40: 14.32887346 | AL40: 10.07659881 | AM40: 0.9172933727 | AN40: 31.39702989 | AO40: 16.63166375 | AP40: 26.68286696 | AQ40: 18.99010911 | AR40: 15.58631648 | AS40: 0 | AT40: 20.12406154 | AU40: 27.06646977 | AV40: 37.02760595 | AW40: 50.18320726 | AX40: 26.23925685 | AY40: 16.94943765 | AZ40: 14.99583905 | BA40: 10.0382219 | BB40: 17.67921511 | BC40: 19.51765781 | BD40: 8.2537232 | BE40: 1.483605096 | BF40: 2.022719901 | BG40: 5.623174608 | BH40: 0 | BI40: 5.161313788 | BJ40: 5.158516291 | BK40: 3.347175805 | BL40: 30.45982962 | BM40: 0 | BN40: 0.03043346321 | BO40: 0 | BP40: 0 | BQ40: 0 | BR40: 0 | BS40: 0 | BT40: 0 | BU40: 0 | BV40: 4.147733396 | BW40: 4.872641154 | BX40: 9.660904221 | BY40: 0 | BZ40: 10.33684254 | CA40: 18.00614763 | CB40: 26.82512367 | CC40: 0 | CD40: 0 | CE40: 0 | CF40: 5.22033206 | CG40: 0 | CH40: 5.035045494 | CI40: 0 | CJ40: 0 | CK40: 0 | CL40: 0 | CM40: 0 | CN40: 0 | CO40: 0 | CP40: 0.05864550958 | CQ40: 4.577060666 | CR40: 0 | CS40: 0 | CT40: 0 | CU40: 0 | CV40: 0 | CW40: 0 | CX40: 2.153045178 | CY40: 0 | CZ40: 0 | DA40: 0 | DB40: 0 | DC40: 0 | DD40: 0 | DE40: 0 | DF40: 0 | DG40: 0 | DH40: 0
C41: > 1 kV & < = 11 kV | D41: 50 | E41: 7 | F41: 17.69393845 | G41: 21.65402284 | H41: 35.94635038 | I41: 37.23959007 | J41: 54.79888562 | K41: 37.50568791 | L41: 34.4546895 | M41: 38.67739337 | N41: 29.40827112 | O41: 18.92136316 | P41: 23.04230291 | Q41: 29.53239405 | R41: 21.53052132 | S41: 18.06364749 | T41: 3.743008351 | U41: 0 | V41: 3.018500291 | W41: 5.554835195 | X41: 0 | Y41: 3.213526703 | Z41: 28.56765032 | AA41: 27.64336916 | AB41: 2.880370416 | AC41: 0 | AD41: 35.63567446 | AE41: 46.98448494 | AF41: 37.0641368 | AG41: 20.04375043 | AH41: 0 | AI41: 48.95659555 | AJ41: 12.37333035 | AK41: 19.98429662 | AL41: 8.668542991 | AM41: 1.095392092 | AN41: 31.91136016 | AO41: 39.79311459 | AP41: 3.238670077 | AQ41: 26.35671165 | AR41: 29.19187982 | AS41: 0 | AT41: 27.41405113 | AU41: 104.4290571 | AV41: 52.98585481 | AW41: 32.43334164 | AX41: 23.53737767 | AY41: 27.21919764 | AZ41: 27.35876517 | BA41: 26.24255411 | BB41: 22.1227548 | BC41: 49.2587823 | BD41: 3.492586782 | BE41: 10.96468445 | BF41: 4.593807943 | BG41: 6.983024648 | BH41: 0 | BI41: 8.409704809 | BJ41: 6.482087893 | BK41: 5.895336976 | BL41: 29.22307916 | BM41: 0 | BN41: 0 | BO41: 0 | BP41: 0 | BQ41: 0 | BR41: 0 | BS41: 0 | BT41: 0 | BU41: 0 | BV41: 2.718036363 | BW41: 6.50723358 | BX41: 19.31957392 | BY41: 0 | BZ41: 28.81016658 | CA41: 21.0237503 | CB41: 48.19273126 | CC41: 0 | CD41: 0 | CE41: 0 | CF41: 0.5678188097 | CG41: 0 | CH41: 15.75113066 | CI41: 0 | CJ41: 0 | CK41: 0 | CL41: 0 | CM41: 0 | CN41: 0 | CO41: 0 | CP41: 1.795933367 | CQ41: 54.8628493 | CR41: 0 | CS41: 0 | CT41: 0 | CU41: 0 | CV41: 0 | CW41: 0 | CX41: 17.90071041 | CY41: 0 | CZ41: 0 | DA41: 0 | DB41: 0 | DC41: 0 | DD41: 0 | DE41: 0 | DF41: 0 | DG41: 0 | DH41: 0
C42: > 11 kV & < = 22 kV | D42: 50 | E42: 7 | F42: 0 | G42: 0 | H42: 0.03199154188 | I42: 0.4340192105 | J42: 0 | K42: 0 | L42: 0.1010120285 | M42: 0 | N42: 0.01836693486 | O42: 0 | P42: 0 | Q42: 0 | R42: 0 | S42: 0.01980055105 | T42: 0 | U42: 0 | V42: 0 | W42: 0 | X42: 0 | Y42: 0 | Z42: 0 | AA42: 1.716007488 | AB42: 0 | AC42: 0 | AD42: 0 | AE42: 0 | AF42: 0 | AG42: 0 | AH42: 0 | AI42: 0 | AJ42: 0 | AK42: 0 | AL42: 0 | AM42: 0 | AN42: 0 | AO42: 0 | AP42: 0 | AQ42: 0 | AR42: 0 | AS42: 0 | AT42: 0 | AU42: 0 | AV42: 0 | AW42: 0 | AX42: 0 | AY42: 0 | AZ42: 0 | BA42: 0 | BB42: 0 | BC42: 0 | BD42: 0 | BE42: 0.1412503055 | BF42: 0 | BG42: 0 | BH42: 0 | BI42: 0 | BJ42: 0 | BK42: 0 | BL42: 0 | BM42: 0 | BN42: 0 | BO42: 0 | BP42: 0 | BQ42: 0 | BR42: 0 | BS42: 0 | BT42: 0 | BU42: 0 | BV42: 0 | BW42: 0 | BX42: 0 | BY42: 0 | BZ42: 0 | CA42: 0.002249999989 | CB42: 0 | CC42: 0 | CD42: 0 | CE42: 0 | CF42: 0 | CG42: 0 | CH42: 0 | CI42: 0 | CJ42: 0 | CK42: 0 | CL42: 0 | CM42: 0 | CN42: 0 | CO42: 0 | CP42: 0 | CQ42: 0.003749999995 | CR42: 0 | CS42: 0 | CT42: 0 | CU42: 0 | CV42: 0 | CW42: 0 | CX42: 0 | CY42: 0 | CZ42: 0 | DA42: 0 | DB42: 0 | DC42: 0 | DD42: 0 | DE42: 0 | DF42: 0 | DG42: 0 | DH42: 0
C43: > 22 kV & < = 33 kV | D43: 0 | E43: 0 | F43: 0 | G43: 0 | H43: 0 | I43: 0 | J43: 0 | K43: 0 | L43: 0 | M43: 0 | N43: 0 | O43: 0 | P43: 0 | Q43: 0 | R43: 0 | S43: 0 | T43: 0 | U43: 0 | V43: 0 | W43: 0 | X43: 0 | Y43: 0 | Z43: 0 | AA43: 0 | AB43: 0 | AC43: 0 | AD43: 0 | AE43: 0 | AF43: 0 | AG43: 0 | AH43: 0 | AI43: 0 | AJ43: 0 | AK43: 0 | AL43: 0 | AM43: 0 | AN43: 0 | AO43: 0 | AP43: 0 | AQ43: 0 | AR43: 0 | AS43: 0 | AT43: 0 | AU43: 0 | AV43: 0 | AW43: 0 | AX43: 0 | AY43: 0 | AZ43: 0 | BA43: 0 | BB43: 0 | BC43: 0 | BD43: 0 | BE43: 0 | BF43: 0 | BG43: 0 | BH43: 0 | BI43: 0 | BJ43: 0 | BK43: 0 | BL43: 0 | BM43: 0 | BN43: 0 | BO43: 0 | BP43: 0 | BQ43: 0 | BR43: 0 | BS43: 0 | BT43: 0 | BU43: 0 | BV43: 0 | BW43: 0 | BX43: 0 | BY43: 0 | BZ43: 0 | CA43: 0 | CB43: 0 | CC43: 0 | CD43: 0 | CE43: 0 | CF43: 0 | CG43: 0 | CH43: 0 | CI43: 0 | CJ43: 0 | CK43: 0 | CL43: 0 | CM43: 0 | CN43: 0 | CO43: 0 | CP43: 0 | CQ43: 0 | CR43: 0 | CS43: 0 | CT43: 0 | CU43: 0 | CV43: 0 | CW43: 0 | CX43: 0 | CY43: 0 | CZ43: 0 | DA43: 0 | DB43: 0 | DC43: 0 | DD43: 0 | DE43: 0 | DF43: 0 | DG43: 0 | DH43: 0
C44: > 33 kV & < = 66 kV | D44: 0 | E44: 0 | F44: 0 | G44: 0 | H44: 0 | I44: 0 | J44: 0 | K44: 0 | L44: 0 | M44: 0 | N44: 0 | O44: 0 | P44: 0 | Q44: 0 | R44: 0 | S44: 0 | T44: 0 | U44: 0 | V44: 0 | W44: 0 | X44: 0 | Y44: 0 | Z44: 0 | AA44: 0 | AB44: 0 | AC44: 0 | AD44: 0 | AE44: 0 | AF44: 0 | AG44: 0 | AH44: 0 | AI44: 0 | AJ44: 0 | AK44: 0 | AL44: 0 | AM44: 0 | AN44: 0 | AO44: 0 | AP44: 0 | AQ44: 0 | AR44: 0 | AS44: 0 | AT44: 0 | AU44: 0 | AV44: 0 | AW44: 0 | AX44: 0 | AY44: 0 | AZ44: 0 | BA44: 0 | BB44: 0 | BC44: 0 | BD44: 0 | BE44: 0 | BF44: 0 | BG44: 0 | BH44: 0 | BI44: 0 | BJ44: 0 | BK44: 0 | BL44: 0 | BM44: 0 | BN44: 0 | BO44: 0 | BP44: 0 | BQ44: 0 | BR44: 0 | BS44: 0 | BT44: 0 | BU44: 0 | BV44: 0 | BW44: 0 | BX44: 0 | BY44: 0 | BZ44: 0 | CA44: 0 | CB44: 0 | CC44: 0 | CD44: 0 | CE44: 0 | CF44: 0 | CG44: 0 | CH44: 0 | CI44: 0 | CJ44: 0 | CK44: 0 | CL44: 0 | CM44: 0 | CN44: 0 | CO44: 0 | CP44: 0 | CQ44: 0 | CR44: 0 | CS44: 0 | CT44: 0 | CU44: 0 | CV44: 0 | CW44: 0 | CX44: 0 | CY44: 0 | CZ44: 0 | DA44: 0 | DB44: 0 | DC44: 0 | DD44: 0 | DE44: 0 | DF44: 0 | DG44: 0 | DH44: 0
C45: > 66 kV & < = 132 kV | D45: 50 | E45: 7 | F45: 0 | G45: 0 | H45: 3.047179218 | I45: 0 | J45: 0 | K45: 0 | L45: 0 | M45: 0 | N45: 0 | O45: 0 | P45: 0 | Q45: 0 | R45: 0 | S45: 2.947124462 | T45: 0 | U45: 0 | V45: 0 | W45: 0 | X45: 0 | Y45: 0 | Z45: 0 | AA45: 0 | AB45: 0 | AC45: 0 | AD45: 0 | AE45: 0 | AF45: 0 | AG45: 0 | AH45: 0 | AI45: 0 | AJ45: 0 | AK45: 0 | AL45: 0 | AM45: 0 | AN45: 0 | AO45: 0 | AP45: 0 | AQ45: 0 | AR45: 0 | AS45: 0 | AT45: 0 | AU45: 0 | AV45: 0 | AW45: 0 | AX45: 0 | AY45: 0 | AZ45: 0 | BA45: 0 | BB45: 0 | BC45: 0 | BD45: 0 | BE45: 0 | BF45: 0 | BG45: 0 | BH45: 0 | BI45: 0 | BJ45: 0 | BK45: 0 | BL45: 0 | BM45: 0 | BN45: 0 | BO45: 0 | BP45: 0 | BQ45: 0 | BR45: 0 | BS45: 0 | BT45: 0 | BU45: 0 | BV45: 0 | BW45: 0 | BX45: 0 | BY45: 0 | BZ45: 0 | CA45: 0 | CB45: 0 | CC45: 0 | CD45: 0 | CE45: 0 | CF45: 0 | CG45: 0 | CH45: 0 | CI45: 0 | CJ45: 0 | CK45: 0 | CL45: 0 | CM45: 0 | CN45: 0 | CO45: 0 | CP45: 0.02969897461 | CQ45: 0 | CR45: 0 | CS45: 0 | CT45: 0 | CU45: 0 | CV45: 0 | CW45: 0 | CX45: 0 | CY45: 0 | CZ45: 0 | DA45: 0 | DB45: 0 | DC45: 0 | DD45: 0 | DE45: 0 | DF45: 0 | DG45: 0 | DH45: 0
C46: > 132 kV | D46: 0 | E46: 0 | F46: 0 | G46: 0 | H46: 0 | I46: 0 | J46: 0 | K46: 0 | L46: 0 | M46: 0 | N46: 0 | O46: 0 | P46: 0 | Q46: 0 | R46: 0 | S46: 0 | T46: 0 | U46: 0 | V46: 0 | W46: 0 | X46: 0 | Y46: 0 | Z46: 0 | AA46: 0 | AB46: 0 | AC46: 0 | AD46: 0 | AE46: 0 | AF46: 0 | AG46: 0 | AH46: 0 | AI46: 0 | AJ46: 0 | AK46: 0 | AL46: 0 | AM46: 0 | AN46: 0 | AO46: 0 | AP46: 0 | AQ46: 0 | AR46: 0 | AS46: 0 | AT46: 0 | AU46: 0 | AV46: 0 | AW46: 0 | AX46: 0 | AY46: 0 | AZ46: 0 | BA46: 0 | BB46: 0 | BC46: 0 | BD46: 0 | BE46: 0 | BF46: 0 | BG46: 0 | BH46: 0 | BI46: 0 | BJ46: 0 | BK46: 0 | BL46: 0 | BM46: 0 | BN46: 0 | BO46: 0 | BP46: 0 | BQ46: 0 | BR46: 0 | BS46: 0 | BT46: 0 | BU46: 0 | BV46: 0 | BW46: 0 | BX46: 0 | BY46: 0 | BZ46: 0 | CA46: 0 | CB46: 0 | CC46: 0 | CD46: 0 | CE46: 0 | CF46: 0 | CG46: 0 | CH46: 0 | CI46: 0 | CJ46: 0 | CK46: 0 | CL46: 0 | CM46: 0 | CN46: 0 | CO46: 0 | CP46: 0 | CQ46: 0 | CR46: 0 | CS46: 0 | CT46: 0 | CU46: 0 | CV46: 0 | CW46: 0 | CX46: 0 | CY46: 0 | CZ46: 0 | DA46: 0 | DB46: 0 | DC46: 0 | DD46: 0 | DE46: 0 | DF46: 0 | DG46: 0 | DH46: 0
C47: Other | D47: 0 | E47: 0 | F47: 0 | G47: 0 | H47: 0 | I47: 0 | J47: 0 | K47: 0 | L47: 0 | M47: 0 | N47: 0 | O47: 0 | P47: 0 | Q47: 0 | R47: 0 | S47: 0 | T47: 0 | U47: 0 | V47: 0 | W47: 0 | X47: 0 | Y47: 0 | Z47: 0 | AA47: 0 | AB47: 0 | AC47: 0 | AD47: 0 | AE47: 0 | AF47: 0 | AG47: 0 | AH47: 0 | AI47: 0 | AJ47: 0 | AK47: 0 | AL47: 0 | AM47: 0 | AN47: 0 | AO47: 0 | AP47: 0 | AQ47: 0 | AR47: 0 | AS47: 0 | AT47: 0 | AU47: 0 | AV47: 0 | AW47: 0 | AX47: 0 | AY47: 0 | AZ47: 0 | BA47: 0 | BB47: 0 | BC47: 0 | BD47: 0 | BE47: 0 | BF47: 0 | BG47: 0 | BH47: 0 | BI47: 0 | BJ47: 0 | BK47: 0 | BL47: 0 | BM47: 0 | BN47: 0 | BO47: 0 | BP47: 0 | BQ47: 0 | BR47: 0 | BS47: 0 | BT47: 0 | BU47: 0 | BV47: 0 | BW47: 0 | BX47: 0 | BY47: 0 | BZ47: 0 | CA47: 0 | CB47: 0 | CC47: 0 | CD47: 0 | CE47: 0 | CF47: 0 | CG47: 0 | CH47: 0 | CI47: 0 | CJ47: 0 | CK47: 0 | CL47: 0 | CM47: 0 | CN47: 0 | CO47: 0 | CP47: 0 | CQ47: 0 | CR47: 0 | CS47: 0 | CT47: 0 | CU47: 0 | CV47: 0 | CW47: 0 | CX47: 0 | CY47: 0 | CZ47: 0 | DA47: 0 | DB47: 0 | DC47: 0 | DD47: 0 | DE47: 0 | DF47: 0 | DG47: 0 | DH47: 0
B48: SERVICE LINES BY: CONNECTION VOLTAGE; CUSTOMER TYPE; CONNECTION COMPLEXITY | C48: ˂ = 11 kV ; Residential ; Simple Type | D48: 65/35 | E48: 8/6 | F48: 3417 | G48: 3844 | H48: 3114 | I48: 2610 | J48: 4624 | K48: 4040 | L48: 4948 | M48: 3791 | N48: 3185 | O48: 1552 | P48: 1770 | Q48: 2406 | R48: 1539 | S48: 1839 | T48: 1021 | U48: 2368 | V48: 492 | W48: 477 | X48: 686 | Y48: 790 | Z48: 707 | AA48: 566 | AB48: 943 | AC48: 3088 | AD48: 6096 | AE48: 19543 | AF48: 3210 | AG48: 470 | AH48: 2 | AI48: 10186 | AJ48: 3313 | AK48: 374 | AL48: 545 | AM48: 1 | AN48: 2067 | AO48: 748 | AP48: 1114 | AQ48: 844 | AR48: 768 | AS48: 0 | AT48: 910 | AU48: 13910 | AV48: 8497 | AW48: 7350 | AX48: 3717 | AY48: 7194 | AZ48: 7985 | BA48: 752 | BB48: 9493 | BC48: 2507 | BD48: 6256 | BE48: 108 | BF48: 308 | BG48: 375 | BH48: 1765 | BI48: 134 | BJ48: 2334 | BK48: 0 | BL48: 755 | BM48: 0 | BN48: 481 | BO48: 0 | BP48: 0 | BQ48: 0 | BR48: 0 | BS48: 0 | BT48: 16 | BU48: 0 | BV48: 491 | BW48: 775 | BX48: 397 | BY48: 0 | BZ48: 499 | CA48: 612 | CB48: 733 | CC48: 0 | CD48: 0 | CE48: 0 | CF48: 121 | CG48: 0 | CH48: 48 | CI48: 0 | CJ48: 0 | CK48: 0 | CL48: 0 | CM48: 0 | CN48: 0 | CO48: 0 | CP48: 8197 | CQ48: 16 | CR48: 0 | CS48: 0 | CT48: 0 | CU48: 0 | CV48: 0 | CW48: 0 | CX48: 0 | CY48: 0 | CZ48: 0 | DA48: 0 | DB48: 0 | DC48: 0 | DD48: 0 | DE48: 0 | DF48: 0 | DG48: 0 | DH48: 148
C49: ˂ = 11 kV ; Commercial & Industrial ; Simple Type | D49: 65/35 | E49: 8/6 | F49: 277 | G49: 244 | H49: 223 | I49: 342 | J49: 290 | K49: 461 | L49: 208 | M49: 249 | N49: 348 | O49: 378 | P49: 197 | Q49: 178 | R49: 139 | S49: 350 | T49: 77 | U49: 563 | V49: 5 | W49: 48 | X49: 0 | Y49: 7 | Z49: 5 | AA49: 104 | AB49: 0 | AC49: 93 | AD49: 879 | AE49: 2055 | AF49: 18 | AG49: 45 | AH49: 0 | AI49: 487 | AJ49: 165 | AK49: 36 | AL49: 90 | AM49: 96 | AN49: 183 | AO49: 41 | AP49: 197 | AQ49: 143 | AR49: 10 | AS49: 0 | AT49: 54 | AU49: 841 | AV49: 230 | AW49: 483 | AX49: 99 | AY49: 308 | AZ49: 415 | BA49: 75 | BB49: 622 | BC49: 193 | BD49: 681 | BE49: 17 | BF49: 27 | BG49: 77 | BH49: 125 | BI49: 102 | BJ49: 277 | BK49: 120 | BL49: 491 | BM49: 0 | BN49: 247 | BO49: 0 | BP49: 0 | BQ49: 0 | BR49: 0 | BS49: 0 | BT49: 8 | BU49: 0 | BV49: 22 | BW49: 23 | BX49: 134 | BY49: 0 | BZ49: 88 | CA49: 76 | CB49: 244 | CC49: 0 | CD49: 0 | CE49: 0 | CF49: 82 | CG49: 0 | CH49: 31 | CI49: 0 | CJ49: 0 | CK49: 0 | CL49: 0 | CM49: 0 | CN49: 0 | CO49: 0 | CP49: 2137 | CQ49: 48 | CR49: 0 | CS49: 0 | CT49: 0 | CU49: 0 | CV49: 0 | CW49: 0 | CX49: 72 | CY49: 0 | CZ49: 0 | DA49: 0 | DB49: 0 | DC49: 0 | DD49: 0 | DE49: 0 | DF49: 0 | DG49: 0 | DH49: 1288
C50: ˂ = 11 kV ; Residential ; Complex Type | D50: 0 | E50: 0 | F50: 0 | G50: 0 | H50: 0 | I50: 0 | J50: 0 | K50: 0 | L50: 0 | M50: 0 | N50: 0 | O50: 0 | P50: 0 | Q50: 0 | R50: 0 | S50: 0 | T50: 0 | U50: 0 | V50: 0 | W50: 0 | X50: 0 | Y50: 0 | Z50: 0 | AA50: 0 | AB50: 0 | AC50: 0 | AD50: 0 | AE50: 0 | AF50: 0 | AG50: 0 | AH50: 0 | AI50: 0 | AJ50: 0 | AK50: 0 | AL50: 0 | AM50: 0 | AN50: 0 | AO50: 0 | AP50: 0 | AQ50: 0 | AR50: 0 | AS50: 0 | AT50: 0 | AU50: 0 | AV50: 0 | AW50: 0 | AX50: 0 | AY50: 0 | AZ50: 0 | BA50: 0 | BB50: 0 | BC50: 0 | BD50: 0 | BE50: 0 | BF50: 0 | BG50: 0 | BH50: 0 | BI50: 0 | BJ50: 0 | BK50: 0 | BL50: 0 | BM50: 0 | BN50: 0 | BO50: 0 | BP50: 0 | BQ50: 0 | BR50: 0 | BS50: 0 | BT50: 0 | BU50: 0 | BV50: 0 | BW50: 0 | BX50: 0 | BY50: 0 | BZ50: 0 | CA50: 0 | CB50: 0 | CC50: 0 | CD50: 0 | CE50: 0 | CF50: 0 | CG50: 0 | CH50: 0 | CI50: 0 | CJ50: 0 | CK50: 0 | CL50: 0 | CM50: 0 | CN50: 0 | CO50: 0 | CP50: 0 | CQ50: 0 | CR50: 0 | CS50: 0 | CT50: 0 | CU50: 0 | CV50: 0 | CW50: 0 | CX50: 0 | CY50: 0 | CZ50: 0 | DA50: 0 | DB50: 0 | DC50: 0 | DD50: 0 | DE50: 0 | DF50: 0 | DG50: 0 | DH50: 0
C51: ˂ = 11 kV ; Commercial & Industrial ; Complex Type | D51: 0 | E51: 0 | F51: 0 | G51: 0 | H51: 0 | I51: 0 | J51: 0 | K51: 0 | L51: 0 | M51: 0 | N51: 0 | O51: 0 | P51: 0 | Q51: 0 | R51: 0 | S51: 0 | T51: 0 | U51: 0 | V51: 0 | W51: 0 | X51: 0 | Y51: 0 | Z51: 0 | AA51: 0 | AB51: 0 | AC51: 0 | AD51: 0 | AE51: 0 | AF51: 0 | AG51: 0 | AH51: 0 | AI51: 0 | AJ51: 0 | AK51: 0 | AL51: 0 | AM51: 0 | AN51: 0 | AO51: 0 | AP51: 0 | AQ51: 0 | AR51: 0 | AS51: 0 | AT51: 0 | AU51: 0 | AV51: 0 | AW51: 0 | AX51: 0 | AY51: 0 | AZ51: 0 | BA51: 0 | BB51: 0 | BC51: 0 | BD51: 0 | BE51: 0 | BF51: 0 | BG51: 0 | BH51: 0 | BI51: 0 | BJ51: 0 | BK51: 0 | BL51: 0 | BM51: 0 | BN51: 0 | BO51: 0 | BP51: 0 | BQ51: 0 | BR51: 0 | BS51: 0 | BT51: 0 | BU51: 0 | BV51: 0 | BW51: 0 | BX51: 0 | BY51: 0 | BZ51: 0 | CA51: 0 | CB51: 0 | CC51: 0 | CD51: 0 | CE51: 0 | CF51: 0 | CG51: 0 | CH51: 0 | CI51: 0 | CJ51: 0 | CK51: 0 | CL51: 0 | CM51: 0 | CN51: 0 | CO51: 0 | CP51: 0 | CQ51: 0 | CR51: 0 | CS51: 0 | CT51: 0 | CU51: 0 | CV51: 0 | CW51: 0 | CX51: 0 | CY51: 0 | CZ51: 0 | DA51: 0 | DB51: 0 | DC51: 0 | DD51: 0 | DE51: 0 | DF51: 0 | DG51: 0 | DH51: 0
C52: ˂ = 11 kV ; Subdivision ; Complex Type | D52: 0 | E52: 0 | F52: 0 | G52: 0 | H52: 0 | I52: 0 | J52: 0 | K52: 0 | L52: 0 | M52: 0 | N52: 0 | O52: 0 | P52: 0 | Q52: 0 | R52: 0 | S52: 0 | T52: 0 | U52: 0 | V52: 0 | W52: 0 | X52: 0 | Y52: 0 | Z52: 0 | AA52: 0 | AB52: 0 | AC52: 0 | AD52: 0 | AE52: 0 | AF52: 0 | AG52: 0 | AH52: 0 | AI52: 0 | AJ52: 0 | AK52: 0 | AL52: 0 | AM52: 0 | AN52: 0 | AO52: 0 | AP52: 0 | AQ52: 0 | AR52: 0 | AS52: 0 | AT52: 0 | AU52: 0 | AV52: 0 | AW52: 0 | AX52: 0 | AY52: 0 | AZ52: 0 | BA52: 0 | BB52: 0 | BC52: 0 | BD52: 0 | BE52: 0 | BF52: 0 | BG52: 0 | BH52: 0 | BI52: 0 | BJ52: 0 | BK52: 0 | BL52: 0 | BM52: 0 | BN52: 0 | BO52: 0 | BP52: 0 | BQ52: 0 | BR52: 0 | BS52: 0 | BT52: 0 | BU52: 0 | BV52: 0 | BW52: 0 | BX52: 0 | BY52: 0 | BZ52: 0 | CA52: 0 | CB52: 0 | CC52: 0 | CD52: 0 | CE52: 0 | CF52: 0 | CG52: 0 | CH52: 0 | CI52: 0 | CJ52: 0 | CK52: 0 | CL52: 0 | CM52: 0 | CN52: 0 | CO52: 0 | CP52: 0 | CQ52: 0 | CR52: 0 | CS52: 0 | CT52: 0 | CU52: 0 | CV52: 0 | CW52: 0 | CX52: 0 | CY52: 0 | CZ52: 0 | DA52: 0 | DB52: 0 | DC52: 0 | DD52: 0 | DE52: 0 | DF52: 0 | DG52: 0 | DH52: 0
C53: > 11 kV & < = 22 kV ; Commercial & Industrial | D53: 0 | E53: 0 | F53: 0 | G53: 0 | H53: 0 | I53: 0 | J53: 0 | K53: 0 | L53: 0 | M53: 0 | N53: 0 | O53: 0 | P53: 0 | Q53: 0 | R53: 0 | S53: 0 | T53: 0 | U53: 0 | V53: 0 | W53: 0 | X53: 0 | Y53: 0 | Z53: 0 | AA53: 0 | AB53: 0 | AC53: 0 | AD53: 0 | AE53: 0 | AF53: 0 | AG53: 0 | AH53: 0 | AI53: 0 | AJ53: 0 | AK53: 0 | AL53: 0 | AM53: 0 | AN53: 0 | AO53: 0 | AP53: 0 | AQ53: 0 | AR53: 0 | AS53: 0 | AT53: 0 | AU53: 0 | AV53: 0 | AW53: 0 | AX53: 0 | AY53: 0 | AZ53: 0 | BA53: 0 | BB53: 0 | BC53: 0 | BD53: 0 | BE53: 0 | BF53: 0 | BG53: 0 | BH53: 0 | BI53: 0 | BJ53: 0 | BK53: 0 | BL53: 0 | BM53: 0 | BN53: 0 | BO53: 0 | BP53: 0 | BQ53: 0 | BR53: 0 | BS53: 0 | BT53: 0 | BU53: 0 | BV53: 0 | BW53: 0 | BX53: 0 | BY53: 0 | BZ53: 0 | CA53: 0 | CB53: 0 | CC53: 0 | CD53: 0 | CE53: 0 | CF53: 0 | CG53: 0 | CH53: 0 | CI53: 0 | CJ53: 0 | CK53: 0 | CL53: 0 | CM53: 0 | CN53: 0 | CO53: 0 | CP53: 0 | CQ53: 0 | CR53: 0 | CS53: 0 | CT53: 0 | CU53: 0 | CV53: 0 | CW53: 0 | CX53: 0 | CY53: 0 | CZ53: 0 | DA53: 0 | DB53: 0 | DC53: 0 | DD53: 0 | DE53: 0 | DF53: 0 | DG53: 0 | DH53: 0
C54: > 11 kV & < = 22 kV ; Subdivision | D54: 0 | E54: 0 | F54: 0 | G54: 0 | H54: 0 | I54: 0 | J54: 0 | K54: 0 | L54: 0 | M54: 0 | N54: 0 | O54: 0 | P54: 0 | Q54: 0 | R54: 0 | S54: 0 | T54: 0 | U54: 0 | V54: 0 | W54: 0 | X54: 0 | Y54: 0 | Z54: 0 | AA54: 0 | AB54: 0 | AC54: 0 | AD54: 0 | AE54: 0 | AF54: 0 | AG54: 0 | AH54: 0 | AI54: 0 | AJ54: 0 | AK54: 0 | AL54: 0 | AM54: 0 | AN54: 0 | AO54: 0 | AP54: 0 | AQ54: 0 | AR54: 0 | AS54: 0 | AT54: 0 | AU54: 0 | AV54: 0 | AW54: 0 | AX54: 0 | AY54: 0 | AZ54: 0 | BA54: 0 | BB54: 0 | BC54: 0 | BD54: 0 | BE54: 0 | BF54: 0 | BG54: 0 | BH54: 0 | BI54: 0 | BJ54: 0 | BK54: 0 | BL54: 0 | BM54: 0 | BN54: 0 | BO54: 0 | BP54: 0 | BQ54: 0 | BR54: 0 | BS54: 0 | BT54: 0 | BU54: 0 | BV54: 0 | BW54: 0 | BX54: 0 | BY54: 0 | BZ54: 0 | CA54: 0 | CB54: 0 | CC54: 0 | CD54: 0 | CE54: 0 | CF54: 0 | CG54: 0 | CH54: 0 | CI54: 0 | CJ54: 0 | CK54: 0 | CL54: 0 | CM54: 0 | CN54: 0 | CO54: 0 | CP54: 0 | CQ54: 0 | CR54: 0 | CS54: 0 | CT54: 0 | CU54: 0 | CV54: 0 | CW54: 0 | CX54: 0 | CY54: 0 | CZ54: 0 | DA54: 0 | DB54: 0 | DC54: 0 | DD54: 0 | DE54: 0 | DF54: 0 | DG54: 0 | DH54: 0
C55: > 22 kV & < = 33 kV ; Commercial & Industrial | D55: 0 | E55: 0 | F55: 0 | G55: 0 | H55: 0 | I55: 0 | J55: 0 | K55: 0 | L55: 0 | M55: 0 | N55: 0 | O55: 0 | P55: 0 | Q55: 0 | R55: 0 | S55: 0 | T55: 0 | U55: 0 | V55: 0 | W55: 0 | X55: 0 | Y55: 0 | Z55: 0 | AA55: 0 | AB55: 0 | AC55: 0 | AD55: 0 | AE55: 0 | AF55: 0 | AG55: 0 | AH55: 0 | AI55: 0 | AJ55: 0 | AK55: 0 | AL55: 0 | AM55: 0 | AN55: 0 | AO55: 0 | AP55: 0 | AQ55: 0 | AR55: 0 | AS55: 0 | AT55: 0 | AU55: 0 | AV55: 0 | AW55: 0 | AX55: 0 | AY55: 0 | AZ55: 0 | BA55: 0 | BB55: 0 | BC55: 0 | BD55: 0 | BE55: 0 | BF55: 0 | BG55: 0 | BH55: 0 | BI55: 0 | BJ55: 0 | BK55: 0 | BL55: 0 | BM55: 0 | BN55: 0 | BO55: 0 | BP55: 0 | BQ55: 0 | BR55: 0 | BS55: 0 | BT55: 0 | BU55: 0 | BV55: 0 | BW55: 0 | BX55: 0 | BY55: 0 | BZ55: 0 | CA55: 0 | CB55: 0 | CC55: 0 | CD55: 0 | CE55: 0 | CF55: 0 | CG55: 0 | CH55: 0 | CI55: 0 | CJ55: 0 | CK55: 0 | CL55: 0 | CM55: 0 | CN55: 0 | CO55: 0 | CP55: 0 | CQ55: 0 | CR55: 0 | CS55: 0 | CT55: 0 | CU55: 0 | CV55: 0 | CW55: 0 | CX55: 0 | CY55: 0 | CZ55: 0 | DA55: 0 | DB55: 0 | DC55: 0 | DD55: 0 | DE55: 0 | DF55: 0 | DG55: 0 | DH55: 0
C56: > 22 kV & < = 33 kV ; Subdivision | D56: 0 | E56: 0 | F56: 0 | G56: 0 | H56: 0 | I56: 0 | J56: 0 | K56: 0 | L56: 0 | M56: 0 | N56: 0 | O56: 0 | P56: 0 | Q56: 0 | R56: 0 | S56: 0 | T56: 0 | U56: 0 | V56: 0 | W56: 0 | X56: 0 | Y56: 0 | Z56: 0 | AA56: 0 | AB56: 0 | AC56: 0 | AD56: 0 | AE56: 0 | AF56: 0 | AG56: 0 | AH56: 0 | AI56: 0 | AJ56: 0 | AK56: 0 | AL56: 0 | AM56: 0 | AN56: 0 | AO56: 0 | AP56: 0 | AQ56: 0 | AR56: 0 | AS56: 0 | AT56: 0 | AU56: 0 | AV56: 0 | AW56: 0 | AX56: 0 | AY56: 0 | AZ56: 0 | BA56: 0 | BB56: 0 | BC56: 0 | BD56: 0 | BE56: 0 | BF56: 0 | BG56: 0 | BH56: 0 | BI56: 0 | BJ56: 0 | BK56: 0 | BL56: 0 | BM56: 0 | BN56: 0 | BO56: 0 | BP56: 0 | BQ56: 0 | BR56: 0 | BS56: 0 | BT56: 0 | BU56: 0 | BV56: 0 | BW56: 0 | BX56: 0 | BY56: 0 | BZ56: 0 | CA56: 0 | CB56: 0 | CC56: 0 | CD56: 0 | CE56: 0 | CF56: 0 | CG56: 0 | CH56: 0 | CI56: 0 | CJ56: 0 | CK56: 0 | CL56: 0 | CM56: 0 | CN56: 0 | CO56: 0 | CP56: 0 | CQ56: 0 | CR56: 0 | CS56: 0 | CT56: 0 | CU56: 0 | CV56: 0 | CW56: 0 | CX56: 0 | CY56: 0 | CZ56: 0 | DA56: 0 | DB56: 0 | DC56: 0 | DD56: 0 | DE56: 0 | DF56: 0 | DG56: 0 | DH56: 0
C57: > 33 kV & < = 66 kV ; Commercial & Industrial | D57: 0 | E57: 0 | F57: 0 | G57: 0 | H57: 0 | I57: 0 | J57: 0 | K57: 0 | L57: 0 | M57: 0 | N57: 0 | O57: 0 | P57: 0 | Q57: 0 | R57: 0 | S57: 0 | T57: 0 | U57: 0 | V57: 0 | W57: 0 | X57: 0 | Y57: 0 | Z57: 0 | AA57: 0 | AB57: 0 | AC57: 0 | AD57: 0 | AE57: 0 | AF57: 0 | AG57: 0 | AH57: 0 | AI57: 0 | AJ57: 0 | AK57: 0 | AL57: 0 | AM57: 0 | AN57: 0 | AO57: 0 | AP57: 0 | AQ57: 0 | AR57: 0 | AS57: 0 | AT57: 0 | AU57: 0 | AV57: 0 | AW57: 0 | AX57: 0 | AY57: 0 | AZ57: 0 | BA57: 0 | BB57: 0 | BC57: 0 | BD57: 0 | BE57: 0 | BF57: 0 | BG57: 0 | BH57: 0 | BI57: 0 | BJ57: 0 | BK57: 0 | BL57: 0 | BM57: 0 | BN57: 0 | BO57: 0 | BP57: 0 | BQ57: 0 | BR57: 0 | BS57: 0 | BT57: 0 | BU57: 0 | BV57: 0 | BW57: 0 | BX57: 0 | BY57: 0 | BZ57: 0 | CA57: 0 | CB57: 0 | CC57: 0 | CD57: 0 | CE57: 0 | CF57: 0 | CG57: 0 | CH57: 0 | CI57: 0 | CJ57: 0 | CK57: 0 | CL57: 0 | CM57: 0 | CN57: 0 | CO57: 0 | CP57: 0 | CQ57: 0 | CR57: 0 | CS57: 0 | CT57: 0 | CU57: 0 | CV57: 0 | CW57: 0 | CX57: 0 | CY57: 0 | CZ57: 0 | DA57: 0 | DB57: 0 | DC57: 0 | DD57: 0 | DE57: 0 | DF57: 0 | DG57: 0 | DH57: 0
C58: > 33 kV & < = 66 kV ; Subdivision | D58: 0 | E58: 0 | F58: 0 | G58: 0 | H58: 0 | I58: 0 | J58: 0 | K58: 0 | L58: 0 | M58: 0 | N58: 0 | O58: 0 | P58: 0 | Q58: 0 | R58: 0 | S58: 0 | T58: 0 | U58: 0 | V58: 0 | W58: 0 | X58: 0 | Y58: 0 | Z58: 0 | AA58: 0 | AB58: 0 | AC58: 0 | AD58: 0 | AE58: 0 | AF58: 0 | AG58: 0 | AH58: 0 | AI58: 0 | AJ58: 0 | AK58: 0 | AL58: 0 | AM58: 0 | AN58: 0 | AO58: 0 | AP58: 0 | AQ58: 0 | AR58: 0 | AS58: 0 | AT58: 0 | AU58: 0 | AV58: 0 | AW58: 0 | AX58: 0 | AY58: 0 | AZ58: 0 | BA58: 0 | BB58: 0 | BC58: 0 | BD58: 0 | BE58: 0 | BF58: 0 | BG58: 0 | BH58: 0 | BI58: 0 | BJ58: 0 | BK58: 0 | BL58: 0 | BM58: 0 | BN58: 0 | BO58: 0 | BP58: 0 | BQ58: 0 | BR58: 0 | BS58: 0 | BT58: 0 | BU58: 0 | BV58: 0 | BW58: 0 | BX58: 0 | BY58: 0 | BZ58: 0 | CA58: 0 | CB58: 0 | CC58: 0 | CD58: 0 | CE58: 0 | CF58: 0 | CG58: 0 | CH58: 0 | CI58: 0 | CJ58: 0 | CK58: 0 | CL58: 0 | CM58: 0 | CN58: 0 | CO58: 0 | CP58: 0 | CQ58: 0 | CR58: 0 | CS58: 0 | CT58: 0 | CU58: 0 | CV58: 0 | CW58: 0 | CX58: 0 | CY58: 0 | CZ58: 0 | DA58: 0 | DB58: 0 | DC58: 0 | DD58: 0 | DE58: 0 | DF58: 0 | DG58: 0 | DH58: 0
C59: > 66 kV & < = 132 kV ; Commercial & Industrial | D59: 0 | E59: 0 | F59: 0 | G59: 0 | H59: 0 | I59: 0 | J59: 0 | K59: 0 | L59: 0 | M59: 0 | N59: 0 | O59: 0 | P59: 0 | Q59: 0 | R59: 0 | S59: 0 | T59: 0 | U59: 0 | V59: 0 | W59: 0 | X59: 0 | Y59: 0 | Z59: 0 | AA59: 0 | AB59: 0 | AC59: 0 | AD59: 0 | AE59: 0 | AF59: 0 | AG59: 0 | AH59: 0 | AI59: 0 | AJ59: 0 | AK59: 0 | AL59: 0 | AM59: 0 | AN59: 0 | AO59: 0 | AP59: 0 | AQ59: 0 | AR59: 0 | AS59: 0 | AT59: 0 | AU59: 0 | AV59: 0 | AW59: 0 | AX59: 0 | AY59: 0 | AZ59: 0 | BA59: 0 | BB59: 0 | BC59: 0 | BD59: 0 | BE59: 0 | BF59: 0 | BG59: 0 | BH59: 0 | BI59: 0 | BJ59: 0 | BK59: 0 | BL59: 0 | BM59: 0 | BN59: 0 | BO59: 0 | BP59: 0 | BQ59: 0 | BR59: 0 | BS59: 0 | BT59: 0 | BU59: 0 | BV59: 0 | BW59: 0 | BX59: 0 | BY59: 0 | BZ59: 0 | CA59: 0 | CB59: 0 | CC59: 0 | CD59: 0 | CE59: 0 | CF59: 0 | CG59: 0 | CH59: 0 | CI59: 0 | CJ59: 0 | CK59: 0 | CL59: 0 | CM59: 0 | CN59: 0 | CO59: 0 | CP59: 0 | CQ59: 0 | CR59: 0 | CS59: 0 | CT59: 0 | CU59: 0 | CV59: 0 | CW59: 0 | CX59: 0 | CY59: 0 | CZ59: 0 | DA59: 0 | DB59: 0 | DC59: 0 | DD59: 0 | DE59: 0 | DF59: 0 | DG59: 0 | DH59: 0
C60: > 66 kV & < = 132 kV ; Subdivision | D60: 0 | E60: 0 | F60: 0 | G60: 0 | H60: 0 | I60: 0 | J60: 0 | K60: 0 | L60: 0 | M60: 0 | N60: 0 | O60: 0 | P60: 0 | Q60: 0 | R60: 0 | S60: 0 | T60: 0 | U60: 0 | V60: 0 | W60: 0 | X60: 0 | Y60: 0 | Z60: 0 | AA60: 0 | AB60: 0 | AC60: 0 | AD60: 0 | AE60: 0 | AF60: 0 | AG60: 0 | AH60: 0 | AI60: 0 | AJ60: 0 | AK60: 0 | AL60: 0 | AM60: 0 | AN60: 0 | AO60: 0 | AP60: 0 | AQ60: 0 | AR60: 0 | AS60: 0 | AT60: 0 | AU60: 0 | AV60: 0 | AW60: 0 | AX60: 0 | AY60: 0 | AZ60: 0 | BA60: 0 | BB60: 0 | BC60: 0 | BD60: 0 | BE60: 0 | BF60: 0 | BG60: 0 | BH60: 0 | BI60: 0 | BJ60: 0 | BK60: 0 | BL60: 0 | BM60: 0 | BN60: 0 | BO60: 0 | BP60: 0 | BQ60: 0 | BR60: 0 | BS60: 0 | BT60: 0 | BU60: 0 | BV60: 0 | BW60: 0 | BX60: 0 | BY60: 0 | BZ60: 0 | CA60: 0 | CB60: 0 | CC60: 0 | CD60: 0 | CE60: 0 | CF60: 0 | CG60: 0 | CH60: 0 | CI60: 0 | CJ60: 0 | CK60: 0 | CL60: 0 | CM60: 0 | CN60: 0 | CO60: 0 | CP60: 0 | CQ60: 0 | CR60: 0 | CS60: 0 | CT60: 0 | CU60: 0 | CV60: 0 | CW60: 0 | CX60: 0 | CY60: 0 | CZ60: 0 | DA60: 0 | DB60: 0 | DC60: 0 | DD60: 0 | DE60: 0 | DF60: 0 | DG60: 0 | DH60: 0
C61: > 132 kV ; Commercial & Industrial | D61: 0 | E61: 0 | F61: 0 | G61: 0 | H61: 0 | I61: 0 | J61: 0 | K61: 0 | L61: 0 | M61: 0 | N61: 0 | O61: 0 | P61: 0 | Q61: 0 | R61: 0 | S61: 0 | T61: 0 | U61: 0 | V61: 0 | W61: 0 | X61: 0 | Y61: 0 | Z61: 0 | AA61: 0 | AB61: 0 | AC61: 0 | AD61: 0 | AE61: 0 | AF61: 0 | AG61: 0 | AH61: 0 | AI61: 0 | AJ61: 0 | AK61: 0 | AL61: 0 | AM61: 0 | AN61: 0 | AO61: 0 | AP61: 0 | AQ61: 0 | AR61: 0 | AS61: 0 | AT61: 0 | AU61: 0 | AV61: 0 | AW61: 0 | AX61: 0 | AY61: 0 | AZ61: 0 | BA61: 0 | BB61: 0 | BC61: 0 | BD61: 0 | BE61: 0 | BF61: 0 | BG61: 0 | BH61: 0 | BI61: 0 | BJ61: 0 | BK61: 0 | BL61: 0 | BM61: 0 | BN61: 0 | BO61: 0 | BP61: 0 | BQ61: 0 | BR61: 0 | BS61: 0 | BT61: 0 | BU61: 0 | BV61: 0 | BW61: 0 | BX61: 0 | BY61: 0 | BZ61: 0 | CA61: 0 | CB61: 0 | CC61: 0 | CD61: 0 | CE61: 0 | CF61: 0 | CG61: 0 | CH61: 0 | CI61: 0 | CJ61: 0 | CK61: 0 | CL61: 0 | CM61: 0 | CN61: 0 | CO61: 0 | CP61: 0 | CQ61: 0 | CR61: 0 | CS61: 0 | CT61: 0 | CU61: 0 | CV61: 0 | CW61: 0 | CX61: 0 | CY61: 0 | CZ61: 0 | DA61: 0 | DB61: 0 | DC61: 0 | DD61: 0 | DE61: 0 | DF61: 0 | DG61: 0 | DH61: 0
C62: > 132 kV ; Subdivision | D62: 0 | E62: 0 | F62: 0 | G62: 0 | H62: 0 | I62: 0 | J62: 0 | K62: 0 | L62: 0 | M62: 0 | N62: 0 | O62: 0 | P62: 0 | Q62: 0 | R62: 0 | S62: 0 | T62: 0 | U62: 0 | V62: 0 | W62: 0 | X62: 0 | Y62: 0 | Z62: 0 | AA62: 0 | AB62: 0 | AC62: 0 | AD62: 0 | AE62: 0 | AF62: 0 | AG62: 0 | AH62: 0 | AI62: 0 | AJ62: 0 | AK62: 0 | AL62: 0 | AM62: 0 | AN62: 0 | AO62: 0 | AP62: 0 | AQ62: 0 | AR62: 0 | AS62: 0 | AT62: 0 | AU62: 0 | AV62: 0 | AW62: 0 | AX62: 0 | AY62: 0 | AZ62: 0 | BA62: 0 | BB62: 0 | BC62: 0 | BD62: 0 | BE62: 0 | BF62: 0 | BG62: 0 | BH62: 0 | BI62: 0 | BJ62: 0 | BK62: 0 | BL62: 0 | BM62: 0 | BN62: 0 | BO62: 0 | BP62: 0 | BQ62: 0 | BR62: 0 | BS62: 0 | BT62: 0 | BU62: 0 | BV62: 0 | BW62: 0 | BX62: 0 | BY62: 0 | BZ62: 0 | CA62: 0 | CB62: 0 | CC62: 0 | CD62: 0 | CE62: 0 | CF62: 0 | CG62: 0 | CH62: 0 | CI62: 0 | CJ62: 0 | CK62: 0 | CL62: 0 | CM62: 0 | CN62: 0 | CO62: 0 | CP62: 0 | CQ62: 0 | CR62: 0 | CS62: 0 | CT62: 0 | CU62: 0 | CV62: 0 | CW62: 0 | CX62: 0 | CY62: 0 | CZ62: 0 | DA62: 0 | DB62: 0 | DC62: 0 | DD62: 0 | DE62: 0 | DF62: 0 | DG62: 0 | DH62: 0
C63: Other | D63: 0 | E63: 0 | F63: 0 | G63: 0 | H63: 0 | I63: 0 | J63: 0 | K63: 0 | L63: 0 | M63: 0 | N63: 0 | O63: 0 | P63: 0 | Q63: 0 | R63: 0 | S63: 0 | T63: 0 | U63: 0 | V63: 0 | W63: 0 | X63: 0 | Y63: 0 | Z63: 0 | AA63: 0 | AB63: 0 | AC63: 0 | AD63: 0 | AE63: 0 | AF63: 0 | AG63: 0 | AH63: 0 | AI63: 0 | AJ63: 0 | AK63: 0 | AL63: 0 | AM63: 0 | AN63: 0 | AO63: 0 | AP63: 0 | AQ63: 0 | AR63: 0 | AS63: 0 | AT63: 0 | AU63: 0 | AV63: 0 | AW63: 0 | AX63: 0 | AY63: 0 | AZ63: 0 | BA63: 0 | BB63: 0 | BC63: 0 | BD63: 0 | BE63: 0 | BF63: 0 | BG63: 0 | BH63: 0 | BI63: 0 | BJ63: 0 | BK63: 0 | BL63: 0 | BM63: 0 | BN63: 0 | BO63: 0 | BP63: 0 | BQ63: 0 | BR63: 0 | BS63: 0 | BT63: 0 | BU63: 0 | BV63: 0 | BW63: 0 | BX63: 0 | BY63: 0 | BZ63: 0 | CA63: 0 | CB63: 0 | CC63: 0 | CD63: 0 | CE63: 0 | CF63: 0 | CG63: 0 | CH63: 0 | CI63: 0 | CJ63: 0 | CK63: 0 | CL63: 0 | CM63: 0 | CN63: 0 | CO63: 0 | CP63: 0 | CQ63: 0 | CR63: 0 | CS63: 0 | CT63: 0 | CU63: 0 | CV63: 0 | CW63: 0 | CX63: 0 | CY63: 0 | CZ63: 0 | DA63: 0 | DB63: 0 | DC63: 0 | DD63: 0 | DE63: 0 | DF63: 0 | DG63: 0 | DH63: 0
B64: TRANSFORMERS BY: MOUNTING TYPE; HIGHEST OPERATING VOLTAGE ; AMPERE RATING; NUMBER OF PHASES (AT LV) | C64: Pole Mounted ; < = 22kV ; < = 60 kVA ; Single Phase | D64: 55 | E64: 13 | F64: 0 | G64: 2 | H64: 0 | I64: 3 | J64: 0 | K64: 3 | L64: 0 | M64: 0 | N64: 5 | O64: 10 | P64: 7 | Q64: 7 | R64: 2 | S64: 7 | T64: 2 | U64: 5 | V64: 7 | W64: 4 | X64: 3 | Y64: 2 | Z64: 0 | AA64: 0 | AB64: 1 | AC64: 2 | AD64: 3 | AE64: 5 | AF64: 2 | AG64: 0 | AH64: 3 | AI64: 2 | AJ64: 2 | AK64: 4 | AL64: 3 | AM64: 0 | AN64: 3 | AO64: 2 | AP64: 4 | AQ64: 4 | AR64: 5 | AS64: 0 | AT64: 1 | AU64: 1 | AV64: 2 | AW64: 4 | AX64: 3 | AY64: 1 | AZ64: 2 | BA64: 0 | BB64: 2 | BC64: 1 | BD64: 4 | BE64: 2 | BF64: 1 | BG64: 0 | BH64: 0 | BI64: 0 | BJ64: 0 | BK64: 0 | BL64: 0 | BM64: 0 | BN64: 0 | BO64: 0 | BP64: 2 | BQ64: 1 | BR64: 0 | BS64: 0 | BT64: 0 | BU64: 0 | BV64: 0 | BW64: 0 | BX64: 0 | BY64: 0 | BZ64: 0 | CA64: 0 | CB64: 0 | CC64: 0 | CD64: 0 | CE64: 0 | CF64: 0 | CG64: 0 | CH64: 0 | CI64: 0 | CJ64: 0 | CK64: 0 | CL64: 0 | CM64: 0 | CN64: 0 | CO64: 0 | CP64: 0 | CQ64: 0 | CR64: 0 | CS64: 0 | CT64: 0 | CU64: 0 | CV64: 0 | CW64: 0 | CX64: 0 | CY64: 0 | CZ64: 0 | DA64: 0 | DB64: 0 | DC64: 0 | DD64: 0 | DE64: 0 | DF64: 0 | DG64: 0 | DH64: 0
C65: Pole Mounted ; < = 22kV ; > 60 kVA and < = 600 kVA ; Single Phase | D65: 55 | E65: 13 | F65: 0 | G65: 0 | H65: 0 | I65: 0 | J65: 0 | K65: 0 | L65: 0 | M65: 0 | N65: 0 | O65: 0 | P65: 1 | Q65: 0 | R65: 0 | S65: 0 | T65: 0 | U65: 0 | V65: 0 | W65: 0 | X65: 1 | Y65: 0 | Z65: 0 | AA65: 0 | AB65: 0 | AC65: 0 | AD65: 0 | AE65: 0 | AF65: 0 | AG65: 1 | AH65: 0 | AI65: 0 | AJ65: 0 | AK65: 0 | AL65: 0 | AM65: 0 | AN65: 0 | AO65: 0 | AP65: 0 | AQ65: 0 | AR65: 0 | AS65: 0 | AT65: 0 | AU65: 0 | AV65: 0 | AW65: 0 | AX65: 0 | AY65: 0 | AZ65: 0 | BA65: 0 | BB65: 0 | BC65: 0 | BD65: 0 | BE65: 0 | BF65: 0 | BG65: 0 | BH65: 0 | BI65: 0 | BJ65: 0 | BK65: 0 | BL65: 0 | BM65: 0 | BN65: 0 | BO65: 0 | BP65: 0 | BQ65: 0 | BR65: 0 | BS65: 0 | BT65: 0 | BU65: 0 | BV65: 0 | BW65: 0 | BX65: 0 | BY65: 0 | BZ65: 0 | CA65: 0 | CB65: 0 | CC65: 0 | CD65: 0 | CE65: 0 | CF65: 0 | CG65: 0 | CH65: 0 | CI65: 0 | CJ65: 0 | CK65: 0 | CL65: 0 | CM65: 0 | CN65: 0 | CO65: 0 | CP65: 0 | CQ65: 0 | CR65: 0 | CS65: 0 | CT65: 0 | CU65: 0 | CV65: 0 | CW65: 0 | CX65: 0 | CY65: 0 | CZ65: 0 | DA65: 0 | DB65: 0 | DC65: 0 | DD65: 0 | DE65: 0 | DF65: 0 | DG65: 0 | DH65: 0
C66: Pole Mounted ; < = 22kV ; > 600 kVA ; Single Phase | D66: 0 | E66: 0 | F66: 0 | G66: 0 | H66: 0 | I66: 0 | J66: 0 | K66: 0 | L66: 0 | M66: 0 | N66: 0 | O66: 0 | P66: 0 | Q66: 0 | R66: 0 | S66: 0 | T66: 0 | U66: 0 | V66: 0 | W66: 0 | X66: 0 | Y66: 0 | Z66: 0 | AA66: 0 | AB66: 0 | AC66: 0 | AD66: 0 | AE66: 0 | AF66: 0 | AG66: 0 | AH66: 0 | AI66: 0 | AJ66: 0 | AK66: 0 | AL66: 0 | AM66: 0 | AN66: 0 | AO66: 0 | AP66: 0 | AQ66: 0 | AR66: 0 | AS66: 0 | AT66: 0 | AU66: 0 | AV66: 0 | AW66: 0 | AX66: 0 | AY66: 0 | AZ66: 0 | BA66: 0 | BB66: 0 | BC66: 0 | BD66: 0 | BE66: 0 | BF66: 0 | BG66: 0 | BH66: 0 | BI66: 0 | BJ66: 0 | BK66: 0 | BL66: 0 | BM66: 0 | BN66: 0 | BO66: 0 | BP66: 0 | BQ66: 0 | BR66: 0 | BS66: 0 | BT66: 0 | BU66: 0 | BV66: 0 | BW66: 0 | BX66: 0 | BY66: 0 | BZ66: 0 | CA66: 0 | CB66: 0 | CC66: 0 | CD66: 0 | CE66: 0 | CF66: 0 | CG66: 0 | CH66: 0 | CI66: 0 | CJ66: 0 | CK66: 0 | CL66: 0 | CM66: 0 | CN66: 0 | CO66: 0 | CP66: 0 | CQ66: 0 | CR66: 0 | CS66: 0 | CT66: 0 | CU66: 0 | CV66: 0 | CW66: 0 | CX66: 0 | CY66: 0 | CZ66: 0 | DA66: 0 | DB66: 0 | DC66: 0 | DD66: 0 | DE66: 0 | DF66: 0 | DG66: 0 | DH66: 0
C67: Pole Mounted ; < = 22kV ; < = 60 kVA ; Multiple Phase | D67: 55 | E67: 13 | F67: 1 | G67: 2 | H67: 1 | I67: 1 | J67: 0 | K67: 5 | L67: 5 | M67: 2 | N67: 3 | O67: 6 | P67: 10 | Q67: 11 | R67: 4 | S67: 5 | T67: 3 | U67: 15 | V67: 3 | W67: 3 | X67: 1 | Y67: 10 | Z67: 0 | AA67: 4 | AB67: 9 | AC67: 3 | AD67: 6 | AE67: 2 | AF67: 4 | AG67: 3 | AH67: 6 | AI67: 3 | AJ67: 1 | AK67: 2 | AL67: 5 | AM67: 3 | AN67: 4 | AO67: 4 | AP67: 10 | AQ67: 5 | AR67: 2 | AS67: 3 | AT67: 2 | AU67: 3 | AV67: 3 | AW67: 3 | AX67: 0 | AY67: 4 | AZ67: 3 | BA67: 2 | BB67: 2 | BC67: 1 | BD67: 0 | BE67: 2 | BF67: 0 | BG67: 0 | BH67: 1 | BI67: 1 | BJ67: 0 | BK67: 0 | BL67: 0 | BM67: 0 | BN67: 0 | BO67: 0 | BP67: 0 | BQ67: 2 | BR67: 2 | BS67: 0 | BT67: 0 | BU67: 0 | BV67: 0 | BW67: 0 | BX67: 0 | BY67: 0 | BZ67: 0 | CA67: 0 | CB67: 0 | CC67: 0 | CD67: 0 | CE67: 0 | CF67: 0 | CG67: 0 | CH67: 0 | CI67: 0 | CJ67: 0 | CK67: 0 | CL67: 0 | CM67: 0 | CN67: 0 | CO67: 0 | CP67: 0 | CQ67: 0 | CR67: 0 | CS67: 0 | CT67: 0 | CU67: 0 | CV67: 0 | CW67: 0 | CX67: 0 | CY67: 0 | CZ67: 0 | DA67: 0 | DB67: 0 | DC67: 0 | DD67: 0 | DE67: 0 | DF67: 0 | DG67: 0 | DH67: 0
C68: Pole Mounted ; < = 22kV ; > 60 kVA and < = 600 kVA ; Multiple Phase | D68: 55 | E68: 13 | F68: 11 | G68: 15 | H68: 30 | I68: 23 | J68: 5 | K68: 36 | L68: 25 | M68: 42 | N68: 51 | O68: 59 | P68: 53 | Q68: 41 | R68: 43 | S68: 23 | T68: 13 | U68: 24 | V68: 16 | W68: 9 | X68: 10 | Y68: 14 | Z68: 13 | AA68: 17 | AB68: 6 | AC68: 11 | AD68: 12 | AE68: 13 | AF68: 19 | AG68: 9 | AH68: 14 | AI68: 11 | AJ68: 16 | AK68: 4 | AL68: 15 | AM68: 14 | AN68: 20 | AO68: 12 | AP68: 12 | AQ68: 23 | AR68: 19 | AS68: 28 | AT68: 26 | AU68: 21 | AV68: 17 | AW68: 19 | AX68: 17 | AY68: 20 | AZ68: 22 | BA68: 22 | BB68: 21 | BC68: 22 | BD68: 6 | BE68: 0 | BF68: 1 | BG68: 1 | BH68: 0 | BI68: 0 | BJ68: 0 | BK68: 0 | BL68: 0 | BM68: 1 | BN68: 0 | BO68: 0 | BP68: 0 | BQ68: 0 | BR68: 0 | BS68: 1 | BT68: 0 | BU68: 0 | BV68: 0 | BW68: 0 | BX68: 0 | BY68: 0 | BZ68: 0 | CA68: 0 | CB68: 0 | CC68: 0 | CD68: 0 | CE68: 0 | CF68: 0 | CG68: 0 | CH68: 0 | CI68: 0 | CJ68: 0 | CK68: 0 | CL68: 0 | CM68: 0 | CN68: 0 | CO68: 0 | CP68: 0 | CQ68: 0 | CR68: 0 | CS68: 0 | CT68: 0 | CU68: 0 | CV68: 0 | CW68: 0 | CX68: 0 | CY68: 0 | CZ68: 0 | DA68: 0 | DB68: 0 | DC68: 0 | DD68: 0 | DE68: 0 | DF68: 0 | DG68: 0 | DH68: 0
C69: Pole Mounted ; < = 22kV ; > 600 kVA ; Multiple Phase | D69: 0 | E69: 0 | F69: 0 | G69: 0 | H69: 0 | I69: 0 | J69: 0 | K69: 0 | L69: 0 | M69: 0 | N69: 0 | O69: 0 | P69: 0 | Q69: 0 | R69: 0 | S69: 0 | T69: 0 | U69: 0 | V69: 0 | W69: 0 | X69: 0 | Y69: 0 | Z69: 0 | AA69: 0 | AB69: 0 | AC69: 0 | AD69: 0 | AE69: 0 | AF69: 0 | AG69: 0 | AH69: 0 | AI69: 0 | AJ69: 0 | AK69: 0 | AL69: 0 | AM69: 0 | AN69: 0 | AO69: 0 | AP69: 0 | AQ69: 0 | AR69: 0 | AS69: 0 | AT69: 0 | AU69: 0 | AV69: 0 | AW69: 0 | AX69: 0 | AY69: 0 | AZ69: 0 | BA69: 0 | BB69: 0 | BC69: 0 | BD69: 0 | BE69: 0 | BF69: 0 | BG69: 0 | BH69: 0 | BI69: 0 | BJ69: 0 | BK69: 0 | BL69: 0 | BM69: 0 | BN69: 0 | BO69: 0 | BP69: 0 | BQ69: 0 | BR69: 0 | BS69: 0 | BT69: 0 | BU69: 0 | BV69: 0 | BW69: 0 | BX69: 0 | BY69: 0 | BZ69: 0 | CA69: 0 | CB69: 0 | CC69: 0 | CD69: 0 | CE69: 0 | CF69: 0 | CG69: 0 | CH69: 0 | CI69: 0 | CJ69: 0 | CK69: 0 | CL69: 0 | CM69: 0 | CN69: 0 | CO69: 0 | CP69: 0 | CQ69: 0 | CR69: 0 | CS69: 0 | CT69: 0 | CU69: 0 | CV69: 0 | CW69: 0 | CX69: 0 | CY69: 0 | CZ69: 0 | DA69: 0 | DB69: 0 | DC69: 0 | DD69: 0 | DE69: 0 | DF69: 0 | DG69: 0 | DH69: 0
C70: Kiosk Mounted ; < = 22kV ; < = 60 kVA ; Single Phase | D70: 0 | E70: 0 | F70: 0 | G70: 0 | H70: 0 | I70: 0 | J70: 0 | K70: 0 | L70: 0 | M70: 0 | N70: 0 | O70: 0 | P70: 0 | Q70: 0 | R70: 0 | S70: 0 | T70: 0 | U70: 0 | V70: 0 | W70: 0 | X70: 0 | Y70: 0 | Z70: 0 | AA70: 0 | AB70: 0 | AC70: 0 | AD70: 0 | AE70: 0 | AF70: 0 | AG70: 0 | AH70: 0 | AI70: 0 | AJ70: 0 | AK70: 0 | AL70: 0 | AM70: 0 | AN70: 0 | AO70: 0 | AP70: 0 | AQ70: 0 | AR70: 0 | AS70: 0 | AT70: 0 | AU70: 0 | AV70: 0 | AW70: 0 | AX70: 0 | AY70: 0 | AZ70: 0 | BA70: 0 | BB70: 0 | BC70: 0 | BD70: 0 | BE70: 0 | BF70: 0 | BG70: 0 | BH70: 0 | BI70: 0 | BJ70: 0 | BK70: 0 | BL70: 0 | BM70: 0 | BN70: 0 | BO70: 0 | BP70: 0 | BQ70: 0 | BR70: 0 | BS70: 0 | BT70: 0 | BU70: 0 | BV70: 0 | BW70: 0 | BX70: 0 | BY70: 0 | BZ70: 0 | CA70: 0 | CB70: 0 | CC70: 0 | CD70: 0 | CE70: 0 | CF70: 0 | CG70: 0 | CH70: 0 | CI70: 0 | CJ70: 0 | CK70: 0 | CL70: 0 | CM70: 0 | CN70: 0 | CO70: 0 | CP70: 0 | CQ70: 0 | CR70: 0 | CS70: 0 | CT70: 0 | CU70: 0 | CV70: 0 | CW70: 0 | CX70: 0 | CY70: 0 | CZ70: 0 | DA70: 0 | DB70: 0 | DC70: 0 | DD70: 0 | DE70: 0 | DF70: 0 | DG70: 0 | DH70: 0
C71: Kiosk Mounted ; < = 22kV ; > 60 kVA and < = 600 kVA ; Single Phase | D71: 0 | E71: 0 | F71: 0 | G71: 0 | H71: 0 | I71: 0 | J71: 0 | K71: 0 | L71: 0 | M71: 0 | N71: 0 | O71: 0 | P71: 0 | Q71: 0 | R71: 0 | S71: 0 | T71: 0 | U71: 0 | V71: 0 | W71: 0 | X71: 0 | Y71: 0 | Z71: 0 | AA71: 0 | AB71: 0 | AC71: 0 | AD71: 0 | AE71: 0 | AF71: 0 | AG71: 0 | AH71: 0 | AI71: 0 | AJ71: 0 | AK71: 0 | AL71: 0 | AM71: 0 | AN71: 0 | AO71: 0 | AP71: 0 | AQ71: 0 | AR71: 0 | AS71: 0 | AT71: 0 | AU71: 0 | AV71: 0 | AW71: 0 | AX71: 0 | AY71: 0 | AZ71: 0 | BA71: 0 | BB71: 0 | BC71: 0 | BD71: 0 | BE71: 0 | BF71: 0 | BG71: 0 | BH71: 0 | BI71: 0 | BJ71: 0 | BK71: 0 | BL71: 0 | BM71: 0 | BN71: 0 | BO71: 0 | BP71: 0 | BQ71: 0 | BR71: 0 | BS71: 0 | BT71: 0 | BU71: 0 | BV71: 0 | BW71: 0 | BX71: 0 | BY71: 0 | BZ71: 0 | CA71: 0 | CB71: 0 | CC71: 0 | CD71: 0 | CE71: 0 | CF71: 0 | CG71: 0 | CH71: 0 | CI71: 0 | CJ71: 0 | CK71: 0 | CL71: 0 | CM71: 0 | CN71: 0 | CO71: 0 | CP71: 0 | CQ71: 0 | CR71: 0 | CS71: 0 | CT71: 0 | CU71: 0 | CV71: 0 | CW71: 0 | CX71: 0 | CY71: 0 | CZ71: 0 | DA71: 0 | DB71: 0 | DC71: 0 | DD71: 0 | DE71: 0 | DF71: 0 | DG71: 0 | DH71: 0
C72: Kiosk Mounted ; < = 22kV ; > 600 kVA ; Single Phase | D72: 0 | E72: 0 | F72: 0 | G72: 0 | H72: 0 | I72: 0 | J72: 0 | K72: 0 | L72: 0 | M72: 0 | N72: 0 | O72: 0 | P72: 0 | Q72: 0 | R72: 0 | S72: 0 | T72: 0 | U72: 0 | V72: 0 | W72: 0 | X72: 0 | Y72: 0 | Z72: 0 | AA72: 0 | AB72: 0 | AC72: 0 | AD72: 0 | AE72: 0 | AF72: 0 | AG72: 0 | AH72: 0 | AI72: 0 | AJ72: 0 | AK72: 0 | AL72: 0 | AM72: 0 | AN72: 0 | AO72: 0 | AP72: 0 | AQ72: 0 | AR72: 0 | AS72: 0 | AT72: 0 | AU72: 0 | AV72: 0 | AW72: 0 | AX72: 0 | AY72: 0 | AZ72: 0 | BA72: 0 | BB72: 0 | BC72: 0 | BD72: 0 | BE72: 0 | BF72: 0 | BG72: 0 | BH72: 0 | BI72: 0 | BJ72: 0 | BK72: 0 | BL72: 0 | BM72: 0 | BN72: 0 | BO72: 0 | BP72: 0 | BQ72: 0 | BR72: 0 | BS72: 0 | BT72: 0 | BU72: 0 | BV72: 0 | BW72: 0 | BX72: 0 | BY72: 0 | BZ72: 0 | CA72: 0 | CB72: 0 | CC72: 0 | CD72: 0 | CE72: 0 | CF72: 0 | CG72: 0 | CH72: 0 | CI72: 0 | CJ72: 0 | CK72: 0 | CL72: 0 | CM72: 0 | CN72: 0 | CO72: 0 | CP72: 0 | CQ72: 0 | CR72: 0 | CS72: 0 | CT72: 0 | CU72: 0 | CV72: 0 | CW72: 0 | CX72: 0 | CY72: 0 | CZ72: 0 | DA72: 0 | DB72: 0 | DC72: 0 | DD72: 0 | DE72: 0 | DF72: 0 | DG72: 0 | DH72: 0
C73: Kiosk Mounted ; < = 22kV ; < = 60 kVA ; Multiple Phase | D73: 50 | E73: 13 | F73: 0 | G73: 0 | H73: 1 | I73: 0 | J73: 0 | K73: 0 | L73: 0 | M73: 0 | N73: 0 | O73: 0 | P73: 0 | Q73: 0 | R73: 0 | S73: 0 | T73: 0 | U73: 0 | V73: 0 | W73: 0 | X73: 0 | Y73: 0 | Z73: 0 | AA73: 0 | AB73: 0 | AC73: 0 | AD73: 0 | AE73: 0 | AF73: 0 | AG73: 0 | AH73: 0 | AI73: 0 | AJ73: 0 | AK73: 0 | AL73: 0 | AM73: 0 | AN73: 0 | AO73: 0 | AP73: 0 | AQ73: 0 | AR73: 0 | AS73: 1 | AT73: 0 | AU73: 0 | AV73: 0 | AW73: 0 | AX73: 0 | AY73: 0 | AZ73: 0 | BA73: 1 | BB73: 0 | BC73: 0 | BD73: 0 | BE73: 0 | BF73: 0 | BG73: 0 | BH73: 0 | BI73: 0 | BJ73: 0 | BK73: 0 | BL73: 0 | BM73: 0 | BN73: 0 | BO73: 0 | BP73: 0 | BQ73: 0 | BR73: 0 | BS73: 0 | BT73: 0 | BU73: 0 | BV73: 0 | BW73: 0 | BX73: 0 | BY73: 0 | BZ73: 0 | CA73: 0 | CB73: 0 | CC73: 0 | CD73: 0 | CE73: 0 | CF73: 0 | CG73: 0 | CH73: 0 | CI73: 0 | CJ73: 0 | CK73: 0 | CL73: 0 | CM73: 0 | CN73: 0 | CO73: 0 | CP73: 0 | CQ73: 0 | CR73: 0 | CS73: 0 | CT73: 0 | CU73: 0 | CV73: 0 | CW73: 0 | CX73: 0 | CY73: 0 | CZ73: 0 | DA73: 0 | DB73: 0 | DC73: 0 | DD73: 0 | DE73: 0 | DF73: 0 | DG73: 0 | DH73: 0
C74: Kiosk Mounted ; < = 22kV ; > 60 kVA and < = 600 kVA ; Multiple Phase | D74: 50 | E74: 13 | F74: 34 | G74: 39 | H74: 42 | I74: 10 | J74: 4 | K74: 58 | L74: 50 | M74: 35 | N74: 68 | O74: 34 | P74: 36 | Q74: 44 | R74: 26 | S74: 32 | T74: 21 | U74: 51 | V74: 24 | W74: 25 | X74: 18 | Y74: 28 | Z74: 29 | AA74: 92 | AB74: 87 | AC74: 101 | AD74: 78 | AE74: 70 | AF74: 68 | AG74: 71 | AH74: 44 | AI74: 72 | AJ74: 107 | AK74: 87 | AL74: 42 | AM74: 52 | AN74: 113 | AO74: 79 | AP74: 68 | AQ74: 66 | AR74: 41 | AS74: 69 | AT74: 69 | AU74: 58 | AV74: 33 | AW74: 28 | AX74: 29 | AY74: 32 | AZ74: 18 | BA74: 19 | BB74: 16 | BC74: 11 | BD74: 6 | BE74: 6 | BF74: 1 | BG74: 1 | BH74: 1 | BI74: 0 | BJ74: 2 | BK74: 0 | BL74: 0 | BM74: 0 | BN74: 0 | BO74: 0 | BP74: 0 | BQ74: 0 | BR74: 0 | BS74: 2 | BT74: 0 | BU74: 0 | BV74: 0 | BW74: 0 | BX74: 0 | BY74: 0 | BZ74: 0 | CA74: 0 | CB74: 0 | CC74: 0 | CD74: 0 | CE74: 0 | CF74: 0 | CG74: 0 | CH74: 0 | CI74: 0 | CJ74: 0 | CK74: 0 | CL74: 0 | CM74: 0 | CN74: 0 | CO74: 0 | CP74: 0 | CQ74: 0 | CR74: 0 | CS74: 0 | CT74: 0 | CU74: 0 | CV74: 0 | CW74: 0 | CX74: 0 | CY74: 0 | CZ74: 0 | DA74: 0 | DB74: 0 | DC74: 0 | DD74: 0 | DE74: 0 | DF74: 0 | DG74: 0 | DH74: 0
C75: Kiosk Mounted ; < = 22kV ; > 600 kVA ; Multiple Phase | D75: 50 | E75: 13 | F75: 17 | G75: 13 | H75: 12 | I75: 3 | J75: 6 | K75: 25 | L75: 14 | M75: 11 | N75: 20 | O75: 24 | P75: 19 | Q75: 13 | R75: 14 | S75: 4 | T75: 5 | U75: 14 | V75: 4 | W75: 6 | X75: 5 | Y75: 3 | Z75: 10 | AA75: 3 | AB75: 4 | AC75: 2 | AD75: 3 | AE75: 4 | AF75: 2 | AG75: 1 | AH75: 1 | AI75: 2 | AJ75: 5 | AK75: 0 | AL75: 3 | AM75: 0 | AN75: 1 | AO75: 2 | AP75: 1 | AQ75: 2 | AR75: 4 | AS75: 2 | AT75: 2 | AU75: 3 | AV75: 0 | AW75: 0 | AX75: 1 | AY75: 0 | AZ75: 2 | BA75: 1 | BB75: 0 | BC75: 0 | BD75: 0 | BE75: 0 | BF75: 0 | BG75: 0 | BH75: 0 | BI75: 0 | BJ75: 0 | BK75: 0 | BL75: 0 | BM75: 0 | BN75: 0 | BO75: 0 | BP75: 0 | BQ75: 0 | BR75: 0 | BS75: 0 | BT75: 0 | BU75: 0 | BV75: 0 | BW75: 0 | BX75: 0 | BY75: 0 | BZ75: 0 | CA75: 0 | CB75: 0 | CC75: 0 | CD75: 0 | CE75: 0 | CF75: 0 | CG75: 0 | CH75: 0 | CI75: 0 | CJ75: 0 | CK75: 0 | CL75: 0 | CM75: 0 | CN75: 0 | CO75: 0 | CP75: 0 | CQ75: 0 | CR75: 0 | CS75: 0 | CT75: 0 | CU75: 0 | CV75: 0 | CW75: 0 | CX75: 0 | CY75: 0 | CZ75: 0 | DA75: 0 | DB75: 0 | DC75: 0 | DD75: 0 | DE75: 0 | DF75: 0 | DG75: 0 | DH75: 0
C76: Ground Outdoor / Indoor Chamber Mounted; ˂ 22 kV ; < = 60 kVA ; Single Phase | D76: 0 | E76: 0 | F76: 0 | G76: 0 | H76: 0 | I76: 0 | J76: 0 | K76: 0 | L76: 0 | M76: 0 | N76: 0 | O76: 0 | P76: 0 | Q76: 0 | R76: 0 | S76: 0 | T76: 0 | U76: 0 | V76: 0 | W76: 0 | X76: 0 | Y76: 0 | Z76: 0 | AA76: 0 | AB76: 0 | AC76: 0 | AD76: 0 | AE76: 0 | AF76: 0 | AG76: 0 | AH76: 0 | AI76: 0 | AJ76: 0 | AK76: 0 | AL76: 0 | AM76: 0 | AN76: 0 | AO76: 0 | AP76: 0 | AQ76: 0 | AR76: 0 | AS76: 0 | AT76: 0 | AU76: 0 | AV76: 0 | AW76: 0 | AX76: 0 | AY76: 0 | AZ76: 0 | BA76: 0 | BB76: 0 | BC76: 0 | BD76: 0 | BE76: 0 | BF76: 0 | BG76: 0 | BH76: 0 | BI76: 0 | BJ76: 0 | BK76: 0 | BL76: 0 | BM76: 0 | BN76: 0 | BO76: 0 | BP76: 0 | BQ76: 0 | BR76: 0 | BS76: 0 | BT76: 0 | BU76: 0 | BV76: 0 | BW76: 0 | BX76: 0 | BY76: 0 | BZ76: 0 | CA76: 0 | CB76: 0 | CC76: 0 | CD76: 0 | CE76: 0 | CF76: 0 | CG76: 0 | CH76: 0 | CI76: 0 | CJ76: 0 | CK76: 0 | CL76: 0 | CM76: 0 | CN76: 0 | CO76: 0 | CP76: 0 | CQ76: 0 | CR76: 0 | CS76: 0 | CT76: 0 | CU76: 0 | CV76: 0 | CW76: 0 | CX76: 0 | CY76: 0 | CZ76: 0 | DA76: 0 | DB76: 0 | DC76: 0 | DD76: 0 | DE76: 0 | DF76: 0 | DG76: 0 | DH76: 0
C77: Ground Outdoor / Indoor Chamber Mounted; ˂ 22 kV ; > 60 kVA and < = 600 kVA ; Single Phase | D77: 0 | E77: 0 | F77: 0 | G77: 0 | H77: 0 | I77: 0 | J77: 0 | K77: 0 | L77: 0 | M77: 0 | N77: 0 | O77: 0 | P77: 0 | Q77: 0 | R77: 0 | S77: 0 | T77: 0 | U77: 0 | V77: 0 | W77: 0 | X77: 0 | Y77: 0 | Z77: 0 | AA77: 0 | AB77: 0 | AC77: 0 | AD77: 0 | AE77: 0 | AF77: 0 | AG77: 0 | AH77: 0 | AI77: 0 | AJ77: 0 | AK77: 0 | AL77: 0 | AM77: 0 | AN77: 0 | AO77: 0 | AP77: 0 | AQ77: 0 | AR77: 0 | AS77: 0 | AT77: 0 | AU77: 0 | AV77: 0 | AW77: 0 | AX77: 0 | AY77: 0 | AZ77: 0 | BA77: 0 | BB77: 0 | BC77: 0 | BD77: 0 | BE77: 0 | BF77: 0 | BG77: 0 | BH77: 0 | BI77: 0 | BJ77: 0 | BK77: 0 | BL77: 0 | BM77: 0 | BN77: 0 | BO77: 0 | BP77: 0 | BQ77: 0 | BR77: 0 | BS77: 0 | BT77: 0 | BU77: 0 | BV77: 0 | BW77: 0 | BX77: 0 | BY77: 0 | BZ77: 0 | CA77: 0 | CB77: 0 | CC77: 0 | CD77: 0 | CE77: 0 | CF77: 0 | CG77: 0 | CH77: 0 | CI77: 0 | CJ77: 0 | CK77: 0 | CL77: 0 | CM77: 0 | CN77: 0 | CO77: 0 | CP77: 0 | CQ77: 0 | CR77: 0 | CS77: 0 | CT77: 0 | CU77: 0 | CV77: 0 | CW77: 0 | CX77: 0 | CY77: 0 | CZ77: 0 | DA77: 0 | DB77: 0 | DC77: 0 | DD77: 0 | DE77: 0 | DF77: 0 | DG77: 0 | DH77: 0
C78: Ground Outdoor / Indoor Chamber Mounted; ˂ 22 kV ; > 600 kVA ; Single Phase | D78: 0 | E78: 0 | F78: 0 | G78: 0 | H78: 0 | I78: 0 | J78: 0 | K78: 0 | L78: 0 | M78: 0 | N78: 0 | O78: 0 | P78: 0 | Q78: 0 | R78: 0 | S78: 0 | T78: 0 | U78: 0 | V78: 0 | W78: 0 | X78: 0 | Y78: 0 | Z78: 0 | AA78: 0 | AB78: 0 | AC78: 0 | AD78: 0 | AE78: 0 | AF78: 0 | AG78: 0 | AH78: 0 | AI78: 0 | AJ78: 0 | AK78: 0 | AL78: 0 | AM78: 0 | AN78: 0 | AO78: 0 | AP78: 0 | AQ78: 0 | AR78: 0 | AS78: 0 | AT78: 0 | AU78: 0 | AV78: 0 | AW78: 0 | AX78: 0 | AY78: 0 | AZ78: 0 | BA78: 0 | BB78: 0 | BC78: 0 | BD78: 0 | BE78: 0 | BF78: 0 | BG78: 0 | BH78: 0 | BI78: 0 | BJ78: 0 | BK78: 0 | BL78: 0 | BM78: 0 | BN78: 0 | BO78: 0 | BP78: 0 | BQ78: 0 | BR78: 0 | BS78: 0 | BT78: 0 | BU78: 0 | BV78: 0 | BW78: 0 | BX78: 0 | BY78: 0 | BZ78: 0 | CA78: 0 | CB78: 0 | CC78: 0 | CD78: 0 | CE78: 0 | CF78: 0 | CG78: 0 | CH78: 0 | CI78: 0 | CJ78: 0 | CK78: 0 | CL78: 0 | CM78: 0 | CN78: 0 | CO78: 0 | CP78: 0 | CQ78: 0 | CR78: 0 | CS78: 0 | CT78: 0 | CU78: 0 | CV78: 0 | CW78: 0 | CX78: 0 | CY78: 0 | CZ78: 0 | DA78: 0 | DB78: 0 | DC78: 0 | DD78: 0 | DE78: 0 | DF78: 0 | DG78: 0 | DH78: 0
C79: Ground Outdoor / Indoor Chamber Mounted; ˂ 22 kV ; < = 60 kVA ; Multiple Phase | D79: 0 | E79: 0 | F79: 0 | G79: 0 | H79: 0 | I79: 1 | J79: 0 | K79: 0 | L79: 0 | M79: 0 | N79: 0 | O79: 0 | P79: 0 | Q79: 0 | R79: 0 | S79: 0 | T79: 0 | U79: 0 | V79: 0 | W79: 0 | X79: 0 | Y79: 0 | Z79: 0 | AA79: 0 | AB79: 0 | AC79: 0 | AD79: 0 | AE79: 0 | AF79: 0 | AG79: 0 | AH79: 0 | AI79: 0 | AJ79: 0 | AK79: 0 | AL79: 0 | AM79: 0 | AN79: 0 | AO79: 0 | AP79: 0 | AQ79: 0 | AR79: 0 | AS79: 0 | AT79: 0 | AU79: 0 | AV79: 0 | AW79: 0 | AX79: 0 | AY79: 0 | AZ79: 0 | BA79: 0 | BB79: 0 | BC79: 0 | BD79: 0 | BE79: 0 | BF79: 0 | BG79: 0 | BH79: 0 | BI79: 0 | BJ79: 0 | BK79: 0 | BL79: 0 | BM79: 0 | BN79: 0 | BO79: 0 | BP79: 0 | BQ79: 0 | BR79: 0 | BS79: 0 | BT79: 0 | BU79: 0 | BV79: 0 | BW79: 0 | BX79: 0 | BY79: 0 | BZ79: 0 | CA79: 0 | CB79: 0 | CC79: 0 | CD79: 0 | CE79: 0 | CF79: 0 | CG79: 0 | CH79: 0 | CI79: 0 | CJ79: 0 | CK79: 0 | CL79: 0 | CM79: 0 | CN79: 0 | CO79: 0 | CP79: 0 | CQ79: 0 | CR79: 0 | CS79: 0 | CT79: 0 | CU79: 0 | CV79: 0 | CW79: 0 | CX79: 0 | CY79: 0 | CZ79: 0 | DA79: 0 | DB79: 0 | DC79: 0 | DD79: 0 | DE79: 0 | DF79: 0 | DG79: 0 | DH79: 0
C80: Ground Outdoor / Indoor Chamber Mounted; ˂ 22 kV ; > 60 kVA and < = 600 kVA ; Multiple Phase | D80: 50 | E80: 13 | F80: 1 | G80: 3 | H80: 1 | I80: 3 | J80: 1 | K80: 3 | L80: 0 | M80: 1 | N80: 0 | O80: 4 | P80: 2 | Q80: 3 | R80: 0 | S80: 4 | T80: 0 | U80: 6 | V80: 0 | W80: 0 | X80: 3 | Y80: 3 | Z80: 3 | AA80: 2 | AB80: 4 | AC80: 5 | AD80: 7 | AE80: 11 | AF80: 16 | AG80: 6 | AH80: 10 | AI80: 22 | AJ80: 11 | AK80: 15 | AL80: 11 | AM80: 4 | AN80: 7 | AO80: 5 | AP80: 4 | AQ80: 3 | AR80: 2 | AS80: 2 | AT80: 2 | AU80: 4 | AV80: 3 | AW80: 5 | AX80: 12 | AY80: 3 | AZ80: 2 | BA80: 6 | BB80: 2 | BC80: 2 | BD80: 4 | BE80: 3 | BF80: 1 | BG80: 1 | BH80: 0 | BI80: 0 | BJ80: 0 | BK80: 0 | BL80: 0 | BM80: 0 | BN80: 0 | BO80: 0 | BP80: 0 | BQ80: 0 | BR80: 0 | BS80: 0 | BT80: 0 | BU80: 0 | BV80: 0 | BW80: 0 | BX80: 0 | BY80: 0 | BZ80: 0 | CA80: 0 | CB80: 1 | CC80: 0 | CD80: 0 | CE80: 0 | CF80: 0 | CG80: 0 | CH80: 0 | CI80: 0 | CJ80: 0 | CK80: 0 | CL80: 0 | CM80: 0 | CN80: 0 | CO80: 0 | CP80: 0 | CQ80: 0 | CR80: 0 | CS80: 0 | CT80: 0 | CU80: 0 | CV80: 0 | CW80: 0 | CX80: 0 | CY80: 0 | CZ80: 0 | DA80: 0 | DB80: 0 | DC80: 0 | DD80: 0 | DE80: 0 | DF80: 0 | DG80: 0 | DH80: 0
C81: Ground Outdoor / Indoor Chamber Mounted; ˂ 22 kV ; > 600 kVA ; Multiple Phase | D81: 50 | E81: 13 | F81: 3 | G81: 6 | H81: 7 | I81: 18 | J81: 10 | K81: 20 | L81: 18 | M81: 12 | N81: 45 | O81: 71 | P81: 29 | Q81: 11 | R81: 8 | S81: 9 | T81: 10 | U81: 19 | V81: 9 | W81: 14 | X81: 8 | Y81: 15 | Z81: 15 | AA81: 10 | AB81: 16 | AC81: 18 | AD81: 8 | AE81: 22 | AF81: 15 | AG81: 30 | AH81: 35 | AI81: 29 | AJ81: 12 | AK81: 8 | AL81: 35 | AM81: 19 | AN81: 8 | AO81: 21 | AP81: 3 | AQ81: 8 | AR81: 19 | AS81: 13 | AT81: 7 | AU81: 4 | AV81: 3 | AW81: 2 | AX81: 7 | AY81: 11 | AZ81: 5 | BA81: 2 | BB81: 2 | BC81: 0 | BD81: 0 | BE81: 0 | BF81: 0 | BG81: 0 | BH81: 0 | BI81: 0 | BJ81: 0 | BK81: 0 | BL81: 0 | BM81: 0 | BN81: 0 | BO81: 0 | BP81: 2 | BQ81: 0 | BR81: 0 | BS81: 0 | BT81: 0 | BU81: 0 | BV81: 0 | BW81: 0 | BX81: 0 | BY81: 0 | BZ81: 0 | CA81: 0 | CB81: 0 | CC81: 0 | CD81: 0 | CE81: 0 | CF81: 0 | CG81: 0 | CH81: 0 | CI81: 0 | CJ81: 0 | CK81: 0 | CL81: 0 | CM81: 0 | CN81: 0 | CO81: 0 | CP81: 0 | CQ81: 0 | CR81: 0 | CS81: 0 | CT81: 0 | CU81: 0 | CV81: 0 | CW81: 0 | CX81: 0 | CY81: 0 | CZ81: 0 | DA81: 0 | DB81: 0 | DC81: 0 | DD81: 0 | DE81: 0 | DF81: 0 | DG81: 0 | DH81: 0
C82: Ground Outdoor / Indoor Chamber Mounted; > = 22 kV & < = 33 kV ; < = 15 MVA | D82: 50 | E82: 13 | F82: 0 | G82: 0 | H82: 0 | I82: 0 | J82: 0 | K82: 0 | L82: 0 | M82: 0 | N82: 0 | O82: 0 | P82: 0 | Q82: 0 | R82: 0 | S82: 0 | T82: 0 | U82: 0 | V82: 0 | W82: 0 | X82: 0 | Y82: 0 | Z82: 0 | AA82: 0 | AB82: 0 | AC82: 0 | AD82: 0 | AE82: 0 | AF82: 0 | AG82: 0 | AH82: 0 | AI82: 0 | AJ82: 0 | AK82: 0 | AL82: 0 | AM82: 0 | AN82: 0 | AO82: 0 | AP82: 0 | AQ82: 0 | AR82: 0 | AS82: 0 | AT82: 0 | AU82: 0 | AV82: 0 | AW82: 0 | AX82: 0 | AY82: 0 | AZ82: 0 | BA82: 0 | BB82: 0 | BC82: 0 | BD82: 0 | BE82: 0 | BF82: 0 | BG82: 0 | BH82: 0 | BI82: 0 | BJ82: 0 | BK82: 0 | BL82: 0 | BM82: 0 | BN82: 0 | BO82: 0 | BP82: 0 | BQ82: 0 | BR82: 0 | BS82: 0 | BT82: 0 | BU82: 0 | BV82: 0 | BW82: 0 | BX82: 0 | BY82: 0 | BZ82: 0 | CA82: 0 | CB82: 0 | CC82: 0 | CD82: 0 | CE82: 0 | CF82: 0 | CG82: 0 | CH82: 0 | CI82: 0 | CJ82: 0 | CK82: 0 | CL82: 0 | CM82: 0 | CN82: 0 | CO82: 0 | CP82: 0 | CQ82: 0 | CR82: 0 | CS82: 0 | CT82: 0 | CU82: 0 | CV82: 0 | CW82: 0 | CX82: 0 | CY82: 0 | CZ82: 0 | DA82: 0 | DB82: 0 | DC82: 0 | DD82: 0 | DE82: 0 | DF82: 0 | DG82: 0 | DH82: 0
C83: Ground Outdoor / Indoor Chamber Mounted; > = 22 kV & < = 33 kV ; > 15 MVA and < = 40 MVA | D83: 0 | E83: 0 | F83: 0 | G83: 0 | H83: 0 | I83: 0 | J83: 0 | K83: 0 | L83: 0 | M83: 0 | N83: 0 | O83: 0 | P83: 0 | Q83: 0 | R83: 0 | S83: 0 | T83: 0 | U83: 0 | V83: 0 | W83: 0 | X83: 0 | Y83: 0 | Z83: 0 | AA83: 0 | AB83: 0 | AC83: 0 | AD83: 0 | AE83: 0 | AF83: 0 | AG83: 0 | AH83: 0 | AI83: 0 | AJ83: 0 | AK83: 0 | AL83: 0 | AM83: 0 | AN83: 0 | AO83: 0 | AP83: 0 | AQ83: 0 | AR83: 0 | AS83: 0 | AT83: 0 | AU83: 0 | AV83: 0 | AW83: 0 | AX83: 0 | AY83: 0 | AZ83: 0 | BA83: 0 | BB83: 0 | BC83: 0 | BD83: 0 | BE83: 0 | BF83: 0 | BG83: 0 | BH83: 0 | BI83: 0 | BJ83: 0 | BK83: 0 | BL83: 0 | BM83: 0 | BN83: 0 | BO83: 0 | BP83: 0 | BQ83: 0 | BR83: 0 | BS83: 0 | BT83: 0 | BU83: 0 | BV83: 0 | BW83: 0 | BX83: 0 | BY83: 0 | BZ83: 0 | CA83: 0 | CB83: 0 | CC83: 0 | CD83: 0 | CE83: 0 | CF83: 0 | CG83: 0 | CH83: 0 | CI83: 0 | CJ83: 0 | CK83: 0 | CL83: 0 | CM83: 0 | CN83: 0 | CO83: 0 | CP83: 0 | CQ83: 0 | CR83: 0 | CS83: 0 | CT83: 0 | CU83: 0 | CV83: 0 | CW83: 0 | CX83: 0 | CY83: 0 | CZ83: 0 | DA83: 0 | DB83: 0 | DC83: 0 | DD83: 0 | DE83: 0 | DF83: 0 | DG83: 0 | DH83: 0
C84: Ground Outdoor / Indoor Chamber Mounted; > = 22 kV & < = 33 kV ; > 40 MVA | D84: 0 | E84: 0 | F84: 0 | G84: 0 | H84: 0 | I84: 0 | J84: 0 | K84: 0 | L84: 0 | M84: 0 | N84: 0 | O84: 2 | P84: 0 | Q84: 0 | R84: 0 | S84: 0 | T84: 0 | U84: 0 | V84: 0 | W84: 0 | X84: 0 | Y84: 0 | Z84: 0 | AA84: 0 | AB84: 0 | AC84: 0 | AD84: 0 | AE84: 0 | AF84: 0 | AG84: 0 | AH84: 0 | AI84: 0 | AJ84: 0 | AK84: 0 | AL84: 0 | AM84: 0 | AN84: 0 | AO84: 0 | AP84: 0 | AQ84: 0 | AR84: 0 | AS84: 0 | AT84: 0 | AU84: 0 | AV84: 0 | AW84: 0 | AX84: 0 | AY84: 0 | AZ84: 0 | BA84: 0 | BB84: 0 | BC84: 0 | BD84: 0 | BE84: 0 | BF84: 0 | BG84: 0 | BH84: 0 | BI84: 0 | BJ84: 0 | BK84: 0 | BL84: 0 | BM84: 0 | BN84: 0 | BO84: 0 | BP84: 0 | BQ84: 0 | BR84: 0 | BS84: 0 | BT84: 0 | BU84: 0 | BV84: 0 | BW84: 0 | BX84: 0 | BY84: 0 | BZ84: 0 | CA84: 0 | CB84: 0 | CC84: 0 | CD84: 0 | CE84: 0 | CF84: 0 | CG84: 0 | CH84: 0 | CI84: 0 | CJ84: 0 | CK84: 0 | CL84: 0 | CM84: 0 | CN84: 0 | CO84: 0 | CP84: 0 | CQ84: 0 | CR84: 0 | CS84: 0 | CT84: 0 | CU84: 0 | CV84: 0 | CW84: 0 | CX84: 0 | CY84: 0 | CZ84: 0 | DA84: 0 | DB84: 0 | DC84: 0 | DD84: 0 | DE84: 0 | DF84: 0 | DG84: 0 | DH84: 0
C85: Ground Outdoor / Indoor Chamber Mounted; > 33 kV & < = 66 kV ; < = 15 MVA | D85: 0 | E85: 0 | F85: 0 | G85: 0 | H85: 0 | I85: 0 | J85: 0 | K85: 0 | L85: 0 | M85: 0 | N85: 0 | O85: 0 | P85: 0 | Q85: 0 | R85: 0 | S85: 0 | T85: 0 | U85: 0 | V85: 0 | W85: 0 | X85: 0 | Y85: 0 | Z85: 0 | AA85: 0 | AB85: 0 | AC85: 0 | AD85: 0 | AE85: 0 | AF85: 0 | AG85: 0 | AH85: 0 | AI85: 0 | AJ85: 0 | AK85: 0 | AL85: 0 | AM85: 0 | AN85: 0 | AO85: 0 | AP85: 0 | AQ85: 0 | AR85: 0 | AS85: 0 | AT85: 0 | AU85: 0 | AV85: 0 | AW85: 0 | AX85: 0 | AY85: 0 | AZ85: 0 | BA85: 0 | BB85: 0 | BC85: 0 | BD85: 0 | BE85: 0 | BF85: 0 | BG85: 0 | BH85: 0 | BI85: 0 | BJ85: 0 | BK85: 0 | BL85: 0 | BM85: 0 | BN85: 0 | BO85: 0 | BP85: 0 | BQ85: 0 | BR85: 0 | BS85: 0 | BT85: 0 | BU85: 0 | BV85: 0 | BW85: 0 | BX85: 0 | BY85: 0 | BZ85: 0 | CA85: 0 | CB85: 0 | CC85: 0 | CD85: 0 | CE85: 0 | CF85: 0 | CG85: 0 | CH85: 0 | CI85: 0 | CJ85: 0 | CK85: 0 | CL85: 0 | CM85: 0 | CN85: 0 | CO85: 0 | CP85: 0 | CQ85: 0 | CR85: 0 | CS85: 0 | CT85: 0 | CU85: 0 | CV85: 0 | CW85: 0 | CX85: 0 | CY85: 0 | CZ85: 0 | DA85: 0 | DB85: 0 | DC85: 0 | DD85: 0 | DE85: 0 | DF85: 0 | DG85: 0 | DH85: 0
C86: Ground Outdoor / Indoor Chamber Mounted; > 33 kV & < = 66 kV ; > 15 MVA and < = 40 MVA | D86: 50 | E86: 13 | F86: 0 | G86: 0 | H86: 1 | I86: 0 | J86: 0 | K86: 0 | L86: 0 | M86: 0 | N86: 1 | O86: 0 | P86: 1 | Q86: 0 | R86: 0 | S86: 0 | T86: 0 | U86: 0 | V86: 0 | W86: 0 | X86: 0 | Y86: 0 | Z86: 0 | AA86: 0 | AB86: 0 | AC86: 0 | AD86: 0 | AE86: 0 | AF86: 0 | AG86: 0 | AH86: 0 | AI86: 0 | AJ86: 0 | AK86: 0 | AL86: 0 | AM86: 0 | AN86: 0 | AO86: 0 | AP86: 0 | AQ86: 0 | AR86: 0 | AS86: 0 | AT86: 0 | AU86: 0 | AV86: 0 | AW86: 0 | AX86: 0 | AY86: 0 | AZ86: 0 | BA86: 0 | BB86: 0 | BC86: 0 | BD86: 0 | BE86: 0 | BF86: 0 | BG86: 0 | BH86: 0 | BI86: 0 | BJ86: 0 | BK86: 0 | BL86: 0 | BM86: 0 | BN86: 0 | BO86: 0 | BP86: 0 | BQ86: 0 | BR86: 0 | BS86: 0 | BT86: 0 | BU86: 0 | BV86: 0 | BW86: 0 | BX86: 0 | BY86: 0 | BZ86: 0 | CA86: 0 | CB86: 0 | CC86: 0 | CD86: 0 | CE86: 0 | CF86: 0 | CG86: 0 | CH86: 0 | CI86: 0 | CJ86: 0 | CK86: 0 | CL86: 0 | CM86: 0 | CN86: 0 | CO86: 0 | CP86: 0 | CQ86: 0 | CR86: 0 | CS86: 0 | CT86: 0 | CU86: 0 | CV86: 0 | CW86: 0 | CX86: 0 | CY86: 0 | CZ86: 0 | DA86: 0 | DB86: 0 | DC86: 0 | DD86: 0 | DE86: 0 | DF86: 0 | DG86: 0 | DH86: 0
C87: Ground Outdoor / Indoor Chamber Mounted; > 33 kV & < = 66 kV ; > 40 MVA | D87: 0 | E87: 0 | F87: 0 | G87: 0 | H87: 0 | I87: 0 | J87: 0 | K87: 0 | L87: 0 | M87: 0 | N87: 0 | O87: 0 | P87: 0 | Q87: 0 | R87: 0 | S87: 0 | T87: 0 | U87: 0 | V87: 0 | W87: 0 | X87: 0 | Y87: 0 | Z87: 0 | AA87: 0 | AB87: 0 | AC87: 0 | AD87: 0 | AE87: 0 | AF87: 0 | AG87: 0 | AH87: 0 | AI87: 0 | AJ87: 0 | AK87: 0 | AL87: 0 | AM87: 0 | AN87: 0 | AO87: 0 | AP87: 0 | AQ87: 0 | AR87: 0 | AS87: 0 | AT87: 0 | AU87: 0 | AV87: 0 | AW87: 0 | AX87: 0 | AY87: 0 | AZ87: 0 | BA87: 0 | BB87: 0 | BC87: 0 | BD87: 0 | BE87: 0 | BF87: 0 | BG87: 0 | BH87: 0 | BI87: 0 | BJ87: 0 | BK87: 0 | BL87: 0 | BM87: 0 | BN87: 0 | BO87: 0 | BP87: 0 | BQ87: 0 | BR87: 0 | BS87: 0 | BT87: 0 | BU87: 0 | BV87: 0 | BW87: 0 | BX87: 0 | BY87: 0 | BZ87: 0 | CA87: 0 | CB87: 0 | CC87: 0 | CD87: 0 | CE87: 0 | CF87: 0 | CG87: 0 | CH87: 0 | CI87: 0 | CJ87: 0 | CK87: 0 | CL87: 0 | CM87: 0 | CN87: 0 | CO87: 0 | CP87: 0 | CQ87: 0 | CR87: 0 | CS87: 0 | CT87: 0 | CU87: 0 | CV87: 0 | CW87: 0 | CX87: 0 | CY87: 0 | CZ87: 0 | DA87: 0 | DB87: 0 | DC87: 0 | DD87: 0 | DE87: 0 | DF87: 0 | DG87: 0 | DH87: 0
C88: Ground Outdoor / Indoor Chamber Mounted; > 66 kV & < = 132 kV ; < = 100 MVA | D88: 50 | E88: 13 | F88: 0 | G88: 0 | H88: 1 | I88: 0 | J88: 1 | K88: 0 | L88: 1 | M88: 0 | N88: 0 | O88: 0 | P88: 0 | Q88: 0 | R88: 0 | S88: 0 | T88: 0 | U88: 0 | V88: 0 | W88: 0 | X88: 0 | Y88: 0 | Z88: 0 | AA88: 1 | AB88: 1 | AC88: 0 | AD88: 0 | AE88: 0 | AF88: 0 | AG88: 2 | AH88: 0 | AI88: 3 | AJ88: 0 | AK88: 2 | AL88: 1 | AM88: 1 | AN88: 1 | AO88: 0 | AP88: 1 | AQ88: 2 | AR88: 2 | AS88: 0 | AT88: 1 | AU88: 1 | AV88: 0 | AW88: 0 | AX88: 0 | AY88: 2 | AZ88: 0 | BA88: 0 | BB88: 0 | BC88: 4 | BD88: 0 | BE88: 0 | BF88: 0 | BG88: 0 | BH88: 0 | BI88: 0 | BJ88: 0 | BK88: 0 | BL88: 0 | BM88: 0 | BN88: 0 | BO88: 0 | BP88: 0 | BQ88: 0 | BR88: 0 | BS88: 0 | BT88: 0 | BU88: 0 | BV88: 0 | BW88: 0 | BX88: 0 | BY88: 0 | BZ88: 0 | CA88: 0 | CB88: 0 | CC88: 0 | CD88: 0 | CE88: 0 | CF88: 0 | CG88: 0 | CH88: 0 | CI88: 0 | CJ88: 0 | CK88: 0 | CL88: 0 | CM88: 0 | CN88: 0 | CO88: 0 | CP88: 0 | CQ88: 0 | CR88: 0 | CS88: 0 | CT88: 0 | CU88: 0 | CV88: 0 | CW88: 0 | CX88: 0 | CY88: 0 | CZ88: 0 | DA88: 0 | DB88: 0 | DC88: 0 | DD88: 0 | DE88: 0 | DF88: 0 | DG88: 0 | DH88: 0
C89: Ground Outdoor / Indoor Chamber Mounted; > 66 kV & < = 132 kV ; > 100 MVA | D89: 0 | E89: 0 | F89: 0 | G89: 0 | H89: 0 | I89: 0 | J89: 0 | K89: 0 | L89: 0 | M89: 0 | N89: 0 | O89: 0 | P89: 0 | Q89: 0 | R89: 0 | S89: 0 | T89: 0 | U89: 0 | V89: 0 | W89: 0 | X89: 0 | Y89: 0 | Z89: 0 | AA89: 0 | AB89: 0 | AC89: 0 | AD89: 0 | AE89: 0 | AF89: 0 | AG89: 0 | AH89: 0 | AI89: 0 | AJ89: 0 | AK89: 0 | AL89: 0 | AM89: 0 | AN89: 0 | AO89: 0 | AP89: 0 | AQ89: 0 | AR89: 0 | AS89: 0 | AT89: 0 | AU89: 0 | AV89: 0 | AW89: 0 | AX89: 0 | AY89: 0 | AZ89: 0 | BA89: 0 | BB89: 0 | BC89: 0 | BD89: 0 | BE89: 0 | BF89: 0 | BG89: 0 | BH89: 0 | BI89: 0 | BJ89: 0 | BK89: 0 | BL89: 0 | BM89: 0 | BN89: 0 | BO89: 0 | BP89: 0 | BQ89: 0 | BR89: 0 | BS89: 0 | BT89: 0 | BU89: 0 | BV89: 0 | BW89: 0 | BX89: 0 | BY89: 0 | BZ89: 0 | CA89: 0 | CB89: 0 | CC89: 0 | CD89: 0 | CE89: 0 | CF89: 0 | CG89: 0 | CH89: 0 | CI89: 0 | CJ89: 0 | CK89: 0 | CL89: 0 | CM89: 0 | CN89: 0 | CO89: 0 | CP89: 0 | CQ89: 0 | CR89: 0 | CS89: 0 | CT89: 0 | CU89: 0 | CV89: 0 | CW89: 0 | CX89: 0 | CY89: 0 | CZ89: 0 | DA89: 0 | DB89: 0 | DC89: 0 | DD89: 0 | DE89: 0 | DF89: 0 | DG89: 0 | DH89: 0
C90: Ground Outdoor / Indoor Chamber Mounted; > 132 kV ; < = 100 MVA | D90: 0 | E90: 0 | F90: 0 | G90: 0 | H90: 0 | I90: 0 | J90: 0 | K90: 0 | L90: 0 | M90: 0 | N90: 0 | O90: 0 | P90: 0 | Q90: 0 | R90: 0 | S90: 0 | T90: 0 | U90: 0 | V90: 0 | W90: 0 | X90: 0 | Y90: 0 | Z90: 0 | AA90: 0 | AB90: 0 | AC90: 0 | AD90: 0 | AE90: 0 | AF90: 0 | AG90: 0 | AH90: 0 | AI90: 0 | AJ90: 0 | AK90: 0 | AL90: 0 | AM90: 0 | AN90: 0 | AO90: 0 | AP90: 0 | AQ90: 0 | AR90: 0 | AS90: 0 | AT90: 0 | AU90: 0 | AV90: 0 | AW90: 0 | AX90: 0 | AY90: 0 | AZ90: 0 | BA90: 0 | BB90: 0 | BC90: 0 | BD90: 0 | BE90: 0 | BF90: 0 | BG90: 0 | BH90: 0 | BI90: 0 | BJ90: 0 | BK90: 0 | BL90: 0 | BM90: 0 | BN90: 0 | BO90: 0 | BP90: 0 | BQ90: 0 | BR90: 0 | BS90: 0 | BT90: 0 | BU90: 0 | BV90: 0 | BW90: 0 | BX90: 0 | BY90: 0 | BZ90: 0 | CA90: 0 | CB90: 0 | CC90: 0 | CD90: 0 | CE90: 0 | CF90: 0 | CG90: 0 | CH90: 0 | CI90: 0 | CJ90: 0 | CK90: 0 | CL90: 0 | CM90: 0 | CN90: 0 | CO90: 0 | CP90: 0 | CQ90: 0 | CR90: 0 | CS90: 0 | CT90: 0 | CU90: 0 | CV90: 0 | CW90: 0 | CX90: 0 | CY90: 0 | CZ90: 0 | DA90: 0 | DB90: 0 | DC90: 0 | DD90: 0 | DE90: 0 | DF90: 0 | DG90: 0 | DH90: 0
C91: Ground Outdoor / Indoor Chamber Mounted; > 132 kV ; > 100 MVA | D91: 0 | E91: 0 | F91: 0 | G91: 0 | H91: 0 | I91: 0 | J91: 0 | K91: 0 | L91: 0 | M91: 0 | N91: 0 | O91: 0 | P91: 0 | Q91: 0 | R91: 0 | S91: 0 | T91: 0 | U91: 0 | V91: 0 | W91: 0 | X91: 0 | Y91: 0 | Z91: 0 | AA91: 0 | AB91: 0 | AC91: 0 | AD91: 0 | AE91: 0 | AF91: 0 | AG91: 0 | AH91: 0 | AI91: 0 | AJ91: 0 | AK91: 0 | AL91: 0 | AM91: 0 | AN91: 0 | AO91: 0 | AP91: 0 | AQ91: 0 | AR91: 0 | AS91: 0 | AT91: 0 | AU91: 0 | AV91: 0 | AW91: 0 | AX91: 0 | AY91: 0 | AZ91: 0 | BA91: 0 | BB91: 0 | BC91: 0 | BD91: 0 | BE91: 0 | BF91: 0 | BG91: 0 | BH91: 0 | BI91: 0 | BJ91: 0 | BK91: 0 | BL91: 0 | BM91: 0 | BN91: 0 | BO91: 0 | BP91: 0 | BQ91: 0 | BR91: 0 | BS91: 0 | BT91: 0 | BU91: 0 | BV91: 0 | BW91: 0 | BX91: 0 | BY91: 0 | BZ91: 0 | CA91: 0 | CB91: 0 | CC91: 0 | CD91: 0 | CE91: 0 | CF91: 0 | CG91: 0 | CH91: 0 | CI91: 0 | CJ91: 0 | CK91: 0 | CL91: 0 | CM91: 0 | CN91: 0 | CO91: 0 | CP91: 0 | CQ91: 0 | CR91: 0 | CS91: 0 | CT91: 0 | CU91: 0 | CV91: 0 | CW91: 0 | CX91: 0 | CY91: 0 | CZ91: 0 | DA91: 0 | DB91: 0 | DC91: 0 | DD91: 0 | DE91: 0 | DF91: 0 | DG91: 0 | DH91: 0
C92: Other | D92: 50 | E92: 13 | F92: 0 | G92: 0 | H92: 3 | I92: 1 | J92: 2 | K92: 0 | L92: 0 | M92: 0 | N92: 0 | O92: 0 | P92: 0 | Q92: 0 | R92: 0 | S92: 0 | T92: 2 | U92: 0 | V92: 0 | W92: 0 | X92: 0 | Y92: 0 | Z92: 0 | AA92: 0 | AB92: 4 | AC92: 1 | AD92: 0 | AE92: 0 | AF92: 0 | AG92: 2 | AH92: 0 | AI92: 0 | AJ92: 4 | AK92: 4 | AL92: 0 | AM92: 4 | AN92: 3 | AO92: 0 | AP92: 1 | AQ92: 4 | AR92: 0 | AS92: 4 | AT92: 1 | AU92: 3 | AV92: 0 | AW92: 0 | AX92: 0 | AY92: 4 | AZ92: 0 | BA92: 0 | BB92: 0 | BC92: 0 | BD92: 4 | BE92: 0 | BF92: 0 | BG92: 0 | BH92: 0 | BI92: 0 | BJ92: 0 | BK92: 0 | BL92: 0 | BM92: 0 | BN92: 0 | BO92: 0 | BP92: 0 | BQ92: 0 | BR92: 0 | BS92: 0 | BT92: 0 | BU92: 0 | BV92: 0 | BW92: 0 | BX92: 0 | BY92: 0 | BZ92: 0 | CA92: 0 | CB92: 0 | CC92: 0 | CD92: 0 | CE92: 0 | CF92: 0 | CG92: 0 | CH92: 0 | CI92: 0 | CJ92: 0 | CK92: 0 | CL92: 0 | CM92: 0 | CN92: 0 | CO92: 0 | CP92: 0 | CQ92: 0 | CR92: 0 | CS92: 0 | CT92: 0 | CU92: 0 | CV92: 0 | CW92: 0 | CX92: 0 | CY92: 0 | CZ92: 0 | DA92: 0 | DB92: 0 | DC92: 0 | DD92: 0 | DE92: 0 | DF92: 0 | DG92: 0
B93: SWITCHGEAR BY: HIGHEST OPERATING VOLTAGE ; SWITCH FUNCTION | C93: ˂ = 11 kV ; Fuse | D93: 35 | E93: 10 | F93: 1648 | G93: 1269 | H93: 1174 | I93: 334 | J93: 3453 | K93: 2736 | L93: 1853 | M93: 850 | N93: 1671 | O93: 1124 | P93: 1583 | Q93: 1703 | R93: 1656 | S93: 2132 | T93: 592 | U93: 738 | V93: 112 | W93: 377 | X93: 64 | Y93: 88 | Z93: 95 | AA93: 283 | AB93: 1406 | AC93: 334 | AD93: 5062 | AE93: 8074 | AF93: 3412 | AG93: 655 | AH93: 166 | AI93: 4709 | AJ93: 1772 | AK93: 467 | AL93: 408 | AM93: 162 | AN93: 1310 | AO93: 642 | AP93: 1277 | AQ93: 1033 | AR93: 765 | AS93: 157 | AT93: 714 | AU93: 872 | AV93: 1593 | AW93: 2752 | AX93: 1474 | AY93: 1718 | AZ93: 743 | BA93: 517 | BB93: 1345 | BC93: 1016 | BD93: 312 | BE93: 63 | BF93: 180 | BG93: 201 | BH93: 34 | BI93: 214 | BJ93: 176 | BK93: 114 | BL93: 741 | BM93: 28 | BN93: 22 | BO93: 9 | BP93: 18 | BQ93: 2 | BR93: 31 | BS93: 39 | BT93: 0 | BU93: 10 | BV93: 47 | BW93: 45 | BX93: 75 | BY93: 0 | BZ93: 246 | CA93: 98 | CB93: 338 | CC93: 0 | CD93: 0 | CE93: 0 | CF93: 42 | CG93: 0 | CH93: 41 | CI93: 0 | CJ93: 0 | CK93: 0 | CL93: 0 | CM93: 0 | CN93: 2 | CO93: 0 | CP93: 359 | CQ93: 21 | CR93: 0 | CS93: 0 | CT93: 0 | CU93: 0 | CV93: 0 | CW93: 0 | CX93: 58 | CY93: 118 | CZ93: 0 | DA93: 0 | DB93: 0 | DC93: 0 | DD93: 0 | DE93: 0 | DF93: 0 | DG93: 0 | DH93: 0
C94: ˂ = 11 kV ; Switch | D94: 35 | E94: 10 | F94: 2184 | G94: 855 | H94: 566 | I94: 420 | J94: 784 | K94: 706 | L94: 592 | M94: 657 | N94: 672 | O94: 479 | P94: 593 | Q94: 637 | R94: 610 | S94: 451 | T94: 404 | U94: 268 | V94: 345 | W94: 393 | X94: 298 | Y94: 354 | Z94: 279 | AA94: 523 | AB94: 714 | AC94: 838 | AD94: 969 | AE94: 983 | AF94: 565 | AG94: 416 | AH94: 380 | AI94: 811 | AJ94: 973 | AK94: 768 | AL94: 418 | AM94: 333 | AN94: 754 | AO94: 706 | AP94: 602 | AQ94: 512 | AR94: 522 | AS94: 608 | AT94: 722 | AU94: 599 | AV94: 454 | AW94: 610 | AX94: 415 | AY94: 465 | AZ94: 618 | BA94: 380 | BB94: 862 | BC94: 585 | BD94: 670 | BE94: 88 | BF94: 113 | BG94: 94 | BH94: 75 | BI94: 114 | BJ94: 321 | BK94: 105 | BL94: 342 | BM94: 103 | BN94: 165 | BO94: 73 | BP94: 64 | BQ94: 9 | BR94: 139 | BS94: 265 | BT94: 0 | BU94: 45 | BV94: 61 | BW94: 86 | BX94: 130 | BY94: 0 | BZ94: 147 | CA94: 248 | CB94: 277 | CC94: 0 | CD94: 16 | CE94: 0 | CF94: 28 | CG94: 0 | CH94: 122 | CI94: 0 | CJ94: 0 | CK94: 0 | CL94: 0 | CM94: 0 | CN94: 0 | CO94: 0 | CP94: 1357 | CQ94: 15 | CR94: 0 | CS94: 0 | CT94: 0 | CU94: 0 | CV94: 0 | CW94: 0 | CX94: 34 | CY94: 21 | CZ94: 0 | DA94: 0 | DB94: 0 | DC94: 0 | DD94: 0 | DE94: 0 | DF94: 0 | DG94: 0 | DH94: 0
C95: ˂ = 11 kV ; Circuit Breaker | D95: 50 | E95: 18 | F95: 32 | G95: 53 | H95: 28 | I95: 83 | J95: 91 | K95: 105 | L95: 51 | M95: 59 | N95: 55 | O95: 116 | P95: 39 | Q95: 29 | R95: 15 | S95: 15 | T95: 4 | U95: 17 | V95: 29 | W95: 29 | X95: 20 | Y95: 48 | Z95: 71 | AA95: 12 | AB95: 24 | AC95: 65 | AD95: 53 | AE95: 28 | AF95: 32 | AG95: 6 | AH95: 57 | AI95: 56 | AJ95: 19 | AK95: 117 | AL95: 19 | AM95: 4 | AN95: 27 | AO95: 48 | AP95: 35 | AQ95: 30 | AR95: 56 | AS95: 13 | AT95: 76 | AU95: 4 | AV95: 7 | AW95: 7 | AX95: 5 | AY95: 5 | AZ95: 6 | BA95: 28 | BB95: 22 | BC95: 33 | BD95: 11 | BE95: 24 | BF95: 0 | BG95: 0 | BH95: 0 | BI95: 0 | BJ95: 6 | BK95: 1 | BL95: 0 | BM95: 0 | BN95: 3 | BO95: 0 | BP95: 0 | BQ95: 2 | BR95: 0 | BS95: 1 | BT95: 0 | BU95: 1 | BV95: 0 | BW95: 0 | BX95: 5 | BY95: 0 | BZ95: 0 | CA95: 0 | CB95: 0 | CC95: 0 | CD95: 4 | CE95: 0 | CF95: 0 | CG95: 0 | CH95: 0 | CI95: 0 | CJ95: 0 | CK95: 0 | CL95: 0 | CM95: 0 | CN95: 1 | CO95: 0 | CP95: 2 | CQ95: 0 | CR95: 0 | CS95: 0 | CT95: 0 | CU95: 0 | CV95: 0 | CW95: 0 | CX95: 0 | CY95: 0 | CZ95: 0 | DA95: 0 | DB95: 0 | DC95: 0 | DD95: 0 | DE95: 0 | DF95: 0 | DG95: 0 | DH95: 0
C96: > 11 kV & < = 22 kV ; Switch | D96: 35 | E96: 10 | F96: 0 | G96: 0 | H96: 2 | I96: 0 | J96: 0 | K96: 0 | L96: 0 | M96: 0 | N96: 0 | O96: 0 | P96: 0 | Q96: 1 | R96: 0 | S96: 0 | T96: 0 | U96: 0 | V96: 0 | W96: 0 | X96: 0 | Y96: 0 | Z96: 0 | AA96: 0 | AB96: 0 | AC96: 0 | AD96: 0 | AE96: 0 | AF96: 1 | AG96: 0 | AH96: 0 | AI96: 0 | AJ96: 1 | AK96: 0 | AL96: 1 | AM96: 2 | AN96: 0 | AO96: 0 | AP96: 0 | AQ96: 0 | AR96: 0 | AS96: 0 | AT96: 0 | AU96: 0 | AV96: 0 | AW96: 0 | AX96: 0 | AY96: 0 | AZ96: 0 | BA96: 6 | BB96: 13 | BC96: 0 | BD96: 0 | BE96: 0 | BF96: 0 | BG96: 0 | BH96: 0 | BI96: 0 | BJ96: 0 | BK96: 0 | BL96: 0 | BM96: 0 | BN96: 0 | BO96: 0 | BP96: 0 | BQ96: 0 | BR96: 0 | BS96: 0 | BT96: 0 | BU96: 0 | BV96: 0 | BW96: 0 | BX96: 0 | BY96: 0 | BZ96: 0 | CA96: 0 | CB96: 0 | CC96: 0 | CD96: 0 | CE96: 0 | CF96: 0 | CG96: 0 | CH96: 0 | CI96: 0 | CJ96: 0 | CK96: 0 | CL96: 0 | CM96: 0 | CN96: 0 | CO96: 0 | CP96: 0 | CQ96: 0 | CR96: 0 | CS96: 0 | CT96: 0 | CU96: 0 | CV96: 0 | CW96: 0 | CX96: 0 | CY96: 0 | CZ96: 0 | DA96: 0 | DB96: 0 | DC96: 0 | DD96: 0 | DE96: 0 | DF96: 0 | DG96: 0 | DH96: 0
C97: > 11 kV & < = 22 kV ; Circuit Breaker | D97: 50 | E97: 18 | F97: 0 | G97: 0 | H97: 1 | I97: 0 | J97: 0 | K97: 0 | L97: 0 | M97: 0 | N97: 0 | O97: 0 | P97: 0 | Q97: 0 | R97: 1 | S97: 0 | T97: 0 | U97: 0 | V97: 0 | W97: 0 | X97: 0 | Y97: 0 | Z97: 0 | AA97: 0 | AB97: 0 | AC97: 0 | AD97: 0 | AE97: 0 | AF97: 0 | AG97: 0 | AH97: 0 | AI97: 0 | AJ97: 0 | AK97: 0 | AL97: 0 | AM97: 0 | AN97: 0 | AO97: 0 | AP97: 0 | AQ97: 0 | AR97: 0 | AS97: 0 | AT97: 0 | AU97: 0 | AV97: 0 | AW97: 0 | AX97: 0 | AY97: 0 | AZ97: 0 | BA97: 2 | BB97: 0 | BC97: 0 | BD97: 0 | BE97: 0 | BF97: 0 | BG97: 0 | BH97: 0 | BI97: 0 | BJ97: 0 | BK97: 0 | BL97: 0 | BM97: 0 | BN97: 0 | BO97: 0 | BP97: 0 | BQ97: 0 | BR97: 0 | BS97: 0 | BT97: 0 | BU97: 0 | BV97: 0 | BW97: 0 | BX97: 0 | BY97: 0 | BZ97: 0 | CA97: 0 | CB97: 0 | CC97: 0 | CD97: 0 | CE97: 0 | CF97: 0 | CG97: 0 | CH97: 0 | CI97: 0 | CJ97: 0 | CK97: 0 | CL97: 0 | CM97: 0 | CN97: 0 | CO97: 0 | CP97: 0 | CQ97: 0 | CR97: 0 | CS97: 0 | CT97: 0 | CU97: 0 | CV97: 0 | CW97: 0 | CX97: 0 | CY97: 0 | CZ97: 0 | DA97: 0 | DB97: 0 | DC97: 0 | DD97: 0 | DE97: 0 | DF97: 0 | DG97: 0 | DH97: 0
C98: > 22 kV & < = 33 kV ; Switch | D98: 0 | E98: 0 | F98: 0 | G98: 0 | H98: 0 | I98: 0 | J98: 0 | K98: 0 | L98: 0 | M98: 0 | N98: 0 | O98: 0 | P98: 0 | Q98: 0 | R98: 0 | S98: 0 | T98: 0 | U98: 0 | V98: 0 | W98: 0 | X98: 0 | Y98: 0 | Z98: 0 | AA98: 0 | AB98: 0 | AC98: 0 | AD98: 0 | AE98: 0 | AF98: 0 | AG98: 0 | AH98: 0 | AI98: 0 | AJ98: 0 | AK98: 0 | AL98: 0 | AM98: 0 | AN98: 0 | AO98: 0 | AP98: 0 | AQ98: 0 | AR98: 0 | AS98: 0 | AT98: 0 | AU98: 0 | AV98: 0 | AW98: 0 | AX98: 0 | AY98: 0 | AZ98: 0 | BA98: 0 | BB98: 0 | BC98: 0 | BD98: 0 | BE98: 0 | BF98: 0 | BG98: 0 | BH98: 0 | BI98: 0 | BJ98: 0 | BK98: 0 | BL98: 0 | BM98: 0 | BN98: 0 | BO98: 0 | BP98: 0 | BQ98: 0 | BR98: 0 | BS98: 0 | BT98: 0 | BU98: 0 | BV98: 0 | BW98: 0 | BX98: 0 | BY98: 0 | BZ98: 0 | CA98: 0 | CB98: 0 | CC98: 0 | CD98: 0 | CE98: 0 | CF98: 0 | CG98: 0 | CH98: 0 | CI98: 0 | CJ98: 0 | CK98: 0 | CL98: 0 | CM98: 0 | CN98: 0 | CO98: 0 | CP98: 0 | CQ98: 0 | CR98: 0 | CS98: 0 | CT98: 0 | CU98: 0 | CV98: 0 | CW98: 0 | CX98: 0 | CY98: 0 | CZ98: 0 | DA98: 0 | DB98: 0 | DC98: 0 | DD98: 0 | DE98: 0 | DF98: 0 | DG98: 0 | DH98: 0
C99: > 22 kV & < = 33 kV ; Circuit Breaker | D99: 0 | E99: 0 | F99: 0 | G99: 0 | H99: 0 | I99: 0 | J99: 0 | K99: 0 | L99: 0 | M99: 0 | N99: 0 | O99: 0 | P99: 0 | Q99: 0 | R99: 0 | S99: 0 | T99: 0 | U99: 0 | V99: 0 | W99: 0 | X99: 0 | Y99: 0 | Z99: 0 | AA99: 0 | AB99: 0 | AC99: 0 | AD99: 0 | AE99: 0 | AF99: 0 | AG99: 0 | AH99: 0 | AI99: 0 | AJ99: 0 | AK99: 0 | AL99: 0 | AM99: 0 | AN99: 0 | AO99: 0 | AP99: 0 | AQ99: 0 | AR99: 0 | AS99: 0 | AT99: 0 | AU99: 0 | AV99: 0 | AW99: 0 | AX99: 0 | AY99: 0 | AZ99: 0 | BA99: 0 | BB99: 0 | BC99: 0 | BD99: 0 | BE99: 0 | BF99: 0 | BG99: 0 | BH99: 0 | BI99: 0 | BJ99: 0 | BK99: 0 | BL99: 0 | BM99: 0 | BN99: 0 | BO99: 0 | BP99: 0 | BQ99: 0 | BR99: 0 | BS99: 0 | BT99: 0 | BU99: 0 | BV99: 0 | BW99: 0 | BX99: 0 | BY99: 0 | BZ99: 0 | CA99: 0 | CB99: 0 | CC99: 0 | CD99: 0 | CE99: 0 | CF99: 0 | CG99: 0 | CH99: 0 | CI99: 0 | CJ99: 0 | CK99: 0 | CL99: 0 | CM99: 0 | CN99: 0 | CO99: 0 | CP99: 0 | CQ99: 0 | CR99: 0 | CS99: 0 | CT99: 0 | CU99: 0 | CV99: 0 | CW99: 0 | CX99: 0 | CY99: 0 | CZ99: 0 | DA99: 0 | DB99: 0 | DC99: 0 | DD99: 0 | DE99: 0 | DF99: 0 | DG99: 0 | DH99: 0
C100: > 33 kV & < = 66 kV ; Switch | D100: 35 | E100: 10 | F100: 0 | G100: 0 | H100: 0 | I100: 0 | J100: 0 | K100: 0 | L100: 0 | M100: 0 | N100: 0 | O100: 0 | P100: 0 | Q100: 0 | R100: 0 | S100: 0 | T100: 0 | U100: 0 | V100: 0 | W100: 0 | X100: 0 | Y100: 0 | Z100: 0 | AA100: 0 | AB100: 0 | AC100: 0 | AD100: 0 | AE100: 0 | AF100: 0 | AG100: 0 | AH100: 0 | AI100: 0 | AJ100: 0 | AK100: 0 | AL100: 0 | AM100: 0 | AN100: 0 | AO100: 0 | AP100: 5 | AQ100: 0 | AR100: 0 | AS100: 0 | AT100: 0 | AU100: 0 | AV100: 0 | AW100: 0 | AX100: 0 | AY100: 0 | AZ100: 0 | BA100: 0 | BB100: 0 | BC100: 0 | BD100: 0 | BE100: 0 | BF100: 0 | BG100: 0 | BH100: 0 | BI100: 0 | BJ100: 0 | BK100: 0 | BL100: 0 | BM100: 0 | BN100: 0 | BO100: 0 | BP100: 0 | BQ100: 0 | BR100: 0 | BS100: 0 | BT100: 0 | BU100: 0 | BV100: 0 | BW100: 0 | BX100: 0 | BY100: 0 | BZ100: 0 | CA100: 0 | CB100: 0 | CC100: 0 | CD100: 0 | CE100: 0 | CF100: 0 | CG100: 0 | CH100: 0 | CI100: 0 | CJ100: 0 | CK100: 0 | CL100: 0 | CM100: 0 | CN100: 0 | CO100: 0 | CP100: 0 | CQ100: 0 | CR100: 0 | CS100: 0 | CT100: 0 | CU100: 0 | CV100: 0 | CW100: 0 | CX100: 0 | CY100: 0 | CZ100: 0 | DA100: 0 | DB100: 0 | DC100: 0 | DD100: 0 | DE100: 0 | DF100: 0 | DG100: 0 | DH100: 0
C101: > 33 kV & < = 66 kV ; Circuit Breaker | D101: 50 | E101: 18 | F101: 0 | G101: 0 | H101: 0 | I101: 0 | J101: 0 | K101: 0 | L101: 0 | M101: 0 | N101: 0 | O101: 0 | P101: 0 | Q101: 0 | R101: 0 | S101: 0 | T101: 0 | U101: 0 | V101: 0 | W101: 0 | X101: 0 | Y101: 0 | Z101: 0 | AA101: 0 | AB101: 0 | AC101: 0 | AD101: 0 | AE101: 0 | AF101: 0 | AG101: 0 | AH101: 0 | AI101: 0 | AJ101: 0 | AK101: 1 | AL101: 0 | AM101: 0 | AN101: 0 | AO101: 0 | AP101: 4 | AQ101: 0 | AR101: 0 | AS101: 0 | AT101: 0 | AU101: 0 | AV101: 0 | AW101: 0 | AX101: 0 | AY101: 0 | AZ101: 0 | BA101: 0 | BB101: 0 | BC101: 0 | BD101: 0 | BE101: 0 | BF101: 0 | BG101: 0 | BH101: 0 | BI101: 0 | BJ101: 0 | BK101: 0 | BL101: 0 | BM101: 0 | BN101: 0 | BO101: 0 | BP101: 0 | BQ101: 0 | BR101: 0 | BS101: 0 | BT101: 0 | BU101: 0 | BV101: 0 | BW101: 0 | BX101: 0 | BY101: 0 | BZ101: 0 | CA101: 0 | CB101: 0 | CC101: 0 | CD101: 0 | CE101: 0 | CF101: 0 | CG101: 0 | CH101: 0 | CI101: 0 | CJ101: 0 | CK101: 0 | CL101: 0 | CM101: 0 | CN101: 0 | CO101: 0 | CP101: 0 | CQ101: 0 | CR101: 0 | CS101: 0 | CT101: 0 | CU101: 0 | CV101: 0 | CW101: 0 | CX101: 0 | CY101: 0 | CZ101: 0 | DA101: 0 | DB101: 0 | DC101: 0 | DD101: 0 | DE101: 0 | DF101: 0 | DG101: 0 | DH101: 0
C102: > 66 kV & < = 132 kV ; Switch | D102: 35 | E102: 10 | F102: 0 | G102: 0 | H102: 0 | I102: 0 | J102: 1 | K102: 0 | L102: 0 | M102: 0 | N102: 0 | O102: 0 | P102: 0 | Q102: 0 | R102: 0 | S102: 0 | T102: 0 | U102: 0 | V102: 0 | W102: 0 | X102: 0 | Y102: 0 | Z102: 0 | AA102: 0 | AB102: 0 | AC102: 0 | AD102: 0 | AE102: 0 | AF102: 11 | AG102: 0 | AH102: 0 | AI102: 0 | AJ102: 11 | AK102: 16 | AL102: 3 | AM102: 0 | AN102: 0 | AO102: 31 | AP102: 0 | AQ102: 11 | AR102: 11 | AS102: 14 | AT102: 8 | AU102: 0 | AV102: 0 | AW102: 0 | AX102: 0 | AY102: 0 | AZ102: 0 | BA102: 0 | BB102: 14 | BC102: 0 | BD102: 12 | BE102: 0 | BF102: 0 | BG102: 0 | BH102: 0 | BI102: 0 | BJ102: 0 | BK102: 0 | BL102: 0 | BM102: 0 | BN102: 0 | BO102: 0 | BP102: 0 | BQ102: 0 | BR102: 0 | BS102: 0 | BT102: 0 | BU102: 0 | BV102: 0 | BW102: 0 | BX102: 0 | BY102: 0 | BZ102: 0 | CA102: 0 | CB102: 0 | CC102: 0 | CD102: 0 | CE102: 0 | CF102: 0 | CG102: 0 | CH102: 0 | CI102: 0 | CJ102: 0 | CK102: 0 | CL102: 0 | CM102: 0 | CN102: 0 | CO102: 0 | CP102: 0 | CQ102: 0 | CR102: 0 | CS102: 0 | CT102: 0 | CU102: 0 | CV102: 0 | CW102: 0 | CX102: 0 | CY102: 0 | CZ102: 0 | DA102: 0 | DB102: 0 | DC102: 0 | DD102: 0 | DE102: 0 | DF102: 0 | DG102: 0 | DH102: 0
C103: > 66 kV & < = 132 kV ; Circuit Breaker | D103: 50 | E103: 18 | F103: 0 | G103: 2 | H103: 1 | I103: 10 | J103: 1 | K103: 6 | L103: 0 | M103: 0 | N103: 0 | O103: 0 | P103: 0 | Q103: 0 | R103: 0 | S103: 0 | T103: 0 | U103: 0 | V103: 0 | W103: 0 | X103: 0 | Y103: 0 | Z103: 0 | AA103: 1 | AB103: 1 | AC103: 4 | AD103: 0 | AE103: 3 | AF103: 0 | AG103: 0 | AH103: 4 | AI103: 0 | AJ103: 0 | AK103: 14 | AL103: 1 | AM103: 0 | AN103: 6 | AO103: 2 | AP103: 3 | AQ103: 0 | AR103: 10 | AS103: 0 | AT103: 3 | AU103: 0 | AV103: 1 | AW103: 0 | AX103: 0 | AY103: 0 | AZ103: 0 | BA103: 0 | BB103: 0 | BC103: 0 | BD103: 1 | BE103: 0 | BF103: 0 | BG103: 0 | BH103: 0 | BI103: 0 | BJ103: 0 | BK103: 0 | BL103: 0 | BM103: 0 | BN103: 0 | BO103: 0 | BP103: 0 | BQ103: 0 | BR103: 0 | BS103: 0 | BT103: 0 | BU103: 0 | BV103: 0 | BW103: 0 | BX103: 0 | BY103: 0 | BZ103: 0 | CA103: 0 | CB103: 0 | CC103: 0 | CD103: 0 | CE103: 0 | CF103: 0 | CG103: 0 | CH103: 0 | CI103: 0 | CJ103: 0 | CK103: 0 | CL103: 0 | CM103: 0 | CN103: 0 | CO103: 0 | CP103: 0 | CQ103: 0 | CR103: 0 | CS103: 0 | CT103: 0 | CU103: 0 | CV103: 0 | CW103: 0 | CX103: 0 | CY103: 0 | CZ103: 0 | DA103: 0 | DB103: 0 | DC103: 0 | DD103: 0 | DE103: 0 | DF103: 0 | DG103: 0 | DH103: 0
C104: > 132 kV ; Switch | D104: 0 | E104: 0 | F104: 0 | G104: 0 | H104: 0 | I104: 0 | J104: 0 | K104: 0 | L104: 0 | M104: 0 | N104: 0 | O104: 0 | P104: 0 | Q104: 0 | R104: 0 | S104: 0 | T104: 0 | U104: 0 | V104: 0 | W104: 0 | X104: 0 | Y104: 0 | Z104: 0 | AA104: 0 | AB104: 0 | AC104: 0 | AD104: 0 | AE104: 0 | AF104: 0 | AG104: 0 | AH104: 0 | AI104: 0 | AJ104: 0 | AK104: 0 | AL104: 0 | AM104: 0 | AN104: 0 | AO104: 0 | AP104: 0 | AQ104: 0 | AR104: 0 | AS104: 0 | AT104: 0 | AU104: 0 | AV104: 0 | AW104: 0 | AX104: 0 | AY104: 0 | AZ104: 0 | BA104: 0 | BB104: 0 | BC104: 0 | BD104: 0 | BE104: 0 | BF104: 0 | BG104: 0 | BH104: 0 | BI104: 0 | BJ104: 0 | BK104: 0 | BL104: 0 | BM104: 0 | BN104: 0 | BO104: 0 | BP104: 0 | BQ104: 0 | BR104: 0 | BS104: 0 | BT104: 0 | BU104: 0 | BV104: 0 | BW104: 0 | BX104: 0 | BY104: 0 | BZ104: 0 | CA104: 0 | CB104: 0 | CC104: 0 | CD104: 0 | CE104: 0 | CF104: 0 | CG104: 0 | CH104: 0 | CI104: 0 | CJ104: 0 | CK104: 0 | CL104: 0 | CM104: 0 | CN104: 0 | CO104: 0 | CP104: 0 | CQ104: 0 | CR104: 0 | CS104: 0 | CT104: 0 | CU104: 0 | CV104: 0 | CW104: 0 | CX104: 0 | CY104: 0 | CZ104: 0 | DA104: 0 | DB104: 0 | DC104: 0 | DD104: 0 | DE104: 0 | DF104: 0 | DG104: 0 | DH104: 0
C105: > 132 kV ; Circuit Breaker | D105: 0 | E105: 0 | F105: 0 | G105: 0 | H105: 0 | I105: 0 | J105: 0 | K105: 0 | L105: 0 | M105: 0 | N105: 0 | O105: 0 | P105: 0 | Q105: 0 | R105: 0 | S105: 0 | T105: 0 | U105: 0 | V105: 0 | W105: 0 | X105: 0 | Y105: 0 | Z105: 0 | AA105: 0 | AB105: 0 | AC105: 0 | AD105: 0 | AE105: 0 | AF105: 0 | AG105: 0 | AH105: 0 | AI105: 0 | AJ105: 0 | AK105: 0 | AL105: 0 | AM105: 0 | AN105: 0 | AO105: 0 | AP105: 0 | AQ105: 0 | AR105: 0 | AS105: 0 | AT105: 0 | AU105: 0 | AV105: 0 | AW105: 0 | AX105: 0 | AY105: 0 | AZ105: 0 | BA105: 0 | BB105: 0 | BC105: 0 | BD105: 0 | BE105: 0 | BF105: 0 | BG105: 0 | BH105: 0 | BI105: 0 | BJ105: 0 | BK105: 0 | BL105: 0 | BM105: 0 | BN105: 0 | BO105: 0 | BP105: 0 | BQ105: 0 | BR105: 0 | BS105: 0 | BT105: 0 | BU105: 0 | BV105: 0 | BW105: 0 | BX105: 0 | BY105: 0 | BZ105: 0 | CA105: 0 | CB105: 0 | CC105: 0 | CD105: 0 | CE105: 0 | CF105: 0 | CG105: 0 | CH105: 0 | CI105: 0 | CJ105: 0 | CK105: 0 | CL105: 0 | CM105: 0 | CN105: 0 | CO105: 0 | CP105: 0 | CQ105: 0 | CR105: 0 | CS105: 0 | CT105: 0 | CU105: 0 | CV105: 0 | CW105: 0 | CX105: 0 | CY105: 0 | CZ105: 0 | DA105: 0 | DB105: 0 | DC105: 0 | DD105: 0 | DE105: 0 | DF105: 0 | DG105: 0 | DH105: 0
C106: Other | D106: 0 | E106: 0 | F106: 0 | G106: 0 | H106: 0 | I106: 0 | J106: 0 | K106: 0 | L106: 0 | M106: 0 | N106: 0 | O106: 0 | P106: 0 | Q106: 0 | R106: 0 | S106: 0 | T106: 0 | U106: 0 | V106: 0 | W106: 0 | X106: 0 | Y106: 0 | Z106: 0 | AA106: 0 | AB106: 0 | AC106: 0 | AD106: 0 | AE106: 0 | AF106: 0 | AG106: 0 | AH106: 0 | AI106: 0 | AJ106: 0 | AK106: 0 | AL106: 0 | AM106: 0 | AN106: 0 | AO106: 0 | AP106: 0 | AQ106: 0 | AR106: 0 | AS106: 0 | AT106: 0 | AU106: 0 | AV106: 0 | AW106: 0 | AX106: 0 | AY106: 0 | AZ106: 0 | BA106: 0 | BB106: 0 | BC106: 0 | BD106: 0 | BE106: 0 | BF106: 0 | BG106: 0 | BH106: 0 | BI106: 0 | BJ106: 0 | BK106: 0 | BL106: 0 | BM106: 0 | BN106: 0 | BO106: 0 | BP106: 0 | BQ106: 0 | BR106: 0 | BS106: 0 | BT106: 0 | BU106: 0 | BV106: 0 | BW106: 0 | BX106: 0 | BY106: 0 | BZ106: 0 | CA106: 0 | CB106: 0 | CC106: 0 | CD106: 0 | CE106: 0 | CF106: 0 | CG106: 0 | CH106: 0 | CI106: 0 | CJ106: 0 | CK106: 0 | CL106: 0 | CM106: 0 | CN106: 0 | CO106: 0 | CP106: 0 | CQ106: 0 | CR106: 0 | CS106: 0 | CT106: 0 | CU106: 0 | CV106: 0 | CW106: 0 | CX106: 0 | CY106: 0 | CZ106: 0 | DA106: 0 | DB106: 0 | DC106: 0 | DD106: 0 | DE106: 0 | DF106: 0 | DG106: 0 | DH106: 0
B107: PUBLIC LIGHTING BY: ASSET TYPE ; LIGHTING OBLIGATION | C107: Luminaires ; Major Road
C108: Luminaires ; Minor Road
C109: Brackets ; Major Road
C110: Brackets ; Minor Road
C111: Lamps ; Major Road
C112: Lamps ; Minor Road
C113: Poles / Columns ; Major Road
C114: Poles / Columns ; Minor Road
C115: Other
B116: SCADA, NETWORK CONTROL AND PROTECTION SYSTEMS BY: FUNCTION | C116: Field Devices | D116: 15 | F116: 16 | G116: 108 | H116: 260 | I116: 247 | J116: 102 | K116: 83 | L116: 52 | M116: 48 | N116: 63 | O116: 100 | P116: 109 | Q116: 57 | R116: 61 | S116: 47 | T116: 43 | U116: 76 | V116: 75 | W116: 61 | X116: 150 | Y116: 184 | Z116: 114 | AA116: 72 | AB116: 179 | AC116: 160 | AD116: 61 | AE116: 165 | AF116: 41 | AG116: 51 | AH116: 257 | AI116: 59 | AJ116: 100 | AK116: 3 | AL116: 2 | AM116: 28 | AN116: 5 | AO116: 11 | AP116: 1 | AQ116: 17 | AR116: 0 | AS116: 19 | AT116: 6 | AU116: 1 | AV116: 0 | AW116: 0 | AX116: 0 | AY116: 2
C117: Local Network Wiring Assets | D117: 15 | G117: 0 | H117: 0 | I117: 0 | J117: 0 | K117: 0 | L117: 0 | M117: 0 | N117: 0 | O117: 0 | P117: 0 | Q117: 0 | R117: 0 | S117: 0 | T117: 0 | U117: 0 | V117: 0 | W117: 0 | X117: 0 | Y117: 0 | Z117: 0 | AA117: 0 | AB117: 0 | AC117: 0 | AD117: 0 | AE117: 0 | AF117: 0 | AG117: 0 | AH117: 0 | AI117: 0 | AJ117: 0 | AK117: 0 | AL117: 0 | AM117: 0 | AN117: 0 | AO117: 0 | AP117: 0 | AQ117: 0 | AR117: 0 | AS117: 0 | AT117: 0 | AU117: 0 | AV117: 0
C118: Communications Network Assets | D118: 15 | F118: 17 | G118: 19 | H118: 17 | I118: 31 | J118: 20 | K118: 32 | L118: 8 | M118: 2 | N118: 12 | O118: 3 | P118: 5 | Q118: 1 | R118: 3 | S118: 3 | T118: 11 | U118: 15 | V118: 3
C119: Master Station Assets | D119: 15 | F119: 65 | G119: 0 | H119: 0 | I119: 0 | J119: 0 | K119: 0 | L119: 0 | M119: 0 | N119: 0 | O119: 0 | P119: 0 | Q119: 0 | R119: 0 | S119: 0 | T119: 0 | U119: 1
C120: Communications Site Infrastructure | D120: 15 | F120: 4 | G120: 0 | H120: 0 | I120: 0 | J120: 0 | K120: 0 | L120: 0 | M120: 0 | N120: 0 | O120: 0 | P120: 0 | Q120: 0 | R120: 0 | S120: 0 | T120: 0 | U120: 0 | V120: 0 | W120: 0 | X120: 0 | Y120: 0 | Z120: 0 | AA120: 0 | AB120: 0 | AC120: 0 | AD120: 0 | AE120: 0 | AF120: 0
C121: Communications Linear Assets | D121: 15
C122: AFLC | D122: 15
C123: Other
B124: OTHER BY: DNSP DEFINED | C124: DNSP defined

Sheet 5.3 MD - Network level
B1: REGULATORY REPORTING STATEMENT
B2: =INDEX(dms_TradingNameFull_List,MATCH(dms_TradingName,dms_TradingName_List)) -> ActewAGL Distribution
B3: =CONCATENATE((LOOKUP(dms_Model,dms_Model_List,dms_Worksheet_List))&" "&CRY) -> CATEGORY ANALYSIS 2015-16
B4: 5.3 MAXIMUM DEMAND AT NETWORK LEVEL
B7: 5.3.1 - RAW AND WEATHER CORRECTED COINCIDENT MD AT NETWORK LEVEL (Summed at transmission connection point)
C8: UNIT | D8: =CRY -> 2015-16
B9: Raw network coincident MD | C9: MW | D9: ='[3]5.3 MD - Network level'!$D9+'[2]5.3 MD - Network level'!$D9 -> 625.307596
B10: Date MD occurred | D10: ='[3]5.3 MD - Network level'!$D10+'[2]5.3 MD - Network level'!$D10 -> 2015-08-12
B11: Half hour time period MD occurred | D11: ='[3]5.3 MD - Network level'!$D11+'[2]5.3 MD - Network level'!$D11 -> 18:45:00
B12: Winter/summer peaking | D12: Winter
B13: Embedded generation | C13: MW | D13: ='[3]5.3 MD - Network level'!$D13+'[2]5.3 MD - Network level'!$D13 -> 0
B14: Weather corrected (10% POE) network coincident MD | C14: MW | D14: ='[3]5.3 MD - Network level'!$D14+'[2]5.3 MD - Network level'!$D14 -> 642
B15: Weather corrected (50% POE) network coincident MD | C15: MW | D15: ='[3]5.3 MD - Network level'!$D15+'[2]5.3 MD - Network level'!$D15 -> 624

Sheet 5.4 MD & utilisation-Spatial
B1: REGULATORY REPORTING STATEMENT
B2: =INDEX(dms_TradingNameFull_List,MATCH(dms_TradingName,dms_TradingName_List)) -> ActewAGL Distribution
B3: =CONCATENATE((LOOKUP(dms_Model,dms_Model_List,dms_Worksheet_List))&" "&CRY) -> CATEGORY ANALYSIS 2015-16
B4: 5.4 MAXIMUM DEMAND AND UTILISATION AT SPATIAL LEVEL
B6: There is ONE table on this worksheet. It has two sub-tables based on the Network Level. Each sub-table has been grouped for ease of navigation. See the Instructions sheet on how to group or ungroup data.
B8: 5.4.1 NON-COINCIDENT & COINCIDENT MAXIMUM DEMAND
B9: NETWORK LEVEL | C9: SUBSTATION | D9: FORECASTING ELEMENTS | E9: UNIT | F9: MAX DEMAND | G9: =CRY -> 2015-16
B10: SUBTRANSMISSION SUBSTATION | C10: Canberra | D10: Substation Rating | E10: MVA | F10: Non-Coincident | G10: ='[3]5.4 MD & utilisation-Spatial'!$G10+'[2]5.4 MD & utilisation-Spatial'!$G10 -> 0
F11: Coincident | G11: ='[3]5.4 MD & utilisation-Spatial'!$G11+'[2]5.4 MD & utilisation-Spatial'!$G11 -> 0
D12: Raw Adjusted MD | E12: MW | F12: Non-Coincident | G12: ='[3]5.4 MD & utilisation-Spatial'!$G12+'[2]5.4 MD & utilisation-Spatial'!$G12 -> 445.44
F13: Coincident | G13: ='[3]5.4 MD & utilisation-Spatial'!$G13+'[2]5.4 MD & utilisation-Spatial'!$G13 -> 445.44
D14: Raw Adjusted MD | E14: MVA | F14: Non-Coincident | G14: ='[3]5.4 MD & utilisation-Spatial'!$G14+'[2]5.4 MD & utilisation-Spatial'!$G14 -> 461.766685
F15: Coincident | G15: ='[3]5.4 MD & utilisation-Spatial'!$G15+'[2]5.4 MD & utilisation-Spatial'!$G15 -> 461.766685
D16: Date MD occurred | F16: Non-Coincident | G16: ='[3]5.4 MD & utilisation-Spatial'!$G16+'[2]5.4 MD & utilisation-Spatial'!$G16 -> 2015-08-12
F17: Coincident | G17: ='[3]5.4 MD & utilisation-Spatial'!$G17+'[2]5.4 MD & utilisation-Spatial'!$G17 -> 2015-08-12
D18: Half hour time period MD occurred | F18: Non-Coincident | G18: ='[3]5.4 MD & utilisation-Spatial'!$G18+'[2]5.4 MD & utilisation-Spatial'!$G18 -> 18:45:00
F19: Coincident | G19: ='[3]5.4 MD & utilisation-Spatial'!$G19+'[2]5.4 MD & utilisation-Spatial'!$G19 -> 18:45:00
D20: Winter/Summer Peaking | F20: Non-Coincident | G20: Winter
F21: Coincident | G21: Winter
D22: Adjustments - Embedded generation | E22: MW | F22: Non-Coincident | G22: ='[3]5.4 MD & utilisation-Spatial'!$G22+'[2]5.4 MD & utilisation-Spatial'!$G22 -> 0
F23: Coincident | G23: ='[3]5.4 MD & utilisation-Spatial'!$G23+'[2]5.4 MD & utilisation-Spatial'!$G23 -> 0
D24: Weather Corrected MD 10% POE | E24: MW | F24: Non-Coincident | G24: ='[3]5.4 MD & utilisation-Spatial'!$G24+'[2]5.4 MD & utilisation-Spatial'!$G24 -> 454.591
F25: Coincident | G25: ='[3]5.4 MD & utilisation-Spatial'!$G25+'[2]5.4 MD & utilisation-Spatial'!$G25 -> 454.591
D26: Weather Corrected MD 10% POE | E26: MVA | F26: Non-Coincident | G26: ='[3]5.4 MD & utilisation-Spatial'!$G26+'[2]5.4 MD & utilisation-Spatial'!$G26 -> 471.253
F27: Coincident | G27: ='[3]5.4 MD & utilisation-Spatial'!$G27+'[2]5.4 MD & utilisation-Spatial'!$G27 -> 471.253
D28: Weather Corrected MD 50% POE | E28: MW | F28: Non-Coincident | G28: ='[3]5.4 MD & utilisation-Spatial'!$G28+'[2]5.4 MD & utilisation-Spatial'!$G28 -> 440.7
F29: Coincident | G29: ='[3]5.4 MD & utilisation-Spatial'!$G29+'[2]5.4 MD & utilisation-Spatial'!$G29 -> 440.7
D30: Weather Corrected MD 50% POE | E30: MVA | F30: Non-Coincident | G30: ='[3]5.4 MD & utilisation-Spatial'!$G30+'[2]5.4 MD & utilisation-Spatial'!$G30 -> 456.853
F31: Coincident | G31: ='[3]5.4 MD & utilisation-Spatial'!$G31+'[2]5.4 MD & utilisation-Spatial'!$G31 -> 456.853
C32: Queanbeyan | D32: Substation Rating | E32: MVA | F32: Non-Coincident | G32: ='[3]5.4 MD & utilisation-Spatial'!$G32+'[2]5.4 MD & utilisation-Spatial'!$G32 -> 0
F33: Coincident | G33: ='[3]5.4 MD & utilisation-Spatial'!$G33+'[2]5.4 MD & utilisation-Spatial'!$G33 -> 0
D34: Raw Adjusted MD | E34: MW | F34: Non-Coincident | G34: ='[3]5.4 MD & utilisation-Spatial'!$G34+'[2]5.4 MD & utilisation-Spatial'!$G34 -> 23.86198
F35: Coincident | G35: ='[3]5.4 MD & utilisation-Spatial'!$G35+'[2]5.4 MD & utilisation-Spatial'!$G35 -> 11.17005
D36: Raw Adjusted MD | E36: MVA | F36: Non-Coincident | G36: ='[3]5.4 MD & utilisation-Spatial'!$G36+'[2]5.4 MD & utilisation-Spatial'!$G36 -> 25.3066345
F37: Coincident | G37: ='[3]5.4 MD & utilisation-Spatial'!$G37+'[2]5.4 MD & utilisation-Spatial'!$G37 -> 11.31849202
D38: Date MD occurred | F38: Non-Coincident | G38: ='[3]5.4 MD & utilisation-Spatial'!$G38+'[2]5.4 MD & utilisation-Spatial'!$G38 -> 2016-02-25
F39: Coincident | G39: ='[3]5.4 MD & utilisation-Spatial'!$G39+'[2]5.4 MD & utilisation-Spatial'!$G39 -> 2015-08-12
D40: Half hour time period MD occurred | F40: Non-Coincident | G40: ='[3]5.4 MD & utilisation-Spatial'!$G40+'[2]5.4 MD & utilisation-Spatial'!$G40 -> 13:30:00
F41: Coincident | G41: ='[3]5.4 MD & utilisation-Spatial'!$G41+'[2]5.4 MD & utilisation-Spatial'!$G41 -> 18:45:00
D42: Winter/Summer Peaking | F42: Non-Coincident | G42: Summer
F43: Coincident | G43: Winter
D44: Adjustments - Embedded generation | E44: MW | F44: Non-Coincident | G44: ='[3]5.4 MD & utilisation-Spatial'!$G44+'[2]5.4 MD & utilisation-Spatial'!$G44 -> 0
F45: Coincident | G45: ='[3]5.4 MD & utilisation-Spatial'!$G45+'[2]5.4 MD & utilisation-Spatial'!$G45 -> 0
D46: Weather Corrected MD 10% POE | E46: MW | F46: Non-Coincident | G46: ='[3]5.4 MD & utilisation-Spatial'!$G46+'[2]5.4 MD & utilisation-Spatial'!$G46 -> 25.113
F47: Coincident | G47: ='[3]5.4 MD & utilisation-Spatial'!$G47+'[2]5.4 MD & utilisation-Spatial'!$G47 -> 11.468
D48: Weather Corrected MD 10% POE | E48: MVA | F48: Non-Coincident | G48: ='[3]5.4 MD & utilisation-Spatial'!$G48+'[2]5.4 MD & utilisation-Spatial'!$G48 -> 26.633
F49: Coincident | G49: ='[3]5.4 MD & utilisation-Spatial'!$G49+'[2]5.4 MD & utilisation-Spatial'!$G49 -> 11.621
D50: Weather Corrected MD 50% POE | E50: MW | F50: Non-Coincident | G50: ='[3]5.4 MD & utilisation-Spatial'!$G50+'[2]5.4 MD & utilisation-Spatial'!$G50 -> 23.782
F51: Coincident | G51: ='[3]5.4 MD & utilisation-Spatial'!$G51+'[2]5.4 MD & utilisation-Spatial'!$G51 -> 11.147
D52: Weather Corrected MD 50% POE | E52: MVA | F52: Non-Coincident | G52: ='[3]5.4 MD & utilisation-Spatial'!$G52+'[2]5.4 MD & utilisation-Spatial'!$G52 -> 25.222
F53: Coincident | G53: ='[3]5.4 MD & utilisation-Spatial'!$G53+'[2]5.4 MD & utilisation-Spatial'!$G53 -> 11.295
C54: Williamsdale | D54: Substation Rating | E54: MVA | F54: Non-Coincident | G54: ='[3]5.4 MD & utilisation-Spatial'!$G54+'[2]5.4 MD & utilisation-Spatial'!$G54 -> 0
F55: Coincident | G55: ='[3]5.4 MD & utilisation-Spatial'!$G55+'[2]5.4 MD & utilisation-Spatial'!$G55 -> 0
D56: Raw Adjusted MD | E56: MW | F56: Non-Coincident | G56: ='[3]5.4 MD & utilisation-Spatial'!$G56+'[2]5.4 MD & utilisation-Spatial'!$G56 -> 199.9397
F57: Coincident | G57: ='[3]5.4 MD & utilisation-Spatial'!$G57+'[2]5.4 MD & utilisation-Spatial'!$G57 -> 168.697548
D58: Raw Adjusted MD | E58: MVA | F58: Non-Coincident | G58: ='[3]5.4 MD & utilisation-Spatial'!$G58+'[2]5.4 MD & utilisation-Spatial'!$G58 -> 206.845
F59: Coincident | G59: ='[3]5.4 MD & utilisation-Spatial'!$G59+'[2]5.4 MD & utilisation-Spatial'!$G59 -> 174.881
D60: Date MD occurred | F60: Non-Coincident | G60: ='[3]5.4 MD & utilisation-Spatial'!$G60+'[2]5.4 MD & utilisation-Spatial'!$G60 -> 2016-06-30
F61: Coincident | G61: ='[3]5.4 MD & utilisation-Spatial'!$G61+'[2]5.4 MD & utilisation-Spatial'!$G61 -> 2015-08-12
D62: Half hour time period MD occurred | F62: Non-Coincident | G62: ='[3]5.4 MD & utilisation-Spatial'!$G62+'[2]5.4 MD & utilisation-Spatial'!$G62 -> 18:00:00
F63: Coincident | G63: ='[3]5.4 MD & utilisation-Spatial'!$G63+'[2]5.4 MD & utilisation-Spatial'!$G63 -> 18:45:00
D64: Winter/Summer Peaking | F64: Non-Coincident | G64: Winter
F65: Coincident | G65: Winter
D66: Adjustments - Embedded generation | E66: MW | F66: Non-Coincident | G66: ='[3]5.4 MD & utilisation-Spatial'!$G66+'[2]5.4 MD & utilisation-Spatial'!$G66 -> 0
F67: Coincident | G67: ='[3]5.4 MD & utilisation-Spatial'!$G67+'[2]5.4 MD & utilisation-Spatial'!$G67 -> 0
D68: Weather Corrected MD 10% POE | E68: MW | F68: Non-Coincident | G68: ='[3]5.4 MD & utilisation-Spatial'!$G68+'[2]5.4 MD & utilisation-Spatial'!$G68 -> 204.829
F69: Coincident | G69: ='[3]5.4 MD & utilisation-Spatial'!$G69+'[2]5.4 MD & utilisation-Spatial'!$G69 -> 173.201
D70: Weather Corrected MD 10% POE | E70: MVA | F70: Non-Coincident | G70: ='[3]5.4 MD & utilisation-Spatial'!$G70+'[2]5.4 MD & utilisation-Spatial'!$G70 -> 211.903
F71: Coincident | G71: ='[3]5.4 MD & utilisation-Spatial'!$G71+'[2]5.4 MD & utilisation-Spatial'!$G71 -> 179.55
D72: Weather Corrected MD 50% POE | E72: MW | F72: Non-Coincident | G72: ='[3]5.4 MD & utilisation-Spatial'!$G72+'[2]5.4 MD & utilisation-Spatial'!$G72 -> 191.901
F73: Coincident | G73: ='[3]5.4 MD & utilisation-Spatial'!$G73+'[2]5.4 MD & utilisation-Spatial'!$G73 -> 168.345
D74: Weather Corrected MD 50% POE | E74: MVA | F74: Non-Coincident | G74: ='[3]5.4 MD & utilisation-Spatial'!$G74+'[2]5.4 MD & utilisation-Spatial'!$G74 -> 198.529
F75: Coincident | G75: ='[3]5.4 MD & utilisation-Spatial'!$G75+'[2]5.4 MD & utilisation-Spatial'!$G75 -> 174.515
C76: ='[3]5.4 MD & utilisation-Spatial'!$C$10:$C$31 ->  | D76: Substation Rating | E76: MVA | F76: Non-Coincident
F77: Coincident
D78: Raw Adjusted MD | E78: MW | F78: Non-Coincident
F79: Coincident
D80: Raw Adjusted MD | E80: MVA | F80: Non-Coincident
F81: Coincident
D82: Date MD occurred | F82: Non-Coincident
F83: Coincident
D84: Half hour time period MD occurred | F84: Non-Coincident
F85: Coincident
D86: Winter/Summer Peaking | F86: Non-Coincident
F87: Coincident
D88: Adjustments - Embedded generation | E88: MW | F88: Non-Coincident
F89: Coincident
D90: Weather Corrected MD 10% POE | E90: MW | F90: Non-Coincident
F91: Coincident
D92: Weather Corrected MD 10% POE | E92: MVA | F92: Non-Coincident
F93: Coincident
D94: Weather Corrected MD 50% POE | E94: MW | F94: Non-Coincident
F95: Coincident
D96: Weather Corrected MD 50% POE | E96: MVA | F96: Non-Coincident
F97: Coincident
C98: ='[3]5.4 MD & utilisation-Spatial'!$C$10:$C$31 ->  | D98: Substation Rating | E98: MVA | F98: Non-Coincident
F99: Coincident
D100: Raw Adjusted MD | E100: MW | F100: Non-Coincident
F101: Coincident
D102: Raw Adjusted MD | E102: MVA | F102: Non-Coincident
F103: Coincident
D104: Date MD occurred | F104: Non-Coincident
F105: Coincident
D106: Half hour time period MD occurred | F106: Non-Coincident
F107: Coincident
D108: Winter/Summer Peaking | F108: Non-Coincident
F109: Coincident
D110: Adjustments - Embedded generation | E110: MW | F110: Non-Coincident
F111: Coincident
D112: Weather Corrected MD 10% POE | E112: MW | F112: Non-Coincident
F113: Coincident
D114: Weather Corrected MD 10% POE | E114: MVA | F114: Non-Coincident
F115: Coincident
D116: Weather Corrected MD 50% POE | E116: MW | F116: Non-Coincident
F117: Coincident
D118: Weather Corrected MD 50% POE | E118: MVA | F118: Non-Coincident
F119: Coincident
C120: ='[3]5.4 MD & utilisation-Spatial'!$C$10:$C$31 ->  | D120: Substation Rating | E120: MVA | F120: Non-Coincident
F121: Coincident
D122: Raw Adjusted MD | E122: MW | F122: Non-Coincident
F123: Coincident
D124: Raw Adjusted MD | E124: MVA | F124: Non-Coincident
F125: Coincident
D126: Date MD occurred | F126: Non-Coincident
F127: Coincident
D128: Half hour time period MD occurred | F128: Non-Coincident
F129: Coincident
D130: Winter/Summer Peaking | F130: Non-Coincident
F131: Coincident
D132: Adjustments - Embedded generation | E132: MW | F132: Non-Coincident
F133: Coincident
D134: Weather Corrected MD 10% POE | E134: MW | F134: Non-Coincident
F135: Coincident
D136: Weather Corrected MD 10% POE | E136: MVA | F136: Non-Coincident
F137: Coincident
D138: Weather Corrected MD 50% POE | E138: MW | F138: Non-Coincident
F139: Coincident
D140: Weather Corrected MD 50% POE | E140: MVA | F140: Non-Coincident
F141: Coincident
C142: ='[3]5.4 MD & utilisation-Spatial'!$C$10:$C$31 ->  | D142: Substation Rating | E142: MVA | F142: Non-Coincident
F143: Coincident
D144: Raw Adjusted MD | E144: MW | F144: Non-Coincident
F145: Coincident
D146: Raw Adjusted MD | E146: MVA | F146: Non-Coincident
F147: Coincident
D148: Date MD occurred | F148: Non-Coincident
F149: Coincident
D150: Half hour time period MD occurred | F150: Non-Coincident
F151: Coincident
D152: Winter/Summer Peaking | F152: Non-Coincident
F153: Coincident
D154: Adjustments - Embedded generation | E154: MW | F154: Non-Coincident
F155: Coincident
D156: Weather Corrected MD 10% POE | E156: MW | F156: Non-Coincident
F157: Coincident
D158: Weather Corrected MD 10% POE | E158: MVA | F158: Non-Coincident
F159: Coincident
D160: Weather Corrected MD 50% POE | E160: MW | F160: Non-Coincident
F161: Coincident
D162: Weather Corrected MD 50% POE | E162: MVA | F162: Non-Coincident
F163: Coincident
C164: ='[3]5.4 MD & utilisation-Spatial'!$C$10:$C$31 ->  | D164: Substation Rating | E164: MVA | F164: Non-Coincident
F165: Coincident
D166: Raw Adjusted MD | E166: MW | F166: Non-Coincident
F167: Coincident
D168: Raw Adjusted MD | E168: MVA | F168: Non-Coincident
F169: Coincident
D170: Date MD occurred | F170: Non-Coincident
F171: Coincident
D172: Half hour time period MD occurred | F172: Non-Coincident
F173: Coincident
D174: Winter/Summer Peaking | F174: Non-Coincident
F175: Coincident
D176: Adjustments - Embedded generation | E176: MW | F176: Non-Coincident
F177: Coincident
D178: Weather Corrected MD 10% POE | E178: MW | F178: Non-Coincident
F179: Coincident
D180: Weather Corrected MD 10% POE | E180: MVA | F180: Non-Coincident
F181: Coincident
D182: Weather Corrected MD 50% POE | E182: MW | F182: Non-Coincident
F183: Coincident
D184: Weather Corrected MD 50% POE | E184: MVA | F184: Non-Coincident
F185: Coincident
C186: ='[3]5.4 MD & utilisation-Spatial'!$C$10:$C$31 ->  | D186: Substation Rating | E186: MVA | F186: Non-Coincident
F187: Coincident
D188: Raw Adjusted MD | E188: MW | F188: Non-Coincident
F189: Coincident
D190: Raw Adjusted MD | E190: MVA | F190: Non-Coincident
F191: Coincident
D192: Date MD occurred | F192: Non-Coincident
F193: Coincident
D194: Half hour time period MD occurred | F194: Non-Coincident
F195: Coincident
D196: Winter/Summer Peaking | F196: Non-Coincident
F197: Coincident
D198: Adjustments - Embedded generation | E198: MW | F198: Non-Coincident
F199: Coincident
D200: Weather Corrected MD 10% POE | E200: MW | F200: Non-Coincident
F201: Coincident
D202: Weather Corrected MD 10% POE | E202: MVA | F202: Non-Coincident
... 11226 more rows

Sheet 6.3 Sustained interruptionss
B1: REGULATORY REPORTING STATEMENT
B2: =INDEX(dms_TradingNameFull_List,MATCH(dms_TradingName,dms_TradingName_List)) -> ActewAGL Distribution
B3: =CONCATENATE((LOOKUP(dms_Model,dms_Model_List,dms_Worksheet_List))&" "&CRY) -> CATEGORY ANALYSIS 2015-16
B4: 6.3 SUSTAINED INTERRUPTIONS TO SUPPLY
B6: 6.3.1 - SUSTAINED INTERRUPTIONS TO SUPPLY (for 2015-16)
B8: There is ONE table on this worksheet. It has been grouped into five subgroups of 10000 rows each for navigation purposes. See the Instructions sheet on how to group and ungroup data.
B10: Definitions:
B11: Feeder classification definitions (column E) | F11: Average duration of sustained customer interruption (column I) | H11: Average duration of sustained customer interruption (column J) | K11: Effect on unplanned SAIFI (column K)
B12: CBD feeder: a feeder supplying predominantly commercial, high-rise buildings, supplied by a predominantly underground distribution network containing significant interconnection and redundancy when compared to urban areas. Urban feeder: a feeder, that is not a CBD feeder, with actual maximum demand over the reporting period per total feeder route length greater than 0.3 MVA/km. Short rural feeder: a feeder that is not a CBD or urban feeder with a total feeder route length less than 200 km. Long rural feeder: a feeder that is not a CBD or urban feeder with a total feeder route length greater than 200 km. | F12: The average duration of an interruption experienced by an affected customer. | H12: The sum of the duration of each unplanned sustained customer interruption (in minutes) divided by the total number of distribution customers. Unplanned SAIDI excludes momentary interruptions (one minute or less). | K12: The total number of unplanned sustained customer interruptions divided by the total number of distribution customers. Unplanned SAIFI excludes momentary interruptions (one minute or less). SAIFI is expressed per 0.01 interruptions.
B14: Date of event (DD/MM/YYYY) | C14: Time of interruption (HH:MM) | D14: Asset ID (eg. feeder ID) | E14: Feeder classification (CBD, Urban, Short rural, Long rural) | F14: Reason for interruption (select from options in drop-down box) | G14: Detailed reason for interruption (select from options in column 'O' that correspond with reason in column 'F') | H14: Number of customers affected by the interruption | I14: Average duration of sustained customer interruption (minutes) | J14: Average duration of sustained customer interruption | K14: Effect on unplanned SAIFI (by feeder classification) | L14: MED
B15: 2015-07-01 | C15: 08:35:00 | D15: Cooleman | E15: Urban | F15: Planned | G15: 0 | H15: 27 | I15: 173.1111111 | J15: 0 | K15: 0 | L15: FALSE
B16: 2015-07-01 | C16: 08:37:00 | D16: Bunbury | E16: Urban | F16: Planned | G16: 0 | H16: 27 | I16: 153.1111111 | J16: 0 | K16: 0 | L16: FALSE
B17: 2015-07-01 | C17: 08:55:00 | D17: Folingsby | E17: Urban | F17: Planned | G17: 0 | H17: 41 | I17: 110.9268293 | J17: 0 | K17: 0 | L17: FALSE
B18: 2015-07-01 | C18: 09:09:00 | D18: Throsby | E18: Urban | F18: Planned | G18: 0 | H18: 8 | I18: 78.75 | J18: 0 | K18: 0 | L18: FALSE
B19: 2015-07-01 | C19: 09:26:00 | D19: Ebden | E19: Urban | F19: Planned | G19: 0 | H19: 34 | I19: 219 | J19: 0 | K19: 0 | L19: FALSE
B20: 2015-07-01 | C20: 09:29:00 | D20: Sturt | E20: Urban | F20: Planned | G20: 0 | H20: 27 | I20: 364 | J20: 0 | K20: 0 | L20: FALSE
B21: 2015-07-01 | C21: 19:00:00 | D21: Haig | E21: Urban | F21: Asset failure | G21: HV | H21: 15 | I21: 161.2 | J21: 0.01478582566 | K21: 9.172348427e-05 | L21: FALSE
B22: 2015-07-02 | C22: 08:31:00 | D22: Bunbury | E22: Urban | F22: Planned | G22: 0 | H22: 20 | I22: 233.1 | J22: 0 | K22: 0 | L22: FALSE
B23: 2015-07-02 | C23: 08:31:00 | D23: Throsby | E23: Urban | F23: Planned | G23: 0 | H23: 17 | I23: 190.9411765 | J23: 0 | K23: 0 | L23: FALSE
B24: 2015-07-02 | C24: 08:35:00 | D24: Bunbury | E24: Urban | F24: Planned | G24: 0 | H24: 28 | I24: 225 | J24: 0 | K24: 0 | L24: FALSE
B25: 2015-07-02 | C25: 08:44:00 | D25: Ashley | E25: Urban | F25: Planned | G25: 0 | H25: 32 | I25: 336.9375 | J25: 0 | K25: 0 | L25: FALSE
B26: 2015-07-02 | C26: 09:00:00 | D26: Wilson | E26: Urban | F26: Planned | G26: 0 | H26: 15 | I26: 355.2 | J26: 0 | K26: 0 | L26: FALSE
B27: 2015-07-02 | C27: 09:05:00 | D27: Wilson | E27: Urban | F27: Planned | G27: 0 | H27: 24 | I27: 347 | J27: 0 | K27: 0 | L27: FALSE
B28: 2015-07-02 | C28: 09:11:00 | D28: Matthews | E28: Rural short | F28: Planned | G28: 0 | H28: 12 | I28: 386 | J28: 0 | K28: 0 | L28: FALSE
B29: 2015-07-02 | C29: 11:45:00 | D29: Reid | E29: Rural short | F29: Planned | G29: 0 | H29: 48 | I29: 120 | J29: 0 | K29: 0 | L29: FALSE
B30: 2015-07-02 | C30: 13:46:00 | D30: Telopea Park East | E30: Urban | F30: Asset failure | G30: LV | H30: 1 | I30: 18 | J30: 0.0001100681811 | K30: 6.114898951e-06 | L30: FALSE
B31: 2015-07-02 | C31: 14:28:00 | D31: Hilder | E31: Urban | F31: Asset failure | G31: HV | H31: 11 | I31: 49.09090909 | J31: 0.003302045434 | K31: 6.726388846e-05 | L31: FALSE
B32: 2015-07-02 | C32: 19:12:00 | D32: Anthony Rolfe | E32: Urban | F32: Asset failure | G32: HV | H32: 2488 | I32: 67.46382637 | J32: 1.026385789 | K32: 0.01521386859 | L32: FALSE
B33: 2015-07-03 | C33: 08:45:00 | D33: Cooleman | E33: Urban | F33: Planned | G33: 0 | H33: 22 | I33: 379.9090909 | J33: 0 | K33: 0 | L33: FALSE
B34: 2015-07-03 | C34: 09:20:00 | D34: Mannheim | E34: Urban | F34: Planned | G34: 0 | H34: 35 | I34: 74.91428571 | J34: 0 | K34: 0 | L34: FALSE
B35: 2015-07-03 | C35: 09:43:00 | D35: Ashley | E35: Urban | F35: Planned | G35: 0 | H35: 7 | I35: 232.2857143 | J35: 0 | K35: 0 | L35: FALSE
B36: 2015-07-03 | C36: 09:44:00 | D36: Black Mountain | E36: Urban | F36: Planned | G36: 0 | H36: 1 | I36: 276 | J36: 0 | K36: 0 | L36: FALSE
B37: 2015-07-03 | C37: 09:44:00 | D37: Black Mountain | E37: Urban | F37: Planned | G37: 0 | H37: 1 | I37: 276 | J37: 0 | K37: 0 | L37: FALSE
B38: 2015-07-04 | C38: 06:24:00 | D38: ANUNO12345 | E38: Urban | F38: Planned | G38: 0 | H38: 1 | I38: 672 | J38: 0 | K38: 0 | L38: FALSE
B39: 2015-07-04 | C39: 06:30:00 | D39: ANUNO12345 | E39: Urban | F39: Planned | G39: 0 | H39: 1 | I39: 138 | J39: 0 | K39: 0 | L39: FALSE
B40: 2015-07-04 | C40: 06:32:00 | D40: ANUNO12345 | E40: Urban | F40: Planned | G40: 0 | H40: 1 | I40: 138 | J40: 0 | K40: 0 | L40: FALSE
B41: 2015-07-04 | C41: 07:33:00 | D41: WHYLAPLGO | E41: Urban | F41: Planned | G41: 0 | H41: 1 | I41: 150 | J41: 0 | K41: 0 | L41: FALSE
B42: 2015-07-04 | C42: 08:40:00 | D42: Homann | E42: Rural short | F42: Planned | G42: 0 | H42: 1 | I42: 342 | J42: 0 | K42: 0 | L42: FALSE
B43: 2015-07-04 | C43: 14:07:00 | D43: Dryandra | E43: Urban | F43: Asset failure | G43: HV | H43: 21 | I43: 42.85714286 | J43: 0.005503409056 | K43: 0.000128412878 | L43: FALSE
B44: 2015-07-06 | C44: 07:52:00 | D44: ANUNO12345 | E44: Urban | F44: Planned | G44: 0 | H44: 1 | I44: 84 | J44: 0 | K44: 0 | L44: FALSE
B45: 2015-07-06 | C45: 08:35:00 | D45: WHYLAPLGO | E45: Urban | F45: Asset failure | G45: HV | H45: 13 | I45: 99.23076923 | J45: 0.007888219647 | K45: 7.949368637e-05 | L45: FALSE
B46: 2015-07-06 | C46: 09:00:00 | D46: Nona | E46: Urban | F46: Planned | G46: 0 | H46: 24 | I46: 252 | J46: 0 | K46: 0 | L46: FALSE
B47: 2015-07-06 | C47: 09:06:00 | D47: Nona | E47: Urban | F47: Planned | G47: 0 | H47: 51 | I47: 252 | J47: 0 | K47: 0 | L47: FALSE
B48: 2015-07-06 | C48: 10:30:00 | D48: Verbrugghen | E48: Urban | F48: Other | G48: Safety reason | H48: 17 | I48: 244.5882353 | J48: 0.02542574984 | K48: 0.0001039532822 | L48: FALSE
B49: 2015-07-06 | C49: 17:23:00 | D49: BLDWNJOYC | E49: Urban | F49: Asset failure | G49: LV | H49: 55 | I49: 49.96363636 | J49: 0.01680374232 | K49: 0.0003363194423 | L49: FALSE
B50: 2015-07-07 | C50: 08:35:00 | D50: Throsby | E50: Urban | F50: Planned | G50: 0 | H50: 20 | I50: 291 | J50: 0 | K50: 0 | L50: FALSE
B51: 2015-07-07 | C51: 08:54:00 | D51: HAWKRPRD | E51: Urban | F51: Planned | G51: 0 | H51: 7 | I51: 171.4285714 | J51: 0 | K51: 0 | L51: FALSE
B52: 2015-07-07 | C52: 09:20:00 | D52: Yarralumla | E52: Urban | F52: Planned | G52: 0 | H52: 38 | I52: 357 | J52: 0 | K52: 0 | L52: FALSE
B53: 2015-07-07 | C53: 09:23:00 | D53: Ebden | E53: Urban | F53: Planned | G53: 0 | H53: 22 | I53: 352.0909091 | J53: 0 | K53: 0 | L53: FALSE
B54: 2015-07-07 | C54: 09:27:00 | D54: Ebden | E54: Urban | F54: Planned | G54: 0 | H54: 13 | I54: 350.7692308 | J54: 0 | K54: 0 | L54: FALSE
B55: 2015-07-07 | C55: 09:33:00 | D55: Verbrugghen | E55: Urban | F55: Planned | G55: 0 | H55: 17 | I55: 248.1176471 | J55: 0 | K55: 0 | L55: FALSE
B56: 2015-07-07 | C56: 09:37:00 | D56: Verbrugghen | E56: Urban | F56: Planned | G56: 0 | H56: 58 | I56: 247.9655172 | J56: 0 | K56: 0 | L56: FALSE
B57: 2015-07-07 | C57: 10:40:00 | D57: Macrossan | E57: Rural short | F57: Planned | G57: 0 | H57: 1 | I57: 222 | J57: 0 | K57: 0 | L57: FALSE
B58: 2015-07-07 | C58: 10:55:00 | D58: Macrossan | E58: Rural short | F58: Planned | G58: 0 | H58: 1 | I58: 222 | J58: 0 | K58: 0 | L58: FALSE
B59: 2015-07-07 | C59: 11:15:00 | D59: Power House | E59: Urban | F59: Asset failure | G59: LV | H59: 65 | I59: 132.6461538 | J59: 0.05272265876 | K59: 0.0003974684318 | L59: FALSE
B60: 2015-07-07 | C60: 11:23:00 | D60: Seal | E60: Urban | F60: Other | G60: Safety reason | H60: 41 | I60: 235.0243902 | J60: 0.05892316629 | K60: 0.000250710857 | L60: FALSE
B61: 2015-07-07 | C61: 11:23:00 | D61: Tillyard | E61: Urban | F61: Other | G61: Safety reason | H61: 15 | I61: 236 | J61: 0.02164674229 | K61: 9.172348427e-05 | L61: FALSE
B62: 2015-07-07 | C62: 15:39:00 | D62: Birrigai | E62: Rural short | F62: Third party | G62: Vehicle impact | H62: 10 | I62: 46.2 | J62: 0.02156158118 | K62: 0.0004667008914 | L62: FALSE
B63: 2015-07-07 | C63: 19:18:00 | D63: Power House | E63: Urban | F63: Asset failure | G63: LV | H63: 25 | I63: 77.04 | J63: 0.01177729538 | K63: 0.0001528724738 | L63: FALSE
B64: 2015-07-07 | C64: 19:50:00 | D64: Curtin North | E64: Urban | F64: Asset failure | G64: LV | H64: 18 | I64: 30 | J64: 0.003302045434 | K64: 0.0001100681811 | L64: FALSE
B65: 2015-07-07 | C65: 20:18:00 | D65: Powers | E65: Urban | F65: Asset failure | G65: LV | H65: 5 | I65: 2.4 | J65: 7.337878742e-05 | K65: 3.057449476e-05 | L65: FALSE
B66: 2015-07-08 | C66: 08:31:00 | D66: May Maxwell | E66: Urban | F66: Planned | G66: 0 | H66: 17 | I66: 148.9411765 | J66: 0 | K66: 0 | L66: FALSE
B67: 2015-07-08 | C67: 08:37:00 | D67: Conley | E67: Urban | F67: Planned | G67: 0 | H67: 23 | I67: 331.0434783 | J67: 0 | K67: 0 | L67: FALSE
B68: 2015-07-08 | C68: 08:52:00 | D68: HAWKRPRD | E68: Urban | F68: Planned | G68: 0 | H68: 14 | I68: 221.1428571 | J68: 0 | K68: 0 | L68: FALSE
B69: 2015-07-08 | C69: 08:56:00 | D69: Power House | E69: Urban | F69: Asset failure | G69: LV | H69: 13 | I69: 78.92307692 | J69: 0.006273886324 | K69: 7.949368637e-05 | L69: FALSE
B70: 2015-07-08 | C70: 09:05:00 | D70: Power House | E70: Urban | F70: Planned | G70: 0 | H70: 24 | I70: 90 | J70: 0 | K70: 0 | L70: FALSE
B71: 2015-07-08 | C71: 09:15:00 | D71: Sturt | E71: Urban | F71: Planned | G71: 0 | H71: 35 | I71: 76.97142857 | J71: 0 | K71: 0 | L71: FALSE
B72: 2015-07-08 | C72: 09:22:00 | D72: Cotter 11kV | E72: Rural short | F72: Planned | G72: 0 | H72: 1 | I72: 312 | J72: 0 | K72: 0 | L72: FALSE
B73: 2015-07-08 | C73: 09:35:00 | D73: Powers | E73: Urban | F73: Asset failure | G73: LV | H73: 90 | I73: 74.73333333 | J73: 0.04112881035 | K73: 0.0005503409056 | L73: FALSE
B74: 2015-07-08 | C74: 10:12:00 | D74: Wilson | E74: Urban | F74: Planned | G74: 0 | H74: 28 | I74: 90 | J74: 0 | K74: 0 | L74: FALSE
B75: 2015-07-08 | C75: 13:25:00 | D75: BLDWNJOYC | E75: Urban | F75: Planned | G75: 0 | H75: 34 | I75: 61.05882353 | J75: 0 | K75: 0 | L75: FALSE
B76: 2015-07-08 | C76: 14:10:00 | D76: Daplyn | E76: Urban | F76: Asset failure | G76: HV | H76: 23 | I76: 42 | J76: 0.005906992387 | K76: 0.0001406426759 | L76: FALSE
B77: 2015-07-08 | C77: 17:50:00 | D77: Macrossan | E77: Rural short | F77: Asset failure | G77: LV | H77: 13 | I77: 29.07692308 | J77: 0.01764129369 | K77: 0.0006067111588 | L77: FALSE
B78: 2015-07-09 | C78: 08:36:00 | D78: McInnes | E78: Urban | F78: Planned | G78: 0 | H78: 14 | I78: 288.8571429 | J78: 0 | K78: 0 | L78: FALSE
B79: 2015-07-09 | C79: 08:42:00 | D79: MCHMBEAN | E79: Rural short | F79: Planned | G79: 0 | H79: 27 | I79: 376 | J79: 0 | K79: 0 | L79: FALSE
B80: 2015-07-09 | C80: 08:43:00 | D80: McInnes | E80: Urban | F80: Planned | G80: 0 | H80: 32 | I80: 288.9375 | J80: 0 | K80: 0 | L80: FALSE
B81: 2015-07-09 | C81: 08:43:00 | D81: Ferguson | E81: Urban | F81: Planned | G81: 0 | H81: 25 | I81: 297.12 | J81: 0 | K81: 0 | L81: FALSE
B82: 2015-07-09 | C82: 08:52:00 | D82: HAWKRPRD | E82: Urban | F82: Planned | G82: 0 | H82: 25 | I82: 227.04 | J82: 0 | K82: 0 | L82: FALSE
B83: 2015-07-09 | C83: 09:16:00 | D83: McInnes | E83: Urban | F83: Planned | G83: 0 | H83: 25 | I83: 209.04 | J83: 0 | K83: 0 | L83: FALSE
B84: 2015-07-09 | C84: 09:19:00 | D84: McInnes | E84: Urban | F84: Planned | G84: 0 | H84: 27 | I84: 198 | J84: 0 | K84: 0 | L84: FALSE
B85: 2015-07-09 | C85: 09:30:00 | D85: Miller | E85: Urban | F85: Planned | G85: 0 | H85: 30 | I85: 272 | J85: 0 | K85: 0 | L85: FALSE
B86: 2015-07-10 | C86: 08:22:00 | D86: Broughton | E86: Urban | F86: Asset failure | G86: HV | H86: 32 | I86: 36 | J86: 0.007044363592 | K86: 0.0001956767664 | L86: FALSE
B87: 2015-07-10 | C87: 11:17:00 | D87: Banyule | E87: Urban | F87: Third party | G87: Vehicle impact | H87: 30 | I87: 188 | J87: 0.03448803009 | K87: 0.0001834469685 | L87: FALSE
B88: 2015-07-11 | C88: 08:52:00 | D88: ANUBELM | E88: Urban | F88: Planned | G88: 0 | H88: 6 | I88: 158 | J88: 0 | K88: 0 | L88: FALSE
B89: 2015-07-11 | C89: 09:00:00 | D89: Giles | E89: Urban | F89: Planned | G89: 0 | H89: 4 | I89: 289.5 | J89: 0 | K89: 0 | L89: FALSE
B90: 2015-07-11 | C90: 19:28:00 | D90: Cotter 11kV | E90: Rural short | F90: Unknown | G90: Unknown | H90: 10 | I90: 0 | J90: 0 | K90: 0 | L90: FALSE
B91: 2015-07-11 | C91: 19:45:00 | D91: Reid | E91: Rural short | F91: Unknown | G91: Unknown | H91: 25 | I91: 0 | J91: 0 | K91: 0 | L91: FALSE
B92: 2015-07-11 | C92: 19:59:00 | D92: Matthews | E92: Rural short | F92: Unknown | G92: Unknown | H92: 26 | I92: 0 | J92: 0 | K92: 0 | L92: FALSE
B93: 2015-07-11 | C93: 20:02:00 | D93: Matthews | E93: Rural short | F93: Unknown | G93: Unknown | H93: 26 | I93: 0 | J93: 0 | K93: 0 | L93: FALSE
B94: 2015-07-11 | C94: 20:06:00 | D94: Homann | E94: Rural short | F94: Unknown | G94: Unknown | H94: 1 | I94: 48 | J94: 0.002240164279 | K94: 4.667008914e-05 | L94: FALSE
B95: 2015-07-11 | C95: 20:17:00 | D95: Dairy North | E95: Urban | F95: Weather | G95: 0 | H95: 3 | I95: 121 | J95: 0.002219708319 | K95: 1.834469685e-05 | L95: FALSE
B96: 2015-07-12 | C96: 08:13:00 | D96: HAWKRPRD | E96: Urban | F96: Asset failure | G96: HV | H96: 36 | I96: 125 | J96: 0.02751704528 | K96: 0.0002201363622 | L96: FALSE
B97: 2015-07-12 | C97: 08:23:00 | D97: Lyell | E97: Urban | F97: Planned | G97: 0 | H97: 21 | I97: 172 | J97: 0 | K97: 0 | L97: FALSE
B98: 2015-07-12 | C98: 09:18:00 | D98: Yarralumla | E98: Urban | F98: Weather | G98: 0 | H98: 1 | I98: 252 | J98: 0.001540954536 | K98: 6.114898951e-06 | L98: FALSE
B99: 2015-07-12 | C99: 17:04:00 | D99: BNJMNLAUR | E99: Urban | F99: Animal | G99: Animal nesting/burrowing, etc and other | H99: 61 | I99: 42.98360656 | J99: 0.01603326505 | K99: 0.000373008836 | L99: FALSE
B100: 2015-07-12 | C100: 19:24:00 | D100: Barrington | E100: Urban | F100: Asset failure | G100: HV | H100: 1892 | I100: 78.19978858 | J100: 0.9047237594 | K100: 0.01156938882 | L100: FALSE
B101: 2015-07-13 | C101: 08:30:00 | D101: Elkington | E101: Urban | F101: Planned | G101: 0 | H101: 43 | I101: 176.9302326 | J101: 0 | K101: 0 | L101: FALSE
B102: 2015-07-13 | C102: 08:56:00 | D102: Hilder | E102: Urban | F102: Planned | G102: 0 | H102: 30 | I102: 219 | J102: 0 | K102: 0 | L102: FALSE
B103: 2015-07-13 | C103: 08:59:00 | D103: Streeton | E103: Urban | F103: Planned | G103: 0 | H103: 21 | I103: 218.8571429 | J103: 0 | K103: 0 | L103: FALSE
B104: 2015-07-13 | C104: 19:27:00 | D104: Muresk | E104: Urban | F104: Asset failure | G104: LV | H104: 45 | I104: 40 | J104: 0.01100681811 | K104: 0.0002751704528 | L104: FALSE
B105: 2015-07-13 | C105: 21:38:00 | D105: Ferguson | E105: Urban | F105: Asset failure | G105: LV | H105: 5 | I105: 21.6 | J105: 0.0006604090867 | K105: 3.057449476e-05 | L105: FALSE
B106: 2015-07-14 | C106: 08:30:00 | D106: Stott | E106: Urban | F106: Planned | G106: 0 | H106: 43 | I106: 204 | J106: 0 | K106: 0 | L106: FALSE
B107: 2015-07-14 | C107: 08:50:00 | D107: Bunbury | E107: Urban | F107: Planned | G107: 0 | H107: 48 | I107: 231 | J107: 0 | K107: 0 | L107: FALSE
B108: 2015-07-14 | C108: 08:50:00 | D108: Bunbury | E108: Urban | F108: Planned | G108: 0 | H108: 42 | I108: 231 | J108: 0 | K108: 0 | L108: FALSE
B109: 2015-07-14 | C109: 09:40:00 | D109: HAWKRPRD | E109: Urban | F109: Planned | G109: 0 | H109: 27 | I109: 305.1111111 | J109: 0 | K109: 0 | L109: FALSE
